{"text_format":"1","workbook":"xlsx","n_sheets":5,"sheets":["Millwall","Comparison","Sheet1","Sheet2","Sheet3"],"not_rendered":{"charts":1,"images":2,"macros":1,"external_links":5,"defined_names":14,"comments":0,"pivot_tables":0},"unopened":[],"bounds":{"document_bytes":16777216,"sheet_cells":100000,"rows_first":2000,"rows_last":500,"rows_between":2000,"halvings":0,"cell_chars":16384,"cell_head_chars":4096},"cells_cut":0,"cells_raw":0,"read":"whole","date_system":"1900"}

{"sheet":"Millwall","index":0,"n_rows":201,"n_cols":147,"rows_kept":201,"cut":false,"hidden":false,"merged":[[2,146,2,158],[2,68,2,71],[2,72,2,75],[50,85,50,87],[50,80,50,82],[50,68,50,70],[50,72,50,74],[50,76,50,78],[4,66,4,67],[2,77,2,79],[69,69,69,71],[69,73,69,75],[69,77,69,79],[65,64,65,98]]}
[null,null,1,"Competition","Date",null,"Us & Them","Opponents",null,null,null,"Score","HT",null,null,null,null,null,null,null,null,null,null,"Att",null,"Pts","Pos","Goal Scorers",null,null,null,null,null,null,null,null,null,null,null,null,null,null,null,null,null,null,null,null,null,null,null,null,null,null,null,null,null,null,null,null,null,null,null,null,null,null,null,null,null,null,null,null,null,null,null,null,null,null,null,null,null,null,null,null,null,null,null,null,null,null,null,null,null,null,null,null,1,874]
[null,null,null,null,null,null,null,null,null,null,null,null,null,null,null,null,null,null,null,null,null,null,null,null,null,null,null,null,null,null,null,null,null,null,null,null,null,null,null,null,null,"x"]
[null,null,null,null,null,null,null,null,null,null,null,null,"x",null,null,null,null,null,null,null,null,null,null,null,null,null,null,null,null,null,null,null,null,null,null,null,null,null,null,null,null,"x",null,null,null,null,null,null,null,null,null,null,null,null,null,null,null,null,null,null,null,null,null,null,null,null,null,null,"All",null,null,null,"League",null,null,null,null,"FA Cup",null,null,null,null,null,null,null,null,null,null,null,null,null,null,null,null,null,null,null,null,null,null,null,null,null,null,null,null,null,null,null,null,null,null,null,null,null,null,null,null,null,null,null,null,null,null,null,null,null,null,null,null,null,null,null,null,null,null,null,null,null,null,null,null,null,null,null,null,"Millwall Progress Season 1964/65"]
[null,null,"Game","Competition","Date",null,"Us & Them","Opponents",null,null,null,"Score","HT",null,null,null,null,null,null,null,null,null,null,"Att","Away","Pts","Pos","Goal Scorers",null,null,null,null,"Game","Competition","Date",null,"Opponents",null,null,null,"Score",1,2,3,4,5,6,7,8,9,10,11,null,null,12,null,null,null,null,null,null,null,null,null,null,null,null,null,null,{"$f":"BQ51","v":"Max (45)"},null,null,null,{"$f":"BU51","v":"Max (42)"},null,null,null,{"$f":"BY51","v":"Max (3)"},null,null,null,null,null,null,null,null,null,null,null,null,null,null,null,null,null,null,null,null,1,2,3,4,5,6,7,8,9,10,11,null,11,12,13,14,null,16,17,18,null,null,null,null,null,null,null,null,null,null,null,null,null,null,null,null,null,null,null,null,null,null,"Opposition","Pts","Pos"]
[1,null,1,"Division 2","1938-08-27",null,"- -","Chesterfield","(H)",null,null,"W 3-1","0-0","W",3,1,null,null,null,null,null,null,null,31920,null,2,6,"Walsh, Rawlings (2)",null,null,1,null,{"$f":"C5","v":1},"Division 2","1938-08-27",null,"Chesterfield","(H)",null,null,"W 3-1","Pearson","E Smith","Inns","Brolly","Wallbanks","Forsyth","Rawlings","Richardson","Walsh","Barker","JR Smith",null,null,null,null,null,null,null,null,null,null,null,null,null,null,"Player      ",null,"Apps","-","-","Goals","Apps","-","-","Goals","Apps","-","-","Goals",null,null,null,null,null,null,null,null,null,null,null,null,null,null,null,null,null,null,"Pearson","Lea","Dudley","Brolly","Chiverton","Forsyth","Fisher","Richardson","McLeod","Barker","JR Smith",null,null,null,null,null,null,null,null,null,null,null,null,null,null,null,null,null,null,null,null,null,null,null,null,null,null,null,null,null,null,null,"Chesterfield (H) W 3-1",2,6]
[{"$f":"IF(A5=0,1,IF(A5=2,1,2))","v":2},null,2,"Division 2","1938-08-29",null,"6th v 13th","Tranmere","(A)",null,null,"L 0-2","0-2","L",0,2,null,null,null,null,null,null,null,18000,null,2,11,null,null,null,{"$f":"IF(AE5=0,1,IF(AE5=2,1,2))","v":2},null,2,"Division 2","1938-08-29",null,"Tranmere","(A)",null,null,"L 0-2","Pearson","E Smith","Inns","Brolly","Chiverton","Forsyth","Rawlings","Richardson","Walsh","Barker","JR Smith",null,null,null,null,null,null,null,null,null,null,null,null,null,null,null,null,null,null,null,null,null,null,null,null,null,null,null,null,null,null,null,null,null,null,null,null,null,null,null,null,null,null,null,null,null,null,null,null,null,null,null,null,null,null,null,null,null,null,null,null,null,null,null,null,null,null,null,null,null,null,null,null,null,null,null,null,null,null,null,null,null,null,null,null,null,null,null,null,"Tranmere (A) L 0-2",2,11]
[1,null,3,"Division 2","1938-09-03",null,"12th v 16th","Swansea","(A)",null,null,"D 1-1","1-1","D",1,1,null,null,null,null,null,null,null,17000,null,3,12,"Hedley",null,null,1,null,3,"Division 2","1938-09-03",null,"Swansea","(A)",null,null,"D 1-1","Pearson","E Smith","Inns","Barker","Chiverton","Forsyth","Rawlings","Richardson","Walsh","JR Smith","Hedley",null,null,null,null,null,null,null,null,null,null,null,null,1,null,{"$f":"CN7&\" \"&CO7","v":"D Barker"},null,{"$f":"BU7+BY7","v":42},"-","-",{"$f":"BX7+CB7","v":12},{"$f":"BR72","v":39},"-","-",12,{"$f":"BZ72","v":3},"-","-",0,null,null,{"$f":"IF(BU7=CF7,IF(BY7=CL7,\"OK\",\"Error\"),\"Error\")","v":"OK"},39,null,null,null,null,null,3,{"$f":"CM72","v":72},"D","Barker",1,7,null,"Barker",null,"Pearson","Lea","Dudley","Brolly","Chiverton","Forsyth","Fisher","Richardson","McLeod","Barker","JR Smith",null,null,null,null,null,null,null,null,null,null,null,null,null,null,null,null,null,null,null,null,null,null,null,null,null,null,null,null,null,null,null,"Swansea (A) D 1-1",3,12]
[2,null,4,"Division 2","1938-09-05",null,"12th v 15th","Bury","(H)",null,null,"D 0-0","0-0","D",0,0,null,null,null,null,null,null,null,18606,null,4,11,null,null,null,2,null,4,"Division 2","1938-09-05",null,"Bury","(H)",null,null,"D 0-0","Pearson","E Smith","Inns","Brolly","Chiverton","Forsyth","Rawlings","Richardson","Walsh","JR Smith","Hedley",null,null,null,null,null,null,null,null,null,null,null,null,{"$f":"IF(BM7=0,1,IF(BM7=2,1,2))","v":2},null,"Tom Brolly",null,{"$f":"BU8+BY8","v":34},"-","-",{"$f":"BX8+CB8","v":1},31,"-","-",1,3,"-","-",0,null,null,"OK",31,null,null,null,null,null,3,73,"Tom","Brolly",2,8,null,"Brolly",null,null,null,null,null,null,null,null,null,null,null,null,null,null,null,null,null,null,null,null,null,null,null,null,null,null,null,null,null,null,null,null,null,null,null,null,null,null,null,null,null,null,null,"Bury (H) D 0-0",4,11]
[1,null,5,"Division 2","1938-09-10",null,"11th v 5th","Bradford PA","(H)",null,null,"W 3-1","1-0","W",3,1,null,null,null,null,null,null,null,27812,null,6,8,"Barker, Walsh (2)",null,null,1,null,5,"Division 2","1938-09-10",null,"Bradford PA","(H)",null,null,"W 3-1","Pearson","E Smith","Inns","Brolly","Chiverton","Forsyth","Rawlings","Richardson","Walsh","Barker","JR Smith",null,null,null,null,null,null,null,null,null,null,null,null,1,null,"Johnny Burke",null,2,"-","-",0,{"$f":"BR74","v":2},"-","-",{"$f":"BU74","v":0},{"$f":"BZ74","v":0},"-","-",{"$f":"CC74","v":0},null,null,"OK",2,null,null,null,null,null,0,74,"Johnny","Burke",3,9,null,"Burke",null,"No Scorer",null,null,null,null,null,null,null,null,null,null,null,null,null,null,null,null,null,null,null,null,null,null,null,null,null,null,null,null,null,null,null,null,null,null,null,null,null,null,null,null,null,"Bradford PA (H) W 3-1",6,8]
[2,null,6,"Division 2","1938-09-17",null,"8th v 14th","Man City","(A)",null,null,"W 6-1","0-1","W",6,1,null,null,null,null,null,null,null,25000,null,8,5,"Barker (2), Walsh, Rawlings (2), Richardson",null,null,2,null,6,"Division 2","1938-09-17",null,"Man City","(A)",null,null,"W 6-1","Pearson","E Smith","Inns","Brolly","Chiverton","Forsyth","Rawlings","Richardson","Walsh","Barker","JR Smith",null,null,null,null,null,null,null,null,null,null,null,null,2,null,"EJ Chiverton",null,44,"-","-",0,41,"-","-",0,3,"-","-",0,null,null,"OK",41,null,null,null,null,null,3,75,"EJ","Chiverton",4,10,null,"Chiverton",null,"Own Goal",null,null,null,null,null,null,null,null,null,null,null,null,null,null,null,null,null,null,null,null,null,null,null,null,null,null,null,null,null,null,null,null,null,null,null,null,null,null,null,null,null,"Man City (A) W 6-1",8,5]
[1,null,7,"Division 2","1938-09-24",null,"5th v 10th","Plymouth","(H)",null,null,"W 3-0","1-0","W",3,0,null,null,null,null,null,null,null,31574,null,10,3,"Richardson (3)",null,null,1,null,7,"Division 2","1938-09-24",null,"Plymouth","(H)",null,null,"W 3-0","Pearson","E Smith","Inns","Brolly","Chiverton","Forsyth","Rawlings","Richardson","Walsh","Barker","JR Smith",null,null,null,null,null,null,null,null,null,null,null,null,1,null,"J Daniels",null,1,"-","-",0,1,"-","-",0,0,"-","-",0,null,null,"OK",1,null,null,null,null,null,0,76,"J","Daniels",5,11,null,"Daniels",null,"Barker","D",null,null,null,null,null,null,null,null,null,null,null,null,null,null,null,null,null,null,null,null,null,null,null,null,null,null,null,null,null,null,null,null,null,null,null,null,null,null,null,null,"Plymouth (H) W 3-0",10,3]
[2,null,8,"Division 2","1938-10-01",null,"3rd v 1st","Blackburn","(H)",null,null,"W 4-1","2-0","W",4,1,null,null,null,null,null,null,null,37115,null,12,3,"Rawlings (2), Walsh (2)",null,null,2,null,8,"Division 2","1938-10-01",null,"Blackburn","(H)",null,null,"W 4-1","Pearson","E Smith","Inns","Lea","Chiverton","Forsyth","Rawlings","Richardson","Walsh","Barker","JR Smith",null,null,null,null,null,null,null,null,null,null,null,null,2,null,"Reg Dudley",null,14,"-","-",0,11,"-","-",0,3,"-","-",0,null,null,"OK",11,null,null,null,null,null,3,77,"Reg","Dudley",6,12,null,"Dudley",null,"Brolly","Tom",null,null,null,null,null,null,null,null,null,null,null,null,null,null,null,null,null,null,null,null,null,null,null,null,null,null,null,null,null,null,null,null,null,null,null,null,null,null,null,null,"Blackburn (H) W 4-1",12,3]
[1,null,9,"Division 2","1938-10-08",null,"3rd v 1st","Fulham","(A)",null,null,"L 1-2","1-0","L",1,2,null,null,null,null,null,null,null,49335,null,12,3,"Own Goal",null,null,1,null,9,"Division 2","1938-10-08",null,"Fulham","(A)",null,null,"L 1-2","Pearson","E Smith","Dudley","Lea","Chiverton","Forsyth","Rawlings","Richardson","Walsh","Barker","JR Smith",null,null,null,null,null,null,null,null,null,null,null,null,1,null,"Benny Fenton",null,2,"-","-",0,2,"-","-",0,0,"-","-",0,null,null,"OK",2,null,null,null,null,null,0,78,"Benny","Fenton",7,13,null,"Fenton",null,"Burke","Johnny",null,null,null,null,null,null,null,null,null,null,null,null,null,null,null,null,null,null,null,null,null,null,null,null,null,null,null,null,null,null,null,null,null,null,null,null,null,null,null,null,"Fulham (A) L 1-2",12,3]
[2,null,10,"Division 2","1938-10-15",null,"3rd v 6th","Sheff Utd","(A)",null,null,"L 1-2","0-0","L",1,2,null,null,null,null,null,null,null,26907,null,12,7,"Walsh",null,null,2,null,10,"Division 2","1938-10-15",null,"Sheff Utd","(A)",null,null,"L 1-2","Pearson","E Smith","Dudley","Brolly","Chiverton","Forsyth","Rawlings","Richardson","Walsh","Barker","JR Smith",null,null,null,null,null,null,null,null,null,null,null,null,2,null,"F Fisher",null,13,"-","-",6,12,"-","-",6,1,"-","-",0,null,null,"OK",12,null,null,null,null,null,1,79,"F","Fisher",8,14,null,"Fisher",null,"Chiverton","EJ",null,null,null,null,null,null,null,null,null,null,null,null,null,null,null,null,null,null,null,null,null,null,null,null,null,null,null,null,null,null,null,null,null,null,null,null,null,null,null,null,"Sheff Utd (A) L 1-2",12,7]
[1,null,11,"Division 2","1938-10-22",null,"7th v 10th","Burnley","(H)",null,null,"D 1-1","0-0","D",1,1,null,null,null,null,null,null,null,33975,null,13,5,"Barker",null,null,1,null,11,"Division 2","1938-10-22",null,"Burnley","(H)",null,null,"D 1-1","Pearson","E Smith","Inns","Brolly","Chiverton","Forsyth","Rawlings","Richardson","Walsh","Barker","JR Smith",null,null,null,null,null,null,null,null,null,null,null,null,1,null,"Jim Forsyth",null,44,"-","-",0,41,"-","-",0,3,"-","-",0,null,null,"OK",41,null,null,null,null,null,3,80,"Jim","Forsyth",9,15,null,"Forsyth",null,"Daniels","J",null,null,null,null,null,null,null,null,null,null,null,null,null,null,null,null,null,null,null,null,null,null,null,null,null,null,null,null,null,null,null,null,null,null,null,null,null,null,null,null,"Burnley (H) D 1-1",13,5]
[2,null,12,"Division 2","1938-10-29",null,"5th v 19th","Norwich","(A)",null,null,"W 2-0","2-0","W",2,0,null,null,null,null,null,null,null,30000,null,15,5,"Barker, Brolly",null,null,2,null,12,"Division 2","1938-10-29",null,"Norwich","(A)",null,null,"W 2-0","Pearson","E Smith","Inns","Brolly","Chiverton","Forsyth","Rawlings","Richardson","Walsh","Barker","JR Smith",null,null,null,null,null,null,null,null,null,null,null,null,2,null,"F Hedley",null,4,"-","-",2,4,"-","-",2,0,"-","-",0,null,null,"OK",4,null,null,null,null,null,0,81,"F","Hedley",10,16,null,"Hedley",null,"Dudley","Reg",null,null,null,null,null,null,null,null,null,null,null,null,null,null,null,null,null,null,null,null,null,null,null,null,null,null,null,null,null,null,null,null,null,null,null,null,null,null,null,null,"Norwich (A) W 2-0",15,5]
[1,null,13,"Division 2","1938-11-05",null,"5th v 16th","Southampton","(H)",null,null,"L 0-1","0-1","L",0,1,null,null,null,null,null,null,null,34454,null,15,6,null,null,null,1,null,13,"Division 2","1938-11-05",null,"Southampton","(H)",null,null,"L 0-1","Pearson","E Smith","Inns","Brolly","Chiverton","Forsyth","Rawlings","Richardson","Walsh","Barker","JR Smith",null,null,null,null,null,null,null,null,null,null,null,null,1,null,"T Inns",null,11,"-","-",0,11,"-","-",0,0,"-","-",0,null,null,"OK",11,null,null,null,null,null,0,82,"T","Inns",11,17,null,"Inns",null,"Fenton","Benny",null,null,null,null,null,null,null,null,null,null,null,null,null,null,null,null,null,null,null,null,null,null,null,null,null,null,null,null,null,null,null,null,null,null,null,null,null,null,null,null,"Southampton (H) L 0-1",15,6]
[2,null,14,"Division 2","1938-11-12",null,"6th v 10th","Coventry","(A)",null,null,"L 1-2","0-2","L",1,2,null,null,null,null,null,null,null,18502,null,15,8,"Richardson",null,null,2,null,14,"Division 2","1938-11-12",null,"Coventry","(A)",null,null,"L 1-2","Pearson","E Smith","Williams","Brolly","Chiverton","Sykes","Rawlings","Richardson","McLeod","Barker","JR Smith",null,null,null,null,null,null,null,null,null,null,null,null,2,null,"Jimmy Jinks",null,1,"-","-",1,1,"-","-",1,0,"-","-",0,null,null,"OK",1,null,null,null,null,null,0,83,"Jimmy","Jinks",12,18,null,"Jinks",null,"Fisher","F",null,null,null,null,null,null,null,null,null,null,null,null,null,null,null,null,null,null,null,null,null,null,null,null,null,null,null,null,null,null,null,null,null,null,null,null,null,null,null,null,"Coventry (A) L 1-2",15,8]
[1,null,15,"Division 2","1938-11-19",null,"8th v 20th","Nottm Forest","(H)",null,null,"W 5-0","1-0","W",5,0,null,null,null,null,null,null,null,30523,null,17,6,"Barker (3), Walsh, JR Smith",null,null,1,null,15,"Division 2","1938-11-19",null,"Nottm Forest","(H)",null,null,"W 5-0","Pearson","E Smith","Williams","Brolly","Chiverton","Forsyth","Fisher","Richardson","Walsh","Barker","JR Smith",null,null,null,null,null,null,null,null,null,null,null,null,1,null,"G Lea",null,28,"-","-",0,25,"-","-",0,3,"-","-",0,null,null,"OK",25,null,null,null,null,null,3,84,"G","Lea",13,19,null,"Lea",null,"Forsyth","Jim",null,null,null,null,null,null,null,null,null,null,null,null,null,null,null,null,null,null,null,null,null,null,null,null,null,null,null,null,null,null,null,null,null,null,null,null,null,null,null,null,"Nottm Forest (H) W 5-0",17,6]
[2,null,16,"Division 2","1938-11-26",null,"6th v 2nd","Newcastle","(A)",null,null,"D 2-2","0-2","D",2,2,null,null,null,null,null,null,null,37166,null,18,6,"Fisher (2)",null,null,2,null,16,"Division 2","1938-11-26",null,"Newcastle","(A)",null,null,"D 2-2","Pearson","E Smith","Williams","Brolly","Chiverton","Forsyth","Fisher","Richardson","Walsh","Barker","JR Smith",null,null,null,null,null,null,null,null,null,null,null,null,2,null,"JS McLeod",null,20,"-","-",12,17,"-","-",5,3,"-","-",7,null,null,"OK",17,null,null,null,null,null,3,85,"JS","McLeod",14,20,null,"McLeod",null,"Hedley","F",null,null,null,null,null,null,null,null,null,null,null,null,null,null,null,null,null,null,null,null,null,null,null,null,null,null,null,null,null,null,null,null,null,null,null,null,null,null,null,null,"Newcastle (A) D 2-2",18,6]
[1,null,17,"Division 2","1938-12-03",null,"6th v 4th","West Brom","(H)",null,null,"L 1-5","0-1","L",1,5,null,null,null,null,null,null,null,35369,null,18,9,"Richardson",null,null,1,null,17,"Division 2","1938-12-03",null,"West Brom","(H)",null,null,"L 1-5","Pearson","E Smith","Williams","Brolly","Chiverton","Forsyth","Fisher","Richardson","Walsh","Barker","JR Smith",null,null,null,null,null,null,null,null,null,null,null,null,{"$f":"IF(BM20=0,1,IF(BM20=2,1,2))","v":1},null,"Harry Osman",null,8,"-","-",0,8,"-","-",0,0,"-","-",0,null,null,"OK",8,null,null,null,null,null,0,86,"Harry","Osman",15,21,null,"Osman",null,"Inns","T",null,null,null,null,null,null,null,null,null,null,null,null,null,null,null,null,null,null,null,null,null,null,null,null,null,null,null,null,null,null,null,null,null,null,null,null,null,null,null,null,"West Brom (H) L 1-5",18,9]
[2,null,18,"Division 2","1938-12-10",null,"9th v 6th","Tottenham","(A)",null,null,"L 0-4","0-2","L",0,4,null,null,null,null,null,null,null,48103,null,18,12,null,null,null,2,null,18,"Division 2","1938-12-10",null,"Tottenham","(A)",null,null,"L 0-4","Yuill","E Smith","Dudley","Brolly","Chiverton","Forsyth","Rawlings","Richardson","Walsh","Barker","JR Smith",null,null,null,null,null,null,null,null,null,null,null,null,{"$f":"IF(BM21=0,1,IF(BM21=2,1,2))","v":2},null,"HF Pearson",null,26,"-","-",0,23,"-","-",0,3,"-","-",0,null,null,"OK",23,null,null,null,null,null,3,87,"HF","Pearson",16,22,null,"Pearson",null,"Jinks","Jimmy",null,null,null,null,null,null,null,null,null,null,null,null,null,null,null,null,null,null,null,null,null,null,null,null,null,null,null,null,null,null,null,null,null,null,null,null,null,null,null,null,"Tottenham (A) L 0-4",18,12]
[1,null,19,"Division 2","1938-12-17",null,"12th v 11th","Luton","(H)",null,null,"W 2-1","2-1","W",2,1,null,null,null,null,null,null,null,19733,null,20,10,"Fisher, Hedley",null,null,1,null,19,"Division 2","1938-12-17",null,"Luton","(H)",null,null,"W 2-1","Pearson","Lea","Dudley","Brolly","Chiverton","Forsyth","Fisher","Richardson","Barker","JR Smith","Hedley",null,null,null,null,null,null,null,null,null,null,null,null,{"$f":"IF(BM22=0,1,IF(BM22=2,1,2))","v":1},null,"JS Rawlings",null,32,"-","-",14,30,"-","-",13,2,"-","-",1,null,null,"OK",30,null,null,null,null,null,2,88,"JS","Rawlings",17,23,null,"Rawlings",null,"Lea","G",null,null,null,null,null,null,null,null,null,null,null,null,null,null,null,null,null,null,null,null,null,null,null,null,null,null,null,null,null,null,null,null,null,null,null,null,null,null,null,null,"Luton (H) W 2-1",20,10]
[2,null,20,"Division 2","1938-12-24",null,"10th v 12th","Chesterfield","(A)",null,null,"L 0-3","0-0","L",0,3,null,null,null,null,null,null,null,10000,null,20,13,null,null,null,2,null,20,"Division 2","1938-12-24",null,"Chesterfield","(A)",null,null,"L 0-3","Pearson","Lea","Dudley","Brolly","Chiverton","Forsyth","Fisher","Richardson","Barker","JR Smith","Hedley",null,null,null,null,null,null,null,null,null,null,null,null,{"$f":"IF(BM23=0,1,IF(BM23=2,1,2))","v":2},null,"JR Richardson",null,43,"-","-",12,40,"-","-",11,3,"-","-",1,null,null,"OK",40,null,null,null,null,null,3,89,"JR","Richardson",18,24,null,"Richardson",null,"McLeod","JS",null,null,null,null,null,null,null,null,null,null,null,null,null,null,null,null,null,null,null,null,null,null,null,null,null,null,null,null,null,null,null,null,null,null,null,null,null,null,null,null,"Chesterfield (A) L 0-3",20,13]
[1,null,21,"Division 2","1938-12-27",null,"13th v 9th","West Ham","(A)",null,null,"D 0-0","0-0","D",0,0,null,null,null,null,null,null,null,42200,null,21,15,null,null,null,1,null,21,"Division 2","1938-12-27",null,"West Ham","(A)",null,null,"D 0-0","Pearson","Lea","Dudley","Brolly","Chiverton","Forsyth","Rawlings","Richardson","Walsh","Barker","JR Smith",null,null,null,null,null,null,null,null,null,null,null,null,{"$f":"IF(BM24=0,1,IF(BM24=2,1,2))","v":1},null,"Ted Smith",null,34,"-","-",0,34,"-","-",0,0,"-","-",0,null,null,"OK",34,null,null,null,null,null,0,90,"Ted","Smith",19,25,null,"E Smith",null,"Osman","Harry",null,null,null,null,null,null,null,null,null,null,null,null,null,null,null,null,null,null,null,null,null,null,null,null,null,null,null,null,null,null,null,null,null,null,null,null,null,null,null,null,"West Ham (A) D 0-0",21,15]
[2,null,22,"Division 2","1938-12-31",null,"15th v 19th","Swansea","(H)",null,null,"D 1-1","1-0","D",1,1,null,null,null,null,null,null,null,23508,null,22,14,"Rawlings",null,null,2,null,22,"Division 2","1938-12-31",null,"Swansea","(H)",null,null,"D 1-1","Pearson","Lea","Dudley","Brolly","Chiverton","Forsyth","Rawlings","Richardson","Walsh","Barker","JR Smith",null,null,null,null,null,null,null,null,null,null,null,null,{"$f":"IF(BM25=0,1,IF(BM25=2,1,2))","v":2},null,"JR Smith",null,39,"-","-",3,36,"-","-",3,{"$f":"BZ91","v":3},"-","-",0,null,null,"OK",36,null,null,null,null,null,3,91,"JR","Smith",20,26,null,"JR Smith",null,"Pearson","HF",null,null,null,null,null,null,null,null,null,null,null,null,null,null,null,null,null,null,null,null,null,null,null,null,null,null,null,null,null,null,null,null,null,null,null,null,null,null,null,null,"Swansea (H) D 1-1",22,14]
[1,null,23,"Division 2","1939-01-02",null,"14th v 18th","Bury","(A)",null,null,"D 1-1","0-0","D",1,1,null,null,null,null,null,null,null,8000,null,23,14,"McLeod",null,null,1,null,23,"Division 2","1939-01-02",null,"Bury","(A)",null,null,"D 1-1","Pearson","Lea","Dudley","Brolly","Chiverton","Forsyth","Rawlings","Richardson","McLeod","Barker","JR Smith",null,null,null,null,null,null,null,null,null,null,null,null,1,null,"J Sykes",null,2,"-","-",0,2,"-","-",0,0,"-","-",0,null,null,"OK",2,null,null,null,null,null,0,92,"J","Sykes",21,27,null,"Sykes",null,"Rawlings","JS",null,null,null,null,null,null,null,null,null,null,null,null,null,null,null,null,null,null,null,null,null,null,null,null,null,null,null,null,null,null,null,null,null,null,null,null,null,null,null,null,"Bury (A) D 1-1",23,14]
[2,null,24,"FA Cup 3","1939-01-11",null,"- -","York City","(A)",null,null,"W 5-0","1-0","W",5,0,null,null,null,null,null,null,null,6950,null,"-","-","McLeod (4), Rawlings",null,null,2,null,24,"FA Cup 3","1939-01-11",null,"York City","(A)",null,null,"W 5-0","Pearson","Lea","Dudley","Brolly","Chiverton","Forsyth","Rawlings","Richardson","McLeod","Barker","JR Smith",null,null,null,null,null,null,null,null,null,null,null,null,2,null,"J Thorogood",null,1,"-","-",1,1,"-","-",1,0,"-","-",0,null,null,"OK",1,null,null,null,null,null,0,93,"J","Thorogood",22,28,null,"Thorogood",null,"Richardson","JR",null,null,null,null,null,null,null,null,null,null,null,null,null,null,null,null,null,null,null,null,null,null,null,null,null,null,null,null,null,null,null,null,null,null,null,null,null,null,null,null,"Bradford PA (A) L 0-1",23,15]
[1,null,25,"Division 2","1939-01-14",null,"14th v 15th","Bradford PA","(A)",null,null,"L 0-1","0-1","L",0,1,null,null,null,null,null,null,null,7118,null,23,15,null,null,null,1,null,25,"Division 2","1939-01-14",null,"Bradford PA","(A)",null,null,"L 0-1","Pearson","Lea","Dudley","Brolly","Chiverton","Forsyth","Rawlings","Richardson","McLeod","Barker","JR Smith",null,null,null,null,null,null,null,null,null,null,null,null,1,null,"J Wallbanks",null,1,"-","-",0,1,"-","-",0,0,"-","-",0,null,null,{"$f":"IF(BU29=CF29,IF(BY29=CL29,\"OK\",\"Error\"),\"Error\")","v":"OK"},1,null,null,null,null,null,0,94,"J","Wallbanks",23,29,null,"Wallbanks",null,"E Smith","Ted",null,null,null,null,null,null,null,null,null,null,null,null,null,null,null,null,null,null,null,null,null,null,null,null,null,null,null,null,null,null,null,null,null,null,null,null,null,null,null,null,"Plymouth (A) D 2-2",24,14]
[2,null,26,"FA Cup 4","1939-01-21",null,"- -","Grimsby Town","(H)",null,null,"D 2-2","1-0","D",2,2,null,null,null,null,null,null,null,38447,null,"-","-","McLeod (2)",null,null,2,null,26,"FA Cup 4","1939-01-21",null,"Grimsby Town","(H)",null,null,"D 2-2","Pearson","Lea","Dudley","Brolly","Chiverton","Forsyth","Rawlings","Richardson","McLeod","Barker","JR Smith",null,null,null,null,null,null,null,null,null,null,null,null,2,null,{"$f":"CN30&\" \"&CO30","v":"W Walsh"},null,21,"-","-",8,{"$f":"BR95","v":21},"-","-",{"$f":"BU95","v":8},{"$f":"BZ95","v":0},"-","-",{"$f":"CC95","v":0},null,null,{"$f":"IF(BU30=CF30,IF(BY30=CL30,\"OK\",\"Error\"),\"Error\")","v":"OK"},21,null,null,null,null,null,0,95,"W","Walsh",null,null,null,"Walsh",null,"JR Smith","JR",null,null,null,null,null,null,null,null,null,null,null,null,null,null,null,null,null,null,null,null,null,null,null,null,null,null,null,null,null,null,null,null,null,null,null,null,null,null,null,null,"Blackburn (A) L 1-3",24,15]
[1,null,27,"FA Cup 4R","1939-01-24",null,"- -","Grimsby Town","(A)",null,null,"L 2-3","1-1","L",2,3,null,null,null,null,null,null,null,14420,null,"-","-","Richardson, McLeod",null,null,1,null,27,"FA Cup 4R","1939-01-24",null,"Grimsby Town","(A)",null,null,"L 2-3","Pearson","Lea","Dudley","Brolly","Chiverton","Forsyth","Fisher","Richardson","McLeod","Barker","JR Smith",null,null,null,null,null,null,null,null,null,null,null,null,1,null,{"$f":"CN31&\" \"&CO31","v":"George Williams"},null,11,"-","-",0,{"$f":"BR96","v":11},"-","-",{"$f":"BU96","v":0},{"$f":"BZ96","v":0},"-","-",{"$f":"CC96","v":0},null,null,"OK",11,null,null,null,null,null,0,96,"George","Williams",null,null,null,"Williams",null,"Sykes","J",null,null,null,null,null,null,null,null,null,null,null,null,null,null,null,null,null,null,null,null,null,null,null,null,null,null,null,null,null,null,null,null,null,null,null,null,null,null,null,null,"Fulham (H) D 1-1",25,15]
[2,null,28,"Division 2","1939-01-28",null,"15th v 17th","Plymouth","(A)",null,null,"D 2-2","2-1","D",2,2,null,null,null,null,null,null,null,15000,null,24,14,"Richardson, Rawlings",null,null,2,null,28,"Division 2","1939-01-28",null,"Plymouth","(A)",null,null,"D 2-2","Burke","Lea","Dudley","Brolly","Chiverton","Forsyth","Rawlings","Richardson","McLeod","Barker","JR Smith",null,null,null,null,null,null,null,null,null,null,null,null,2,null,"Duncan Yuill",null,17,"-","-",0,17,"-","-",0,0,"-","-",0,null,null,{"$f":"IF(BU32=CF32,IF(BY32=CL32,\"OK\",\"Error\"),\"Error\")","v":"OK"},17,null,null,null,null,null,0,95,"Duncan","Yuill",null,null,null,"Yuill",null,"Thorogood","J",null,null,null,null,null,null,null,null,null,null,null,null,null,null,null,null,null,null,null,null,null,null,null,null,null,null,null,null,null,null,null,null,null,null,null,null,null,null,null,null,"Sheff Utd (H) W 4-0",27,15]
[1,null,29,"Division 2","1939-02-04",null,"14th v 1st","Blackburn","(A)",null,null,"L 1-3","0-1","L",1,3,null,null,null,null,null,null,null,15000,null,24,15,"McLeod",null,null,1,null,29,"Division 2","1939-02-04",null,"Blackburn","(A)",null,null,"L 1-3","Burke","Lea","Dudley","Brolly","Chiverton","Forsyth","Rawlings","Richardson","McLeod","Barker","JR Smith",null,null,null,null,null,null,null,null,null,null,null,null,1,null,{"$f":"CN33&\" \"&CO33","v":" "},null,null,null,null,null,null,null,null,null,null,null,null,null,null,null,null,null,null,null,null,null,null,null,0,null,null,null,null,null,null,null,"Wallbanks","J",null,null,null,null,null,null,null,null,null,null,null,null,null,null,null,null,null,null,null,null,null,null,null,null,null,null,null,null,null,null,null,null,null,null,null,null,null,null,null,null,"Burnley (A) L 0-2",27,16]
[2,null,30,"Division 2","1939-02-11",null,"15th v 5th","Fulham","(H)",null,null,"D 1-1","0-1","D",1,1,null,null,null,null,null,null,null,32488,null,25,15,"Barker",null,null,2,null,30,"Division 2","1939-02-11",null,"Fulham","(H)",null,null,"D 1-1","Yuill","Lea","E Smith","Brolly","Chiverton","Forsyth","Rawlings","Richardson","McLeod","Barker","JR Smith",null,null,null,null,null,null,null,null,null,null,null,null,2,null," ",null,null,null,null,null,null,null,null,null,null,null,null,null,null,null,null,null,null,null,null,null,null,null,null,null,null,null,null,null,null,null,"Walsh","W",null,null,null,null,null,null,null,null,null,null,null,null,null,null,null,null,null,null,null,null,null,null,null,null,null,null,null,null,null,null,null,null,null,null,null,null,null,null,null,null,"Norwich (H) W 6-0",29,14]
[1,null,31,"Division 2","1939-02-18",null,"15th v 1st","Sheff Utd","(H)",null,null,"W 4-0","2-0","W",4,0,null,null,null,null,null,null,null,30070,null,27,15,"Barker, Richardson, Fisher (2)",null,null,1,null,31,"Division 2","1939-02-18",null,"Sheff Utd","(H)",null,null,"W 4-0","Yuill","Lea","E Smith","Brolly","Chiverton","Forsyth","Fisher","Richardson","McLeod","Barker","JR Smith",null,null,null,null,null,null,null,null,null,null,null,null,1,null,"Own Goals",null,null,null,null,{"$f":"BX35+CB35","v":1},null,null,null,{"$f":"BU103","v":1},null,null,null,{"$f":"CC103","v":0},null,null,null,null,null,null,null,null,null,null,null,null,null,null,null,null,null,null,"Williams","George",null,null,null,null,null,null,null,null,null,null,null,null,null,null,null,null,null,null,null,null,null,null,null,null,null,null,null,null,null,null,null,null,null,null,null,null,null,null,null,null,"Southampton (A) D 1-1",30,14]
[2,null,32,"Division 2","1939-02-25",null,"15th v 10th","Burnley","(A)",null,null,"L 0-2","0-1","L",0,2,null,null,null,null,null,null,null,8760,null,27,16,null,null,null,2,null,32,"Division 2","1939-02-25",null,"Burnley","(A)",null,null,"L 0-2","Yuill","Lea","E Smith","Brolly","Chiverton","Forsyth","Fisher","Richardson","McLeod","Barker","JR Smith",null,null,null,null,null,null,null,null,null,null,null,null,2,null,{"$f":"CN42&\" \"&CO42","v":" "},null,null,null,null,null,null,null,null,null,null,null,null,null,null,null,null,null,null,null,null,null,null,null,null,null,null,null,null,null,null,null,"Yuill","Duncan",null,null,null,null,null,null,null,null,null,null,null,null,null,null,null,null,null,null,null,null,null,null,null,null,null,null,null,null,null,null,null,null,null,null,null,null,null,null,null,null,"Man City (H) W 3-1",32,12]
[1,null,33,"Division 2","1939-03-04",null,"16th v 21st","Norwich","(H)",null,null,"W 6-0","2-0","W",6,0,null,null,null,null,null,null,null,18413,null,29,14,"Barker, McLeod, Fisher, Richardson, JR Smith (2)",null,null,1,null,33,"Division 2","1939-03-04",null,"Norwich","(H)",null,null,"W 6-0","Yuill","Lea","E Smith","Brolly","Chiverton","Forsyth","Fisher","Richardson","McLeod","Barker","JR Smith",null,null,null,null,null,null,null,null,null,null,null,null,null,null,null,null,null,null,null,null,null,null,null,null,null,null,null,null,null,null,null,null,null,null,null,null,null,null,null,null,null,null,null,null,null,null,null,null,null,null,null,null,null,null,null,null,null,null,null,null,null,null,null,null,null,null,null,null,null,null,null,null,null,null,null,null,null,null,null,null,null,null,null,null,null,null,null,null,"Coventry (H) D 0-0",33,13]
[2,null,34,"Division 2","1939-03-11",null,"14th v 18th","Southampton","(A)",null,null,"D 1-1","1-0","D",1,1,null,null,null,null,null,null,null,14000,null,30,14,"McLeod",null,null,2,null,34,"Division 2","1939-03-11",null,"Southampton","(A)",null,null,"D 1-1","Yuill","Lea","E Smith","Brolly","Chiverton","Forsyth","Fisher","Richardson","McLeod","Barker","JR Smith",null,null,null,null,null,null,null,null,null,null,null,null,null,null,null,null,null,null,null,null,null,null,null,null,null,null,null,null,null,null,null,null,null,null,null,null,null,null,null,null,null,null,null,null,null,null,null,null,null,null,null,null,null,null,null,null,null,null,null,null,null,null,null,null,null,null,null,null,null,null,null,null,null,null,null,null,null,null,null,null,null,null,null,null,null,null,null,null,"Nottm Forest (A) L 0-3",33,13]
[1,null,35,"Division 2","1939-03-13",null,"14th v 12th","Man City","(H)",null,null,"W 3-1","3-1","W",3,1,null,null,null,null,null,null,null,13740,null,32,12,"McLeod, Thorogood, Barker",null,null,1,null,35,"Division 2","1939-03-13",null,"Man City","(H)",null,null,"W 3-1","Yuill","Lea","E Smith","Brolly","Chiverton","Forsyth","Rawlings","Barker","McLeod","JR Smith","Thorogood",null,null,null,null,null,null,null,null,null,null,null,null,null,null,null,null,null,null,null,null,null,null,null,null,null,null,null,null,null,null,null,null,null,null,null,null,null,null,null,null,null,null,null,null,null,null,null,null,null,null,null,null,null,null,null,null,null,null,null,null,null,null,null,null,null,null,null,null,null,null,null,null,null,null,null,null,null,null,null,null,null,null,null,null,null,null,null,null,"West Ham (H) L 0-2",33,14]
[2,null,36,"Division 2","1939-03-18",null,"12th v 6th","Coventry","(H)",null,null,"D 0-0","0-0","D",0,0,null,null,null,null,null,null,null,33531,null,33,13,null,null,null,2,null,36,"Division 2","1939-03-18",null,"Coventry","(H)",null,null,"D 0-0","Yuill","Lea","E Smith","Brolly","Chiverton","Forsyth","Fisher","Fenton","McLeod","JR Smith","Osman",null,null,null,null,null,null,null,null,null,null,null,null,null,null,null,null,null,null,null,null,null,null,null,null,null,null,null,null,null,null,null,null,null,null,null,null,null,null,null,null,null,null,null,null,null,null,null,null,null,null,null,null,null,null,null,null,null,null,null,null,null,null,null,null,null,null,null,null,null,null,null,null,null,null,null,null,null,null,null,null,null,null,null,null,null,null,null,null,"Newcastle (H) D 1-1",34,14]
[1,null,37,"Division 2","1939-03-25",null,"13th v 21st","Nottm Forest","(A)",null,null,"L 0-3","0-1","L",0,3,null,null,null,null,null,null,null,10301,null,33,13,null,null,null,1,null,37,"Division 2","1939-03-25",null,"Nottm Forest","(A)",null,null,"L 0-3","Yuill","Lea","E Smith","Brolly","Chiverton","Forsyth","Fisher","Fenton","Richardson","JR Smith","Osman",null,null,null,null,null,null,null,null,null,null,null,null,null,null,null,null,null,null,null,null,null,null,null,null,null,null,null,null,null,null,null,null,null,null,null,null,null,null,null,null,null,null,null,null,null,null,null,null,null,null,null,null,null,null,null,null,null,null,null,null,null,null,null,null,null,null,null,null,null,null,null,null,null,null,null,null,null,null,null,null,null,null,null,null,null,null,null,null,"Sheff Wed (H) W 2-0",36,13]
[2,null,38,"Division 2","1939-03-27",null,"13th v 14th","West Ham","(H)",null,null,"L 0-2","0-2","L",0,2,null,null,null,null,null,null,null,9955,null,33,14,null,null,null,2,null,38,"Division 2","1939-03-27",null,"West Ham","(H)",null,null,"L 0-2","Yuill","Lea","E Smith","Sykes","Chiverton","Forsyth","Fisher","Richardson","McLeod","Barker","Osman",null,null,null,null,null,null,null,null,null,null,null,null,null,null,null,null,null,null,null,null,null,null,null,null,null,null,null,null,null,null,null,null,null,null,null,null,null,null,null,null,null,null,null,null,null,null,null,null,null,null,null,null,null,null,null,null,null,null,null,null,null,null,null,null,null,null,null,null,null,null,null,null,null,null,null,null,null,null,null,null,null,null,null,null,null,null,null,null,"West Brom (A) D 0-0",37,13]
[1,null,39,"Division 2","1939-04-01",null,"14th v 2nd","Newcastle","(H)",null,null,"D 1-1","1-0","D",1,1,null,null,null,null,null,null,null,25951,null,34,14,"Richardson",null,null,1,null,39,"Division 2","1939-04-01",null,"Newcastle","(H)",null,null,"D 1-1","Yuill","E Smith","Williams","Lea","Chiverton","Forsyth","Rawlings","Richardson","McLeod","Barker","JR Smith",null,null,null,null,null,null,null,null,null,null,null,null,null,null,null,null,null,null,null,null,null,null,null,null,null,null,null,null,null,null,null,null,null,null,null,null,null,null,null,null,null,null,null,null,null,null,null,null,null,null,null,null,null,null,null,null,null,null,null,null,null,null,null,null,null,null,null,null,null,null,null,null,null,null,null,null,null,null,null,null,null,null,null,null,null,null,null,null,"Sheff Wed (A) L 1-3",37,13]
[2,null,40,"Division 2","1939-04-07",null,"14th v 2nd","Sheff Wed","(H)",null,null,"W 2-0","1-0","W",2,0,null,null,null,null,null,null,null,37585,null,36,13,"Rawlings (2)",null,null,2,null,40,"Division 2","1939-04-07",null,"Sheff Wed","(H)",null,null,"W 2-0","Yuill","E Smith","Williams","Lea","Chiverton","Forsyth","Rawlings","Richardson","McLeod","Barker","JR Smith",null,null,null,null,null,null,null,null,null,null,null,null,null,null,null,null,null,null,null,null,null,null,null,null,null,null,null,null,null,null,null,null,null,null,null,null,null,null,null,null,null,null,null,null,null,null,null,null,null,null,null,null,null,null,null,null,null,null,null,null,null,null,null,null,null,null,null,null,null,null,null,null,null,null,null,null,null,null,null,null,null,null,null,null,null,null,null,null,"Tottenham (H) W 2-0",39,13]
[1,null,41,"Division 2","1939-04-08",null,"13th v 10th","West Brom","(A)",null,null,"D 0-0","0-0","D",0,0,null,null,null,null,null,null,null,25000,null,37,13,null,null,null,1,null,41,"Division 2","1939-04-08",null,"West Brom","(A)",null,null,"D 0-0","Yuill","E Smith","Williams","Lea","Chiverton","Forsyth","Rawlings","Richardson","McLeod","Barker","Osman",null,null,null,null,null,null,null,null,null,null,null,null,null,null,null,null,{"$f":"SUM(BQ7:BQ37)/11","v":45},null,null,null,{"$f":"SUM(BU7:BU37)/11","v":42},null,null,null,{"$f":"SUM(BY7:BY37)/11","v":3},null,null,null,null,null,null,null,null,null,null,null,null,null,null,null,null,null,null,null,null,null,null,null,null,null,null,null,null,null,null,null,null,null,null,null,null,null,null,null,null,null,null,null,null,null,null,null,null,null,null,null,null,null,null,null,null,null,null,null,null,null,null,null,"Luton (A) D 0-0",40,13]
[2,null,42,"Division 2","1939-04-10",null,"13th v 4th","Sheff Wed","(A)",null,null,"L 1-3","0-1","L",1,3,null,null,null,null,null,null,null,35000,null,37,13,"Rawlings",null,null,2,null,42,"Division 2","1939-04-10",null,"Sheff Wed","(A)",null,null,"L 1-3","Yuill","E Smith","Williams","Lea","Chiverton","Forsyth","Rawlings","Richardson","McLeod","Barker","Osman",null,null,null,null,null,null,null,null,null,null,null,null,null,null,{"$f":"CN46&\" \"&CO46","v":" "},null,null,null,null,null,null,null,null,null,null,null,null,null,null,null,null,null,null,null,null,null,null,null,null,null,null,null,null,null,null,null,null,null,null,null,null,null,null,null,null,null,null,null,null,null,null,null,null,null,null,null,null,null,null,null,null,null,null,null,null,null,null,null,null,null,null,null,null,null,null,null,null,null,"Tranmere (H) W 2-1",42,13]
[1,null,43,"Division 2","1939-04-15",null,"13th v 6th","Tottenham","(H)",null,null,"W 2-0","0-0","W",2,0,null,null,null,null,null,null,null,33428,null,39,13,"Rawlings (2)",null,null,1,null,43,"Division 2","1939-04-15",null,"Tottenham","(H)",null,null,"W 2-0","Yuill","E Smith","Williams","Lea","Chiverton","Forsyth","Rawlings","Richardson","Walsh","Barker","Osman",null,null,null,null,null,null,null,null,null,null,null,null,null,null," "]
[2,null,44,"Division 2","1939-04-22",null,"13th v 3rd","Luton","(A)",null,null,"D 0-0","0-0","D",0,0,null,null,null,null,null,null,null,20000,null,40,13,null,null,null,2,null,44,"Division 2","1939-04-22",null,"Luton","(A)",null,null,"D 0-0","Yuill","E Smith","Williams","Daniels","Chiverton","Forsyth","Rawlings","Richardson","Walsh","Barker","Osman",null,null,null,null,null,null,null,null,null,null,null,null,null,null," "]
[1,null,45,"Division 2","1939-04-29",null,"13th v 22nd","Tranmere","(H)",null,null,"W 2-1","0-1","W",2,1,null,null,null,null,null,null,null,15074,null,42,13,"Richardson, Jinks",null,null,1,null,45,"Division 2","1939-04-29",null,"Tranmere","(H)",null,null,"W 2-1","Yuill","E Smith","Williams","Lea","Chiverton","Forsyth","Rawlings","Richardson","Jinks","Barker","Osman",null,null,null,null,null,null,null,null,null,null,null,null,null,null," "]
[2,null,null,null,null,null,null,null,null,null,null,null,null,null,null,null,null,null,null,null,null,null,null,null,null,null,null,null,null,null,{"$f":"IF(AE49=0,1,IF(AE49=2,1,2))","v":2},null,null,null,null,null,null,null,null,null,null,null,null,null,null,null,null,null,null,null,null,null,null,null,null,null,null,null,null,null,null,null,null,null,null,null," "]
[1,null,null,null,null,null,null,null,null,null,null,null,null,null,null,null,null,null,null,null,null,null,null,null,null,null,null,null,null,null,{"$f":"IF(AE50=0,1,IF(AE50=2,1,2))","v":1},null,null,null,null,null,null,null,null,null,null,null,null,null,null,null,null,null,null,null,null,null,null,null,null,null,null,null,null,null,null,null,null,null,null,null," ",null,{"$f":"\"Max (\"&BO63&\")\"","v":"Max (45)"},null,null,null,{"$f":"\"Max (\"&BO59&\")\"","v":"Max (42)"},null,null,null,{"$f":"\"Max (\"&BO60&\")\"","v":"Max (3)"},null,null,null,{"$f":"\"Max (\"&BO61&\")\"","v":"Max (0)"},null,null,null,null,{"$f":"\"Max (\"&BO133&\")\"","v":"Max ()"},null,null,null,null,null,null,null,null,null,null,null,null,null,null,null,null,null,null,null,null,null,null,null,null,null,null,null,null,null,null,null,null,null,null,null,null,null,null,null,null,null,null,null,null,null,null,null,null,null,null,null,null,null,null,"End of Season"]
[null,null,null,null,null,null,"8th v 14th"]
[null,null,null,null,null,null,"5th v 10th",null,null,null,null,null,null,null,null,null,null,null,null,null,null,null,null,null,null,null,null,null,null,null,null,null,null,null,null,null,null,null,null,null,null,null,null,null,null,null,null,null,null,null,null,null,null,null,null,null,null,null,null,null,null,null,null,null,{"$f":"IF(BM52=0,1,IF(BM52=2,1,2))","v":1}]
[null,null,null,null,null,null,"3rd v 1st",null,null,null,null,null,null,null,null,null,null,null,null,null,null,null,null,null,null,null,null,null,null,null,null,null,null,null,null,null,null,null,null,null,null,null,null,null,null,null,null,null,null,null,null,null,null,null,null,null,null,null,null,null,null,null,null,null,{"$f":"IF(BM53=0,1,IF(BM53=2,1,2))","v":2}]
[null,null,null,null,null,null,"3rd v 1st"]
[null,null,null,null,null,null,"3rd v 6th"]
[null,null,null,null,null,null,"7th v 10th"]
[null,null,null,null,null,null,"5th v 19th",null,null,null,null,null,null,null,null,null,null,null,null,null,null,null,null,null,null,null,null,null,null,null,null,null,null,null,null,null,null,null,null,null,null,null,null,null,null,null,null,null,null,null,null,null,null,null,null,null,null,null,null,null,null,null,null,null,null,null,null,null,null,null,null,null,null,null,null,null,null,null,null,null,null,null,null,null,null,null,null,null,null,null,null,null,null,null,null,null,null,null,null,null,null,null,null,null,null,null,null,null,null,null,null,null,null,null,null,null,null,null,{"$f":"4/18","v":0.22222222222222221},null,null,null,null,null,null,null,null,null,null,null,null,null,null,null,null,null,null,null,null,null,null,2,9]
[1,null,null,null,null,null,"5th v 16th",null,null,null,null,null,null,null,null,null,null,null,null,null,null,null,null,null,null,null,null,null,null,null,null,null,null,null,null,null,null,null,null,null,null,null,null,null,null,null,null,null,null,null,null,null,null,null,null,null,null,null,null,null,null,null,null,null,null,null,{"$f":"SUMIF(AH78:AH149,BQ59,BE78:BE149)","v":42},null,"Division 2*",null,null,null,null,null,null,null,null,null,null,null,null,null,null,null,null,null,null,null,null,null,null,null,null,null,null,null,null,null,null,null,null,null,null,null,null,null,null,null,null,null,null,null,null,null,null,null,null,null,null,null,null,null,null,null,null,null,null,null,null,null,null,null,null,null,null,null,null,null,null,null,null,2,13]
[{"$f":"IF(#REF!=0,1,IF(#REF!=2,1,2))","v":{"$error":"#REF!"}},null,null,null,null,null,null,null,null,null,null,null,null,null,null,null,null,null,null,null,null,null,null,null,null,null,null,null,null,null,{"$f":"IF(AE53=0,1,IF(AE53=2,1,2))","v":1},null,null,null,null,null,null,null,null,null,null,null,null,null,null,null,null,null,null,null,null,null,null,null,null,null,null,null,null,null,null,null,null,null,null,null,{"$f":"SUMIF(AH78:AH149,BQ60,BE78:BE149)","v":3},null,"FA Cup*",null,null,null,null,null,null,null,null,null,null,null,null,null,null,null,null,null,null,null,null,null,null,null,null,null,null,null,null,null,null,null,null,null,null,null,null,null,null,null,null,null,null,null,null,null,null,null,null,null,null,null,null,null,null,null,null,null,null,null,null,null,null,null,null,null,null,null,null,null,null,null,null,4,7]
[{"$f":"IF(A60=0,1,IF(A60=2,1,2))","v":{"$error":"#REF!"}},{"$f":"IF(B53=0,1,IF(B53=2,1,2))","v":1},{"$f":"IF(C53=0,1,IF(C53=2,1,2))","v":1},{"$f":"IF(D53=0,1,IF(D53=2,1,2))","v":1},null,null,null,null,null,null,null,null,null,null,null,null,null,null,null,null,null,null,null,null,null,null,null,null,{"$f":"IF(AC60=0,1,IF(AC60=2,1,2))","v":1},null,null,null,null,null,null,null,null,null,null,null,null,null,null,null,null,null,null,null,null,null,null,null,null,null,null,null,null,null,null,null,null,null,null,null,null,null,{"$f":"SUMIF(AH78:AH150,BQ61,BE78:BE150)","v":0},null,"League Cup*",null,null,null,null,null,null,{"$f":"42*11","v":462},null,null,null,null,null,null,null,null,null,null,null,null,null,null,null,null,null,null,null,null,null,null,null,null,null,null,null,null,null,null,null,null,null,null,null,null,null,null,null,null,null,null,null,null,null,null,null,null,null,null,null,null,null,null,null,null,null,null,null,null,null,null,null,null,null,4,9]
[{"$f":"IF(#REF!=0,1,IF(#REF!=2,1,2))","v":{"$error":"#REF!"}},null,null,null,null,null,null,null,null,null,null,null,null,null,null,null,null,null,null,null,null,null,null,null,null,null,null,null,null,null,null,null,null,null,null,null,null,null,null,null,null,null,null,null,null,null,null,null,null,null,null,null,null,null,null,null,null,null,null,null,null,null,null,null,null,null,null,null,null,null,null,null,null,null,null,null,null,null,null,null,null,null,null,null,null,null,null,null,null,null,null,null,null,null,null,null,null,null,null,null,null,null,null,null,null,null,null,null,null,null,null,null,null,null,null,null,null,null,null,null,null,null,null,null,null,null,null,null,null,null,null,null,null,null,null,null,null,null,null,null,null,4,18]
[{"$error":"#REF!"},null,null,null,null,null,null,null,null,null,null,null,null,null,null,null,null,null,null,null,null,null,null,null,null,null,null,null,null,null,null,null,null,null,null,null,null,null,null,null,null,null,null,null,null,null,null,null,null,null,null,null,null,null,null,null,null,null,null,null,null,null,null,null,null,null,{"$f":"SUM(BO59:BO62)","v":45},null,null,null,null,null,null,null,null,null,null,null,null,null,null,null,null,null,null,null,null,null,null,null,null,null,null,null,null,null,null,null,null,null,null,null,null,null,null,null,null,null,null,null,null,null,null,null,null,null,null,null,null,null,null,null,null,null,null,null,null,null,null,null,null,null,null,null,null,null,null,null,null,null,null,4,18]
[{"$error":"#REF!"},null,null,null,null,null,null,null,null,null,null,null,null,null,null,null,null,null,null,null,null,null,null,null,null,null,null,null,null,null,null,null,null,null,null,null,null,null,null,null,null,null,null,null,null,null,null,null,null,null,null,null,null,null,null,null,null,null,null,null,null,null,null,null,null,null,null,null,null,null,null,null,null,null,null,{"$f":"SUM(BX7:BX32)","v":63},null,null,null,{"$f":"SUM(CB7:CB29)","v":9},null,null,null,{"$f":"SUM(CF7:CF29)","v":413},null,null,null,{"$f":"SUM(CJ7:CJ29)","v":0},null,null,null,null,null,null,null,null,null,null,null,null,null,null,null,null,null,null,null,null,null,null,null,null,null,null,null,null,null,null,null,null,null,null,null,null,null,null,null,null,null,null,null,null,null,null,null,null,null,null,null,null,null,6,17]
[null,null,null,null,null,null,null,null,null,null,null,null,null,null,null,null,null,null,null,null,null,null,null,null,null,null,null,null,null,null,null,null,null,null,null,null,null,null,null,null,null,null,null,null,null,null,null,null,null,null,null,null,null,null,null,null,null,null,null,null,null,null,null,null,null,null,null,null,null,null,null,null,null,null,null,null,null,null,null,null,null,null,null,null,null,null,null,null,null,null,null,null,null,null,null,null,null,null,null,null,null,null,null,null,null,null,null,null,null,null,null,null,null,null,null,null,null,null,null,null,null,null,null,null,null,null,null,null,null,null,null,null,null,null,null,null,null,null,null,null,null,8,13]
[null,null,null,null,null,null,null,null,null,null,null,null,null,null,null,null,null,null,null,null,null,null,null,null,null,null,null,"Av Attendance League Games Only",null,null,null,null,null,null,null,null,null,null,null,null,null,null,null,null,null,null,null,null,null,null,null,null,null,null,null,null,null,null,null,null,null,null,null,null,null,null,null,null,null,null,null,null,null,null,null,null,null,null,null,null,null,null,null,null,null,null,null,null,null,null,null,null,null,null,null,null,null,null,null,null,null,null,null,null,null,null,null,null,null,null,null,null,null,null,null,null,null,null,null,null,null,null,null,null,null,null,null,null,null,null,null,null,null,null,null,null,null,null,null,null,null,10,10]
[null,null,null,null,null,null,null,null,null,null,null,null,null,null,null,null,null,null,null,null,null,null,null,null,null,null,null,{"$f":"COUNTIFS($I$5:$I$55,$I$5,$D$5:$D$55,$D$5,$X$5:$X$55,\">0\")","v":21},null,null,null,null,null,null,null,null,null,null,null,null,null,null,null,null,null,null,null,null,null,null,null,null,null,null,null,null,null,null,null,null,null,null,null,null,null,null,null,null,null,null,null,null,null,null,null,null,null,null,null,null,null,null,null,null,null,null,null,null,null,null,null,null,null,null,null,null,null,null,null,null,null,null,null,null,null,null,null,null,null,null,null,null,null,null,null,null,null,null,null,null,null,null,null,null,null,null,null,null,null,null,null,null,null,null,null,null,null,null,null,null,null,11,8]
[null,null,null,null,null,null,null,null,null,null,null,null,null,null,null,null,null,null,null,null,null,null,null,null,null,null,null,{"$f":"SUMIFS($X$5:$X$55,$I$5:$I$55,$I$5,$D$5:$D$55,$D$5)","v":574824},null,null,null,null,null,null,null,null,null,null,null,null,null,null,null,null,null,null,null,null,null,null,null,null,null,null,null,null,null,null,null,null,null,null,null,null,null,null,null,null,null,null,null,null,null,null,null,null,null,null,null,null,null,null,null,null,null,null,null,null,null,null,null,null,null,null,null,null,null,null,null,null,null,null,null,null,null,null,null,null,null,null,null,null,null,null,null,null,null,null,null,null,null,null,null,null,null,null,null,null,null,null,null,null,null,null,null,null,null,null,null,null,null,13,6]
[null,null,null,null,null,null,null,null,null,null,null,null,null,null,null,null,null,null,null,null,null,null,null,null,null,null,null,{"$f":"AB68/AB67","v":27372.571428571428},null,null,null,null,null,null,null,null,null,null,null,null,null,null,null,null,null,null,null,null,null,null,null,null,null,null,null,null,null,null,null,null,null,null,null,null,null,null,null,null,null,null,null,null,null,null,null,null,null,null,null,null,null,null,null,null,null,null,null,null,null,null,null,null,null,null,null,null,null,null,null,null,null,null,null,null,null,null,null,null,null,null,null,null,null,null,null,null,null,null,null,null,null,null,null,null,null,null,null,null,null,null,null,null,null,null,null,null,null,null,null,null,null,15,3]
[null,null,null,null,null,null,null,null,null,null,null,null,null,null,null,null,null,null,null,null,null,null,null,null,null,null,null,null,null,null,null,null,null,null,null,null,null,null,null,null,null,null,null,null,null,null,null,null,null,null,null,null,null,null,null,null,null,null,null,null,null,null,null,null,null,null,{"$f":"SUM(BR72:BR116)","v":1386},null,null,"League",null,null,null,"League Cup",null,null,null,"FA Cup",null,null,null,null,null,null,null,null,null,null,null,null,null,null,null,null,null,null,null,null,null,null,null,null,null,null,null,null,null,null,null,null,null,null,null,null,null,null,null,null,null,null,null,null,null,null,null,null,null,null,null,null,null,null,null,null,null,null,null,null,null,null,null,17,2]
[null,null,null,null,null,null,null,null,null,null,null,null,null,null,null,null,null,null,null,null,null,null,null,null,null,null,null,null,null,null,null,null,null,null,null,null,null,null,null,null,null,null,null,null,null,null,null,null,null,null,null,null,null,null,null,null,null,null,null,null,null,null,null,null,null,null,null,null,null,"P","Sub","NPS","Gls","P","Sub","NPS","Gls","P","Sub","NPS","Gls",null,null,null,null,null,null,null,null,null,null,null,null,null,null,null,null,null,null,null,null,null,null,null,null,null,null,null,null,null,null,null,null,null,null,null,null,null,null,null,null,null,null,null,null,null,null,null,null,null,null,null,null,null,null,null,null,null,null,null,null,17,4]
[null,null,null,null,null,null,null,null,null,null,null,null,null,null,null,null,null,null,null,null,null,null,null,null,null,null,null,"Av Attendance All Home Games",null,null,null,null,null,null,null,null,null,null,null,null,null,null,null,null,null,null,null,null,null,null,null,null,null,null,null,null,null,null,null,null,null,null,1,1,{"$f":"BP72&\" (**\"","v":"Barker (**"},null,{"$f":"BP72&\"**\"","v":"Barker**"},"Barker",null,{"$f":"COUNTIF(LeagueStarts,$BP72)","v":39},{"$f":"COUNTIF(LeagueSubs,$BM72)","v":0},{"$f":"COUNTIF(LeagueSubs,$BP72)","v":0},{"$f":"COUNTIF($CZ$76:$DI$125,BO72)","v":12},{"$f":"COUNTIF($AP$126:$AZ$134,$BP72)","v":0},{"$f":"COUNTIF($BC$126:$BC$134,$BM72)","v":0},{"$f":"COUNTIF($BC$128:$BI$131,$BP72)","v":0},{"$f":"COUNTIF($CZ$145:$DI$155,BO72)","v":0},{"$f":"COUNTIF($AP$136:$AZ$140,$BP72)","v":3},{"$f":"COUNTIF($BC$136:$BC$140,$BM72)","v":0},{"$f":"COUNTIF($BC$133:$BI$137,$BP72)","v":0},{"$f":"COUNTIF($CZ$134:$DI$140,BO72)","v":0},null,null,null,null,null,null,null,null,null,{"$f":"ROW(CL72)","v":72},null,{"$f":"CN7","v":"D"},{"$f":"CO7","v":"Barker"},null,{"$f":"CO72&\" \"&CP72","v":"D Barker"},null,null,null,null,null,null,null,null,null,null,null,null,null,null,null,null,null,null,null,null,null,null,null,null,null,null,null,null,null,null,null,null,null,null,null,null,null,null,null,null,null,null,null,null,null,18,6]
[null,null,null,null,null,null,null,null,null,null,null,null,null,null,null,null,null,null,null,null,null,null,null,null,null,null,null,{"$f":"COUNTIF(I5:I50,I5)","v":22},null,null,null,null,null,null,null,null,null,null,null,null,null,null,null,null,null,null,null,null,null,null,null,null,null,null,null,null,null,null,null,null,null,null,1,2,"Brolly (**",null,"Brolly**","Brolly",null,31,0,{"$f":"COUNTIF(LeagueSubs,$BP73)","v":0},1,0,0,0,{"$f":"COUNTIF($CZ$145:$DI$155,BO73)","v":0},3,{"$f":"COUNTIF($BC$136:$BC$140,$BM73)","v":0},0,{"$f":"COUNTIF($CZ$134:$DI$140,BO73)","v":0},null,null,null,null,null,null,null,null,null,73,null,{"$f":"CN8","v":"Tom"},{"$f":"CO8","v":"Brolly"},null,{"$f":"CO73&\" \"&CP73","v":"Tom Brolly"},null,null,null,null,null,null,null,null,null,null,null,null,null,null,null,null,null,null,null,null,null,null,null,null,null,null,null,null,null,null,null,null,null,null,null,null,null,null,null,null,null,null,null,null,null,20,4]
[null,null,null,null,null,null,null,null,null,null,null,null,null,null,null,null,null,null,null,null,null,null,null,null,null,null,null,{"$f":"SUMIF(I5:I50,I5,X5:X50)","v":613271},null,null,null,null,null,null,null,null,null,null,null,null,null,null,null,null,null,null,null,null,null,null,null,null,null,null,null,null,null,null,null,null,null,null,1,3,"Burke (**",null,"Burke**","Burke",null,2,0,0,0,0,0,0,{"$f":"COUNTIF($CZ$145:$DI$155,BO74)","v":0},0,0,0,0,null,null,null,null,null,null,null,null,null,74,null,"Johnny","Burke",null,{"$f":"CO74&\" \"&CP74","v":"Johnny Burke"},null,null,null,null,null,null,null,"Goals League",null,null,null,null,null,null,null,null,null,null,null,null,null,null,null,null,null,null,null,null,null,null,null,null,null,null,null,null,null,null,null,null,null,null,null,null,null,20,7]
[null,null,null,null,null,null,null,null,null,null,null,null,null,null,null,null,null,null,null,null,null,null,null,null,null,null,null,{"$f":"AB74/AB73","v":27875.954545454544},null,null,null,null,null,null,null,null,null,null,null,null,null,null,null,null,null,null,null,null,null,null,null,null,null,null,null,null,null,null,null,null,null,null,1,4,"Chiverton (**",null,"Chiverton**","Chiverton",null,41,0,0,0,0,0,0,0,3,0,0,0,null,null,null,null,null,null,null,null,null,75,null,"EJ","Chiverton",null,"EJ Chiverton",null,null,null,null,null,null,null,1,2,3,4,5,6,7,8,7,8,9,null,null,null,null,null,null,null,null,null,null,null,null,null,null,null,null,null,null,null,null,null,null,null,null,null,null,null,22,6]
[null,null,null,null,null,null,null,null,null,null,null,null,null,null,null,null,null,null,null,null,null,null,null,null,null,null,null,null,null,null,null,null,null,null,null,null,null,null,null,null,null,"x",null,null,null,null,null,null,null,null,null,null,null,null,null,null,null,null,null,null,null,null,1,5,"Daniels (**",null,"Daniels**","Daniels",null,1,0,0,0,0,0,0,0,0,0,0,0,null,null,null,null,null,null,null,null,null,76,null,"J","Daniels",null,"J Daniels",null,null,null,null,null,null,null,null,null,null,null,null,null,null,null,null,null,null,null,null,null,null,null,null,null,null,null,null,null,null,null,null,null,null,null,null,null,null,null,null,null,null,null,null,null,22,7]
[null,null,null,null,null,null,null,null,null,null,null,null,null,null,null,null,null,null,null,null,null,null,null,null,null,null,null,null,null,null,null,null,"Game","Competition","Date",null,"Opponents",null,null,null,"Score",1,2,3,4,5,6,7,8,9,10,11,null,null,12,null,null,null,null,null,null,null,1,6,"Dudley (**",null,"Dudley**","Dudley",null,11,0,0,0,0,0,0,0,3,0,0,0,null,null,null,null,null,null,null,null,null,77,null,"Reg","Dudley",null,"Reg Dudley",null,null,null,1,{"$f":"AK78","v":"Chesterfield"},{"$f":"AL78","v":"(H)"},{"$f":"AO78","v":"W 3-1"},"Walsh","Rawlings","Rawlings",null,null,null,null,null,null,null,null,"Walsh, Rawlings (2)",null,null,null,null,{"$f":"IF(CZ77=\"\",\"\",CZ77)","v":"Walsh"},{"$f":"IF(DA77=\"\",\"\",DA77)","v":"Rawlings"},{"$f":"IF(DB77=\"\",\"\",DB77)","v":"Rawlings"},{"$f":"IF(DC77=\"\",\"\",DC77)","v":""},{"$f":"IF(DD77=\"\",\"\",DD77)","v":""},{"$f":"IF(DE77=\"\",\"\",DE77)","v":""},{"$f":"IF(DP77<>\"\",\",\",\"\")","v":","},{"$f":"IF(DQ77<>\"\",\",\",\"\")","v":","},{"$f":"IF(DR77<>\"\",\",\",\"\")","v":","},{"$f":"IF(DS77<>\"\",\",\",\"\")","v":""},{"$f":"IF(DT77<>\"\",\",\",\"\")","v":""},{"$f":"CONCATENATE(DP77,DV77,DQ77,DW77,DR77,DX77,DS77,DY77,DT77,DZ77,DU77)","v":"Walsh,Rawlings,Rawlings,"},null,null,null,null,null,null,null,null,null,null,23,7]
[null,null,null,null,null,null,null,null,null,null,null,null,null,null,null,null,null,null,null,null,null,null,null,null,null,null,null,null,null,null,1,null,1,"Division 2","1938-08-27",null,"Chesterfield","(H)",null,null,"W 3-1","Pearson","E Smith","Inns","Brolly","Wallbanks","Forsyth","Rawlings","Richardson","Walsh","Barker","JR Smith",null,null,null,null,1,null,null,null,null,null,1,7,"Fenton (**",null,"Fenton**","Fenton",null,2,0,0,0,0,0,0,0,0,0,0,0,null,null,null,null,null,null,null,null,null,78,null,"Benny","Fenton",null,"Benny Fenton",null,null,null,{"$f":"IF(CV77=0,1,IF(CV77=2,1,2))","v":2},{"$f":"AK79","v":"Tranmere"},{"$f":"AL79","v":"(A)"},{"$f":"AO79","v":"L 0-2"},"No Scorer",null,null,null,null,null,null,null,null,null,null,null,null,null,null,null,"No Scorer","","","","","",",","","","","","No Scorer,",null,null,null,null,null,null,null,null,null,null,25,5]
[null,null,null,null,null,null,null,null,null,null,null,null,null,null,null,null,null,null,null,null,null,null,null,null,null,null,null,null,null,null,{"$f":"IF(AE78=0,1,IF(AE78=2,1,2))","v":2},null,2,"Division 2","1938-08-29",null,"Tranmere","(A)",null,null,"L 0-2","Pearson","E Smith","Inns","Brolly","Chiverton","Forsyth","Rawlings","Richardson","Walsh","Barker","JR Smith",null,null,null,null,1,null,null,null,null,null,1,8,"Fisher (**",null,"Fisher**","Fisher",null,12,0,0,6,0,0,0,0,1,0,0,0,null,null,null,null,null,null,null,null,null,79,null,"F","Fisher",null,"F Fisher",null,null,null,1,"Swansea","(A)","D 1-1","Hedley",null,null,null,null,null,null,null,null,null,null,"Hedley",null,null,null,null,"Hedley","","","","","",",","","","","","Hedley,",null,null,null,null,null,null,null,null,null,null,27,4]
[null,null,null,null,null,null,null,null,null,null,null,null,null,null,null,null,null,null,null,null,null,null,null,null,null,null,null,null,null,null,1,null,3,"Division 2","1938-09-03",null,"Swansea","(A)",null,null,"D 1-1","Pearson","E Smith","Inns","Barker","Chiverton","Forsyth","Rawlings","Richardson","Walsh","JR Smith","Hedley",null,null,null,null,1,null,null,null,null,null,1,9,"Forsyth (**",null,"Forsyth**","Forsyth",null,41,0,0,0,0,0,0,0,3,0,0,0,null,null,null,null,null,null,null,null,null,80,null,"Jim","Forsyth",null,"Jim Forsyth",null,null,null,2,"Bury","(H)","D 0-0","No Scorer",null,null,null,null,null,null,null,null,null,null,null,null,null,null,null,"No Scorer","","","","","",",","","","","","No Scorer,",null,null,null,null,null,null,null,null,null,null,29,4]
[null,null,null,null,null,null,null,null,null,null,null,null,null,null,null,null,null,null,null,null,null,null,null,null,null,null,null,null,null,null,2,null,4,"Division 2","1938-09-05",null,"Bury","(H)",null,null,"D 0-0","Pearson","E Smith","Inns","Brolly","Chiverton","Forsyth","Rawlings","Richardson","Walsh","JR Smith","Hedley",null,null,null,null,1,null,null,null,null,null,1,10,"Hedley (**",null,"Hedley**","Hedley",null,4,0,{"$f":"COUNTIF(LeagueSubs,$BP81)","v":0},2,0,0,0,0,0,0,0,0,null,null,null,null,null,null,null,null,null,81,null,"F","Hedley",null,"F Hedley",null,null,null,1,"Bradford PA","(H)","W 3-1","Barker","Walsh","Walsh",null,null,null,null,null,null,null,null,"Barker, Walsh (2)",null,null,null,null,"Barker","Walsh","Walsh","","","",",",",",",","","","Barker,Walsh,Walsh,",null,null,null,null,null,null,null,null,null,null,29,5]
[null,null,null,null,null,null,null,null,null,null,null,null,null,null,null,null,null,null,null,null,null,null,null,null,null,null,null,null,null,null,1,null,5,"Division 2","1938-09-10",null,"Bradford PA","(H)",null,null,"W 3-1","Pearson","E Smith","Inns","Brolly","Chiverton","Forsyth","Rawlings","Richardson","Walsh","Barker","JR Smith",null,null,null,null,1,null,null,null,null,null,1,11,"Inns (**",null,"Inns**","Inns",null,11,0,0,0,0,0,0,0,0,0,0,0,null,null,null,null,null,null,null,null,null,82,null,"T","Inns",null,"T Inns",null,null,null,2,"Man City","(A)","W 6-1","Barker","Barker","Walsh","Rawlings","Rawlings","Richardson",null,null,null,null,null,"Barker (2), Walsh, Rawlings (2), Richardson",null,null,null,null,"Barker","Barker","Walsh","Rawlings","Rawlings","Richardson",",",",",",",",",",","Barker,Barker,Walsh,Rawlings,Rawlings,Richardson",null,null,null,null,null,null,null,null,null,null,30,6]
[null,null,null,null,null,null,null,null,null,null,null,null,null,null,null,null,null,null,null,null,null,null,null,null,null,null,null,null,null,null,2,null,6,"Division 2","1938-09-17",null,"Man City","(A)",null,null,"W 6-1","Pearson","E Smith","Inns","Brolly","Chiverton","Forsyth","Rawlings","Richardson","Walsh","Barker","JR Smith",null,null,null,null,1,null,null,null,null,null,1,12,"Jinks (**",null,"Jinks**","Jinks",null,1,0,0,1,0,0,0,0,0,0,0,0,null,null,null,null,null,null,null,null,null,83,null,"Jimmy","Jinks",null,"Jimmy Jinks",null,null,null,1,"Plymouth","(H)","W 3-0","Richardson","Richardson","Richardson",null,null,null,null,null,null,null,null,"Richardson (3)",null,null,null,null,"Richardson","Richardson","Richardson","","","",",",",",",","","","Richardson,Richardson,Richardson,",null,null,null,null,null,null,null,null,null,null,32,5]
[null,null,null,null,null,null,null,null,null,null,null,null,null,null,null,null,null,null,null,null,null,null,null,null,null,null,null,null,null,null,1,null,7,"Division 2","1938-09-24",null,"Plymouth","(H)",null,null,"W 3-0","Pearson","E Smith","Inns","Brolly","Chiverton","Forsyth","Rawlings","Richardson","Walsh","Barker","JR Smith",null,null,null,null,1,null,null,null,null,null,1,13,"Lea (**",null,"Lea**","Lea",null,25,0,0,0,0,0,0,0,3,0,0,0,null,null,null,null,null,null,null,null,null,84,null,"G","Lea",null,"G Lea",null,null,null,2,"Blackburn","(H)","W 4-1","Rawlings","Rawlings","Walsh","Walsh",null,null,null,null,null,null,null,"Rawlings (2), Walsh (2)",null,null,null,null,"Rawlings","Rawlings","Walsh","Walsh","","",",",",",",",",","","Rawlings,Rawlings,Walsh,Walsh,",null,null,null,null,null,null,null,null,null,null,34,3]
[null,null,null,null,null,null,null,null,null,null,null,null,null,null,null,null,null,null,null,null,null,null,null,null,null,null,null,null,null,null,2,null,8,"Division 2","1938-10-01",null,"Blackburn","(H)",null,null,"W 4-1","Pearson","E Smith","Inns","Lea","Chiverton","Forsyth","Rawlings","Richardson","Walsh","Barker","JR Smith",null,null,null,null,1,null,null,null,null,null,1,14,"McLeod (**",null,"McLeod**","McLeod",null,17,0,0,5,0,0,0,0,3,0,0,7,null,null,null,null,null,null,null,null,null,85,null,"JS","McLeod",null,"JS McLeod",null,null,null,1,"Fulham","(A)","L 1-2","Own Goal",null,null,null,null,null,null,null,null,null,null,"Own Goal",null,null,null,null,"Own Goal","","","","","",",","","","","","Own Goal,",null,null,null,null,null,null,null,null,null,null,36,2]
[null,null,null,null,null,null,null,null,null,null,null,null,null,null,null,null,null,null,null,null,null,null,null,null,null,null,null,null,null,null,1,null,9,"Division 2","1938-10-08",null,"Fulham","(A)",null,null,"L 1-2","Pearson","E Smith","Dudley","Lea","Chiverton","Forsyth","Rawlings","Richardson","Walsh","Barker","JR Smith",null,null,null,null,1,null,null,null,null,null,1,15,"Osman (**",null,"Osman**","Osman",null,8,0,0,0,0,0,0,0,0,0,0,0,null,null,null,null,null,null,null,null,null,86,null,"Harry","Osman",null,"Harry Osman",null,null,null,2,"Sheff Utd","(A)","L 1-2","Walsh",null,null,null,null,null,null,null,null,null,null,"Walsh",null,null,null,null,"Walsh","","","","","",",","","","","","Walsh,",null,null,null,null,null,null,null,null,null,null,36,3]
[null,null,null,null,null,null,null,null,null,null,null,null,null,null,null,null,null,null,null,null,null,null,null,null,null,null,null,null,null,null,2,null,10,"Division 2","1938-10-15",null,"Sheff Utd","(A)",null,null,"L 1-2","Pearson","E Smith","Dudley","Brolly","Chiverton","Forsyth","Rawlings","Richardson","Walsh","Barker","JR Smith",null,null,null,null,1,null,null,null,null,null,1,16,"Pearson (**",null,"Pearson**","Pearson",null,23,0,0,0,0,0,0,0,3,0,0,0,null,null,null,null,null,null,null,null,null,87,null,"HF","Pearson",null,"HF Pearson",null,null,null,1,"Burnley","(H)","D 1-1","Barker",null,null,null,null,null,null,null,null,null,null,"Barker",null,null,null,null,"Barker","","","","","",",","","","","","Barker,",null,null,null,null,null,null,null,null,null,null,38,3]
[null,null,null,null,null,null,null,null,null,null,null,null,null,null,null,null,null,null,null,null,null,null,null,null,null,null,null,null,null,null,1,null,11,"Division 2","1938-10-22",null,"Burnley","(H)",null,null,"D 1-1","Pearson","E Smith","Inns","Brolly","Chiverton","Forsyth","Rawlings","Richardson","Walsh","Barker","JR Smith",null,null,null,null,1,null,null,null,null,null,1,17,"Rawlings (**",null,"Rawlings**","Rawlings",null,30,0,0,13,0,0,0,0,2,0,0,1,null,null,null,null,null,null,null,null,null,88,null,"JS","Rawlings",null,"JS Rawlings",null,null,null,2,"Norwich","(A)","W 2-0","Barker","Brolly",null,null,null,null,null,null,null,null,null,"Barker, Brolly",null,null,null,null,"Barker","Brolly","","","","",",",",","","","","Barker,Brolly,",null,null,null,null,null,null,null,null,null,null,38,3]
[null,null,null,null,null,null,null,null,null,null,null,null,null,null,null,null,null,null,null,null,null,null,null,null,null,null,null,null,null,null,2,null,12,"Division 2","1938-10-29",null,"Norwich","(A)",null,null,"W 2-0","Pearson","E Smith","Inns","Brolly","Chiverton","Forsyth","Rawlings","Richardson","Walsh","Barker","JR Smith",null,null,null,null,1,null,null,null,null,null,1,18,"Richardson (**",null,"Richardson**","Richardson",null,40,0,0,11,0,0,0,0,3,0,0,1,null,null,null,null,null,null,null,null,null,89,null,"JR","Richardson",null,"JR Richardson",null,null,null,1,"Southampton","(H)","L 0-1","No Scorer",null,null,null,null,null,null,null,null,null,null,null,null,null,null,null,"No Scorer","","","","","",",","","","","","No Scorer,",null,null,null,null,null,null,null,null,null,null,38,4]
[null,null,null,null,null,null,null,null,null,null,null,null,null,null,null,null,null,null,null,null,null,null,null,null,null,null,null,null,null,null,1,null,13,"Division 2","1938-11-05",null,"Southampton","(H)",null,null,"L 0-1","Pearson","E Smith","Inns","Brolly","Chiverton","Forsyth","Rawlings","Richardson","Walsh","Barker","JR Smith",null,null,null,null,1,null,null,null,null,null,1,19,{"$f":"BP90&\" (**\"","v":"E Smith (**"},null,{"$f":"BP90&\"**\"","v":"E Smith**"},"E Smith",null,34,0,0,0,0,0,0,0,0,0,0,0,null,null,null,null,null,null,null,null,null,90,null,"Ted","Smith",null,"Ted Smith",null,null,null,2,"Coventry","(A)","L 1-2","Richardson",null,null,null,null,null,null,null,null,null,null,"Richardson",null,null,null,null,"Richardson","","","","","",",","","","","","Richardson,",null,null,null,null,null,null,null,null,null,null,38,6]
[null,null,null,null,null,null,null,null,null,null,null,null,null,null,null,null,null,null,null,null,null,null,null,null,null,null,null,null,null,null,2,null,14,"Division 2","1938-11-12",null,"Coventry","(A)",null,null,"L 1-2","Pearson","E Smith","Williams","Brolly","Chiverton","Sykes","Rawlings","Richardson","McLeod","Barker","JR Smith",null,null,null,null,1,null,null,null,null,null,1,20,"JR Smith (**",null,"JR Smith**","JR Smith",null,36,0,0,{"$f":"COUNTIF($CZ$76:$DI$125,BO91)","v":3},0,0,0,{"$f":"COUNTIF($CZ$145:$DI$155,BO91)","v":0},3,0,0,0,null,null,null,null,null,null,null,null,null,91,null,"JR","Smith",null,"JR Smith",null,null,null,1,"Nottm Forest","(H)","W 5-0","Barker","Barker","Barker","Walsh","JR Smith",null,null,null,null,null,null,"Barker (3), Walsh, JR Smith",null,null,null,null,"Barker","Barker","Barker","Walsh","JR Smith","",",",",",",",",",",","Barker,Barker,Barker,Walsh,JR Smith,",null,null,null,null,null,null,null,null,null,null,40,5]
[null,null,null,null,null,null,null,null,null,null,null,null,null,null,null,null,null,null,null,null,null,null,null,null,null,null,null,null,null,null,1,null,15,"Division 2","1938-11-19",null,"Nottm Forest","(H)",null,null,"W 5-0","Pearson","E Smith","Williams","Brolly","Chiverton","Forsyth","Fisher","Richardson","Walsh","Barker","JR Smith",null,null,null,null,1,null,null,null,null,null,1,21,"Sykes (**",null,"Sykes**","Sykes",null,2,0,0,0,0,0,0,0,0,0,0,0,null,null,null,null,null,null,null,null,null,92,null,"J","Sykes",null,"J Sykes",null,null,null,2,"Newcastle","(A)","D 2-2","Fisher","Fisher",null,null,null,null,null,null,null,null,null,"Fisher (2)",null,null,null,null,"Fisher","Fisher","","","","",",",",","","","","Fisher,Fisher,",null,null,null,null,null,null,null,null,null,null,40,7]
[null,null,null,null,null,null,null,null,null,null,null,null,null,null,null,null,null,null,null,null,null,null,null,null,null,null,null,null,null,null,2,null,16,"Division 2","1938-11-26",null,"Newcastle","(A)",null,null,"D 2-2","Pearson","E Smith","Williams","Brolly","Chiverton","Forsyth","Fisher","Richardson","Walsh","Barker","JR Smith",null,null,null,null,1,null,null,null,null,null,1,22,"Thorogood (**",null,"Thorogood**","Thorogood",null,1,0,0,1,0,0,0,0,0,0,0,0,null,null,null,null,null,null,null,null,null,93,null,"J","Thorogood",null,"J Thorogood",null,null,null,1,"West Brom","(H)","L 1-5","Richardson",null,null,null,null,null,null,null,null,null,null,"Richardson",null,null,null,null,"Richardson","","","","","",",","","","","","Richardson,",null,null,null,null,null,null,null,null,null,null,41,6]
[null,null,null,null,null,null,null,null,null,null,null,null,null,null,null,null,null,null,null,null,null,null,null,null,null,null,null,null,null,null,1,null,17,"Division 2","1938-12-03",null,"West Brom","(H)",null,null,"L 1-5","Pearson","E Smith","Williams","Brolly","Chiverton","Forsyth","Fisher","Richardson","Walsh","Barker","JR Smith",null,null,null,null,1,null,null,null,null,null,1,23,"Wallbanks (**",null,"Wallbanks**","Wallbanks",null,1,0,0,0,0,0,0,0,0,0,0,0,null,null,null,null,null,null,null,null,null,94,null,"J","Wallbanks",null,"J Wallbanks",null,null,null,2,"Tottenham","(A)","L 0-4","No Scorer",null,null,null,null,null,null,null,null,null,null,null,null,null,null,null,"No Scorer","","","","","",",","","","","","No Scorer,",null,null,null,null,null,null,null,null,null,null,41,7]
[null,null,null,null,null,null,null,null,null,null,null,null,null,null,null,null,null,null,null,null,null,null,null,null,null,null,null,null,null,null,2,null,18,"Division 2","1938-12-10",null,"Tottenham","(A)",null,null,"L 0-4","Yuill","E Smith","Dudley","Brolly","Chiverton","Forsyth","Rawlings","Richardson","Walsh","Barker","JR Smith",null,null,null,null,1,null,null,null,null,null,1,24,{"$f":"BP95&\" (**\"","v":"Walsh (**"},null,{"$f":"BP95&\"**\"","v":"Walsh**"},"Walsh",null,21,0,0,8,0,0,0,0,0,0,0,{"$f":"COUNTIF($CZ$134:$DI$140,BO95)","v":0},null,null,null,null,null,null,null,null,null,95,null,"W","Walsh",null,"W Walsh",null,null,null,1,"Luton","(H)","W 2-1","Fisher","Hedley",null,null,null,null,null,null,null,null,null,"Fisher, Hedley",null,null,null,null,"Fisher","Hedley","","","","",",",",","","","","Fisher,Hedley,",null,null,null,null,null,null,null,null,null,null,42,7]
[null,null,null,null,null,null,null,null,null,null,null,null,null,null,null,null,null,null,null,null,null,null,null,null,null,null,null,null,null,null,1,null,19,"Division 2","1938-12-17",null,"Luton","(H)",null,null,"W 2-1","Pearson","Lea","Dudley","Brolly","Chiverton","Forsyth","Fisher","Richardson","Barker","JR Smith","Hedley",null,null,null,null,1,null,null,null,null,null,1,25,{"$f":"BP96&\" (**\"","v":"Williams (**"},null,{"$f":"BP96&\"**\"","v":"Williams**"},"Williams",null,11,0,0,{"$f":"COUNTIF($CZ$76:$DI$125,BO96)","v":0},0,0,0,{"$f":"COUNTIF($CZ$145:$DI$155,BO96)","v":0},0,0,0,0,null,null,null,null,null,null,null,null,null,96,null,"George","Williams",null,{"$f":"CO96&\" \"&CP96","v":"George Williams"},null,null,null,2,"Chesterfield","(A)","L 0-3","No Scorer",null,null,null,null,null,null,null,null,null,null,null,null,null,null,null,"No Scorer","","","","","",",","","","","","No Scorer,",null,null,null,null,null,null,null,null,null,null,44,7]
[null,null,null,null,null,null,null,null,null,null,null,null,null,null,null,null,null,null,null,null,null,null,null,null,null,null,null,null,null,null,2,null,20,"Division 2","1938-12-24",null,"Chesterfield","(A)",null,null,"L 0-3","Pearson","Lea","Dudley","Brolly","Chiverton","Forsyth","Fisher","Richardson","Barker","JR Smith","Hedley",null,null,null,null,1,null,null,null,null,null,1,26,"Yuill (**",null,"Yuill**","Yuill",null,17,0,0,0,0,0,0,0,0,0,0,{"$f":"COUNTIF($CZ$134:$DI$140,BO97)","v":0},null,null,null,null,null,null,null,null,null,95,null,"Duncan","Yuill",null,"Duncan Yuill",null,null,null,1,"West Ham","(A)","D 0-0","No Scorer",null,null,null,null,null,null,null,null,null,null,null,null,null,null,null,"No Scorer","","","","","",",","","","","","No Scorer,",null,null,null,null,null,null,null,null,null,null,44,7]
[null,null,null,null,null,null,null,null,null,null,null,null,null,null,null,null,null,null,null,null,null,null,null,null,null,null,null,null,null,null,1,null,21,"Division 2","1938-12-27",null,"West Ham","(A)",null,null,"D 0-0","Pearson","Lea","Dudley","Brolly","Chiverton","Forsyth","Rawlings","Richardson","Walsh","Barker","JR Smith",null,null,null,null,1,null,null,null,null,null,1,27,null,null,null,null,null,null,null,null,null,null,null,null,null,null,null,null,null,null,null,null,null,null,null,null,null,null,null,null,null,null,null,null,null,null,null,2,"Swansea","(H)","D 1-1","Rawlings",null,null,null,null,null,null,null,null,null,null,"Rawlings",null,null,null,null,"Rawlings","","","","","",",","","","","","Rawlings,",null,null,null,null,null,null,null,null,null,null,46,7]
[null,null,null,null,null,null,null,null,null,null,null,null,null,null,null,null,null,null,null,null,null,null,null,null,null,null,null,null,null,null,2,null,22,"Division 2","1938-12-31",null,"Swansea","(H)",null,null,"D 1-1","Pearson","Lea","Dudley","Brolly","Chiverton","Forsyth","Rawlings","Richardson","Walsh","Barker","JR Smith",null,null,null,null,1,null,null,null,null,null,1,28,null,null,null,null,null,null,null,null,null,null,null,null,null,null,null,null,null,null,null,null,null,null,null,null,null,null,null,null,null,null,null,null,null,null,null,1,"Bury","(A)","D 1-1","McLeod",null,null,null,null,null,null,null,null,null,null,"McLeod",null,null,null,null,"McLeod","","","","","",",","","","","","McLeod,",null,null,null,null,null,null,null,null,null,null,47,9]
[null,null,null,null,null,null,null,null,null,null,null,null,null,null,null,null,null,null,null,null,null,null,null,null,null,null,null,null,null,null,1,null,23,"Division 2","1939-01-02",null,"Bury","(A)",null,null,"D 1-1","Pearson","Lea","Dudley","Brolly","Chiverton","Forsyth","Rawlings","Richardson","McLeod","Barker","JR Smith",null,null,null,null,1,null,null,null,null,null,1,29,null,null,null,null,null,null,null,null,null,null,null,null,null,null,null,null,null,null,null,null,null,null,null,null,null,null,null,null,null,null,null,null,null,null,null,2,"Bradford PA","(A)","L 0-1","No Scorer",null,null,null,null,null,null,null,null,null,null,null,null,null,null,null,"No Scorer","","","","","",",","","","","","No Scorer,",null,null,null,null,null,null,null,null,null,null,48,10]
[null,null,null,null,null,null,null,null,null,null,null,null,null,null,null,null,null,null,null,null,null,null,null,null,null,null,null,null,null,null,2,null,24,"Division 2","1939-01-14",null,"Bradford PA","(A)",null,null,"L 0-1","Pearson","Lea","Dudley","Brolly","Chiverton","Forsyth","Rawlings","Richardson","McLeod","Barker","JR Smith",null,null,null,null,1,null,null,null,null,null,1,30,null,null,null,null,null,null,null,null,null,null,null,null,null,null,null,null,null,null,null,null,null,null,null,null,null,null,null,null,null,null,null,null,null,null,null,1,"Plymouth","(A)","D 2-2","Richardson","Rawlings",null,null,null,null,null,null,null,null,null,"Richardson, Rawlings",null,null,null,null,"Richardson","Rawlings","","","","",",",",","","","","Richardson,Rawlings,",null,null,null,null,null,null,null,null,null,null,49,9]
[null,null,null,null,null,null,null,null,null,null,null,null,null,null,null,null,null,null,null,null,null,null,null,null,null,null,null,null,null,null,1,null,25,"Division 2","1939-01-28",null,"Plymouth","(A)",null,null,"D 2-2","Burke","Lea","Dudley","Brolly","Chiverton","Forsyth","Rawlings","Richardson","McLeod","Barker","JR Smith",null,null,null,null,1,null,null,null,null,null,1,null,null,null,null,null,null,null,null,null,null,null,null,null,null,null,null,null,null,null,null,null,null,null,null,null,null,null,null,null,null,null,null,null,null,null,null,2,"Blackburn","(A)","L 1-3","McLeod",null,null,null,null,null,null,null,null,null,null,"McLeod",null,null,null,null,"McLeod","","","","","",",","","","","","McLeod,",null,null,null,null,null,null,null,null,null,null,50,8]
[null,null,null,null,null,null,null,null,null,null,null,null,null,null,null,null,null,null,null,null,null,null,null,null,null,null,null,null,null,null,2,null,26,"Division 2","1939-02-04",null,"Blackburn","(A)",null,null,"L 1-3","Burke","Lea","Dudley","Brolly","Chiverton","Forsyth","Rawlings","Richardson","McLeod","Barker","JR Smith",null,null,null,null,1,null,null,null,null,null,1,null,null,null,{"$f":"BP103&\"**\"","v":"Own Goal**"},"Own Goal",null,null,null,null,{"$f":"COUNTIF($CZ$76:$DI$125,BO103)","v":1},null,null,null,{"$f":"COUNTIF($CZ$145:$DI$155,BO103)","v":0},null,null,null,{"$f":"COUNTIF($CZ$134:$DI$140,BP103)","v":0},null,null,null,null,null,null,null,null,null,null,null,null,null,null,null,null,null,null,1,"Fulham","(H)","D 1-1","Barker",null,null,null,null,null,null,null,null,null,null,"Barker",null,null,null,null,"Barker","","","","","",",","","","","","Barker,",null,null,null,null,null,null,null,null,null,null,50,8]
[null,null,null,null,null,null,null,null,null,null,null,null,null,null,null,null,null,null,null,null,null,null,null,null,null,null,null,null,null,null,1,null,27,"Division 2","1939-02-11",null,"Fulham","(H)",null,null,"D 1-1","Yuill","Lea","E Smith","Brolly","Chiverton","Forsyth","Rawlings","Richardson","McLeod","Barker","JR Smith",null,null,null,null,1,null,null,null,null,null,1,null,null,null,null,null,null,null,null,null,null,null,null,null,null,null,null,null,null,null,null,null,null,null,null,null,null,null,null,null,null,null,null,null,null,null,null,2,"Sheff Utd","(H)","W 4-0","Barker","Richardson","Fisher","Fisher",null,null,null,null,null,null,null,"Barker, Richardson, Fisher (2)",null,null,null,null,"Barker","Richardson","Fisher","Fisher","","",",",",",",",",","","Barker,Richardson,Fisher,Fisher,"]
[null,null,null,null,null,null,null,null,null,null,null,null,null,null,null,null,null,null,null,null,null,null,null,null,null,null,null,null,null,null,2,null,28,"Division 2","1939-02-18",null,"Sheff Utd","(H)",null,null,"W 4-0","Yuill","Lea","E Smith","Brolly","Chiverton","Forsyth","Fisher","Richardson","McLeod","Barker","JR Smith",null,null,null,null,1,null,null,null,null,null,1,null,null,null,null,null,null,null,null,null,null,null,null,null,null,null,null,null,null,null,null,null,null,null,null,null,null,null,null,null,null,null,null,null,null,null,null,1,"Burnley","(A)","L 0-2","No Scorer",null,null,null,null,null,null,null,null,null,null,null,null,null,null,null,"No Scorer","","","","","",",","","","","","No Scorer,"]
[null,null,null,null,null,null,null,null,null,null,null,null,null,null,null,null,null,null,null,null,null,null,null,null,null,null,null,null,null,null,1,null,29,"Division 2","1939-02-25",null,"Burnley","(A)",null,null,"L 0-2","Yuill","Lea","E Smith","Brolly","Chiverton","Forsyth","Fisher","Richardson","McLeod","Barker","JR Smith",null,null,null,null,1,null,null,null,null,null,1,null,null,null,null,"Check",null,{"$f":"SUM(BR72:BR97)","v":462},null,null,{"$f":"SUM(BU72:BU103)","v":64},null,null,null,{"$f":"SUM(BY72:BY103)","v":0},null,null,null,{"$f":"SUM(CC72:CC103)","v":9},null,null,null,null,null,null,null,null,null,null,null,null,null,null,null,null,null,null,2,"Norwich","(H)","W 6-0","Barker","McLeod","Fisher","Richardson","JR Smith","JR Smith",null,null,null,null,null,"Barker, McLeod, Fisher, Richardson, JR Smith (2)",null,null,null,null,"Barker","McLeod","Fisher","Richardson","JR Smith","JR Smith",",",",",",",",",",","Barker,McLeod,Fisher,Richardson,JR Smith,JR Smith"]
[null,null,null,null,null,null,null,null,null,null,null,null,null,null,null,null,null,null,null,null,null,null,null,null,null,null,null,null,null,null,2,null,30,"Division 2","1939-03-04",null,"Norwich","(H)",null,null,"W 6-0","Yuill","Lea","E Smith","Brolly","Chiverton","Forsyth","Fisher","Richardson","McLeod","Barker","JR Smith",null,null,null,null,1,null,null,null,null,null,1,null,null,null,null,null,null,null,null,null,null,null,null,null,null,null,null,null,null,null,null,null,null,null,null,null,null,null,null,null,null,null,null,null,null,null,null,1,"Southampton","(A)","D 1-1","McLeod",null,null,null,null,null,null,null,null,null,null,"McLeod",null,null,null,null,"McLeod","","","","","",",","","","","","McLeod,"]
[null,null,null,null,null,null,null,null,null,null,null,null,null,null,null,null,null,null,null,null,null,null,null,null,null,null,null,null,null,null,1,null,31,"Division 2","1939-03-11",null,"Southampton","(A)",null,null,"D 1-1","Yuill","Lea","E Smith","Brolly","Chiverton","Forsyth","Fisher","Richardson","McLeod","Barker","JR Smith",null,null,null,null,1,null,null,null,null,null,1,null,null,null,null,null,null,{"$f":"42*11","v":462},null,null,{"$f":"SUM(O5:O46)","v":69},null,null,null,null,null,null,null,{"$f":"SUM(O47:O49)","v":4},null,null,null,null,null,null,null,null,null,null,null,null,null,null,null,null,null,null,2,"Man City","(H)","W 3-1","McLeod","Thorogood","Barker",null,null,null,null,null,null,null,null,"McLeod, Thorogood, Barker",null,null,null,null,"McLeod","Thorogood","Barker","","","",",",",",",","","","McLeod,Thorogood,Barker,"]
[null,null,null,null,null,null,null,null,null,null,null,null,null,null,null,null,null,null,null,null,null,null,null,null,null,null,null,null,null,null,2,null,32,"Division 2","1939-03-13",null,"Man City","(H)",null,null,"W 3-1","Yuill","Lea","E Smith","Brolly","Chiverton","Forsyth","Rawlings","Barker","McLeod","JR Smith","Thorogood",null,null,null,null,1,null,null,null,null,null,1,null,null,null,null,null,null,null,null,null,null,null,null,null,null,null,null,null,null,null,null,null,null,null,null,null,null,null,null,null,null,null,null,null,null,null,null,1,"Coventry","(H)","D 0-0","No Scorer",null,null,null,null,null,null,null,null,null,null,null,null,null,null,null,{"$f":"IF(CZ109=\"\",\"\",CZ109)","v":"No Scorer"},{"$f":"IF(DA109=\"\",\"\",DA109)","v":""},{"$f":"IF(DB109=\"\",\"\",DB109)","v":""},{"$f":"IF(DC109=\"\",\"\",DC109)","v":""},{"$f":"IF(DD109=\"\",\"\",DD109)","v":""},{"$f":"IF(DE109=\"\",\"\",DE109)","v":""},",","","","","","No Scorer,"]
[null,null,null,null,null,null,null,null,null,null,null,null,null,null,null,null,null,null,null,null,null,null,null,null,null,null,null,null,null,null,1,null,33,"Division 2","1939-03-18",null,"Coventry","(H)",null,null,"D 0-0","Yuill","Lea","E Smith","Brolly","Chiverton","Forsyth","Fisher","Fenton","McLeod","JR Smith","Osman",null,null,null,null,1,null,null,null,null,null,1,null,null,null,null,null,null,null,null,null,null,null,null,null,null,null,null,null,null,null,null,null,null,null,null,null,null,null,null,null,null,null,null,null,null,null,null,2,"Nottm Forest","(A)","L 0-3","No Scorer",null,null,null,null,null,null,null,null,null,null,null,null,null,null,null,"No Scorer","","","","","",",","","","","","No Scorer,"]
[null,null,null,null,null,null,null,null,null,null,null,null,null,null,null,null,null,null,null,null,null,null,null,null,null,null,null,null,null,null,2,null,34,"Division 2","1939-03-25",null,"Nottm Forest","(A)",null,null,"L 0-3","Yuill","Lea","E Smith","Brolly","Chiverton","Forsyth","Fisher","Fenton","Richardson","JR Smith","Osman",null,null,null,null,1,null,null,null,null,null,1,null,null,null,null,null,null,null,null,null,null,null,null,null,null,null,null,null,null,null,null,null,null,null,null,null,null,null,null,null,null,null,null,null,null,null,null,1,"West Ham","(H)","L 0-2","No Scorer",null,null,null,null,null,null,null,null,null,null,null,null,null,null,null,"No Scorer","","","","","",",","","","","","No Scorer,"]
[null,null,null,null,null,null,null,null,null,null,null,null,null,null,null,null,null,null,null,null,null,null,null,null,null,null,null,null,null,null,1,null,35,"Division 2","1939-03-27",null,"West Ham","(H)",null,null,"L 0-2","Yuill","Lea","E Smith","Sykes","Chiverton","Forsyth","Fisher","Richardson","McLeod","Barker","Osman",null,null,null,null,1,null,null,null,null,null,1,null,null,null,null,null,"Errors / Chnages in The Complete Record",null,null,null,null,null,null,null,null,null,null,null,null,null,null,null,null,null,null,null,null,null,null,null,null,null,null,null,null,null,null,2,"Newcastle","(H)","D 1-1","Richardson",null,null,null,null,null,null,null,null,null,null,"Richardson",null,null,null,null,"Richardson","","","","","",",","","","","","Richardson,"]
[null,null,null,null,null,null,null,null,null,null,null,null,null,null,null,null,null,null,null,null,null,null,null,null,null,null,null,null,null,null,2,null,36,"Division 2","1939-04-01",null,"Newcastle","(H)",null,null,"D 1-1","Yuill","E Smith","Williams","Lea","Chiverton","Forsyth","Rawlings","Richardson","McLeod","Barker","JR Smith",null,null,null,null,1,null,null,null,null,null,1,null,null,null,null,null,"1) Osman rather than JR Smith v West Brom (A) in Nr 11 Shirt 8/04/1939",null,null,null,null,null,null,null,null,null,null,null,null,null,null,null,null,null,null,null,null,null,null,null,null,null,null,null,null,null,null,1,"Sheff Wed","(H)","W 2-0","Rawlings","Rawlings",null,null,null,null,null,null,null,null,null,"Rawlings (2)",null,null,null,null,"Rawlings","Rawlings","","","","",{"$f":"IF(DP113<>\"\",\",\",\"\")","v":","},{"$f":"IF(DQ113<>\"\",\",\",\"\")","v":","},{"$f":"IF(DR113<>\"\",\",\",\"\")","v":""},{"$f":"IF(DS113<>\"\",\",\",\"\")","v":""},{"$f":"IF(DT113<>\"\",\",\",\"\")","v":""},{"$f":"CONCATENATE(DP113,DV113,DQ113,DW113,DR113,DX113,DS113,DY113,DT113,DZ113,DU113)","v":"Rawlings,Rawlings,"}]
[null,null,null,null,null,null,null,null,null,null,null,null,null,null,null,null,null,null,null,null,null,null,null,null,null,null,null,null,null,null,1,null,37,"Division 2","1939-04-07",null,"Sheff Wed","(H)",null,null,"W 2-0","Yuill","E Smith","Williams","Lea","Chiverton","Forsyth","Rawlings","Richardson","McLeod","Barker","JR Smith",null,null,null,null,1,null,null,null,null,null,1,null,null,null,null,null,null,null,null,null,null,null,null,null,null,null,null,null,null,null,null,null,null,null,null,null,null,null,null,null,null,null,null,null,null,null,null,2,"West Brom","(A)","D 0-0","No Scorer",null,null,null,null,null,null,null,null,null,null,null,null,null,null,null,"No Scorer","","","","","",",","","","","","No Scorer,"]
[null,null,null,null,null,null,null,null,null,null,null,null,null,null,null,null,null,null,null,null,null,null,null,null,null,null,null,null,null,null,2,null,38,"Division 2","1939-04-08",null,"West Brom","(A)",null,null,"D 0-0","Yuill","E Smith","Williams","Lea","Chiverton","Forsyth","Rawlings","Richardson","McLeod","Barker","Osman",null,null,null,null,1,null,null,null,null,null,1,null,null,null,null,null,null,null,null,null,null,null,null,null,null,null,null,null,null,null,null,null,null,null,null,null,null,null,null,null,null,null,null,null,null,null,null,1,"Sheff Wed","(A)","L 1-3","Rawlings",null,null,null,null,null,null,null,null,null,null,"Rawlings",null,null,null,null,"Rawlings","","","","","",",","","","","","Rawlings,"]
[null,null,null,null,null,null,null,null,null,null,null,null,null,null,null,null,null,null,null,null,null,null,null,null,null,null,null,null,null,null,1,null,39,"Division 2","1939-04-10",null,"Sheff Wed","(A)",null,null,"L 1-3","Yuill","E Smith","Williams","Lea","Chiverton","Forsyth","Rawlings","Richardson","McLeod","Barker","Osman",null,null,null,null,1,null,null,null,null,null,1,null,null,null,null,null,null,null,null,null,null,null,null,null,null,null,null,null,null,null,null,null,null,null,null,null,null,null,null,null,null,null,null,null,null,null,null,2,"Tottenham","(H)","W 2-0","Rawlings","Rawlings",null,null,null,null,null,null,null,null,null,"Rawlings (2)",null,null,null,null,"Rawlings","Rawlings","","","","",",",",","","","","Rawlings,Rawlings,"]
[null,null,null,null,null,null,null,null,null,null,null,null,null,null,null,null,null,null,null,null,null,null,null,null,null,null,null,null,null,null,2,null,40,"Division 2","1939-04-15",null,"Tottenham","(H)",null,null,"W 2-0","Yuill","E Smith","Williams","Lea","Chiverton","Forsyth","Rawlings","Richardson","Walsh","Barker","Osman",null,null,null,null,1,null,null,null,null,null,1,null,null,null,null,null,null,null,null,null,null,null,null,null,null,null,null,null,null,null,null,null,null,null,null,null,null,null,null,null,null,null,null,null,null,null,null,1,"Luton","(A)","D 0-0","No Scorer",null,null,null,null,null,null,null,null,null,null,null,null,null,null,null,"No Scorer","","","","","",",","","","","","No Scorer,"]
[null,null,null,null,null,null,null,null,null,null,null,null,null,null,null,null,null,null,null,null,null,null,null,null,null,null,null,null,null,null,1,null,41,"Division 2","1939-04-22",null,"Luton","(A)",null,null,"D 0-0","Yuill","E Smith","Williams","Daniels","Chiverton","Forsyth","Rawlings","Richardson","Walsh","Barker","Osman",null,null,null,null,1,null,null,null,null,null,null,null,null,null,null,null,null,null,null,null,null,null,null,null,null,null,null,null,null,null,null,null,null,null,null,null,null,null,null,null,null,null,null,null,null,null,null,2,"Tranmere","(H)","W 2-1","Richardson","Jinks",null,null,null,null,null,null,null,null,null,"Richardson, Jinks",null,null,null,null,"Richardson","Jinks","","","","",",",",","","","","Richardson,Jinks,"]
[null,null,null,null,null,null,null,null,null,null,null,null,null,null,null,null,null,null,null,null,null,null,null,null,null,null,null,null,null,null,2,null,42,"Division 2","1939-04-29",null,"Tranmere","(H)",null,null,"W 2-1","Yuill","E Smith","Williams","Lea","Chiverton","Forsyth","Rawlings","Richardson","Jinks","Barker","Osman",null,null,null,null,1,null,null,null,null,null,null,null,null,null,null,null,null,null,null,null,null,null,null,null,null,null,null,null,null,null,null,null,null,null,null,null,null,null,null,null,null,null,null,null,null,null,null,1,null,null,null,"x",null,null,null,null,null,null,null,null,null,null,"x",null,null,null,null,"x","","","","","",",","","","","","x,"]
[null,null,null,null,null,null,null,null,null,null,null,null,null,null,null,null,null,null,null,null,null,null,null,null,null,null,null,null,null,null,1,null,null,null,null,null,null,null,null,null,null,null,null,null,null,null,null,null,null,null,null,null,null,null,null,null,null,null,null,null,null,null,null,null,null,null,null,null,null,null,null,null,null,null,null,null,null,null,null,null,null,null,null,null,null,null,null,null,null,null,null,null,null,null,null,null,null,null,null,2,null,null,null,"x",null,null,null,null,null,null,null,null,null,null,"x",null,null,null,null,"x","","","","","",",","","","","","x,"]
[null,null,null,null,null,null,null,null,null,null,null,null,null,null,null,null,null,null,null,null,null,null,null,null,null,null,null,null,null,null,2,null,null,null,null,null,null,null,null,null,null,null,null,null,null,null,null,null,null,null,null,null,null,null,null,null,null,null,null,null,null,null,null,null,null,null,null,null,null,null,null,null,null,null,null,null,null,null,null,null,null,null,null,null,null,null,null,null,null,null,null,null,null,null,null,null,null,null,null,1,null,null,null,"x",null,null,null,null,null,null,null,null,null,null,"x",null,null,null,null,"x","","","","","",{"$f":"IF(DP121<>\"\",\",\",\"\")","v":","},"","","","",{"$f":"CONCATENATE(DP121,DV121,DQ121,DW121,DR121,DX121,DS121,DY121,DT121,DZ121,DU121)","v":"x,"}]
[null,null,null,null,null,null,null,null,null,null,null,null,null,null,null,null,null,null,null,null,null,null,null,null,null,null,null,null,null,null,1,null,null,null,null,null,null,null,null,null,null,null,null,null,null,null,null,null,null,null,null,null,null,null,null,null,null,null,null,null,null,null,null,null,null,null,null,null,null,null,null,null,null,null,null,null,null,null,null,null,null,null,null,null,null,null,null,null,null,null,null,null,null,null,null,null,null,null,null,2,null,null,null,"x",null,null,null,null,null,null,null,null,null,null,"x",null,null,null,null,"x","","","","","",",","","","","",{"$f":"CONCATENATE(DP122,DV122,DQ122,DW122,DR122,DX122,DS122,DY122,DT122,DZ122,DU122)","v":"x,"}]
[null,null,null,null,null,null,null,null,null,null,null,null,null,null,null,null,null,null,null,null,null,null,null,null,null,null,null,null,null,null,2,null,null,null,null,null,null,null,null,null,null,null,null,null,null,null,null,null,null,null,null,null,null,null,null,null,null,null,null,null,null,null,null,null,null,null,null,null,null,null,null,null,null,null,null,null,null,null,null,null,null,null,null,null,null,null,null,null,null,null,null,null,null,null,null,null,null,null,null,1,null,null,null,"x",null,null,null,null,null,null,null,null,null,null,"x",null,null,null,null,"x","","","","","",",","","","","",{"$f":"CONCATENATE(DP123,DV123,DQ123,DW123,DR123,DX123,DS123,DY123,DT123,DZ123,DU123)","v":"x,"}]
[null,null,null,null,null,null,null,null,null,null,null,null,null,null,null,null,null,null,null,null,null,null,null,null,null,null,null,null,null,null,1,null,null,null,null,null,null,null,null,null,null,null,null,null,null,null,null,null,null,null,null,null,null,null,null,null,null,null,null,null,null,null,null,null,null,null,null,null,null,null,null,null,null,null,null,null,null,null,null,null,null,null,null,null,null,null,null,null,null,null,null,null,null,null,null,null,null,null,null,2,null,null,null,"x",null,null,null,null,null,null,null,null,null,null,"x",null,null,null,null,"x","","","","","",",","","","","",{"$f":"CONCATENATE(DP124,DV124,DQ124,DW124,DR124,DX124,DS124,DY124,DT124,DZ124,DU124)","v":"x,"}]
[null,null,null,null,null,null,null,null,null,null,null,null,null,null,null,null,null,null,null,null,null,null,null,null,null,null,null,null,null,null,2,null,null,null,null,null,null,null,null,null,null,null,null,null,null,null,null,null,null,null,null,null,null,null,null,null,null,null,null,null,null,null,null,null,null,null,null,null,null,null,null,null,null,null,null,null,null,null,null,null,null,null,null,null,null,null,null,null,null,null,null,null,null,null,null,null,null,null,null,1,null,null,null,"x",null,null,null,null,null,null,null,null,null,null,"x",null,null,null,null,"x","","","","","",",","","","","",{"$f":"CONCATENATE(DP125,DV125,DQ125,DW125,DR125,DX125,DS125,DY125,DT125,DZ125,DU125)","v":"x,"}]
[null,null,null,null,null,null,null,null,null,null,null,null,null,null,null,null,null,null,null,null,null,null,null,null,null,null,null,null,null,null,1,null,1,"League Cup",null,null,null,null,null,null,null,null,null,null,null,null,null,null,null,null,null,null,null,null,null,null,null,null,null,null,null,null,null,null,null,null,null,null,null,null,null,null,null,null,null,null,null,null,null,null,null,null,null,null,null,null,null,null,null,null,null,null,null,null,null,null,null,null,null,null,null,null,null,"x",null,null,null,null,null,null,null,null,null,null,"x"]
[null,null,null,null,null,null,null,null,null,null,null,null,null,null,null,null,null,null,null,null,null,null,null,null,null,null,null,null,null,null,2,null,null,null,null,null,null,null,null,null,null,null,null,null,null,null,null,null,null,null,null,null,null,null,null,null,null,null,null,null,null,null,null,null,null,null,null,null,null,null,null,null,null,null,null,null,null,null,null,null,null,null,null,null,null,null,null,null,null,null,null,null,null,null,null,null,null,null,null,null,null,null,null,"x",null,null,null,null,null,null,null,null,null,null,"x"]
[null,null,null,null,null,null,null,null,null,null,null,null,null,null,null,null,null,null,null,null,null,null,null,null,null,null,null,null,null,null,1,null,null,null,null,null,null,null,null,null,null,null,null,null,null,null,null,null,null,null,null,null,null,null,null,null,null,null,null,null,null,null,null,null,null,null,null,null,null,null,null,null,null,null,null,null,null,null,null,null,null,null,null,null,null,null,null,null,null,null,null,null,null,null,null,null,null,null,null,null,null,null,null,"x",null,null,null,null,null,null,null,null,null,null,"x"]
[null,null,null,null,null,null,null,null,null,null,null,null,null,null,null,null,null,null,null,null,null,null,null,null,null,null,null,null,null,null,2,null,null,null,null,null,null,null,null,null,null,null,null,null,null,null,null,null,null,null,null,null,null,null,null,null,null,null,null,null,null,null,null,null,null,null,null,null,null,null,null,null,null,null,null,null,null,null,null,null,null,null,null,null,null,null,null,null,null,null,null,null,null,null,null,{"$f":"CP130&\" \"&BP126","v":" "},null,null,null,null,null,null,null,"x",null,null,null,null,null,null,null,null,null,null,"x"]
[null,null,null,null,null,null,null,null,null,null,null,null,null,null,null,null,null,null,null,null,null,null,null,null,null,null,null,null,null,null,1,null,null,null,null,null,null,null,null,null,null,null,null,null,null,null,null,null,null,null,null,null,null,null,null,null,null,null,null,null,null,null,null,null,null,null,null,null,null,null,null,null,null,null,null,null,null,null,null,null,null,null,null,null,null,null,null,null,null,null,null,null,null,null,null,null,null,null,null,null,null,null,null,"x",null,null,null,null,null,null,null,null,null,null,"x"]
[null,null,null,null,null,null,null,null,null,null,null,null,null,null,null,null,null,null,null,null,null,null,null,null,null,null,null,null,null,null,2,null,null,null,null,null,null,null,null,null,null,null,null,null,null,null,null,null,null,null,null,null,null,null,null,null,null,null,null,null,null,null,null,null,null,null,null,null,null,null,null,null,null,null,null,null,null,null,null,null,null,null,null,null,null,null,null,null,null,null,null,null,null,null,null,null,null,null,null,null,null,null,null,"Goals FA Cup",null,null,null,null,null,null,null,null,null,null,"Goals FA Cup"]
[null,null,null,null,null,null,null,null,null,null,null,null,null,null,null,null,null,null,null,null,null,null,null,null,null,null,null,null,null,null,1,null,null,null,null,null,null,null,null,null,null,null,null,null,null,null,null,null,null,null,null,null,null,null,null,null,null,null,null,null,null,null,null,null,null,null,null,null,null,null,null,null,null,null,null,null,null,null,null,null,null,null,null,null,null,null,null,null,null,null,null,null,null,null,null,null,null,null,null,null,null,null,null,1,2,3,4,5,6,7,8,7,8,9,"1, 2, 3, 4, 5, 6, 7, 8, 9"]
[null,null,null,null,null,null,null,null,null,null,null,null,null,null,null,null,null,null,null,null,null,null,null,null,null,null,null,null,null,null,2,null,null,null,null,null,null,null,null,null,null,null,null,null,null,null,null,null,null,null,null,null,null,null,null,null,null,null,null,null,null,null,null,null,null,null,null,null,null,null,null,null,null,null,null,null,null,null,null,null,null,null,null,null,null,null,null,null,null,null,null,null,null,null,null,null,null,null,null,null,null,null,null,"x",null,null,null,null,null,null,null,null,null,null,"x"]
[null,null,null,null,null,null,null,null,null,null,null,null,null,null,null,null,null,null,null,null,null,null,null,null,null,null,null,null,null,null,1,null,null,null,null,null,null,null,null,null,null,null,null,null,null,null,null,null,null,null,null,null,null,null,null,null,null,null,null,null,null,null,null,null,null,null,null,null,null,null,null,null,null,null,null,null,null,null,null,null,null,null,null,null,null,null,null,null,null,null,null,null,null,null,null,null,null,null,null,{"$f":"IF(CV133=0,1,IF(CV133=2,1,2))","v":1},{"$f":"AK136","v":"York City"},{"$f":"AL136","v":"(A)"},{"$f":"AO136","v":"W 5-0"},"McLeod","McLeod","McLeod","McLeod","Rawlings",null,null,null,null,null,null,"McLeod (4), Rawlings",null,null,null,null,{"$f":"IF(CZ134=\"\",\"\",CZ134)","v":"McLeod"},"McLeod","McLeod","McLeod","Rawlings","",{"$f":"IF(DP134<>\"\",\",\",\"\")","v":","},{"$f":"IF(DQ134<>\"\",\",\",\"\")","v":","},{"$f":"IF(DR134<>\"\",\",\",\"\")","v":","},{"$f":"IF(DS134<>\"\",\",\",\"\")","v":","},{"$f":"IF(DT134<>\"\",\",\",\"\")","v":","},{"$f":"CONCATENATE(DP134,DV134,DQ134,DW134,DR134,DX134,DS134,DY134,DT134,DZ134,DU134)","v":"McLeod,McLeod,McLeod,McLeod,Rawlings,"}]
[null,null,null,null,null,null,null,null,null,null,null,null,null,null,null,null,null,null,null,null,null,null,null,null,null,null,null,null,null,null,2,null,null,null,null,null,null,null,null,null,null,null,null,null,null,null,null,null,null,null,null,null,null,null,null,null,null,null,null,null,null,null,null,null,null,null,null,null,null,null,null,null,null,null,null,null,null,null,null,null,null,null,null,null,null,null,null,null,null,null,null,null,null,null,null,null,null,null,null,2,{"$f":"AK137","v":"Grimsby Town"},"(H)",{"$f":"AO137","v":"D 2-2"},"McLeod","McLeod",null,null,null,null,null,null,null,null,null,"McLeod (2)"]
[null,null,null,null,null,null,null,null,null,null,null,null,null,null,null,null,null,null,null,null,null,null,null,null,null,null,null,null,null,null,1,null,1,"FA Cup 3","1939-01-11",null,"York City","(A)",null,null,"W 5-0","Pearson","Lea","Dudley","Brolly","Chiverton","Forsyth","Rawlings","Richardson","McLeod","Barker","JR Smith",null,null,null,null,1,null,null,null,null,null,null,null,null,null,null,null,null,null,null,null,null,null,null,null,null,null,null,null,null,null,null,null,null,null,null,null,null,null,null,null,null,null,null,null,null,null,null,1,{"$f":"AK138","v":"Grimsby Town"},"(A)","L 2-3","Richardson","McLeod",null,null,null,null,null,null,null,null,null,"Richardson, McLeod"]
[null,null,null,null,null,null,null,null,null,null,null,null,null,null,null,null,null,null,null,null,null,null,null,null,null,null,null,null,null,null,2,null,2,"FA Cup 4","1939-01-21",null,"Grimsby Town","(H)",null,null,"D 2-2","Pearson","Lea","Dudley","Brolly","Chiverton","Forsyth","Rawlings","Richardson","McLeod","Barker","JR Smith",null,null,null,null,1,null,null,null,null,null,null,null,null,null,null,null,null,null,null,null,null,null,null,null,null,null,null,null,null,null,null,null,null,null,null,null,null,null,null,null,null,null,null,null,null,null,null,2]
[null,null,null,null,null,null,null,null,null,null,null,null,null,null,null,null,null,null,null,null,null,null,null,null,null,null,null,null,null,null,1,null,3,"FA Cup 4R","1939-01-24",null,"Grimsby Town","(A)",null,null,"L 2-3","Pearson","Lea","Dudley","Brolly","Chiverton","Forsyth","Fisher","Richardson","McLeod","Barker","JR Smith",null,null,null,null,1,null,null,null,null,null,null,null,null,null,null,null,null,null,null,null,null,null,null,null,null,null,null,null,null,null,null,null,null,null,null,null,null,null,null,null,null,null,null,null,null,null,null,1]
[null,null,null,null,null,null,null,null,null,null,null,null,null,null,null,null,null,null,null,null,null,null,null,null,null,null,null,null,null,null,2,null,4,null,null,null,null,null,null,null,null,null,null,null,null,null,null,null,null,null,null,null,null,null,null,null,null,null,null,null,null,null,null,null,null,null,null,null,null,null,null,null,null,null,null,null,null,null,null,null,null,null,null,null,null,null,null,null,null,null,null,null,null,null,null,null,null,null,null,2]
[null,null,null,null,null,null,null,null,null,null,null,null,null,null,null,null,null,null,null,null,null,null,null,null,null,null,null,null,null,null,1,null,5,null,null,null,null,null,null,null,null,null,null,null,null,null,null,null,null,null,null,null,null,null,null,null,null,null,null,null,null,null,null,null,null,null,null,null,null,null,null,null,null,null,null,null,null,null,null,null,null,null,null,null,null,null,null,null,null,null,null,null,null,null,null,null,null,null,null,null,null,null,null,"x",null,null,null,null,null,null,null,null,null,null,"x"]
[null,null,null,null,null,null,null,null,null,null,null,null,null,null,null,null,null,null,null,null,null,null,null,null,null,null,null,null,null,null,2,null,null,null,null,null,null,null,null,null,null,null,null,null,null,null,null,null,null,null,null,null,null,null,null,null,null,null,null,null,null,null,null,null,null,null,null,null,null,null,null,null,null,null,null,null,null,null,null,null,null,null,null,null,null,null,null,null,null,null,null,null,null,null,null,null,null,null,null,null,null,null,null,"x",null,null,null,null,null,null,null,null,null,null,"x"]
[null,null,null,null,null,null,null,null,null,null,null,null,null,null,null,null,null,null,null,null,null,null,null,null,null,null,null,null,null,null,1,null,null,null,null,null,null,null,null,null,null,null,null,null,null,null,null,null,null,null,null,null,null,null,null,null,null,null,null,null,null,null,null,null,null,null,null,null,null,null,null,null,null,null,null,null,null,null,null,null,null,null,null,null,null,null,null,null,null,null,null,null,null,null,null,null,null,null,null,null,null,null,null,"League Cup Goals",null,null,null,null,null,null,null,null,null,null,"League Cup Goals"]
[null,null,null,null,null,null,null,null,null,null,null,null,null,null,null,null,null,null,null,null,null,null,null,null,null,null,null,null,null,null,{"$f":"IF(AE142=0,1,IF(AE142=2,1,2))","v":2},null,null,null,null,null,null,null,null,null,null,null,null,null,null,null,null,null,null,null,null,null,null,null,null,null,null,null,null,null,null,null,null,null,null,null,null,null,null,null,null,null,null,null,null,null,null,null,null,null,null,null,null,null,null,null,null,null,null,null,null,null,null,null,null,null,null,null,null,null,null,null,null,1,2,3,4,5,6,7,8,7,8,9,"1, 2, 3, 4, 5, 6, 7, 8, 9"]
[null,null,null,null,null,null,null,null,null,null,null,null,null,null,null,null,null,null,null,null,null,null,null,null,null,null,null,null,null,null,1,null,null,null,null,null,null,null,null,null,null,null,null,null,null,null,null,null,null,null,null,null,null,null,null,null,null,null,null,null,null,null,null,null,null,null,null,null,null,null,null,null,null,null,null,null,null,null,null,null,null,null,null,null,null,null,null,null,null,null,null,null,null,null,null,null,null,null,null,null,null,null,null,"x",null,null,null,null,null,null,null,null,null,null,"x"]
[null,null,null,null,null,null,null,null,null,null,null,null,null,null,null,null,null,null,null,null,null,null,null,null,null,null,null,null,null,null,2,null,null,null,null,null,null,null,null,null,null,null,null,null,null,null,null,null,null,null,null,null,null,null,null,null,null,null,null,null,null,null,null,null,null,null,null,null,null,null,null,null,null,null,null,null,null,null,null,null,null,null,null,null,null,null,null,null,null,null,null,null,null,null,null,null,null,null,null,{"$f":"IF(CV144=0,1,IF(CV144=2,1,2))","v":1},null,null,null,null,null,null,null,null,null,null,null,null,null,null,null,null,null,null,null,{"$f":"IF(CZ145=\"\",\"\",CZ145)","v":""},"","","","","",{"$f":"IF(DP145<>\"\",\",\",\"\")","v":""},"","","","",{"$f":"CONCATENATE(DP145,DV145,DQ145,DW145,DR145,DX145,DS145,DY145,DT145,DZ145,DU145)","v":""}]
[null,null,null,null,null,null,null,null,null,null,null,null,null,null,null,null,null,null,null,null,null,null,null,null,null,null,null,null,null,null,1,null,null,null,null,null,null,null,null,null,null,null,null,null,null,null,null,null,null,null,null,null,null,null,null,null,null,null,null,null,null,null,null,null,null,null,null,null,null,null,null,null,null,null,null,null,null,null,null,null,null,null,null,null,null,null,null,null,null,null,null,null,null,null,null,null,null,null,null,2,null,null,null,null,null,null,null,null,null,null,null,null,null,null,null,null,null,null,null,"","","","","","","","","","","",{"$f":"CONCATENATE(DP146,DV146,DQ146,DW146,DR146,DX146,DS146,DY146,DT146,DZ146,DU146)","v":""}]
[null,null,null,null,null,null,null,null,null,null,null,null,null,null,null,null,null,null,null,null,null,null,null,null,null,null,null,null,null,null,2,null,null,null,null,null,null,null,null,null,null,null,null,null,null,null,null,null,null,null,null,null,null,null,null,null,null,null,null,null,null,null,null,null,null,null,null,null,null,null,null,null,null,null,null,null,null,null,null,null,null,null,null,null,null,null,null,null,null,null,null,null,null,null,null,null,null,null,null,1,null,null,null,null,null,null,null,null,null,null,null,null,null,null,null,null,null,null,null,"","","","","","","","","","","",{"$f":"CONCATENATE(DP147,DV147,DQ147,DW147,DR147,DX147,DS147,DY147,DT147,DZ147,DU147)","v":""}]
[null,null,null,null,null,null,null,null,null,null,null,null,null,null,null,null,null,null,null,null,null,null,null,null,null,null,null,null,null,null,1,null,null,null,null,null,null,null,null,null,null,null,null,null,null,null,null,null,null,null,null,null,null,null,null,null,null,null,null,null,null,null,null,null,null,null,null,null,null,null,null,null,null,null,null,null,null,null,null,null,null,null,null,null,null,null,null,null,null,null,null,null,null,null,null,null,null,null,null,2,null,null,null,null,null,null,null,null,null,null,null,null,null,null,null,null,null,null,null,"","","","","","","","","","","",{"$f":"CONCATENATE(DP148,DV148,DQ148,DW148,DR148,DX148,DS148,DY148,DT148,DZ148,DU148)","v":""}]
[null,null,null,null,null,null,null,null,null,null,null,null,null,null,null,null,null,null,null,null,null,null,null,null,null,null,null,null,null,null,null,null,null,null,null,null,null,null,null,null,null,null,null,null,null,null,null,null,null,null,null,null,null,null,null,null,null,null,null,null,null,null,null,null,null,null,null,null,null,null,null,null,null,null,null,null,null,null,null,null,null,null,null,null,null,null,null,null,null,null,null,null,null,null,null,null,null,null,null,1]
[null,null,null,null,null,null,null,null,null,null,null,null,null,null,null,null,null,null,null,null,null,null,null,null,null,null,null,null,null,null,null,null,null,null,null,null,null,null,null,null,null,null,null,null,null,null,null,null,null,null,null,null,null,null,null,null,null,null,null,null,null,null,null,null,null,null,null,null,null,null,null,null,null,null,null,null,null,null,null,null,null,null,null,null,null,null,null,null,null,null,null,null,null,null,null,null,null,null,null,2]
[null,null,null,null,null,null,null,null,null,null,null,null,null,null,null,null,null,null,null,null,null,null,null,null,null,null,null,null,null,null,null,null,null,null,null,null,null,null,null,null,null,null,null,null,null,null,null,null,null,null,null,null,null,null,null,null,null,null,null,null,null,null,null,null,null,null,null,null,null,null,null,null,null,null,null,null,null,null,null,null,null,null,null,null,null,null,null,null,null,null,null,null,null,null,null,null,null,null,null,1]
[null,null,null,null,null,null,null,null,null,null,null,null,null,null,null,null,null,null,null,null,null,null,null,null,null,null,null,null,null,null,null,null,null,null,null,null,null,null,null,null,null,null,null,null,null,null,null,null,null,null,null,null,null,null,null,null,null,null,null,null,null,null,null,null,null,null,null,null,null,null,null,null,null,null,null,null,null,null,null,null,null,null,null,null,null,null,null,null,null,null,null,null,null,null,null,null,null,null,null,2]
[null,null,null,null,null,null,null,null,null,null,null,null,null,null,null,null,null,null,null,null,null,null,null,null,null,null,null,null,null,null,null,null,null,null,null,null,null,null,null,null,null,null,null,null,null,null,null,null,null,null,null,null,null,null,null,null,null,null,null,null,null,null,null,null,null,null,null,null,null,null,null,null,null,null,null,null,null,null,null,null,null,null,null,null,null,null,null,null,null,null,null,null,null,null,null,null,null,null,null,1]
[null,null,null,null,null,null,null,null,null,null,null,null,null,null,null,null,null,null,null,null,null,null,null,null,null,null,null,null,null,null,null,null,null,null,null,null,null,null,null,null,null,null,null,null,null,null,null,null,null,null,null,null,null,null,null,null,null,null,null,null,null,null,null,null,null,null,null,null,null,null,null,null,null,null,null,null,null,null,null,null,null,null,null,null,null,null,null,null,null,null,null,null,null,null,null,null,null,null,null,2]
[]
[]
[null,null,null,null,null,null,null,null,null,null,null,null,null,null,null,null,null,null,null,null,null,null,null,null,null,null,null,null,null,null,null,null,null,null,null,null,null,null,null,null,null,null,null,null,null,null,null,null,null,null,null,null,null,null,null,null,null,null,null,null,null,null,null,null,null,null,null,null,null,null,null,null,null,null,null,null,null,null,null,null,null,null,null,null,null,null,null,null,null,null,null,null,null,null,null,null,null,null,null,"1938-08-27","Chesterfield","(H)","W 3-1","Walsh","Rawlings","Rawlings"]
[null,null,null,null,null,null,null,null,null,null,null,null,null,null,null,null,null,null,null,null,null,null,null,null,null,null,null,null,null,null,null,null,null,null,null,null,null,null,null,null,null,null,null,null,null,null,null,null,null,null,null,null,null,null,null,null,null,null,null,null,null,null,null,null,null,null,null,null,null,null,null,null,null,null,null,null,null,null,null,null,null,null,null,null,null,null,null,null,null,null,null,null,null,null,null,null,null,null,null,"1938-08-29","Tranmere","(A)","L 0-2"]
[null,null,null,null,null,null,null,null,null,null,null,null,null,null,null,null,null,null,null,null,null,null,null,null,null,null,null,null,null,null,null,null,null,null,null,null,null,null,null,null,null,null,null,null,null,null,null,null,null,null,null,null,null,null,null,null,null,null,null,null,null,null,null,null,null,null,null,null,null,null,null,null,null,null,null,null,null,null,null,null,null,null,null,null,null,null,null,null,null,null,null,null,null,null,null,null,null,null,null,"1938-09-03","Swansea","(A)","D 1-1","Hedley"]
[null,null,null,null,null,null,null,null,null,null,null,null,null,null,null,null,null,null,null,null,null,null,null,null,null,null,null,null,null,null,null,null,null,null,null,null,null,null,null,null,null,null,null,null,null,null,null,null,null,null,null,null,null,null,null,null,null,null,null,null,null,null,null,null,null,null,null,null,null,null,null,null,null,null,null,null,null,null,null,null,null,null,null,null,null,null,null,null,null,null,null,null,null,null,null,null,null,null,null,"1938-09-05","Bury","(H)","D 0-0"]
[null,null,null,null,null,null,null,null,null,null,null,null,null,null,null,null,null,null,null,null,null,null,null,null,null,null,null,null,null,null,null,null,null,null,null,null,null,null,null,null,null,null,null,null,null,null,null,null,null,null,null,null,null,null,null,null,null,null,null,null,null,null,null,null,null,null,null,null,null,null,null,null,null,null,null,null,null,null,null,null,null,null,null,null,null,null,null,null,null,null,null,null,null,null,null,null,null,null,null,"1938-09-10","Bradford PA","(H)","W 3-1","Barker","Walsh","Walsh"]
[null,null,null,null,null,null,null,null,null,null,null,null,null,null,null,null,null,null,null,null,null,null,null,null,null,null,null,null,null,null,null,null,null,null,null,null,null,null,null,null,null,null,null,null,null,null,null,null,null,null,null,null,null,null,null,null,null,null,null,null,null,null,null,null,null,null,null,null,null,null,null,null,null,null,null,null,null,null,null,null,null,null,null,null,null,null,null,null,null,null,null,null,null,null,null,null,null,null,null,"1938-09-17","Man City","(A)","W 6-1","Barker","Barker","Walsh","Rawlings","Rawlings","Richardson"]
[null,null,null,null,null,null,null,null,null,null,null,null,null,null,null,null,null,null,null,null,null,null,null,null,null,null,null,null,null,null,null,null,null,null,null,null,null,null,null,null,null,null,null,null,null,null,null,null,null,null,null,null,null,null,null,null,null,null,null,null,null,null,null,null,null,null,null,null,null,null,null,null,null,null,null,null,null,null,null,null,null,null,null,null,null,null,null,null,null,null,null,null,null,null,null,null,null,null,null,"1938-09-24","Plymouth","(H)","W 3-0","Richardson","Richardson","Richardson"]
[null,null,null,null,null,null,null,null,null,null,null,null,null,null,null,null,null,null,null,null,null,null,null,null,null,null,null,null,null,null,null,null,null,null,null,null,null,null,null,null,null,null,null,null,null,null,null,null,null,null,null,null,null,null,null,null,null,null,null,null,null,null,null,null,null,null,null,null,null,null,null,null,null,null,null,null,null,null,null,null,null,null,null,null,null,null,null,null,null,null,null,null,null,null,null,null,null,null,null,"1938-10-01","Blackburn","(H)","W 4-1","Rawlings","Rawlings","Walsh","Walsh"]
[null,null,null,null,null,null,null,null,null,null,null,null,null,null,null,null,null,null,null,null,null,null,null,null,null,null,null,null,null,null,null,null,null,null,null,null,null,null,null,null,null,null,null,null,null,null,null,null,null,null,null,null,null,null,null,null,null,null,null,null,null,null,null,null,null,null,null,null,null,null,null,null,null,null,null,null,null,null,null,null,null,null,null,null,null,null,null,null,null,null,null,null,null,null,null,null,null,null,null,"1938-10-08","Fulham","(A)","L 1-2","Own Goal"]
[null,null,null,null,null,null,null,null,null,null,null,null,null,null,null,null,null,null,null,null,null,null,null,null,null,null,null,null,null,null,null,null,null,null,null,null,null,null,null,null,null,null,null,null,null,null,null,null,null,null,null,null,null,null,null,null,null,null,null,null,null,null,null,null,null,null,null,null,null,null,null,null,null,null,null,null,null,null,null,null,null,null,null,null,null,null,null,null,null,null,null,null,null,null,null,null,null,null,null,"1938-10-15","Sheff Utd","(A)","L 1-2","Walsh"]
[null,null,null,null,null,null,null,null,null,null,null,null,null,null,null,null,null,null,null,null,null,null,null,null,null,null,null,null,null,null,null,null,null,null,null,null,null,null,null,null,null,null,null,null,null,null,null,null,null,null,null,null,null,null,null,null,null,null,null,null,null,null,null,null,null,null,null,null,null,null,null,null,null,null,null,null,null,null,null,null,null,null,null,null,null,null,null,null,null,null,null,null,null,null,null,null,null,null,null,"1938-10-22","Burnley","(H)","D 1-1","Barker"]
[null,null,null,null,null,null,null,null,null,null,null,null,null,null,null,null,null,null,null,null,null,null,null,null,null,null,null,null,null,null,null,null,null,null,null,null,null,null,null,null,null,null,null,null,null,null,null,null,null,null,null,null,null,null,null,null,null,null,null,null,null,null,null,null,null,null,null,null,null,null,null,null,null,null,null,null,null,null,null,null,null,null,null,null,null,null,null,null,null,null,null,null,null,null,null,null,null,null,null,"1938-10-29","Norwich","(A)","W 2-0","Barker","Brolly"]
[null,null,null,null,null,null,null,null,null,null,null,null,null,null,null,null,null,null,null,null,null,null,null,null,null,null,null,null,null,null,null,null,null,null,null,null,null,null,null,null,null,null,null,null,null,null,null,null,null,null,null,null,null,null,null,null,null,null,null,null,null,null,null,null,null,null,null,null,null,null,null,null,null,null,null,null,null,null,null,null,null,null,null,null,null,null,null,null,null,null,null,null,null,null,null,null,null,null,null,"1938-11-05","Southampton","(H)","L 0-1"]
[null,null,null,null,null,null,null,null,null,null,null,null,null,null,null,null,null,null,null,null,null,null,null,null,null,null,null,null,null,null,null,null,null,null,null,null,null,null,null,null,null,null,null,null,null,null,null,null,null,null,null,null,null,null,null,null,null,null,null,null,null,null,null,null,null,null,null,null,null,null,null,null,null,null,null,null,null,null,null,null,null,null,null,null,null,null,null,null,null,null,null,null,null,null,null,null,null,null,null,"1938-11-12","Coventry","(A)","L 1-2","Richardson"]
[null,null,null,null,null,null,null,null,null,null,null,null,null,null,null,null,null,null,null,null,null,null,null,null,null,null,null,null,null,null,null,null,null,null,null,null,null,null,null,null,null,null,null,null,null,null,null,null,null,null,null,null,null,null,null,null,null,null,null,null,null,null,null,null,null,null,null,null,null,null,null,null,null,null,null,null,null,null,null,null,null,null,null,null,null,null,null,null,null,null,null,null,null,null,null,null,null,null,null,"1938-11-19","Nottm Forest","(H)","W 5-0","Barker","Barker","Barker","Walsh","JR Smith"]
[null,null,null,null,null,null,null,null,null,null,null,null,null,null,null,null,null,null,null,null,null,null,null,null,null,null,null,null,null,null,null,null,null,null,null,null,null,null,null,null,null,null,null,null,null,null,null,null,null,null,null,null,null,null,null,null,null,null,null,null,null,null,null,null,null,null,null,null,null,null,null,null,null,null,null,null,null,null,null,null,null,null,null,null,null,null,null,null,null,null,null,null,null,null,null,null,null,null,null,"1938-11-26","Newcastle","(A)","D 2-2","Fisher","Fisher"]
[null,null,null,null,null,null,null,null,null,null,null,null,null,null,null,null,null,null,null,null,null,null,null,null,null,null,null,null,null,null,null,null,null,null,null,null,null,null,null,null,null,null,null,null,null,null,null,null,null,null,null,null,null,null,null,null,null,null,null,null,null,null,null,null,null,null,null,null,null,null,null,null,null,null,null,null,null,null,null,null,null,null,null,null,null,null,null,null,null,null,null,null,null,null,null,null,null,null,null,"1938-12-03","West Brom","(H)","L 1-5","Richardson"]
[null,null,null,null,null,null,null,null,null,null,null,null,null,null,null,null,null,null,null,null,null,null,null,null,null,null,null,null,null,null,null,null,null,null,null,null,null,null,null,null,null,null,null,null,null,null,null,null,null,null,null,null,null,null,null,null,null,null,null,null,null,null,null,null,null,null,null,null,null,null,null,null,null,null,null,null,null,null,null,null,null,null,null,null,null,null,null,null,null,null,null,null,null,null,null,null,null,null,null,"1938-12-10","Tottenham","(A)","L 0-4"]
[null,null,null,null,null,null,null,null,null,null,null,null,null,null,null,null,null,null,null,null,null,null,null,null,null,null,null,null,null,null,null,null,null,null,null,null,null,null,null,null,null,null,null,null,null,null,null,null,null,null,null,null,null,null,null,null,null,null,null,null,null,null,null,null,null,null,null,null,null,null,null,null,null,null,null,null,null,null,null,null,null,null,null,null,null,null,null,null,null,null,null,null,null,null,null,null,null,null,null,"1938-12-17","Luton","(H)","W 2-1","Fisher","Hedley"]
[null,null,null,null,null,null,null,null,null,null,null,null,null,null,null,null,null,null,null,null,null,null,null,null,null,null,null,null,null,null,null,null,null,null,null,null,null,null,null,null,null,null,null,null,null,null,null,null,null,null,null,null,null,null,null,null,null,null,null,null,null,null,null,null,null,null,null,null,null,null,null,null,null,null,null,null,null,null,null,null,null,null,null,null,null,null,null,null,null,null,null,null,null,null,null,null,null,null,null,"1938-12-24","Chesterfield","(A)","L 0-3"]
[null,null,null,null,null,null,null,null,null,null,null,null,null,null,null,null,null,null,null,null,null,null,null,null,null,null,null,null,null,null,null,null,null,null,null,null,null,null,null,null,null,null,null,null,null,null,null,null,null,null,null,null,null,null,null,null,null,null,null,null,null,null,null,null,null,null,null,null,null,null,null,null,null,null,null,null,null,null,null,null,null,null,null,null,null,null,null,null,null,null,null,null,null,null,null,null,null,null,null,"1938-12-27","West Ham","(A)","D 0-0"]
[null,null,null,null,null,null,null,null,null,null,null,null,null,null,null,null,null,null,null,null,null,null,null,null,null,null,null,null,null,null,null,null,null,null,null,null,null,null,null,null,null,null,null,null,null,null,null,null,null,null,null,null,null,null,null,null,null,null,null,null,null,null,null,null,null,null,null,null,null,null,null,null,null,null,null,null,null,null,null,null,null,null,null,null,null,null,null,null,null,null,null,null,null,null,null,null,null,null,null,"1938-12-31","Swansea","(H)","D 1-1","Rawlings"]
[null,null,null,null,null,null,null,null,null,null,null,null,null,null,null,null,null,null,null,null,null,null,null,null,null,null,null,null,null,null,null,null,null,null,null,null,null,null,null,null,null,null,null,null,null,null,null,null,null,null,null,null,null,null,null,null,null,null,null,null,null,null,null,null,null,null,null,null,null,null,null,null,null,null,null,null,null,null,null,null,null,null,null,null,null,null,null,null,null,null,null,null,null,null,null,null,null,null,null,"1939-01-02","Bury","(A)","D 1-1","McLeod"]
[null,null,null,null,null,null,null,null,null,null,null,null,null,null,null,null,null,null,null,null,null,null,null,null,null,null,null,null,null,null,null,null,null,null,null,null,null,null,null,null,null,null,null,null,null,null,null,null,null,null,null,null,null,null,null,null,null,null,null,null,null,null,null,null,null,null,null,null,null,null,null,null,null,null,null,null,null,null,null,null,null,null,null,null,null,null,null,null,null,null,null,null,null,null,null,null,null,null,null,"1939-01-11","York City","(A)","W 5-0","McLeod","McLeod","McLeod","McLeod","Rawlings"]
[null,null,null,null,null,null,null,null,null,null,null,null,null,null,null,null,null,null,null,null,null,null,null,null,null,null,null,null,null,null,null,null,null,null,null,null,null,null,null,null,null,null,null,null,null,null,null,null,null,null,null,null,null,null,null,null,null,null,null,null,null,null,null,null,null,null,null,null,null,null,null,null,null,null,null,null,null,null,null,null,null,null,null,null,null,null,null,null,null,null,null,null,null,null,null,null,null,null,null,"1939-01-14","Bradford PA","(A)","L 0-1"]
[null,null,null,null,null,null,null,null,null,null,null,null,null,null,null,null,null,null,null,null,null,null,null,null,null,null,null,null,null,null,null,null,null,null,null,null,null,null,null,null,null,null,null,null,null,null,null,null,null,null,null,null,null,null,null,null,null,null,null,null,null,null,null,null,null,null,null,null,null,null,null,null,null,null,null,null,null,null,null,null,null,null,null,null,null,null,null,null,null,null,null,null,null,null,null,null,null,null,null,"1939-01-21","Grimsby Town","(H)","D 2-2","McLeod","McLeod"]
[null,null,null,null,null,null,null,null,null,null,null,null,null,null,null,null,null,null,null,null,null,null,null,null,null,null,null,null,null,null,null,null,null,null,null,null,null,null,null,null,null,null,null,null,null,null,null,null,null,null,null,null,null,null,null,null,null,null,null,null,null,null,null,null,null,null,null,null,null,null,null,null,null,null,null,null,null,null,null,null,null,null,null,null,null,null,null,null,null,null,null,null,null,null,null,null,null,null,null,"1939-01-24","Grimsby Town","(A)","L 2-3","Richardson","McLeod"]
[null,null,null,null,null,null,null,null,null,null,null,null,null,null,null,null,null,null,null,null,null,null,null,null,null,null,null,null,null,null,null,null,null,null,null,null,null,null,null,null,null,null,null,null,null,null,null,null,null,null,null,null,null,null,null,null,null,null,null,null,null,null,null,null,null,null,null,null,null,null,null,null,null,null,null,null,null,null,null,null,null,null,null,null,null,null,null,null,null,null,null,null,null,null,null,null,null,null,null,"1939-01-28","Plymouth","(A)","D 2-2","Richardson","Rawlings"]
[null,null,null,null,null,null,null,null,null,null,null,null,null,null,null,null,null,null,null,null,null,null,null,null,null,null,null,null,null,null,null,null,null,null,null,null,null,null,null,null,null,null,null,null,null,null,null,null,null,null,null,null,null,null,null,null,null,null,null,null,null,null,null,null,null,null,null,null,null,null,null,null,null,null,null,null,null,null,null,null,null,null,null,null,null,null,null,null,null,null,null,null,null,null,null,null,null,null,null,"1939-02-04","Blackburn","(A)","L 1-3","McLeod"]
[null,null,null,null,null,null,null,null,null,null,null,null,null,null,null,null,null,null,null,null,null,null,null,null,null,null,null,null,null,null,null,null,null,null,null,null,null,null,null,null,null,null,null,null,null,null,null,null,null,null,null,null,null,null,null,null,null,null,null,null,null,null,null,null,null,null,null,null,null,null,null,null,null,null,null,null,null,null,null,null,null,null,null,null,null,null,null,null,null,null,null,null,null,null,null,null,null,null,null,"1939-02-11","Fulham","(H)","D 1-1","Barker"]
[null,null,null,null,null,null,null,null,null,null,null,null,null,null,null,null,null,null,null,null,null,null,null,null,null,null,null,null,null,null,null,null,null,null,null,null,null,null,null,null,null,null,null,null,null,null,null,null,null,null,null,null,null,null,null,null,null,null,null,null,null,null,null,null,null,null,null,null,null,null,null,null,null,null,null,null,null,null,null,null,null,null,null,null,null,null,null,null,null,null,null,null,null,null,null,null,null,null,null,"1939-02-18","Sheff Utd","(H)","W 4-0","Barker","Richardson","Fisher","Fisher"]
[null,null,null,null,null,null,null,null,null,null,null,null,null,null,null,null,null,null,null,null,null,null,null,null,null,null,null,null,null,null,null,null,null,null,null,null,null,null,null,null,null,null,null,null,null,null,null,null,null,null,null,null,null,null,null,null,null,null,null,null,null,null,null,null,null,null,null,null,null,null,null,null,null,null,null,null,null,null,null,null,null,null,null,null,null,null,null,null,null,null,null,null,null,null,null,null,null,null,null,"1939-02-25","Burnley","(A)","L 0-2"]
[null,null,null,null,null,null,null,null,null,null,null,null,null,null,null,null,null,null,null,null,null,null,null,null,null,null,null,null,null,null,null,null,null,null,null,null,null,null,null,null,null,null,null,null,null,null,null,null,null,null,null,null,null,null,null,null,null,null,null,null,null,null,null,null,null,null,null,null,null,null,null,null,null,null,null,null,null,null,null,null,null,null,null,null,null,null,null,null,null,null,null,null,null,null,null,null,null,null,null,"1939-03-04","Norwich","(H)","W 6-0","Barker","McLeod","Fisher","Richardson","JR Smith","JR Smith"]
[null,null,null,null,null,null,null,null,null,null,null,null,null,null,null,null,null,null,null,null,null,null,null,null,null,null,null,null,null,null,null,null,null,null,null,null,null,null,null,null,null,null,null,null,null,null,null,null,null,null,null,null,null,null,null,null,null,null,null,null,null,null,null,null,null,null,null,null,null,null,null,null,null,null,null,null,null,null,null,null,null,null,null,null,null,null,null,null,null,null,null,null,null,null,null,null,null,null,null,"1939-03-11","Southampton","(A)","D 1-1","McLeod"]
[null,null,null,null,null,null,null,null,null,null,null,null,null,null,null,null,null,null,null,null,null,null,null,null,null,null,null,null,null,null,null,null,null,null,null,null,null,null,null,null,null,null,null,null,null,null,null,null,null,null,null,null,null,null,null,null,null,null,null,null,null,null,null,null,null,null,null,null,null,null,null,null,null,null,null,null,null,null,null,null,null,null,null,null,null,null,null,null,null,null,null,null,null,null,null,null,null,null,null,"1939-03-13","Man City","(H)","W 3-1","McLeod","Thorogood","Barker"]
[null,null,null,null,null,null,null,null,null,null,null,null,null,null,null,null,null,null,null,null,null,null,null,null,null,null,null,null,null,null,null,null,null,null,null,null,null,null,null,null,null,null,null,null,null,null,null,null,null,null,null,null,null,null,null,null,null,null,null,null,null,null,null,null,null,null,null,null,null,null,null,null,null,null,null,null,null,null,null,null,null,null,null,null,null,null,null,null,null,null,null,null,null,null,null,null,null,null,null,"1939-03-18","Coventry","(H)","D 0-0"]
[null,null,null,null,null,null,null,null,null,null,null,null,null,null,null,null,null,null,null,null,null,null,null,null,null,null,null,null,null,null,null,null,null,null,null,null,null,null,null,null,null,null,null,null,null,null,null,null,null,null,null,null,null,null,null,null,null,null,null,null,null,null,null,null,null,null,null,null,null,null,null,null,null,null,null,null,null,null,null,null,null,null,null,null,null,null,null,null,null,null,null,null,null,null,null,null,null,null,null,"1939-03-25","Nottm Forest","(A)","L 0-3"]
[null,null,null,null,null,null,null,null,null,null,null,null,null,null,null,null,null,null,null,null,null,null,null,null,null,null,null,null,null,null,null,null,null,null,null,null,null,null,null,null,null,null,null,null,null,null,null,null,null,null,null,null,null,null,null,null,null,null,null,null,null,null,null,null,null,null,null,null,null,null,null,null,null,null,null,null,null,null,null,null,null,null,null,null,null,null,null,null,null,null,null,null,null,null,null,null,null,null,null,"1939-03-27","West Ham","(H)","L 0-2"]
[null,null,null,null,null,null,null,null,null,null,null,null,null,null,null,null,null,null,null,null,null,null,null,null,null,null,null,null,null,null,null,null,null,null,null,null,null,null,null,null,null,null,null,null,null,null,null,null,null,null,null,null,null,null,null,null,null,null,null,null,null,null,null,null,null,null,null,null,null,null,null,null,null,null,null,null,null,null,null,null,null,null,null,null,null,null,null,null,null,null,null,null,null,null,null,null,null,null,null,"1939-04-01","Newcastle","(H)","D 1-1","Richardson"]
[null,null,null,null,null,null,null,null,null,null,null,null,null,null,null,null,null,null,null,null,null,null,null,null,null,null,null,null,null,null,null,null,null,null,null,null,null,null,null,null,null,null,null,null,null,null,null,null,null,null,null,null,null,null,null,null,null,null,null,null,null,null,null,null,null,null,null,null,null,null,null,null,null,null,null,null,null,null,null,null,null,null,null,null,null,null,null,null,null,null,null,null,null,null,null,null,null,null,null,"1939-04-07","Sheff Wed","(H)","W 2-0","Rawlings","Rawlings"]
[null,null,null,null,null,null,null,null,null,null,null,null,null,null,null,null,null,null,null,null,null,null,null,null,null,null,null,null,null,null,null,null,null,null,null,null,null,null,null,null,null,null,null,null,null,null,null,null,null,null,null,null,null,null,null,null,null,null,null,null,null,null,null,null,null,null,null,null,null,null,null,null,null,null,null,null,null,null,null,null,null,null,null,null,null,null,null,null,null,null,null,null,null,null,null,null,null,null,null,"1939-04-08","West Brom","(A)","D 0-0"]
[null,null,null,null,null,null,null,null,null,null,null,null,null,null,null,null,null,null,null,null,null,null,null,null,null,null,null,null,null,null,null,null,null,null,null,null,null,null,null,null,null,null,null,null,null,null,null,null,null,null,null,null,null,null,null,null,null,null,null,null,null,null,null,null,null,null,null,null,null,null,null,null,null,null,null,null,null,null,null,null,null,null,null,null,null,null,null,null,null,null,null,null,null,null,null,null,null,null,null,"1939-04-10","Sheff Wed","(A)","L 1-3","Rawlings"]
[null,null,null,null,null,null,null,null,null,null,null,null,null,null,null,null,null,null,null,null,null,null,null,null,null,null,null,null,null,null,null,null,null,null,null,null,null,null,null,null,null,null,null,null,null,null,null,null,null,null,null,null,null,null,null,null,null,null,null,null,null,null,null,null,null,null,null,null,null,null,null,null,null,null,null,null,null,null,null,null,null,null,null,null,null,null,null,null,null,null,null,null,null,null,null,null,null,null,null,"1939-04-15","Tottenham","(H)","W 2-0","Rawlings","Rawlings"]
[null,null,null,null,null,null,null,null,null,null,null,null,null,null,null,null,null,null,null,null,null,null,null,null,null,null,null,null,null,null,null,null,null,null,null,null,null,null,null,null,null,null,null,null,null,null,null,null,null,null,null,null,null,null,null,null,null,null,null,null,null,null,null,null,null,null,null,null,null,null,null,null,null,null,null,null,null,null,null,null,null,null,null,null,null,null,null,null,null,null,null,null,null,null,null,null,null,null,null,"1939-04-22","Luton","(A)","D 0-0"]
[null,null,null,null,null,null,null,null,null,null,null,null,null,null,null,null,null,null,null,null,null,null,null,null,null,null,null,null,null,null,null,null,null,null,null,null,null,null,null,null,null,null,null,null,null,null,null,null,null,null,null,null,null,null,null,null,null,null,null,null,null,null,null,null,null,null,null,null,null,null,null,null,null,null,null,null,null,null,null,null,null,null,null,null,null,null,null,null,null,null,null,null,null,null,null,null,null,null,null,"1939-04-29","Tranmere","(H)","W 2-1","Richardson","Jinks"]

{"sheet":"Comparison","index":1,"n_rows":180,"n_cols":44,"rows_kept":180,"cut":false,"hidden":false,"merged":[]}
[]
[]
["Formulas",null,null,null,null,"Date",null,"Opponents","Venue / Result",null,{"$f":"Millwall!$BP$72","v":"Barker"},{"$f":"Millwall!$BP$73","v":"Brolly"},{"$f":"Millwall!$BP$74","v":"Burke"},{"$f":"Millwall!$BP$75","v":"Chiverton"},{"$f":"Millwall!$BP$76","v":"Daniels"},{"$f":"Millwall!$BP$77","v":"Dudley"},{"$f":"Millwall!$BP$78","v":"Fenton"},{"$f":"Millwall!$BP$79","v":"Fisher"},{"$f":"Millwall!$BP$80","v":"Forsyth"},{"$f":"Millwall!$BP$81","v":"Hedley"},{"$f":"Millwall!$BP$82","v":"Inns"},{"$f":"Millwall!$BP$83","v":"Jinks"},{"$f":"Millwall!$BP$84","v":"Lea"},{"$f":"Millwall!$BP$85","v":"McLeod"},{"$f":"Millwall!$BP$86","v":"Osman"},{"$f":"Millwall!$BP$87","v":"Pearson"},{"$f":"Millwall!$BP$88","v":"Rawlings"},{"$f":"Millwall!$BP$89","v":"Richardson"},{"$f":"Millwall!$BP$90","v":"E Smith"},{"$f":"Millwall!$BP$91","v":"JR Smith"},{"$f":"Millwall!$BP$92","v":"Sykes"},{"$f":"Millwall!$BP$93","v":"Thorogood"},{"$f":"Millwall!$BP$94","v":"Wallbanks"},{"$f":"Millwall!$BP$95","v":"Walsh"},{"$f":"Millwall!$BP$96","v":"Williams"},{"$f":"Millwall!$BP$97","v":"Yuill"},{"$f":"Millwall!$BP$98","v":0},{"$f":"Millwall!$BP$99","v":0},{"$f":"Millwall!$BP$100","v":0},{"$f":"Millwall!$BP$101","v":0},{"$f":"Millwall!$BP$102","v":0},{"$f":"Millwall!$BP$103","v":"Own Goal"},{"$f":"Millwall!$BP$104","v":0},{"$f":"Millwall!$BP$105","v":0}]
[null,null,null,1,null,{"$f":"Millwall!AI78","v":"1938-08-27"},null,{"$f":"Millwall!AK78","v":"Chesterfield"},{"$f":"Millwall!AL78","v":"(H)"},{"$f":"Millwall!AO78","v":"W 3-1"},{"$f":"MATCH(K$3,Millwall!$AP78:$AZ78,0)","v":10},{"$f":"MATCH(L$3,Millwall!$AP78:$AZ78,0)","v":4},{"$f":"MATCH(M$3,Millwall!$AP78:$AZ78,0)","v":{"$error":"#N/A"}},{"$f":"MATCH(N$3,Millwall!$AP78:$AZ78,0)","v":{"$error":"#N/A"}},{"$f":"MATCH(O$3,Millwall!$AP78:$AZ78,0)","v":{"$error":"#N/A"}},{"$f":"MATCH(P$3,Millwall!$AP78:$AZ78,0)","v":{"$error":"#N/A"}},{"$f":"MATCH(Q$3,Millwall!$AP78:$AZ78,0)","v":{"$error":"#N/A"}},{"$f":"MATCH(R$3,Millwall!$AP78:$AZ78,0)","v":{"$error":"#N/A"}},{"$f":"MATCH(S$3,Millwall!$AP78:$AZ78,0)","v":6},{"$f":"MATCH(T$3,Millwall!$AP78:$AZ78,0)","v":{"$error":"#N/A"}},{"$f":"MATCH(U$3,Millwall!$AP78:$AZ78,0)","v":3},{"$f":"MATCH(V$3,Millwall!$AP78:$AZ78,0)","v":{"$error":"#N/A"}},{"$f":"MATCH(W$3,Millwall!$AP78:$AZ78,0)","v":{"$error":"#N/A"}},{"$f":"MATCH(X$3,Millwall!$AP78:$AZ78,0)","v":{"$error":"#N/A"}},{"$f":"MATCH(Y$3,Millwall!$AP78:$AZ78,0)","v":{"$error":"#N/A"}},{"$f":"MATCH(Z$3,Millwall!$AP78:$AZ78,0)","v":1},{"$f":"MATCH(AA$3,Millwall!$AP78:$AZ78,0)","v":7},{"$f":"MATCH(AB$3,Millwall!$AP78:$AZ78,0)","v":8},{"$f":"MATCH(AC$3,Millwall!$AP78:$AZ78,0)","v":2},{"$f":"MATCH(AD$3,Millwall!$AP78:$AZ78,0)","v":11},{"$f":"MATCH(AE$3,Millwall!$AP78:$AZ78,0)","v":{"$error":"#N/A"}},{"$f":"MATCH(AF$3,Millwall!$AP78:$AZ78,0)","v":{"$error":"#N/A"}},{"$f":"MATCH(AG$3,Millwall!$AP78:$AZ78,0)","v":5},{"$f":"MATCH(AH$3,Millwall!$AP78:$AZ78,0)","v":9},{"$f":"MATCH(AI$3,Millwall!$AP78:$AZ78,0)","v":{"$error":"#N/A"}},{"$f":"MATCH(AJ$3,Millwall!$AP78:$AZ78,0)","v":{"$error":"#N/A"}},{"$f":"MATCH(AK$3,Millwall!$AP78:$AZ78,0)","v":{"$error":"#N/A"}},{"$f":"MATCH(AL$3,Millwall!$AP78:$AZ78,0)","v":{"$error":"#N/A"}},{"$f":"MATCH(AM$3,Millwall!$AP78:$AZ78,0)","v":{"$error":"#N/A"}},{"$f":"MATCH(AN$3,Millwall!$AP78:$AZ78,0)","v":{"$error":"#N/A"}},{"$f":"MATCH(AO$3,Millwall!$AP78:$AZ78,0)","v":{"$error":"#N/A"}},{"$f":"MATCH(AP$3,Millwall!$AP78:$AZ78,0)","v":{"$error":"#N/A"}},{"$f":"MATCH(AQ$3,Millwall!$AP78:$AZ78,0)","v":{"$error":"#N/A"}},{"$f":"MATCH(AR$3,Millwall!$AP78:$AZ78,0)","v":{"$error":"#N/A"}}]
[null,null,null,2,null,{"$f":"Millwall!AI79","v":"1938-08-29"},null,{"$f":"Millwall!AK79","v":"Tranmere"},{"$f":"Millwall!AL79","v":"(A)"},{"$f":"Millwall!AO79","v":"L 0-2"},{"$f":"MATCH(K$3,Millwall!$AP79:$AZ79,0)","v":10},{"$f":"MATCH(L$3,Millwall!$AP79:$AZ79,0)","v":4},{"$f":"MATCH(M$3,Millwall!$AP79:$AZ79,0)","v":{"$error":"#N/A"}},{"$f":"MATCH(N$3,Millwall!$AP79:$AZ79,0)","v":5},{"$f":"MATCH(O$3,Millwall!$AP79:$AZ79,0)","v":{"$error":"#N/A"}},{"$f":"MATCH(P$3,Millwall!$AP79:$AZ79,0)","v":{"$error":"#N/A"}},{"$f":"MATCH(Q$3,Millwall!$AP79:$AZ79,0)","v":{"$error":"#N/A"}},{"$f":"MATCH(R$3,Millwall!$AP79:$AZ79,0)","v":{"$error":"#N/A"}},{"$f":"MATCH(S$3,Millwall!$AP79:$AZ79,0)","v":6},{"$f":"MATCH(T$3,Millwall!$AP79:$AZ79,0)","v":{"$error":"#N/A"}},{"$f":"MATCH(U$3,Millwall!$AP79:$AZ79,0)","v":3},{"$f":"MATCH(V$3,Millwall!$AP79:$AZ79,0)","v":{"$error":"#N/A"}},{"$f":"MATCH(W$3,Millwall!$AP79:$AZ79,0)","v":{"$error":"#N/A"}},{"$f":"MATCH(X$3,Millwall!$AP79:$AZ79,0)","v":{"$error":"#N/A"}},{"$f":"MATCH(Y$3,Millwall!$AP79:$AZ79,0)","v":{"$error":"#N/A"}},{"$f":"MATCH(Z$3,Millwall!$AP79:$AZ79,0)","v":1},{"$f":"MATCH(AA$3,Millwall!$AP79:$AZ79,0)","v":7},{"$f":"MATCH(AB$3,Millwall!$AP79:$AZ79,0)","v":8},{"$f":"MATCH(AC$3,Millwall!$AP79:$AZ79,0)","v":2},{"$f":"MATCH(AD$3,Millwall!$AP79:$AZ79,0)","v":11},{"$f":"MATCH(AE$3,Millwall!$AP79:$AZ79,0)","v":{"$error":"#N/A"}},{"$f":"MATCH(AF$3,Millwall!$AP79:$AZ79,0)","v":{"$error":"#N/A"}},{"$f":"MATCH(AG$3,Millwall!$AP79:$AZ79,0)","v":{"$error":"#N/A"}},{"$f":"MATCH(AH$3,Millwall!$AP79:$AZ79,0)","v":9},{"$f":"MATCH(AI$3,Millwall!$AP79:$AZ79,0)","v":{"$error":"#N/A"}},{"$f":"MATCH(AJ$3,Millwall!$AP79:$AZ79,0)","v":{"$error":"#N/A"}},{"$f":"MATCH(AK$3,Millwall!$AP79:$AZ79,0)","v":{"$error":"#N/A"}},{"$f":"MATCH(AL$3,Millwall!$AP79:$AZ79,0)","v":{"$error":"#N/A"}},{"$f":"MATCH(AM$3,Millwall!$AP79:$AZ79,0)","v":{"$error":"#N/A"}},{"$f":"MATCH(AN$3,Millwall!$AP79:$AZ79,0)","v":{"$error":"#N/A"}},{"$f":"MATCH(AO$3,Millwall!$AP79:$AZ79,0)","v":{"$error":"#N/A"}},{"$f":"MATCH(AP$3,Millwall!$AP79:$AZ79,0)","v":{"$error":"#N/A"}},{"$f":"MATCH(AQ$3,Millwall!$AP79:$AZ79,0)","v":{"$error":"#N/A"}},{"$f":"MATCH(AR$3,Millwall!$AP79:$AZ79,0)","v":{"$error":"#N/A"}}]
[null,null,null,3,null,{"$f":"Millwall!AI80","v":"1938-09-03"},null,{"$f":"Millwall!AK80","v":"Swansea"},{"$f":"Millwall!AL80","v":"(A)"},{"$f":"Millwall!AO80","v":"D 1-1"},{"$f":"MATCH(K$3,Millwall!$AP80:$AZ80,0)","v":4},{"$f":"MATCH(L$3,Millwall!$AP80:$AZ80,0)","v":{"$error":"#N/A"}},{"$f":"MATCH(M$3,Millwall!$AP80:$AZ80,0)","v":{"$error":"#N/A"}},{"$f":"MATCH(N$3,Millwall!$AP80:$AZ80,0)","v":5},{"$f":"MATCH(O$3,Millwall!$AP80:$AZ80,0)","v":{"$error":"#N/A"}},{"$f":"MATCH(P$3,Millwall!$AP80:$AZ80,0)","v":{"$error":"#N/A"}},{"$f":"MATCH(Q$3,Millwall!$AP80:$AZ80,0)","v":{"$error":"#N/A"}},{"$f":"MATCH(R$3,Millwall!$AP80:$AZ80,0)","v":{"$error":"#N/A"}},{"$f":"MATCH(S$3,Millwall!$AP80:$AZ80,0)","v":6},{"$f":"MATCH(T$3,Millwall!$AP80:$AZ80,0)","v":11},{"$f":"MATCH(U$3,Millwall!$AP80:$AZ80,0)","v":3},{"$f":"MATCH(V$3,Millwall!$AP80:$AZ80,0)","v":{"$error":"#N/A"}},{"$f":"MATCH(W$3,Millwall!$AP80:$AZ80,0)","v":{"$error":"#N/A"}},{"$f":"MATCH(X$3,Millwall!$AP80:$AZ80,0)","v":{"$error":"#N/A"}},{"$f":"MATCH(Y$3,Millwall!$AP80:$AZ80,0)","v":{"$error":"#N/A"}},{"$f":"MATCH(Z$3,Millwall!$AP80:$AZ80,0)","v":1},{"$f":"MATCH(AA$3,Millwall!$AP80:$AZ80,0)","v":7},{"$f":"MATCH(AB$3,Millwall!$AP80:$AZ80,0)","v":8},{"$f":"MATCH(AC$3,Millwall!$AP80:$AZ80,0)","v":2},{"$f":"MATCH(AD$3,Millwall!$AP80:$AZ80,0)","v":10},{"$f":"MATCH(AE$3,Millwall!$AP80:$AZ80,0)","v":{"$error":"#N/A"}},{"$f":"MATCH(AF$3,Millwall!$AP80:$AZ80,0)","v":{"$error":"#N/A"}},{"$f":"MATCH(AG$3,Millwall!$AP80:$AZ80,0)","v":{"$error":"#N/A"}},{"$f":"MATCH(AH$3,Millwall!$AP80:$AZ80,0)","v":9},{"$f":"MATCH(AI$3,Millwall!$AP80:$AZ80,0)","v":{"$error":"#N/A"}},{"$f":"MATCH(AJ$3,Millwall!$AP80:$AZ80,0)","v":{"$error":"#N/A"}},{"$f":"MATCH(AK$3,Millwall!$AP80:$AZ80,0)","v":{"$error":"#N/A"}},{"$f":"MATCH(AL$3,Millwall!$AP80:$AZ80,0)","v":{"$error":"#N/A"}},{"$f":"MATCH(AM$3,Millwall!$AP80:$AZ80,0)","v":{"$error":"#N/A"}},{"$f":"MATCH(AN$3,Millwall!$AP80:$AZ80,0)","v":{"$error":"#N/A"}},{"$f":"MATCH(AO$3,Millwall!$AP80:$AZ80,0)","v":{"$error":"#N/A"}},{"$f":"MATCH(AP$3,Millwall!$AP80:$AZ80,0)","v":{"$error":"#N/A"}},{"$f":"MATCH(AQ$3,Millwall!$AP80:$AZ80,0)","v":{"$error":"#N/A"}},{"$f":"MATCH(AR$3,Millwall!$AP80:$AZ80,0)","v":{"$error":"#N/A"}}]
[null,null,null,4,null,{"$f":"Millwall!AI81","v":"1938-09-05"},null,{"$f":"Millwall!AK81","v":"Bury"},{"$f":"Millwall!AL81","v":"(H)"},{"$f":"Millwall!AO81","v":"D 0-0"},{"$f":"MATCH(K$3,Millwall!$AP81:$AZ81,0)","v":{"$error":"#N/A"}},{"$f":"MATCH(L$3,Millwall!$AP81:$AZ81,0)","v":4},{"$f":"MATCH(M$3,Millwall!$AP81:$AZ81,0)","v":{"$error":"#N/A"}},{"$f":"MATCH(N$3,Millwall!$AP81:$AZ81,0)","v":5},{"$f":"MATCH(O$3,Millwall!$AP81:$AZ81,0)","v":{"$error":"#N/A"}},{"$f":"MATCH(P$3,Millwall!$AP81:$AZ81,0)","v":{"$error":"#N/A"}},{"$f":"MATCH(Q$3,Millwall!$AP81:$AZ81,0)","v":{"$error":"#N/A"}},{"$f":"MATCH(R$3,Millwall!$AP81:$AZ81,0)","v":{"$error":"#N/A"}},{"$f":"MATCH(S$3,Millwall!$AP81:$AZ81,0)","v":6},{"$f":"MATCH(T$3,Millwall!$AP81:$AZ81,0)","v":11},{"$f":"MATCH(U$3,Millwall!$AP81:$AZ81,0)","v":3},{"$f":"MATCH(V$3,Millwall!$AP81:$AZ81,0)","v":{"$error":"#N/A"}},{"$f":"MATCH(W$3,Millwall!$AP81:$AZ81,0)","v":{"$error":"#N/A"}},{"$f":"MATCH(X$3,Millwall!$AP81:$AZ81,0)","v":{"$error":"#N/A"}},{"$f":"MATCH(Y$3,Millwall!$AP81:$AZ81,0)","v":{"$error":"#N/A"}},{"$f":"MATCH(Z$3,Millwall!$AP81:$AZ81,0)","v":1},{"$f":"MATCH(AA$3,Millwall!$AP81:$AZ81,0)","v":7},{"$f":"MATCH(AB$3,Millwall!$AP81:$AZ81,0)","v":8},{"$f":"MATCH(AC$3,Millwall!$AP81:$AZ81,0)","v":2},{"$f":"MATCH(AD$3,Millwall!$AP81:$AZ81,0)","v":10},{"$f":"MATCH(AE$3,Millwall!$AP81:$AZ81,0)","v":{"$error":"#N/A"}},{"$f":"MATCH(AF$3,Millwall!$AP81:$AZ81,0)","v":{"$error":"#N/A"}},{"$f":"MATCH(AG$3,Millwall!$AP81:$AZ81,0)","v":{"$error":"#N/A"}},{"$f":"MATCH(AH$3,Millwall!$AP81:$AZ81,0)","v":9},{"$f":"MATCH(AI$3,Millwall!$AP81:$AZ81,0)","v":{"$error":"#N/A"}},{"$f":"MATCH(AJ$3,Millwall!$AP81:$AZ81,0)","v":{"$error":"#N/A"}},{"$f":"MATCH(AK$3,Millwall!$AP81:$AZ81,0)","v":{"$error":"#N/A"}},{"$f":"MATCH(AL$3,Millwall!$AP81:$AZ81,0)","v":{"$error":"#N/A"}},{"$f":"MATCH(AM$3,Millwall!$AP81:$AZ81,0)","v":{"$error":"#N/A"}},{"$f":"MATCH(AN$3,Millwall!$AP81:$AZ81,0)","v":{"$error":"#N/A"}},{"$f":"MATCH(AO$3,Millwall!$AP81:$AZ81,0)","v":{"$error":"#N/A"}},{"$f":"MATCH(AP$3,Millwall!$AP81:$AZ81,0)","v":{"$error":"#N/A"}},{"$f":"MATCH(AQ$3,Millwall!$AP81:$AZ81,0)","v":{"$error":"#N/A"}},{"$f":"MATCH(AR$3,Millwall!$AP81:$AZ81,0)","v":{"$error":"#N/A"}}]
[null,null,null,5,null,{"$f":"Millwall!AI82","v":"1938-09-10"},null,{"$f":"Millwall!AK82","v":"Bradford PA"},{"$f":"Millwall!AL82","v":"(H)"},{"$f":"Millwall!AO82","v":"W 3-1"},{"$f":"MATCH(K$3,Millwall!$AP82:$AZ82,0)","v":10},{"$f":"MATCH(L$3,Millwall!$AP82:$AZ82,0)","v":4},{"$f":"MATCH(M$3,Millwall!$AP82:$AZ82,0)","v":{"$error":"#N/A"}},{"$f":"MATCH(N$3,Millwall!$AP82:$AZ82,0)","v":5},{"$f":"MATCH(O$3,Millwall!$AP82:$AZ82,0)","v":{"$error":"#N/A"}},{"$f":"MATCH(P$3,Millwall!$AP82:$AZ82,0)","v":{"$error":"#N/A"}},{"$f":"MATCH(Q$3,Millwall!$AP82:$AZ82,0)","v":{"$error":"#N/A"}},{"$f":"MATCH(R$3,Millwall!$AP82:$AZ82,0)","v":{"$error":"#N/A"}},{"$f":"MATCH(S$3,Millwall!$AP82:$AZ82,0)","v":6},{"$f":"MATCH(T$3,Millwall!$AP82:$AZ82,0)","v":{"$error":"#N/A"}},{"$f":"MATCH(U$3,Millwall!$AP82:$AZ82,0)","v":3},{"$f":"MATCH(V$3,Millwall!$AP82:$AZ82,0)","v":{"$error":"#N/A"}},{"$f":"MATCH(W$3,Millwall!$AP82:$AZ82,0)","v":{"$error":"#N/A"}},{"$f":"MATCH(X$3,Millwall!$AP82:$AZ82,0)","v":{"$error":"#N/A"}},{"$f":"MATCH(Y$3,Millwall!$AP82:$AZ82,0)","v":{"$error":"#N/A"}},{"$f":"MATCH(Z$3,Millwall!$AP82:$AZ82,0)","v":1},{"$f":"MATCH(AA$3,Millwall!$AP82:$AZ82,0)","v":7},{"$f":"MATCH(AB$3,Millwall!$AP82:$AZ82,0)","v":8},{"$f":"MATCH(AC$3,Millwall!$AP82:$AZ82,0)","v":2},{"$f":"MATCH(AD$3,Millwall!$AP82:$AZ82,0)","v":11},{"$f":"MATCH(AE$3,Millwall!$AP82:$AZ82,0)","v":{"$error":"#N/A"}},{"$f":"MATCH(AF$3,Millwall!$AP82:$AZ82,0)","v":{"$error":"#N/A"}},{"$f":"MATCH(AG$3,Millwall!$AP82:$AZ82,0)","v":{"$error":"#N/A"}},{"$f":"MATCH(AH$3,Millwall!$AP82:$AZ82,0)","v":9},{"$f":"MATCH(AI$3,Millwall!$AP82:$AZ82,0)","v":{"$error":"#N/A"}},{"$f":"MATCH(AJ$3,Millwall!$AP82:$AZ82,0)","v":{"$error":"#N/A"}},{"$f":"MATCH(AK$3,Millwall!$AP82:$AZ82,0)","v":{"$error":"#N/A"}},{"$f":"MATCH(AL$3,Millwall!$AP82:$AZ82,0)","v":{"$error":"#N/A"}},{"$f":"MATCH(AM$3,Millwall!$AP82:$AZ82,0)","v":{"$error":"#N/A"}},{"$f":"MATCH(AN$3,Millwall!$AP82:$AZ82,0)","v":{"$error":"#N/A"}},{"$f":"MATCH(AO$3,Millwall!$AP82:$AZ82,0)","v":{"$error":"#N/A"}},{"$f":"MATCH(AP$3,Millwall!$AP82:$AZ82,0)","v":{"$error":"#N/A"}},{"$f":"MATCH(AQ$3,Millwall!$AP82:$AZ82,0)","v":{"$error":"#N/A"}},{"$f":"MATCH(AR$3,Millwall!$AP82:$AZ82,0)","v":{"$error":"#N/A"}}]
[null,null,null,6,null,{"$f":"Millwall!AI83","v":"1938-09-17"},null,{"$f":"Millwall!AK83","v":"Man City"},{"$f":"Millwall!AL83","v":"(A)"},{"$f":"Millwall!AO83","v":"W 6-1"},{"$f":"MATCH(K$3,Millwall!$AP83:$AZ83,0)","v":10},{"$f":"MATCH(L$3,Millwall!$AP83:$AZ83,0)","v":4},{"$f":"MATCH(M$3,Millwall!$AP83:$AZ83,0)","v":{"$error":"#N/A"}},{"$f":"MATCH(N$3,Millwall!$AP83:$AZ83,0)","v":5},{"$f":"MATCH(O$3,Millwall!$AP83:$AZ83,0)","v":{"$error":"#N/A"}},{"$f":"MATCH(P$3,Millwall!$AP83:$AZ83,0)","v":{"$error":"#N/A"}},{"$f":"MATCH(Q$3,Millwall!$AP83:$AZ83,0)","v":{"$error":"#N/A"}},{"$f":"MATCH(R$3,Millwall!$AP83:$AZ83,0)","v":{"$error":"#N/A"}},{"$f":"MATCH(S$3,Millwall!$AP83:$AZ83,0)","v":6},{"$f":"MATCH(T$3,Millwall!$AP83:$AZ83,0)","v":{"$error":"#N/A"}},{"$f":"MATCH(U$3,Millwall!$AP83:$AZ83,0)","v":3},{"$f":"MATCH(V$3,Millwall!$AP83:$AZ83,0)","v":{"$error":"#N/A"}},{"$f":"MATCH(W$3,Millwall!$AP83:$AZ83,0)","v":{"$error":"#N/A"}},{"$f":"MATCH(X$3,Millwall!$AP83:$AZ83,0)","v":{"$error":"#N/A"}},{"$f":"MATCH(Y$3,Millwall!$AP83:$AZ83,0)","v":{"$error":"#N/A"}},{"$f":"MATCH(Z$3,Millwall!$AP83:$AZ83,0)","v":1},{"$f":"MATCH(AA$3,Millwall!$AP83:$AZ83,0)","v":7},{"$f":"MATCH(AB$3,Millwall!$AP83:$AZ83,0)","v":8},{"$f":"MATCH(AC$3,Millwall!$AP83:$AZ83,0)","v":2},{"$f":"MATCH(AD$3,Millwall!$AP83:$AZ83,0)","v":11},{"$f":"MATCH(AE$3,Millwall!$AP83:$AZ83,0)","v":{"$error":"#N/A"}},{"$f":"MATCH(AF$3,Millwall!$AP83:$AZ83,0)","v":{"$error":"#N/A"}},{"$f":"MATCH(AG$3,Millwall!$AP83:$AZ83,0)","v":{"$error":"#N/A"}},{"$f":"MATCH(AH$3,Millwall!$AP83:$AZ83,0)","v":9},{"$f":"MATCH(AI$3,Millwall!$AP83:$AZ83,0)","v":{"$error":"#N/A"}},{"$f":"MATCH(AJ$3,Millwall!$AP83:$AZ83,0)","v":{"$error":"#N/A"}},{"$f":"MATCH(AK$3,Millwall!$AP83:$AZ83,0)","v":{"$error":"#N/A"}},{"$f":"MATCH(AL$3,Millwall!$AP83:$AZ83,0)","v":{"$error":"#N/A"}},{"$f":"MATCH(AM$3,Millwall!$AP83:$AZ83,0)","v":{"$error":"#N/A"}},{"$f":"MATCH(AN$3,Millwall!$AP83:$AZ83,0)","v":{"$error":"#N/A"}},{"$f":"MATCH(AO$3,Millwall!$AP83:$AZ83,0)","v":{"$error":"#N/A"}},{"$f":"MATCH(AP$3,Millwall!$AP83:$AZ83,0)","v":{"$error":"#N/A"}},{"$f":"MATCH(AQ$3,Millwall!$AP83:$AZ83,0)","v":{"$error":"#N/A"}},{"$f":"MATCH(AR$3,Millwall!$AP83:$AZ83,0)","v":{"$error":"#N/A"}}]
[null,null,null,7,null,{"$f":"Millwall!AI84","v":"1938-09-24"},null,{"$f":"Millwall!AK84","v":"Plymouth"},{"$f":"Millwall!AL84","v":"(H)"},{"$f":"Millwall!AO84","v":"W 3-0"},{"$f":"MATCH(K$3,Millwall!$AP84:$AZ84,0)","v":10},{"$f":"MATCH(L$3,Millwall!$AP84:$AZ84,0)","v":4},{"$f":"MATCH(M$3,Millwall!$AP84:$AZ84,0)","v":{"$error":"#N/A"}},{"$f":"MATCH(N$3,Millwall!$AP84:$AZ84,0)","v":5},{"$f":"MATCH(O$3,Millwall!$AP84:$AZ84,0)","v":{"$error":"#N/A"}},{"$f":"MATCH(P$3,Millwall!$AP84:$AZ84,0)","v":{"$error":"#N/A"}},{"$f":"MATCH(Q$3,Millwall!$AP84:$AZ84,0)","v":{"$error":"#N/A"}},{"$f":"MATCH(R$3,Millwall!$AP84:$AZ84,0)","v":{"$error":"#N/A"}},{"$f":"MATCH(S$3,Millwall!$AP84:$AZ84,0)","v":6},{"$f":"MATCH(T$3,Millwall!$AP84:$AZ84,0)","v":{"$error":"#N/A"}},{"$f":"MATCH(U$3,Millwall!$AP84:$AZ84,0)","v":3},{"$f":"MATCH(V$3,Millwall!$AP84:$AZ84,0)","v":{"$error":"#N/A"}},{"$f":"MATCH(W$3,Millwall!$AP84:$AZ84,0)","v":{"$error":"#N/A"}},{"$f":"MATCH(X$3,Millwall!$AP84:$AZ84,0)","v":{"$error":"#N/A"}},{"$f":"MATCH(Y$3,Millwall!$AP84:$AZ84,0)","v":{"$error":"#N/A"}},{"$f":"MATCH(Z$3,Millwall!$AP84:$AZ84,0)","v":1},{"$f":"MATCH(AA$3,Millwall!$AP84:$AZ84,0)","v":7},{"$f":"MATCH(AB$3,Millwall!$AP84:$AZ84,0)","v":8},{"$f":"MATCH(AC$3,Millwall!$AP84:$AZ84,0)","v":2},{"$f":"MATCH(AD$3,Millwall!$AP84:$AZ84,0)","v":11},{"$f":"MATCH(AE$3,Millwall!$AP84:$AZ84,0)","v":{"$error":"#N/A"}},{"$f":"MATCH(AF$3,Millwall!$AP84:$AZ84,0)","v":{"$error":"#N/A"}},{"$f":"MATCH(AG$3,Millwall!$AP84:$AZ84,0)","v":{"$error":"#N/A"}},{"$f":"MATCH(AH$3,Millwall!$AP84:$AZ84,0)","v":9},{"$f":"MATCH(AI$3,Millwall!$AP84:$AZ84,0)","v":{"$error":"#N/A"}},{"$f":"MATCH(AJ$3,Millwall!$AP84:$AZ84,0)","v":{"$error":"#N/A"}},{"$f":"MATCH(AK$3,Millwall!$AP84:$AZ84,0)","v":{"$error":"#N/A"}},{"$f":"MATCH(AL$3,Millwall!$AP84:$AZ84,0)","v":{"$error":"#N/A"}},{"$f":"MATCH(AM$3,Millwall!$AP84:$AZ84,0)","v":{"$error":"#N/A"}},{"$f":"MATCH(AN$3,Millwall!$AP84:$AZ84,0)","v":{"$error":"#N/A"}},{"$f":"MATCH(AO$3,Millwall!$AP84:$AZ84,0)","v":{"$error":"#N/A"}},{"$f":"MATCH(AP$3,Millwall!$AP84:$AZ84,0)","v":{"$error":"#N/A"}},{"$f":"MATCH(AQ$3,Millwall!$AP84:$AZ84,0)","v":{"$error":"#N/A"}},{"$f":"MATCH(AR$3,Millwall!$AP84:$AZ84,0)","v":{"$error":"#N/A"}}]
[null,null,null,8,null,{"$f":"Millwall!AI85","v":"1938-10-01"},null,{"$f":"Millwall!AK85","v":"Blackburn"},{"$f":"Millwall!AL85","v":"(H)"},{"$f":"Millwall!AO85","v":"W 4-1"},{"$f":"MATCH(K$3,Millwall!$AP85:$AZ85,0)","v":10},{"$f":"MATCH(L$3,Millwall!$AP85:$AZ85,0)","v":{"$error":"#N/A"}},{"$f":"MATCH(M$3,Millwall!$AP85:$AZ85,0)","v":{"$error":"#N/A"}},{"$f":"MATCH(N$3,Millwall!$AP85:$AZ85,0)","v":5},{"$f":"MATCH(O$3,Millwall!$AP85:$AZ85,0)","v":{"$error":"#N/A"}},{"$f":"MATCH(P$3,Millwall!$AP85:$AZ85,0)","v":{"$error":"#N/A"}},{"$f":"MATCH(Q$3,Millwall!$AP85:$AZ85,0)","v":{"$error":"#N/A"}},{"$f":"MATCH(R$3,Millwall!$AP85:$AZ85,0)","v":{"$error":"#N/A"}},{"$f":"MATCH(S$3,Millwall!$AP85:$AZ85,0)","v":6},{"$f":"MATCH(T$3,Millwall!$AP85:$AZ85,0)","v":{"$error":"#N/A"}},{"$f":"MATCH(U$3,Millwall!$AP85:$AZ85,0)","v":3},{"$f":"MATCH(V$3,Millwall!$AP85:$AZ85,0)","v":{"$error":"#N/A"}},{"$f":"MATCH(W$3,Millwall!$AP85:$AZ85,0)","v":4},{"$f":"MATCH(X$3,Millwall!$AP85:$AZ85,0)","v":{"$error":"#N/A"}},{"$f":"MATCH(Y$3,Millwall!$AP85:$AZ85,0)","v":{"$error":"#N/A"}},{"$f":"MATCH(Z$3,Millwall!$AP85:$AZ85,0)","v":1},{"$f":"MATCH(AA$3,Millwall!$AP85:$AZ85,0)","v":7},{"$f":"MATCH(AB$3,Millwall!$AP85:$AZ85,0)","v":8},{"$f":"MATCH(AC$3,Millwall!$AP85:$AZ85,0)","v":2},{"$f":"MATCH(AD$3,Millwall!$AP85:$AZ85,0)","v":11},{"$f":"MATCH(AE$3,Millwall!$AP85:$AZ85,0)","v":{"$error":"#N/A"}},{"$f":"MATCH(AF$3,Millwall!$AP85:$AZ85,0)","v":{"$error":"#N/A"}},{"$f":"MATCH(AG$3,Millwall!$AP85:$AZ85,0)","v":{"$error":"#N/A"}},{"$f":"MATCH(AH$3,Millwall!$AP85:$AZ85,0)","v":9},{"$f":"MATCH(AI$3,Millwall!$AP85:$AZ85,0)","v":{"$error":"#N/A"}},{"$f":"MATCH(AJ$3,Millwall!$AP85:$AZ85,0)","v":{"$error":"#N/A"}},{"$f":"MATCH(AK$3,Millwall!$AP85:$AZ85,0)","v":{"$error":"#N/A"}},{"$f":"MATCH(AL$3,Millwall!$AP85:$AZ85,0)","v":{"$error":"#N/A"}},{"$f":"MATCH(AM$3,Millwall!$AP85:$AZ85,0)","v":{"$error":"#N/A"}},{"$f":"MATCH(AN$3,Millwall!$AP85:$AZ85,0)","v":{"$error":"#N/A"}},{"$f":"MATCH(AO$3,Millwall!$AP85:$AZ85,0)","v":{"$error":"#N/A"}},{"$f":"MATCH(AP$3,Millwall!$AP85:$AZ85,0)","v":{"$error":"#N/A"}},{"$f":"MATCH(AQ$3,Millwall!$AP85:$AZ85,0)","v":{"$error":"#N/A"}},{"$f":"MATCH(AR$3,Millwall!$AP85:$AZ85,0)","v":{"$error":"#N/A"}}]
[null,null,null,9,null,{"$f":"Millwall!AI86","v":"1938-10-08"},null,{"$f":"Millwall!AK86","v":"Fulham"},{"$f":"Millwall!AL86","v":"(A)"},{"$f":"Millwall!AO86","v":"L 1-2"},{"$f":"MATCH(K$3,Millwall!$AP86:$AZ86,0)","v":10},{"$f":"MATCH(L$3,Millwall!$AP86:$AZ86,0)","v":{"$error":"#N/A"}},{"$f":"MATCH(M$3,Millwall!$AP86:$AZ86,0)","v":{"$error":"#N/A"}},{"$f":"MATCH(N$3,Millwall!$AP86:$AZ86,0)","v":5},{"$f":"MATCH(O$3,Millwall!$AP86:$AZ86,0)","v":{"$error":"#N/A"}},{"$f":"MATCH(P$3,Millwall!$AP86:$AZ86,0)","v":3},{"$f":"MATCH(Q$3,Millwall!$AP86:$AZ86,0)","v":{"$error":"#N/A"}},{"$f":"MATCH(R$3,Millwall!$AP86:$AZ86,0)","v":{"$error":"#N/A"}},{"$f":"MATCH(S$3,Millwall!$AP86:$AZ86,0)","v":6},{"$f":"MATCH(T$3,Millwall!$AP86:$AZ86,0)","v":{"$error":"#N/A"}},{"$f":"MATCH(U$3,Millwall!$AP86:$AZ86,0)","v":{"$error":"#N/A"}},{"$f":"MATCH(V$3,Millwall!$AP86:$AZ86,0)","v":{"$error":"#N/A"}},{"$f":"MATCH(W$3,Millwall!$AP86:$AZ86,0)","v":4},{"$f":"MATCH(X$3,Millwall!$AP86:$AZ86,0)","v":{"$error":"#N/A"}},{"$f":"MATCH(Y$3,Millwall!$AP86:$AZ86,0)","v":{"$error":"#N/A"}},{"$f":"MATCH(Z$3,Millwall!$AP86:$AZ86,0)","v":1},{"$f":"MATCH(AA$3,Millwall!$AP86:$AZ86,0)","v":7},{"$f":"MATCH(AB$3,Millwall!$AP86:$AZ86,0)","v":8},{"$f":"MATCH(AC$3,Millwall!$AP86:$AZ86,0)","v":2},{"$f":"MATCH(AD$3,Millwall!$AP86:$AZ86,0)","v":11},{"$f":"MATCH(AE$3,Millwall!$AP86:$AZ86,0)","v":{"$error":"#N/A"}},{"$f":"MATCH(AF$3,Millwall!$AP86:$AZ86,0)","v":{"$error":"#N/A"}},{"$f":"MATCH(AG$3,Millwall!$AP86:$AZ86,0)","v":{"$error":"#N/A"}},{"$f":"MATCH(AH$3,Millwall!$AP86:$AZ86,0)","v":9},{"$f":"MATCH(AI$3,Millwall!$AP86:$AZ86,0)","v":{"$error":"#N/A"}},{"$f":"MATCH(AJ$3,Millwall!$AP86:$AZ86,0)","v":{"$error":"#N/A"}},{"$f":"MATCH(AK$3,Millwall!$AP86:$AZ86,0)","v":{"$error":"#N/A"}},{"$f":"MATCH(AL$3,Millwall!$AP86:$AZ86,0)","v":{"$error":"#N/A"}},{"$f":"MATCH(AM$3,Millwall!$AP86:$AZ86,0)","v":{"$error":"#N/A"}},{"$f":"MATCH(AN$3,Millwall!$AP86:$AZ86,0)","v":{"$error":"#N/A"}},{"$f":"MATCH(AO$3,Millwall!$AP86:$AZ86,0)","v":{"$error":"#N/A"}},{"$f":"MATCH(AP$3,Millwall!$AP86:$AZ86,0)","v":{"$error":"#N/A"}},{"$f":"MATCH(AQ$3,Millwall!$AP86:$AZ86,0)","v":{"$error":"#N/A"}},{"$f":"MATCH(AR$3,Millwall!$AP86:$AZ86,0)","v":{"$error":"#N/A"}}]
[null,null,null,10,null,{"$f":"Millwall!AI87","v":"1938-10-15"},null,{"$f":"Millwall!AK87","v":"Sheff Utd"},{"$f":"Millwall!AL87","v":"(A)"},{"$f":"Millwall!AO87","v":"L 1-2"},{"$f":"MATCH(K$3,Millwall!$AP87:$AZ87,0)","v":10},{"$f":"MATCH(L$3,Millwall!$AP87:$AZ87,0)","v":4},{"$f":"MATCH(M$3,Millwall!$AP87:$AZ87,0)","v":{"$error":"#N/A"}},{"$f":"MATCH(N$3,Millwall!$AP87:$AZ87,0)","v":5},{"$f":"MATCH(O$3,Millwall!$AP87:$AZ87,0)","v":{"$error":"#N/A"}},{"$f":"MATCH(P$3,Millwall!$AP87:$AZ87,0)","v":3},{"$f":"MATCH(Q$3,Millwall!$AP87:$AZ87,0)","v":{"$error":"#N/A"}},{"$f":"MATCH(R$3,Millwall!$AP87:$AZ87,0)","v":{"$error":"#N/A"}},{"$f":"MATCH(S$3,Millwall!$AP87:$AZ87,0)","v":6},{"$f":"MATCH(T$3,Millwall!$AP87:$AZ87,0)","v":{"$error":"#N/A"}},{"$f":"MATCH(U$3,Millwall!$AP87:$AZ87,0)","v":{"$error":"#N/A"}},{"$f":"MATCH(V$3,Millwall!$AP87:$AZ87,0)","v":{"$error":"#N/A"}},{"$f":"MATCH(W$3,Millwall!$AP87:$AZ87,0)","v":{"$error":"#N/A"}},{"$f":"MATCH(X$3,Millwall!$AP87:$AZ87,0)","v":{"$error":"#N/A"}},{"$f":"MATCH(Y$3,Millwall!$AP87:$AZ87,0)","v":{"$error":"#N/A"}},{"$f":"MATCH(Z$3,Millwall!$AP87:$AZ87,0)","v":1},{"$f":"MATCH(AA$3,Millwall!$AP87:$AZ87,0)","v":7},{"$f":"MATCH(AB$3,Millwall!$AP87:$AZ87,0)","v":8},{"$f":"MATCH(AC$3,Millwall!$AP87:$AZ87,0)","v":2},{"$f":"MATCH(AD$3,Millwall!$AP87:$AZ87,0)","v":11},{"$f":"MATCH(AE$3,Millwall!$AP87:$AZ87,0)","v":{"$error":"#N/A"}},{"$f":"MATCH(AF$3,Millwall!$AP87:$AZ87,0)","v":{"$error":"#N/A"}},{"$f":"MATCH(AG$3,Millwall!$AP87:$AZ87,0)","v":{"$error":"#N/A"}},{"$f":"MATCH(AH$3,Millwall!$AP87:$AZ87,0)","v":9},{"$f":"MATCH(AI$3,Millwall!$AP87:$AZ87,0)","v":{"$error":"#N/A"}},{"$f":"MATCH(AJ$3,Millwall!$AP87:$AZ87,0)","v":{"$error":"#N/A"}},{"$f":"MATCH(AK$3,Millwall!$AP87:$AZ87,0)","v":{"$error":"#N/A"}},{"$f":"MATCH(AL$3,Millwall!$AP87:$AZ87,0)","v":{"$error":"#N/A"}},{"$f":"MATCH(AM$3,Millwall!$AP87:$AZ87,0)","v":{"$error":"#N/A"}},{"$f":"MATCH(AN$3,Millwall!$AP87:$AZ87,0)","v":{"$error":"#N/A"}},{"$f":"MATCH(AO$3,Millwall!$AP87:$AZ87,0)","v":{"$error":"#N/A"}},{"$f":"MATCH(AP$3,Millwall!$AP87:$AZ87,0)","v":{"$error":"#N/A"}},{"$f":"MATCH(AQ$3,Millwall!$AP87:$AZ87,0)","v":{"$error":"#N/A"}},{"$f":"MATCH(AR$3,Millwall!$AP87:$AZ87,0)","v":{"$error":"#N/A"}}]
[null,null,null,11,null,{"$f":"Millwall!AI88","v":"1938-10-22"},null,{"$f":"Millwall!AK88","v":"Burnley"},{"$f":"Millwall!AL88","v":"(H)"},{"$f":"Millwall!AO88","v":"D 1-1"},{"$f":"MATCH(K$3,Millwall!$AP88:$AZ88,0)","v":10},{"$f":"MATCH(L$3,Millwall!$AP88:$AZ88,0)","v":4},{"$f":"MATCH(M$3,Millwall!$AP88:$AZ88,0)","v":{"$error":"#N/A"}},{"$f":"MATCH(N$3,Millwall!$AP88:$AZ88,0)","v":5},{"$f":"MATCH(O$3,Millwall!$AP88:$AZ88,0)","v":{"$error":"#N/A"}},{"$f":"MATCH(P$3,Millwall!$AP88:$AZ88,0)","v":{"$error":"#N/A"}},{"$f":"MATCH(Q$3,Millwall!$AP88:$AZ88,0)","v":{"$error":"#N/A"}},{"$f":"MATCH(R$3,Millwall!$AP88:$AZ88,0)","v":{"$error":"#N/A"}},{"$f":"MATCH(S$3,Millwall!$AP88:$AZ88,0)","v":6},{"$f":"MATCH(T$3,Millwall!$AP88:$AZ88,0)","v":{"$error":"#N/A"}},{"$f":"MATCH(U$3,Millwall!$AP88:$AZ88,0)","v":3},{"$f":"MATCH(V$3,Millwall!$AP88:$AZ88,0)","v":{"$error":"#N/A"}},{"$f":"MATCH(W$3,Millwall!$AP88:$AZ88,0)","v":{"$error":"#N/A"}},{"$f":"MATCH(X$3,Millwall!$AP88:$AZ88,0)","v":{"$error":"#N/A"}},{"$f":"MATCH(Y$3,Millwall!$AP88:$AZ88,0)","v":{"$error":"#N/A"}},{"$f":"MATCH(Z$3,Millwall!$AP88:$AZ88,0)","v":1},{"$f":"MATCH(AA$3,Millwall!$AP88:$AZ88,0)","v":7},{"$f":"MATCH(AB$3,Millwall!$AP88:$AZ88,0)","v":8},{"$f":"MATCH(AC$3,Millwall!$AP88:$AZ88,0)","v":2},{"$f":"MATCH(AD$3,Millwall!$AP88:$AZ88,0)","v":11},{"$f":"MATCH(AE$3,Millwall!$AP88:$AZ88,0)","v":{"$error":"#N/A"}},{"$f":"MATCH(AF$3,Millwall!$AP88:$AZ88,0)","v":{"$error":"#N/A"}},{"$f":"MATCH(AG$3,Millwall!$AP88:$AZ88,0)","v":{"$error":"#N/A"}},{"$f":"MATCH(AH$3,Millwall!$AP88:$AZ88,0)","v":9},{"$f":"MATCH(AI$3,Millwall!$AP88:$AZ88,0)","v":{"$error":"#N/A"}},{"$f":"MATCH(AJ$3,Millwall!$AP88:$AZ88,0)","v":{"$error":"#N/A"}},{"$f":"MATCH(AK$3,Millwall!$AP88:$AZ88,0)","v":{"$error":"#N/A"}},{"$f":"MATCH(AL$3,Millwall!$AP88:$AZ88,0)","v":{"$error":"#N/A"}},{"$f":"MATCH(AM$3,Millwall!$AP88:$AZ88,0)","v":{"$error":"#N/A"}},{"$f":"MATCH(AN$3,Millwall!$AP88:$AZ88,0)","v":{"$error":"#N/A"}},{"$f":"MATCH(AO$3,Millwall!$AP88:$AZ88,0)","v":{"$error":"#N/A"}},{"$f":"MATCH(AP$3,Millwall!$AP88:$AZ88,0)","v":{"$error":"#N/A"}},{"$f":"MATCH(AQ$3,Millwall!$AP88:$AZ88,0)","v":{"$error":"#N/A"}},{"$f":"MATCH(AR$3,Millwall!$AP88:$AZ88,0)","v":{"$error":"#N/A"}}]
[null,null,null,12,null,{"$f":"Millwall!AI89","v":"1938-10-29"},null,{"$f":"Millwall!AK89","v":"Norwich"},{"$f":"Millwall!AL89","v":"(A)"},{"$f":"Millwall!AO89","v":"W 2-0"},{"$f":"MATCH(K$3,Millwall!$AP89:$AZ89,0)","v":10},{"$f":"MATCH(L$3,Millwall!$AP89:$AZ89,0)","v":4},{"$f":"MATCH(M$3,Millwall!$AP89:$AZ89,0)","v":{"$error":"#N/A"}},{"$f":"MATCH(N$3,Millwall!$AP89:$AZ89,0)","v":5},{"$f":"MATCH(O$3,Millwall!$AP89:$AZ89,0)","v":{"$error":"#N/A"}},{"$f":"MATCH(P$3,Millwall!$AP89:$AZ89,0)","v":{"$error":"#N/A"}},{"$f":"MATCH(Q$3,Millwall!$AP89:$AZ89,0)","v":{"$error":"#N/A"}},{"$f":"MATCH(R$3,Millwall!$AP89:$AZ89,0)","v":{"$error":"#N/A"}},{"$f":"MATCH(S$3,Millwall!$AP89:$AZ89,0)","v":6},{"$f":"MATCH(T$3,Millwall!$AP89:$AZ89,0)","v":{"$error":"#N/A"}},{"$f":"MATCH(U$3,Millwall!$AP89:$AZ89,0)","v":3},{"$f":"MATCH(V$3,Millwall!$AP89:$AZ89,0)","v":{"$error":"#N/A"}},{"$f":"MATCH(W$3,Millwall!$AP89:$AZ89,0)","v":{"$error":"#N/A"}},{"$f":"MATCH(X$3,Millwall!$AP89:$AZ89,0)","v":{"$error":"#N/A"}},{"$f":"MATCH(Y$3,Millwall!$AP89:$AZ89,0)","v":{"$error":"#N/A"}},{"$f":"MATCH(Z$3,Millwall!$AP89:$AZ89,0)","v":1},{"$f":"MATCH(AA$3,Millwall!$AP89:$AZ89,0)","v":7},{"$f":"MATCH(AB$3,Millwall!$AP89:$AZ89,0)","v":8},{"$f":"MATCH(AC$3,Millwall!$AP89:$AZ89,0)","v":2},{"$f":"MATCH(AD$3,Millwall!$AP89:$AZ89,0)","v":11},{"$f":"MATCH(AE$3,Millwall!$AP89:$AZ89,0)","v":{"$error":"#N/A"}},{"$f":"MATCH(AF$3,Millwall!$AP89:$AZ89,0)","v":{"$error":"#N/A"}},{"$f":"MATCH(AG$3,Millwall!$AP89:$AZ89,0)","v":{"$error":"#N/A"}},{"$f":"MATCH(AH$3,Millwall!$AP89:$AZ89,0)","v":9},{"$f":"MATCH(AI$3,Millwall!$AP89:$AZ89,0)","v":{"$error":"#N/A"}},{"$f":"MATCH(AJ$3,Millwall!$AP89:$AZ89,0)","v":{"$error":"#N/A"}},{"$f":"MATCH(AK$3,Millwall!$AP89:$AZ89,0)","v":{"$error":"#N/A"}},{"$f":"MATCH(AL$3,Millwall!$AP89:$AZ89,0)","v":{"$error":"#N/A"}},{"$f":"MATCH(AM$3,Millwall!$AP89:$AZ89,0)","v":{"$error":"#N/A"}},{"$f":"MATCH(AN$3,Millwall!$AP89:$AZ89,0)","v":{"$error":"#N/A"}},{"$f":"MATCH(AO$3,Millwall!$AP89:$AZ89,0)","v":{"$error":"#N/A"}},{"$f":"MATCH(AP$3,Millwall!$AP89:$AZ89,0)","v":{"$error":"#N/A"}},{"$f":"MATCH(AQ$3,Millwall!$AP89:$AZ89,0)","v":{"$error":"#N/A"}},{"$f":"MATCH(AR$3,Millwall!$AP89:$AZ89,0)","v":{"$error":"#N/A"}}]
[null,null,null,13,null,{"$f":"Millwall!AI90","v":"1938-11-05"},null,{"$f":"Millwall!AK90","v":"Southampton"},{"$f":"Millwall!AL90","v":"(H)"},{"$f":"Millwall!AO90","v":"L 0-1"},{"$f":"MATCH(K$3,Millwall!$AP90:$AZ90,0)","v":10},{"$f":"MATCH(L$3,Millwall!$AP90:$AZ90,0)","v":4},{"$f":"MATCH(M$3,Millwall!$AP90:$AZ90,0)","v":{"$error":"#N/A"}},{"$f":"MATCH(N$3,Millwall!$AP90:$AZ90,0)","v":5},{"$f":"MATCH(O$3,Millwall!$AP90:$AZ90,0)","v":{"$error":"#N/A"}},{"$f":"MATCH(P$3,Millwall!$AP90:$AZ90,0)","v":{"$error":"#N/A"}},{"$f":"MATCH(Q$3,Millwall!$AP90:$AZ90,0)","v":{"$error":"#N/A"}},{"$f":"MATCH(R$3,Millwall!$AP90:$AZ90,0)","v":{"$error":"#N/A"}},{"$f":"MATCH(S$3,Millwall!$AP90:$AZ90,0)","v":6},{"$f":"MATCH(T$3,Millwall!$AP90:$AZ90,0)","v":{"$error":"#N/A"}},{"$f":"MATCH(U$3,Millwall!$AP90:$AZ90,0)","v":3},{"$f":"MATCH(V$3,Millwall!$AP90:$AZ90,0)","v":{"$error":"#N/A"}},{"$f":"MATCH(W$3,Millwall!$AP90:$AZ90,0)","v":{"$error":"#N/A"}},{"$f":"MATCH(X$3,Millwall!$AP90:$AZ90,0)","v":{"$error":"#N/A"}},{"$f":"MATCH(Y$3,Millwall!$AP90:$AZ90,0)","v":{"$error":"#N/A"}},{"$f":"MATCH(Z$3,Millwall!$AP90:$AZ90,0)","v":1},{"$f":"MATCH(AA$3,Millwall!$AP90:$AZ90,0)","v":7},{"$f":"MATCH(AB$3,Millwall!$AP90:$AZ90,0)","v":8},{"$f":"MATCH(AC$3,Millwall!$AP90:$AZ90,0)","v":2},{"$f":"MATCH(AD$3,Millwall!$AP90:$AZ90,0)","v":11},{"$f":"MATCH(AE$3,Millwall!$AP90:$AZ90,0)","v":{"$error":"#N/A"}},{"$f":"MATCH(AF$3,Millwall!$AP90:$AZ90,0)","v":{"$error":"#N/A"}},{"$f":"MATCH(AG$3,Millwall!$AP90:$AZ90,0)","v":{"$error":"#N/A"}},{"$f":"MATCH(AH$3,Millwall!$AP90:$AZ90,0)","v":9},{"$f":"MATCH(AI$3,Millwall!$AP90:$AZ90,0)","v":{"$error":"#N/A"}},{"$f":"MATCH(AJ$3,Millwall!$AP90:$AZ90,0)","v":{"$error":"#N/A"}},{"$f":"MATCH(AK$3,Millwall!$AP90:$AZ90,0)","v":{"$error":"#N/A"}},{"$f":"MATCH(AL$3,Millwall!$AP90:$AZ90,0)","v":{"$error":"#N/A"}},{"$f":"MATCH(AM$3,Millwall!$AP90:$AZ90,0)","v":{"$error":"#N/A"}},{"$f":"MATCH(AN$3,Millwall!$AP90:$AZ90,0)","v":{"$error":"#N/A"}},{"$f":"MATCH(AO$3,Millwall!$AP90:$AZ90,0)","v":{"$error":"#N/A"}},{"$f":"MATCH(AP$3,Millwall!$AP90:$AZ90,0)","v":{"$error":"#N/A"}},{"$f":"MATCH(AQ$3,Millwall!$AP90:$AZ90,0)","v":{"$error":"#N/A"}},{"$f":"MATCH(AR$3,Millwall!$AP90:$AZ90,0)","v":{"$error":"#N/A"}}]
[null,null,null,14,null,{"$f":"Millwall!AI91","v":"1938-11-12"},null,{"$f":"Millwall!AK91","v":"Coventry"},{"$f":"Millwall!AL91","v":"(A)"},{"$f":"Millwall!AO91","v":"L 1-2"},{"$f":"MATCH(K$3,Millwall!$AP91:$AZ91,0)","v":10},{"$f":"MATCH(L$3,Millwall!$AP91:$AZ91,0)","v":4},{"$f":"MATCH(M$3,Millwall!$AP91:$AZ91,0)","v":{"$error":"#N/A"}},{"$f":"MATCH(N$3,Millwall!$AP91:$AZ91,0)","v":5},{"$f":"MATCH(O$3,Millwall!$AP91:$AZ91,0)","v":{"$error":"#N/A"}},{"$f":"MATCH(P$3,Millwall!$AP91:$AZ91,0)","v":{"$error":"#N/A"}},{"$f":"MATCH(Q$3,Millwall!$AP91:$AZ91,0)","v":{"$error":"#N/A"}},{"$f":"MATCH(R$3,Millwall!$AP91:$AZ91,0)","v":{"$error":"#N/A"}},{"$f":"MATCH(S$3,Millwall!$AP91:$AZ91,0)","v":{"$error":"#N/A"}},{"$f":"MATCH(T$3,Millwall!$AP91:$AZ91,0)","v":{"$error":"#N/A"}},{"$f":"MATCH(U$3,Millwall!$AP91:$AZ91,0)","v":{"$error":"#N/A"}},{"$f":"MATCH(V$3,Millwall!$AP91:$AZ91,0)","v":{"$error":"#N/A"}},{"$f":"MATCH(W$3,Millwall!$AP91:$AZ91,0)","v":{"$error":"#N/A"}},{"$f":"MATCH(X$3,Millwall!$AP91:$AZ91,0)","v":9},{"$f":"MATCH(Y$3,Millwall!$AP91:$AZ91,0)","v":{"$error":"#N/A"}},{"$f":"MATCH(Z$3,Millwall!$AP91:$AZ91,0)","v":1},{"$f":"MATCH(AA$3,Millwall!$AP91:$AZ91,0)","v":7},{"$f":"MATCH(AB$3,Millwall!$AP91:$AZ91,0)","v":8},{"$f":"MATCH(AC$3,Millwall!$AP91:$AZ91,0)","v":2},{"$f":"MATCH(AD$3,Millwall!$AP91:$AZ91,0)","v":11},{"$f":"MATCH(AE$3,Millwall!$AP91:$AZ91,0)","v":6},{"$f":"MATCH(AF$3,Millwall!$AP91:$AZ91,0)","v":{"$error":"#N/A"}},{"$f":"MATCH(AG$3,Millwall!$AP91:$AZ91,0)","v":{"$error":"#N/A"}},{"$f":"MATCH(AH$3,Millwall!$AP91:$AZ91,0)","v":{"$error":"#N/A"}},{"$f":"MATCH(AI$3,Millwall!$AP91:$AZ91,0)","v":3},{"$f":"MATCH(AJ$3,Millwall!$AP91:$AZ91,0)","v":{"$error":"#N/A"}},{"$f":"MATCH(AK$3,Millwall!$AP91:$AZ91,0)","v":{"$error":"#N/A"}},{"$f":"MATCH(AL$3,Millwall!$AP91:$AZ91,0)","v":{"$error":"#N/A"}},{"$f":"MATCH(AM$3,Millwall!$AP91:$AZ91,0)","v":{"$error":"#N/A"}},{"$f":"MATCH(AN$3,Millwall!$AP91:$AZ91,0)","v":{"$error":"#N/A"}},{"$f":"MATCH(AO$3,Millwall!$AP91:$AZ91,0)","v":{"$error":"#N/A"}},{"$f":"MATCH(AP$3,Millwall!$AP91:$AZ91,0)","v":{"$error":"#N/A"}},{"$f":"MATCH(AQ$3,Millwall!$AP91:$AZ91,0)","v":{"$error":"#N/A"}},{"$f":"MATCH(AR$3,Millwall!$AP91:$AZ91,0)","v":{"$error":"#N/A"}}]
[null,null,null,15,null,{"$f":"Millwall!AI92","v":"1938-11-19"},null,{"$f":"Millwall!AK92","v":"Nottm Forest"},{"$f":"Millwall!AL92","v":"(H)"},{"$f":"Millwall!AO92","v":"W 5-0"},{"$f":"MATCH(K$3,Millwall!$AP92:$AZ92,0)","v":10},{"$f":"MATCH(L$3,Millwall!$AP92:$AZ92,0)","v":4},{"$f":"MATCH(M$3,Millwall!$AP92:$AZ92,0)","v":{"$error":"#N/A"}},{"$f":"MATCH(N$3,Millwall!$AP92:$AZ92,0)","v":5},{"$f":"MATCH(O$3,Millwall!$AP92:$AZ92,0)","v":{"$error":"#N/A"}},{"$f":"MATCH(P$3,Millwall!$AP92:$AZ92,0)","v":{"$error":"#N/A"}},{"$f":"MATCH(Q$3,Millwall!$AP92:$AZ92,0)","v":{"$error":"#N/A"}},{"$f":"MATCH(R$3,Millwall!$AP92:$AZ92,0)","v":7},{"$f":"MATCH(S$3,Millwall!$AP92:$AZ92,0)","v":6},{"$f":"MATCH(T$3,Millwall!$AP92:$AZ92,0)","v":{"$error":"#N/A"}},{"$f":"MATCH(U$3,Millwall!$AP92:$AZ92,0)","v":{"$error":"#N/A"}},{"$f":"MATCH(V$3,Millwall!$AP92:$AZ92,0)","v":{"$error":"#N/A"}},{"$f":"MATCH(W$3,Millwall!$AP92:$AZ92,0)","v":{"$error":"#N/A"}},{"$f":"MATCH(X$3,Millwall!$AP92:$AZ92,0)","v":{"$error":"#N/A"}},{"$f":"MATCH(Y$3,Millwall!$AP92:$AZ92,0)","v":{"$error":"#N/A"}},{"$f":"MATCH(Z$3,Millwall!$AP92:$AZ92,0)","v":1},{"$f":"MATCH(AA$3,Millwall!$AP92:$AZ92,0)","v":{"$error":"#N/A"}},{"$f":"MATCH(AB$3,Millwall!$AP92:$AZ92,0)","v":8},{"$f":"MATCH(AC$3,Millwall!$AP92:$AZ92,0)","v":2},{"$f":"MATCH(AD$3,Millwall!$AP92:$AZ92,0)","v":11},{"$f":"MATCH(AE$3,Millwall!$AP92:$AZ92,0)","v":{"$error":"#N/A"}},{"$f":"MATCH(AF$3,Millwall!$AP92:$AZ92,0)","v":{"$error":"#N/A"}},{"$f":"MATCH(AG$3,Millwall!$AP92:$AZ92,0)","v":{"$error":"#N/A"}},{"$f":"MATCH(AH$3,Millwall!$AP92:$AZ92,0)","v":9},{"$f":"MATCH(AI$3,Millwall!$AP92:$AZ92,0)","v":3},{"$f":"MATCH(AJ$3,Millwall!$AP92:$AZ92,0)","v":{"$error":"#N/A"}},{"$f":"MATCH(AK$3,Millwall!$AP92:$AZ92,0)","v":{"$error":"#N/A"}},{"$f":"MATCH(AL$3,Millwall!$AP92:$AZ92,0)","v":{"$error":"#N/A"}},{"$f":"MATCH(AM$3,Millwall!$AP92:$AZ92,0)","v":{"$error":"#N/A"}},{"$f":"MATCH(AN$3,Millwall!$AP92:$AZ92,0)","v":{"$error":"#N/A"}},{"$f":"MATCH(AO$3,Millwall!$AP92:$AZ92,0)","v":{"$error":"#N/A"}},{"$f":"MATCH(AP$3,Millwall!$AP92:$AZ92,0)","v":{"$error":"#N/A"}},{"$f":"MATCH(AQ$3,Millwall!$AP92:$AZ92,0)","v":{"$error":"#N/A"}},{"$f":"MATCH(AR$3,Millwall!$AP92:$AZ92,0)","v":{"$error":"#N/A"}}]
[null,null,null,16,null,{"$f":"Millwall!AI93","v":"1938-11-26"},null,{"$f":"Millwall!AK93","v":"Newcastle"},{"$f":"Millwall!AL93","v":"(A)"},{"$f":"Millwall!AO93","v":"D 2-2"},{"$f":"MATCH(K$3,Millwall!$AP93:$AZ93,0)","v":10},{"$f":"MATCH(L$3,Millwall!$AP93:$AZ93,0)","v":4},{"$f":"MATCH(M$3,Millwall!$AP93:$AZ93,0)","v":{"$error":"#N/A"}},{"$f":"MATCH(N$3,Millwall!$AP93:$AZ93,0)","v":5},{"$f":"MATCH(O$3,Millwall!$AP93:$AZ93,0)","v":{"$error":"#N/A"}},{"$f":"MATCH(P$3,Millwall!$AP93:$AZ93,0)","v":{"$error":"#N/A"}},{"$f":"MATCH(Q$3,Millwall!$AP93:$AZ93,0)","v":{"$error":"#N/A"}},{"$f":"MATCH(R$3,Millwall!$AP93:$AZ93,0)","v":7},{"$f":"MATCH(S$3,Millwall!$AP93:$AZ93,0)","v":6},{"$f":"MATCH(T$3,Millwall!$AP93:$AZ93,0)","v":{"$error":"#N/A"}},{"$f":"MATCH(U$3,Millwall!$AP93:$AZ93,0)","v":{"$error":"#N/A"}},{"$f":"MATCH(V$3,Millwall!$AP93:$AZ93,0)","v":{"$error":"#N/A"}},{"$f":"MATCH(W$3,Millwall!$AP93:$AZ93,0)","v":{"$error":"#N/A"}},{"$f":"MATCH(X$3,Millwall!$AP93:$AZ93,0)","v":{"$error":"#N/A"}},{"$f":"MATCH(Y$3,Millwall!$AP93:$AZ93,0)","v":{"$error":"#N/A"}},{"$f":"MATCH(Z$3,Millwall!$AP93:$AZ93,0)","v":1},{"$f":"MATCH(AA$3,Millwall!$AP93:$AZ93,0)","v":{"$error":"#N/A"}},{"$f":"MATCH(AB$3,Millwall!$AP93:$AZ93,0)","v":8},{"$f":"MATCH(AC$3,Millwall!$AP93:$AZ93,0)","v":2},{"$f":"MATCH(AD$3,Millwall!$AP93:$AZ93,0)","v":11},{"$f":"MATCH(AE$3,Millwall!$AP93:$AZ93,0)","v":{"$error":"#N/A"}},{"$f":"MATCH(AF$3,Millwall!$AP93:$AZ93,0)","v":{"$error":"#N/A"}},{"$f":"MATCH(AG$3,Millwall!$AP93:$AZ93,0)","v":{"$error":"#N/A"}},{"$f":"MATCH(AH$3,Millwall!$AP93:$AZ93,0)","v":9},{"$f":"MATCH(AI$3,Millwall!$AP93:$AZ93,0)","v":3},{"$f":"MATCH(AJ$3,Millwall!$AP93:$AZ93,0)","v":{"$error":"#N/A"}},{"$f":"MATCH(AK$3,Millwall!$AP93:$AZ93,0)","v":{"$error":"#N/A"}},{"$f":"MATCH(AL$3,Millwall!$AP93:$AZ93,0)","v":{"$error":"#N/A"}},{"$f":"MATCH(AM$3,Millwall!$AP93:$AZ93,0)","v":{"$error":"#N/A"}},{"$f":"MATCH(AN$3,Millwall!$AP93:$AZ93,0)","v":{"$error":"#N/A"}},{"$f":"MATCH(AO$3,Millwall!$AP93:$AZ93,0)","v":{"$error":"#N/A"}},{"$f":"MATCH(AP$3,Millwall!$AP93:$AZ93,0)","v":{"$error":"#N/A"}},{"$f":"MATCH(AQ$3,Millwall!$AP93:$AZ93,0)","v":{"$error":"#N/A"}},{"$f":"MATCH(AR$3,Millwall!$AP93:$AZ93,0)","v":{"$error":"#N/A"}}]
[null,null,null,17,null,{"$f":"Millwall!AI94","v":"1938-12-03"},null,{"$f":"Millwall!AK94","v":"West Brom"},{"$f":"Millwall!AL94","v":"(H)"},{"$f":"Millwall!AO94","v":"L 1-5"},{"$f":"MATCH(K$3,Millwall!$AP94:$AZ94,0)","v":10},{"$f":"MATCH(L$3,Millwall!$AP94:$AZ94,0)","v":4},{"$f":"MATCH(M$3,Millwall!$AP94:$AZ94,0)","v":{"$error":"#N/A"}},{"$f":"MATCH(N$3,Millwall!$AP94:$AZ94,0)","v":5},{"$f":"MATCH(O$3,Millwall!$AP94:$AZ94,0)","v":{"$error":"#N/A"}},{"$f":"MATCH(P$3,Millwall!$AP94:$AZ94,0)","v":{"$error":"#N/A"}},{"$f":"MATCH(Q$3,Millwall!$AP94:$AZ94,0)","v":{"$error":"#N/A"}},{"$f":"MATCH(R$3,Millwall!$AP94:$AZ94,0)","v":7},{"$f":"MATCH(S$3,Millwall!$AP94:$AZ94,0)","v":6},{"$f":"MATCH(T$3,Millwall!$AP94:$AZ94,0)","v":{"$error":"#N/A"}},{"$f":"MATCH(U$3,Millwall!$AP94:$AZ94,0)","v":{"$error":"#N/A"}},{"$f":"MATCH(V$3,Millwall!$AP94:$AZ94,0)","v":{"$error":"#N/A"}},{"$f":"MATCH(W$3,Millwall!$AP94:$AZ94,0)","v":{"$error":"#N/A"}},{"$f":"MATCH(X$3,Millwall!$AP94:$AZ94,0)","v":{"$error":"#N/A"}},{"$f":"MATCH(Y$3,Millwall!$AP94:$AZ94,0)","v":{"$error":"#N/A"}},{"$f":"MATCH(Z$3,Millwall!$AP94:$AZ94,0)","v":1},{"$f":"MATCH(AA$3,Millwall!$AP94:$AZ94,0)","v":{"$error":"#N/A"}},{"$f":"MATCH(AB$3,Millwall!$AP94:$AZ94,0)","v":8},{"$f":"MATCH(AC$3,Millwall!$AP94:$AZ94,0)","v":2},{"$f":"MATCH(AD$3,Millwall!$AP94:$AZ94,0)","v":11},{"$f":"MATCH(AE$3,Millwall!$AP94:$AZ94,0)","v":{"$error":"#N/A"}},{"$f":"MATCH(AF$3,Millwall!$AP94:$AZ94,0)","v":{"$error":"#N/A"}},{"$f":"MATCH(AG$3,Millwall!$AP94:$AZ94,0)","v":{"$error":"#N/A"}},{"$f":"MATCH(AH$3,Millwall!$AP94:$AZ94,0)","v":9},{"$f":"MATCH(AI$3,Millwall!$AP94:$AZ94,0)","v":3},{"$f":"MATCH(AJ$3,Millwall!$AP94:$AZ94,0)","v":{"$error":"#N/A"}},{"$f":"MATCH(AK$3,Millwall!$AP94:$AZ94,0)","v":{"$error":"#N/A"}},{"$f":"MATCH(AL$3,Millwall!$AP94:$AZ94,0)","v":{"$error":"#N/A"}},{"$f":"MATCH(AM$3,Millwall!$AP94:$AZ94,0)","v":{"$error":"#N/A"}},{"$f":"MATCH(AN$3,Millwall!$AP94:$AZ94,0)","v":{"$error":"#N/A"}},{"$f":"MATCH(AO$3,Millwall!$AP94:$AZ94,0)","v":{"$error":"#N/A"}},{"$f":"MATCH(AP$3,Millwall!$AP94:$AZ94,0)","v":{"$error":"#N/A"}},{"$f":"MATCH(AQ$3,Millwall!$AP94:$AZ94,0)","v":{"$error":"#N/A"}},{"$f":"MATCH(AR$3,Millwall!$AP94:$AZ94,0)","v":{"$error":"#N/A"}}]
[null,null,null,18,null,{"$f":"Millwall!AI95","v":"1938-12-10"},null,{"$f":"Millwall!AK95","v":"Tottenham"},{"$f":"Millwall!AL95","v":"(A)"},{"$f":"Millwall!AO95","v":"L 0-4"},{"$f":"MATCH(K$3,Millwall!$AP95:$AZ95,0)","v":10},{"$f":"MATCH(L$3,Millwall!$AP95:$AZ95,0)","v":4},{"$f":"MATCH(M$3,Millwall!$AP95:$AZ95,0)","v":{"$error":"#N/A"}},{"$f":"MATCH(N$3,Millwall!$AP95:$AZ95,0)","v":5},{"$f":"MATCH(O$3,Millwall!$AP95:$AZ95,0)","v":{"$error":"#N/A"}},{"$f":"MATCH(P$3,Millwall!$AP95:$AZ95,0)","v":3},{"$f":"MATCH(Q$3,Millwall!$AP95:$AZ95,0)","v":{"$error":"#N/A"}},{"$f":"MATCH(R$3,Millwall!$AP95:$AZ95,0)","v":{"$error":"#N/A"}},{"$f":"MATCH(S$3,Millwall!$AP95:$AZ95,0)","v":6},{"$f":"MATCH(T$3,Millwall!$AP95:$AZ95,0)","v":{"$error":"#N/A"}},{"$f":"MATCH(U$3,Millwall!$AP95:$AZ95,0)","v":{"$error":"#N/A"}},{"$f":"MATCH(V$3,Millwall!$AP95:$AZ95,0)","v":{"$error":"#N/A"}},{"$f":"MATCH(W$3,Millwall!$AP95:$AZ95,0)","v":{"$error":"#N/A"}},{"$f":"MATCH(X$3,Millwall!$AP95:$AZ95,0)","v":{"$error":"#N/A"}},{"$f":"MATCH(Y$3,Millwall!$AP95:$AZ95,0)","v":{"$error":"#N/A"}},{"$f":"MATCH(Z$3,Millwall!$AP95:$AZ95,0)","v":{"$error":"#N/A"}},{"$f":"MATCH(AA$3,Millwall!$AP95:$AZ95,0)","v":7},{"$f":"MATCH(AB$3,Millwall!$AP95:$AZ95,0)","v":8},{"$f":"MATCH(AC$3,Millwall!$AP95:$AZ95,0)","v":2},{"$f":"MATCH(AD$3,Millwall!$AP95:$AZ95,0)","v":11},{"$f":"MATCH(AE$3,Millwall!$AP95:$AZ95,0)","v":{"$error":"#N/A"}},{"$f":"MATCH(AF$3,Millwall!$AP95:$AZ95,0)","v":{"$error":"#N/A"}},{"$f":"MATCH(AG$3,Millwall!$AP95:$AZ95,0)","v":{"$error":"#N/A"}},{"$f":"MATCH(AH$3,Millwall!$AP95:$AZ95,0)","v":9},{"$f":"MATCH(AI$3,Millwall!$AP95:$AZ95,0)","v":{"$error":"#N/A"}},{"$f":"MATCH(AJ$3,Millwall!$AP95:$AZ95,0)","v":1},{"$f":"MATCH(AK$3,Millwall!$AP95:$AZ95,0)","v":{"$error":"#N/A"}},{"$f":"MATCH(AL$3,Millwall!$AP95:$AZ95,0)","v":{"$error":"#N/A"}},{"$f":"MATCH(AM$3,Millwall!$AP95:$AZ95,0)","v":{"$error":"#N/A"}},{"$f":"MATCH(AN$3,Millwall!$AP95:$AZ95,0)","v":{"$error":"#N/A"}},{"$f":"MATCH(AO$3,Millwall!$AP95:$AZ95,0)","v":{"$error":"#N/A"}},{"$f":"MATCH(AP$3,Millwall!$AP95:$AZ95,0)","v":{"$error":"#N/A"}},{"$f":"MATCH(AQ$3,Millwall!$AP95:$AZ95,0)","v":{"$error":"#N/A"}},{"$f":"MATCH(AR$3,Millwall!$AP95:$AZ95,0)","v":{"$error":"#N/A"}}]
[null,null,null,19,null,{"$f":"Millwall!AI96","v":"1938-12-17"},null,{"$f":"Millwall!AK96","v":"Luton"},{"$f":"Millwall!AL96","v":"(H)"},{"$f":"Millwall!AO96","v":"W 2-1"},{"$f":"MATCH(K$3,Millwall!$AP96:$AZ96,0)","v":9},{"$f":"MATCH(L$3,Millwall!$AP96:$AZ96,0)","v":4},{"$f":"MATCH(M$3,Millwall!$AP96:$AZ96,0)","v":{"$error":"#N/A"}},{"$f":"MATCH(N$3,Millwall!$AP96:$AZ96,0)","v":5},{"$f":"MATCH(O$3,Millwall!$AP96:$AZ96,0)","v":{"$error":"#N/A"}},{"$f":"MATCH(P$3,Millwall!$AP96:$AZ96,0)","v":3},{"$f":"MATCH(Q$3,Millwall!$AP96:$AZ96,0)","v":{"$error":"#N/A"}},{"$f":"MATCH(R$3,Millwall!$AP96:$AZ96,0)","v":7},{"$f":"MATCH(S$3,Millwall!$AP96:$AZ96,0)","v":6},{"$f":"MATCH(T$3,Millwall!$AP96:$AZ96,0)","v":11},{"$f":"MATCH(U$3,Millwall!$AP96:$AZ96,0)","v":{"$error":"#N/A"}},{"$f":"MATCH(V$3,Millwall!$AP96:$AZ96,0)","v":{"$error":"#N/A"}},{"$f":"MATCH(W$3,Millwall!$AP96:$AZ96,0)","v":2},{"$f":"MATCH(X$3,Millwall!$AP96:$AZ96,0)","v":{"$error":"#N/A"}},{"$f":"MATCH(Y$3,Millwall!$AP96:$AZ96,0)","v":{"$error":"#N/A"}},{"$f":"MATCH(Z$3,Millwall!$AP96:$AZ96,0)","v":1},{"$f":"MATCH(AA$3,Millwall!$AP96:$AZ96,0)","v":{"$error":"#N/A"}},{"$f":"MATCH(AB$3,Millwall!$AP96:$AZ96,0)","v":8},{"$f":"MATCH(AC$3,Millwall!$AP96:$AZ96,0)","v":{"$error":"#N/A"}},{"$f":"MATCH(AD$3,Millwall!$AP96:$AZ96,0)","v":10},{"$f":"MATCH(AE$3,Millwall!$AP96:$AZ96,0)","v":{"$error":"#N/A"}},{"$f":"MATCH(AF$3,Millwall!$AP96:$AZ96,0)","v":{"$error":"#N/A"}},{"$f":"MATCH(AG$3,Millwall!$AP96:$AZ96,0)","v":{"$error":"#N/A"}},{"$f":"MATCH(AH$3,Millwall!$AP96:$AZ96,0)","v":{"$error":"#N/A"}},{"$f":"MATCH(AI$3,Millwall!$AP96:$AZ96,0)","v":{"$error":"#N/A"}},{"$f":"MATCH(AJ$3,Millwall!$AP96:$AZ96,0)","v":{"$error":"#N/A"}},{"$f":"MATCH(AK$3,Millwall!$AP96:$AZ96,0)","v":{"$error":"#N/A"}},{"$f":"MATCH(AL$3,Millwall!$AP96:$AZ96,0)","v":{"$error":"#N/A"}},{"$f":"MATCH(AM$3,Millwall!$AP96:$AZ96,0)","v":{"$error":"#N/A"}},{"$f":"MATCH(AN$3,Millwall!$AP96:$AZ96,0)","v":{"$error":"#N/A"}},{"$f":"MATCH(AO$3,Millwall!$AP96:$AZ96,0)","v":{"$error":"#N/A"}},{"$f":"MATCH(AP$3,Millwall!$AP96:$AZ96,0)","v":{"$error":"#N/A"}},{"$f":"MATCH(AQ$3,Millwall!$AP96:$AZ96,0)","v":{"$error":"#N/A"}},{"$f":"MATCH(AR$3,Millwall!$AP96:$AZ96,0)","v":{"$error":"#N/A"}}]
[null,null,null,20,null,{"$f":"Millwall!AI97","v":"1938-12-24"},null,{"$f":"Millwall!AK97","v":"Chesterfield"},{"$f":"Millwall!AL97","v":"(A)"},{"$f":"Millwall!AO97","v":"L 0-3"},{"$f":"MATCH(K$3,Millwall!$AP97:$AZ97,0)","v":9},{"$f":"MATCH(L$3,Millwall!$AP97:$AZ97,0)","v":4},{"$f":"MATCH(M$3,Millwall!$AP97:$AZ97,0)","v":{"$error":"#N/A"}},{"$f":"MATCH(N$3,Millwall!$AP97:$AZ97,0)","v":5},{"$f":"MATCH(O$3,Millwall!$AP97:$AZ97,0)","v":{"$error":"#N/A"}},{"$f":"MATCH(P$3,Millwall!$AP97:$AZ97,0)","v":3},{"$f":"MATCH(Q$3,Millwall!$AP97:$AZ97,0)","v":{"$error":"#N/A"}},{"$f":"MATCH(R$3,Millwall!$AP97:$AZ97,0)","v":7},{"$f":"MATCH(S$3,Millwall!$AP97:$AZ97,0)","v":6},{"$f":"MATCH(T$3,Millwall!$AP97:$AZ97,0)","v":11},{"$f":"MATCH(U$3,Millwall!$AP97:$AZ97,0)","v":{"$error":"#N/A"}},{"$f":"MATCH(V$3,Millwall!$AP97:$AZ97,0)","v":{"$error":"#N/A"}},{"$f":"MATCH(W$3,Millwall!$AP97:$AZ97,0)","v":2},{"$f":"MATCH(X$3,Millwall!$AP97:$AZ97,0)","v":{"$error":"#N/A"}},{"$f":"MATCH(Y$3,Millwall!$AP97:$AZ97,0)","v":{"$error":"#N/A"}},{"$f":"MATCH(Z$3,Millwall!$AP97:$AZ97,0)","v":1},{"$f":"MATCH(AA$3,Millwall!$AP97:$AZ97,0)","v":{"$error":"#N/A"}},{"$f":"MATCH(AB$3,Millwall!$AP97:$AZ97,0)","v":8},{"$f":"MATCH(AC$3,Millwall!$AP97:$AZ97,0)","v":{"$error":"#N/A"}},{"$f":"MATCH(AD$3,Millwall!$AP97:$AZ97,0)","v":10},{"$f":"MATCH(AE$3,Millwall!$AP97:$AZ97,0)","v":{"$error":"#N/A"}},{"$f":"MATCH(AF$3,Millwall!$AP97:$AZ97,0)","v":{"$error":"#N/A"}},{"$f":"MATCH(AG$3,Millwall!$AP97:$AZ97,0)","v":{"$error":"#N/A"}},{"$f":"MATCH(AH$3,Millwall!$AP97:$AZ97,0)","v":{"$error":"#N/A"}},{"$f":"MATCH(AI$3,Millwall!$AP97:$AZ97,0)","v":{"$error":"#N/A"}},{"$f":"MATCH(AJ$3,Millwall!$AP97:$AZ97,0)","v":{"$error":"#N/A"}},{"$f":"MATCH(AK$3,Millwall!$AP97:$AZ97,0)","v":{"$error":"#N/A"}},{"$f":"MATCH(AL$3,Millwall!$AP97:$AZ97,0)","v":{"$error":"#N/A"}},{"$f":"MATCH(AM$3,Millwall!$AP97:$AZ97,0)","v":{"$error":"#N/A"}},{"$f":"MATCH(AN$3,Millwall!$AP97:$AZ97,0)","v":{"$error":"#N/A"}},{"$f":"MATCH(AO$3,Millwall!$AP97:$AZ97,0)","v":{"$error":"#N/A"}},{"$f":"MATCH(AP$3,Millwall!$AP97:$AZ97,0)","v":{"$error":"#N/A"}},{"$f":"MATCH(AQ$3,Millwall!$AP97:$AZ97,0)","v":{"$error":"#N/A"}},{"$f":"MATCH(AR$3,Millwall!$AP97:$AZ97,0)","v":{"$error":"#N/A"}}]
[null,null,null,21,null,{"$f":"Millwall!AI98","v":"1938-12-27"},null,{"$f":"Millwall!AK98","v":"West Ham"},{"$f":"Millwall!AL98","v":"(A)"},{"$f":"Millwall!AO98","v":"D 0-0"},{"$f":"MATCH(K$3,Millwall!$AP98:$AZ98,0)","v":10},{"$f":"MATCH(L$3,Millwall!$AP98:$AZ98,0)","v":4},{"$f":"MATCH(M$3,Millwall!$AP98:$AZ98,0)","v":{"$error":"#N/A"}},{"$f":"MATCH(N$3,Millwall!$AP98:$AZ98,0)","v":5},{"$f":"MATCH(O$3,Millwall!$AP98:$AZ98,0)","v":{"$error":"#N/A"}},{"$f":"MATCH(P$3,Millwall!$AP98:$AZ98,0)","v":3},{"$f":"MATCH(Q$3,Millwall!$AP98:$AZ98,0)","v":{"$error":"#N/A"}},{"$f":"MATCH(R$3,Millwall!$AP98:$AZ98,0)","v":{"$error":"#N/A"}},{"$f":"MATCH(S$3,Millwall!$AP98:$AZ98,0)","v":6},{"$f":"MATCH(T$3,Millwall!$AP98:$AZ98,0)","v":{"$error":"#N/A"}},{"$f":"MATCH(U$3,Millwall!$AP98:$AZ98,0)","v":{"$error":"#N/A"}},{"$f":"MATCH(V$3,Millwall!$AP98:$AZ98,0)","v":{"$error":"#N/A"}},{"$f":"MATCH(W$3,Millwall!$AP98:$AZ98,0)","v":2},{"$f":"MATCH(X$3,Millwall!$AP98:$AZ98,0)","v":{"$error":"#N/A"}},{"$f":"MATCH(Y$3,Millwall!$AP98:$AZ98,0)","v":{"$error":"#N/A"}},{"$f":"MATCH(Z$3,Millwall!$AP98:$AZ98,0)","v":1},{"$f":"MATCH(AA$3,Millwall!$AP98:$AZ98,0)","v":7},{"$f":"MATCH(AB$3,Millwall!$AP98:$AZ98,0)","v":8},{"$f":"MATCH(AC$3,Millwall!$AP98:$AZ98,0)","v":{"$error":"#N/A"}},{"$f":"MATCH(AD$3,Millwall!$AP98:$AZ98,0)","v":11},{"$f":"MATCH(AE$3,Millwall!$AP98:$AZ98,0)","v":{"$error":"#N/A"}},{"$f":"MATCH(AF$3,Millwall!$AP98:$AZ98,0)","v":{"$error":"#N/A"}},{"$f":"MATCH(AG$3,Millwall!$AP98:$AZ98,0)","v":{"$error":"#N/A"}},{"$f":"MATCH(AH$3,Millwall!$AP98:$AZ98,0)","v":9},{"$f":"MATCH(AI$3,Millwall!$AP98:$AZ98,0)","v":{"$error":"#N/A"}},{"$f":"MATCH(AJ$3,Millwall!$AP98:$AZ98,0)","v":{"$error":"#N/A"}},{"$f":"MATCH(AK$3,Millwall!$AP98:$AZ98,0)","v":{"$error":"#N/A"}},{"$f":"MATCH(AL$3,Millwall!$AP98:$AZ98,0)","v":{"$error":"#N/A"}},{"$f":"MATCH(AM$3,Millwall!$AP98:$AZ98,0)","v":{"$error":"#N/A"}},{"$f":"MATCH(AN$3,Millwall!$AP98:$AZ98,0)","v":{"$error":"#N/A"}},{"$f":"MATCH(AO$3,Millwall!$AP98:$AZ98,0)","v":{"$error":"#N/A"}},{"$f":"MATCH(AP$3,Millwall!$AP98:$AZ98,0)","v":{"$error":"#N/A"}},{"$f":"MATCH(AQ$3,Millwall!$AP98:$AZ98,0)","v":{"$error":"#N/A"}},{"$f":"MATCH(AR$3,Millwall!$AP98:$AZ98,0)","v":{"$error":"#N/A"}}]
[null,null,null,22,null,{"$f":"Millwall!AI99","v":"1938-12-31"},null,{"$f":"Millwall!AK99","v":"Swansea"},{"$f":"Millwall!AL99","v":"(H)"},{"$f":"Millwall!AO99","v":"D 1-1"},{"$f":"MATCH(K$3,Millwall!$AP99:$AZ99,0)","v":10},{"$f":"MATCH(L$3,Millwall!$AP99:$AZ99,0)","v":4},{"$f":"MATCH(M$3,Millwall!$AP99:$AZ99,0)","v":{"$error":"#N/A"}},{"$f":"MATCH(N$3,Millwall!$AP99:$AZ99,0)","v":5},{"$f":"MATCH(O$3,Millwall!$AP99:$AZ99,0)","v":{"$error":"#N/A"}},{"$f":"MATCH(P$3,Millwall!$AP99:$AZ99,0)","v":3},{"$f":"MATCH(Q$3,Millwall!$AP99:$AZ99,0)","v":{"$error":"#N/A"}},{"$f":"MATCH(R$3,Millwall!$AP99:$AZ99,0)","v":{"$error":"#N/A"}},{"$f":"MATCH(S$3,Millwall!$AP99:$AZ99,0)","v":6},{"$f":"MATCH(T$3,Millwall!$AP99:$AZ99,0)","v":{"$error":"#N/A"}},{"$f":"MATCH(U$3,Millwall!$AP99:$AZ99,0)","v":{"$error":"#N/A"}},{"$f":"MATCH(V$3,Millwall!$AP99:$AZ99,0)","v":{"$error":"#N/A"}},{"$f":"MATCH(W$3,Millwall!$AP99:$AZ99,0)","v":2},{"$f":"MATCH(X$3,Millwall!$AP99:$AZ99,0)","v":{"$error":"#N/A"}},{"$f":"MATCH(Y$3,Millwall!$AP99:$AZ99,0)","v":{"$error":"#N/A"}},{"$f":"MATCH(Z$3,Millwall!$AP99:$AZ99,0)","v":1},{"$f":"MATCH(AA$3,Millwall!$AP99:$AZ99,0)","v":7},{"$f":"MATCH(AB$3,Millwall!$AP99:$AZ99,0)","v":8},{"$f":"MATCH(AC$3,Millwall!$AP99:$AZ99,0)","v":{"$error":"#N/A"}},{"$f":"MATCH(AD$3,Millwall!$AP99:$AZ99,0)","v":11},{"$f":"MATCH(AE$3,Millwall!$AP99:$AZ99,0)","v":{"$error":"#N/A"}},{"$f":"MATCH(AF$3,Millwall!$AP99:$AZ99,0)","v":{"$error":"#N/A"}},{"$f":"MATCH(AG$3,Millwall!$AP99:$AZ99,0)","v":{"$error":"#N/A"}},{"$f":"MATCH(AH$3,Millwall!$AP99:$AZ99,0)","v":9},{"$f":"MATCH(AI$3,Millwall!$AP99:$AZ99,0)","v":{"$error":"#N/A"}},{"$f":"MATCH(AJ$3,Millwall!$AP99:$AZ99,0)","v":{"$error":"#N/A"}},{"$f":"MATCH(AK$3,Millwall!$AP99:$AZ99,0)","v":{"$error":"#N/A"}},{"$f":"MATCH(AL$3,Millwall!$AP99:$AZ99,0)","v":{"$error":"#N/A"}},{"$f":"MATCH(AM$3,Millwall!$AP99:$AZ99,0)","v":{"$error":"#N/A"}},{"$f":"MATCH(AN$3,Millwall!$AP99:$AZ99,0)","v":{"$error":"#N/A"}},{"$f":"MATCH(AO$3,Millwall!$AP99:$AZ99,0)","v":{"$error":"#N/A"}},{"$f":"MATCH(AP$3,Millwall!$AP99:$AZ99,0)","v":{"$error":"#N/A"}},{"$f":"MATCH(AQ$3,Millwall!$AP99:$AZ99,0)","v":{"$error":"#N/A"}},{"$f":"MATCH(AR$3,Millwall!$AP99:$AZ99,0)","v":{"$error":"#N/A"}}]
[null,null,null,23,null,{"$f":"Millwall!AI100","v":"1939-01-02"},null,{"$f":"Millwall!AK100","v":"Bury"},{"$f":"Millwall!AL100","v":"(A)"},{"$f":"Millwall!AO100","v":"D 1-1"},{"$f":"MATCH(K$3,Millwall!$AP100:$AZ100,0)","v":10},{"$f":"MATCH(L$3,Millwall!$AP100:$AZ100,0)","v":4},{"$f":"MATCH(M$3,Millwall!$AP100:$AZ100,0)","v":{"$error":"#N/A"}},{"$f":"MATCH(N$3,Millwall!$AP100:$AZ100,0)","v":5},{"$f":"MATCH(O$3,Millwall!$AP100:$AZ100,0)","v":{"$error":"#N/A"}},{"$f":"MATCH(P$3,Millwall!$AP100:$AZ100,0)","v":3},{"$f":"MATCH(Q$3,Millwall!$AP100:$AZ100,0)","v":{"$error":"#N/A"}},{"$f":"MATCH(R$3,Millwall!$AP100:$AZ100,0)","v":{"$error":"#N/A"}},{"$f":"MATCH(S$3,Millwall!$AP100:$AZ100,0)","v":6},{"$f":"MATCH(T$3,Millwall!$AP100:$AZ100,0)","v":{"$error":"#N/A"}},{"$f":"MATCH(U$3,Millwall!$AP100:$AZ100,0)","v":{"$error":"#N/A"}},{"$f":"MATCH(V$3,Millwall!$AP100:$AZ100,0)","v":{"$error":"#N/A"}},{"$f":"MATCH(W$3,Millwall!$AP100:$AZ100,0)","v":2},{"$f":"MATCH(X$3,Millwall!$AP100:$AZ100,0)","v":9},{"$f":"MATCH(Y$3,Millwall!$AP100:$AZ100,0)","v":{"$error":"#N/A"}},{"$f":"MATCH(Z$3,Millwall!$AP100:$AZ100,0)","v":1},{"$f":"MATCH(AA$3,Millwall!$AP100:$AZ100,0)","v":7},{"$f":"MATCH(AB$3,Millwall!$AP100:$AZ100,0)","v":8},{"$f":"MATCH(AC$3,Millwall!$AP100:$AZ100,0)","v":{"$error":"#N/A"}},{"$f":"MATCH(AD$3,Millwall!$AP100:$AZ100,0)","v":11},{"$f":"MATCH(AE$3,Millwall!$AP100:$AZ100,0)","v":{"$error":"#N/A"}},{"$f":"MATCH(AF$3,Millwall!$AP100:$AZ100,0)","v":{"$error":"#N/A"}},{"$f":"MATCH(AG$3,Millwall!$AP100:$AZ100,0)","v":{"$error":"#N/A"}},{"$f":"MATCH(AH$3,Millwall!$AP100:$AZ100,0)","v":{"$error":"#N/A"}},{"$f":"MATCH(AI$3,Millwall!$AP100:$AZ100,0)","v":{"$error":"#N/A"}},{"$f":"MATCH(AJ$3,Millwall!$AP100:$AZ100,0)","v":{"$error":"#N/A"}},{"$f":"MATCH(AK$3,Millwall!$AP100:$AZ100,0)","v":{"$error":"#N/A"}},{"$f":"MATCH(AL$3,Millwall!$AP100:$AZ100,0)","v":{"$error":"#N/A"}},{"$f":"MATCH(AM$3,Millwall!$AP100:$AZ100,0)","v":{"$error":"#N/A"}},{"$f":"MATCH(AN$3,Millwall!$AP100:$AZ100,0)","v":{"$error":"#N/A"}},{"$f":"MATCH(AO$3,Millwall!$AP100:$AZ100,0)","v":{"$error":"#N/A"}},{"$f":"MATCH(AP$3,Millwall!$AP100:$AZ100,0)","v":{"$error":"#N/A"}},{"$f":"MATCH(AQ$3,Millwall!$AP100:$AZ100,0)","v":{"$error":"#N/A"}},{"$f":"MATCH(AR$3,Millwall!$AP100:$AZ100,0)","v":{"$error":"#N/A"}}]
[null,null,null,24,null,{"$f":"Millwall!AI101","v":"1939-01-14"},null,{"$f":"Millwall!AK101","v":"Bradford PA"},{"$f":"Millwall!AL101","v":"(A)"},{"$f":"Millwall!AO101","v":"L 0-1"},{"$f":"MATCH(K$3,Millwall!$AP101:$AZ101,0)","v":10},{"$f":"MATCH(L$3,Millwall!$AP101:$AZ101,0)","v":4},{"$f":"MATCH(M$3,Millwall!$AP101:$AZ101,0)","v":{"$error":"#N/A"}},{"$f":"MATCH(N$3,Millwall!$AP101:$AZ101,0)","v":5},{"$f":"MATCH(O$3,Millwall!$AP101:$AZ101,0)","v":{"$error":"#N/A"}},{"$f":"MATCH(P$3,Millwall!$AP101:$AZ101,0)","v":3},{"$f":"MATCH(Q$3,Millwall!$AP101:$AZ101,0)","v":{"$error":"#N/A"}},{"$f":"MATCH(R$3,Millwall!$AP101:$AZ101,0)","v":{"$error":"#N/A"}},{"$f":"MATCH(S$3,Millwall!$AP101:$AZ101,0)","v":6},{"$f":"MATCH(T$3,Millwall!$AP101:$AZ101,0)","v":{"$error":"#N/A"}},{"$f":"MATCH(U$3,Millwall!$AP101:$AZ101,0)","v":{"$error":"#N/A"}},{"$f":"MATCH(V$3,Millwall!$AP101:$AZ101,0)","v":{"$error":"#N/A"}},{"$f":"MATCH(W$3,Millwall!$AP101:$AZ101,0)","v":2},{"$f":"MATCH(X$3,Millwall!$AP101:$AZ101,0)","v":9},{"$f":"MATCH(Y$3,Millwall!$AP101:$AZ101,0)","v":{"$error":"#N/A"}},{"$f":"MATCH(Z$3,Millwall!$AP101:$AZ101,0)","v":1},{"$f":"MATCH(AA$3,Millwall!$AP101:$AZ101,0)","v":7},{"$f":"MATCH(AB$3,Millwall!$AP101:$AZ101,0)","v":8},{"$f":"MATCH(AC$3,Millwall!$AP101:$AZ101,0)","v":{"$error":"#N/A"}},{"$f":"MATCH(AD$3,Millwall!$AP101:$AZ101,0)","v":11},{"$f":"MATCH(AE$3,Millwall!$AP101:$AZ101,0)","v":{"$error":"#N/A"}},{"$f":"MATCH(AF$3,Millwall!$AP101:$AZ101,0)","v":{"$error":"#N/A"}},{"$f":"MATCH(AG$3,Millwall!$AP101:$AZ101,0)","v":{"$error":"#N/A"}},{"$f":"MATCH(AH$3,Millwall!$AP101:$AZ101,0)","v":{"$error":"#N/A"}},{"$f":"MATCH(AI$3,Millwall!$AP101:$AZ101,0)","v":{"$error":"#N/A"}},{"$f":"MATCH(AJ$3,Millwall!$AP101:$AZ101,0)","v":{"$error":"#N/A"}},{"$f":"MATCH(AK$3,Millwall!$AP101:$AZ101,0)","v":{"$error":"#N/A"}},{"$f":"MATCH(AL$3,Millwall!$AP101:$AZ101,0)","v":{"$error":"#N/A"}},{"$f":"MATCH(AM$3,Millwall!$AP101:$AZ101,0)","v":{"$error":"#N/A"}},{"$f":"MATCH(AN$3,Millwall!$AP101:$AZ101,0)","v":{"$error":"#N/A"}},{"$f":"MATCH(AO$3,Millwall!$AP101:$AZ101,0)","v":{"$error":"#N/A"}},{"$f":"MATCH(AP$3,Millwall!$AP101:$AZ101,0)","v":{"$error":"#N/A"}},{"$f":"MATCH(AQ$3,Millwall!$AP101:$AZ101,0)","v":{"$error":"#N/A"}},{"$f":"MATCH(AR$3,Millwall!$AP101:$AZ101,0)","v":{"$error":"#N/A"}}]
[null,null,null,25,null,{"$f":"Millwall!AI102","v":"1939-01-28"},null,{"$f":"Millwall!AK102","v":"Plymouth"},{"$f":"Millwall!AL102","v":"(A)"},{"$f":"Millwall!AO102","v":"D 2-2"},{"$f":"MATCH(K$3,Millwall!$AP102:$AZ102,0)","v":10},{"$f":"MATCH(L$3,Millwall!$AP102:$AZ102,0)","v":4},{"$f":"MATCH(M$3,Millwall!$AP102:$AZ102,0)","v":1},{"$f":"MATCH(N$3,Millwall!$AP102:$AZ102,0)","v":5},{"$f":"MATCH(O$3,Millwall!$AP102:$AZ102,0)","v":{"$error":"#N/A"}},{"$f":"MATCH(P$3,Millwall!$AP102:$AZ102,0)","v":3},{"$f":"MATCH(Q$3,Millwall!$AP102:$AZ102,0)","v":{"$error":"#N/A"}},{"$f":"MATCH(R$3,Millwall!$AP102:$AZ102,0)","v":{"$error":"#N/A"}},{"$f":"MATCH(S$3,Millwall!$AP102:$AZ102,0)","v":6},{"$f":"MATCH(T$3,Millwall!$AP102:$AZ102,0)","v":{"$error":"#N/A"}},{"$f":"MATCH(U$3,Millwall!$AP102:$AZ102,0)","v":{"$error":"#N/A"}},{"$f":"MATCH(V$3,Millwall!$AP102:$AZ102,0)","v":{"$error":"#N/A"}},{"$f":"MATCH(W$3,Millwall!$AP102:$AZ102,0)","v":2},{"$f":"MATCH(X$3,Millwall!$AP102:$AZ102,0)","v":9},{"$f":"MATCH(Y$3,Millwall!$AP102:$AZ102,0)","v":{"$error":"#N/A"}},{"$f":"MATCH(Z$3,Millwall!$AP102:$AZ102,0)","v":{"$error":"#N/A"}},{"$f":"MATCH(AA$3,Millwall!$AP102:$AZ102,0)","v":7},{"$f":"MATCH(AB$3,Millwall!$AP102:$AZ102,0)","v":8},{"$f":"MATCH(AC$3,Millwall!$AP102:$AZ102,0)","v":{"$error":"#N/A"}},{"$f":"MATCH(AD$3,Millwall!$AP102:$AZ102,0)","v":11},{"$f":"MATCH(AE$3,Millwall!$AP102:$AZ102,0)","v":{"$error":"#N/A"}},{"$f":"MATCH(AF$3,Millwall!$AP102:$AZ102,0)","v":{"$error":"#N/A"}},{"$f":"MATCH(AG$3,Millwall!$AP102:$AZ102,0)","v":{"$error":"#N/A"}},{"$f":"MATCH(AH$3,Millwall!$AP102:$AZ102,0)","v":{"$error":"#N/A"}},{"$f":"MATCH(AI$3,Millwall!$AP102:$AZ102,0)","v":{"$error":"#N/A"}},{"$f":"MATCH(AJ$3,Millwall!$AP102:$AZ102,0)","v":{"$error":"#N/A"}},{"$f":"MATCH(AK$3,Millwall!$AP102:$AZ102,0)","v":{"$error":"#N/A"}},{"$f":"MATCH(AL$3,Millwall!$AP102:$AZ102,0)","v":{"$error":"#N/A"}},{"$f":"MATCH(AM$3,Millwall!$AP102:$AZ102,0)","v":{"$error":"#N/A"}},{"$f":"MATCH(AN$3,Millwall!$AP102:$AZ102,0)","v":{"$error":"#N/A"}},{"$f":"MATCH(AO$3,Millwall!$AP102:$AZ102,0)","v":{"$error":"#N/A"}},{"$f":"MATCH(AP$3,Millwall!$AP102:$AZ102,0)","v":{"$error":"#N/A"}},{"$f":"MATCH(AQ$3,Millwall!$AP102:$AZ102,0)","v":{"$error":"#N/A"}},{"$f":"MATCH(AR$3,Millwall!$AP102:$AZ102,0)","v":{"$error":"#N/A"}}]
[null,null,null,26,null,{"$f":"Millwall!AI103","v":"1939-02-04"},null,{"$f":"Millwall!AK103","v":"Blackburn"},{"$f":"Millwall!AL103","v":"(A)"},{"$f":"Millwall!AO103","v":"L 1-3"},{"$f":"MATCH(K$3,Millwall!$AP103:$AZ103,0)","v":10},{"$f":"MATCH(L$3,Millwall!$AP103:$AZ103,0)","v":4},{"$f":"MATCH(M$3,Millwall!$AP103:$AZ103,0)","v":1},{"$f":"MATCH(N$3,Millwall!$AP103:$AZ103,0)","v":5},{"$f":"MATCH(O$3,Millwall!$AP103:$AZ103,0)","v":{"$error":"#N/A"}},{"$f":"MATCH(P$3,Millwall!$AP103:$AZ103,0)","v":3},{"$f":"MATCH(Q$3,Millwall!$AP103:$AZ103,0)","v":{"$error":"#N/A"}},{"$f":"MATCH(R$3,Millwall!$AP103:$AZ103,0)","v":{"$error":"#N/A"}},{"$f":"MATCH(S$3,Millwall!$AP103:$AZ103,0)","v":6},{"$f":"MATCH(T$3,Millwall!$AP103:$AZ103,0)","v":{"$error":"#N/A"}},{"$f":"MATCH(U$3,Millwall!$AP103:$AZ103,0)","v":{"$error":"#N/A"}},{"$f":"MATCH(V$3,Millwall!$AP103:$AZ103,0)","v":{"$error":"#N/A"}},{"$f":"MATCH(W$3,Millwall!$AP103:$AZ103,0)","v":2},{"$f":"MATCH(X$3,Millwall!$AP103:$AZ103,0)","v":9},{"$f":"MATCH(Y$3,Millwall!$AP103:$AZ103,0)","v":{"$error":"#N/A"}},{"$f":"MATCH(Z$3,Millwall!$AP103:$AZ103,0)","v":{"$error":"#N/A"}},{"$f":"MATCH(AA$3,Millwall!$AP103:$AZ103,0)","v":7},{"$f":"MATCH(AB$3,Millwall!$AP103:$AZ103,0)","v":8},{"$f":"MATCH(AC$3,Millwall!$AP103:$AZ103,0)","v":{"$error":"#N/A"}},{"$f":"MATCH(AD$3,Millwall!$AP103:$AZ103,0)","v":11},{"$f":"MATCH(AE$3,Millwall!$AP103:$AZ103,0)","v":{"$error":"#N/A"}},{"$f":"MATCH(AF$3,Millwall!$AP103:$AZ103,0)","v":{"$error":"#N/A"}},{"$f":"MATCH(AG$3,Millwall!$AP103:$AZ103,0)","v":{"$error":"#N/A"}},{"$f":"MATCH(AH$3,Millwall!$AP103:$AZ103,0)","v":{"$error":"#N/A"}},{"$f":"MATCH(AI$3,Millwall!$AP103:$AZ103,0)","v":{"$error":"#N/A"}},{"$f":"MATCH(AJ$3,Millwall!$AP103:$AZ103,0)","v":{"$error":"#N/A"}},{"$f":"MATCH(AK$3,Millwall!$AP103:$AZ103,0)","v":{"$error":"#N/A"}},{"$f":"MATCH(AL$3,Millwall!$AP103:$AZ103,0)","v":{"$error":"#N/A"}},{"$f":"MATCH(AM$3,Millwall!$AP103:$AZ103,0)","v":{"$error":"#N/A"}},{"$f":"MATCH(AN$3,Millwall!$AP103:$AZ103,0)","v":{"$error":"#N/A"}},{"$f":"MATCH(AO$3,Millwall!$AP103:$AZ103,0)","v":{"$error":"#N/A"}},{"$f":"MATCH(AP$3,Millwall!$AP103:$AZ103,0)","v":{"$error":"#N/A"}},{"$f":"MATCH(AQ$3,Millwall!$AP103:$AZ103,0)","v":{"$error":"#N/A"}},{"$f":"MATCH(AR$3,Millwall!$AP103:$AZ103,0)","v":{"$error":"#N/A"}}]
[null,null,null,27,null,{"$f":"Millwall!AI104","v":"1939-02-11"},null,{"$f":"Millwall!AK104","v":"Fulham"},{"$f":"Millwall!AL104","v":"(H)"},{"$f":"Millwall!AO104","v":"D 1-1"},{"$f":"MATCH(K$3,Millwall!$AP104:$AZ104,0)","v":10},{"$f":"MATCH(L$3,Millwall!$AP104:$AZ104,0)","v":4},{"$f":"MATCH(M$3,Millwall!$AP104:$AZ104,0)","v":{"$error":"#N/A"}},{"$f":"MATCH(N$3,Millwall!$AP104:$AZ104,0)","v":5},{"$f":"MATCH(O$3,Millwall!$AP104:$AZ104,0)","v":{"$error":"#N/A"}},{"$f":"MATCH(P$3,Millwall!$AP104:$AZ104,0)","v":{"$error":"#N/A"}},{"$f":"MATCH(Q$3,Millwall!$AP104:$AZ104,0)","v":{"$error":"#N/A"}},{"$f":"MATCH(R$3,Millwall!$AP104:$AZ104,0)","v":{"$error":"#N/A"}},{"$f":"MATCH(S$3,Millwall!$AP104:$AZ104,0)","v":6},{"$f":"MATCH(T$3,Millwall!$AP104:$AZ104,0)","v":{"$error":"#N/A"}},{"$f":"MATCH(U$3,Millwall!$AP104:$AZ104,0)","v":{"$error":"#N/A"}},{"$f":"MATCH(V$3,Millwall!$AP104:$AZ104,0)","v":{"$error":"#N/A"}},{"$f":"MATCH(W$3,Millwall!$AP104:$AZ104,0)","v":2},{"$f":"MATCH(X$3,Millwall!$AP104:$AZ104,0)","v":9},{"$f":"MATCH(Y$3,Millwall!$AP104:$AZ104,0)","v":{"$error":"#N/A"}},{"$f":"MATCH(Z$3,Millwall!$AP104:$AZ104,0)","v":{"$error":"#N/A"}},{"$f":"MATCH(AA$3,Millwall!$AP104:$AZ104,0)","v":7},{"$f":"MATCH(AB$3,Millwall!$AP104:$AZ104,0)","v":8},{"$f":"MATCH(AC$3,Millwall!$AP104:$AZ104,0)","v":3},{"$f":"MATCH(AD$3,Millwall!$AP104:$AZ104,0)","v":11},{"$f":"MATCH(AE$3,Millwall!$AP104:$AZ104,0)","v":{"$error":"#N/A"}},{"$f":"MATCH(AF$3,Millwall!$AP104:$AZ104,0)","v":{"$error":"#N/A"}},{"$f":"MATCH(AG$3,Millwall!$AP104:$AZ104,0)","v":{"$error":"#N/A"}},{"$f":"MATCH(AH$3,Millwall!$AP104:$AZ104,0)","v":{"$error":"#N/A"}},{"$f":"MATCH(AI$3,Millwall!$AP104:$AZ104,0)","v":{"$error":"#N/A"}},{"$f":"MATCH(AJ$3,Millwall!$AP104:$AZ104,0)","v":1},{"$f":"MATCH(AK$3,Millwall!$AP104:$AZ104,0)","v":{"$error":"#N/A"}},{"$f":"MATCH(AL$3,Millwall!$AP104:$AZ104,0)","v":{"$error":"#N/A"}},{"$f":"MATCH(AM$3,Millwall!$AP104:$AZ104,0)","v":{"$error":"#N/A"}},{"$f":"MATCH(AN$3,Millwall!$AP104:$AZ104,0)","v":{"$error":"#N/A"}},{"$f":"MATCH(AO$3,Millwall!$AP104:$AZ104,0)","v":{"$error":"#N/A"}},{"$f":"MATCH(AP$3,Millwall!$AP104:$AZ104,0)","v":{"$error":"#N/A"}},{"$f":"MATCH(AQ$3,Millwall!$AP104:$AZ104,0)","v":{"$error":"#N/A"}},{"$f":"MATCH(AR$3,Millwall!$AP104:$AZ104,0)","v":{"$error":"#N/A"}}]
[null,null,null,28,null,{"$f":"Millwall!AI105","v":"1939-02-18"},null,{"$f":"Millwall!AK105","v":"Sheff Utd"},{"$f":"Millwall!AL105","v":"(H)"},{"$f":"Millwall!AO105","v":"W 4-0"},{"$f":"MATCH(K$3,Millwall!$AP105:$AZ105,0)","v":10},{"$f":"MATCH(L$3,Millwall!$AP105:$AZ105,0)","v":4},{"$f":"MATCH(M$3,Millwall!$AP105:$AZ105,0)","v":{"$error":"#N/A"}},{"$f":"MATCH(N$3,Millwall!$AP105:$AZ105,0)","v":5},{"$f":"MATCH(O$3,Millwall!$AP105:$AZ105,0)","v":{"$error":"#N/A"}},{"$f":"MATCH(P$3,Millwall!$AP105:$AZ105,0)","v":{"$error":"#N/A"}},{"$f":"MATCH(Q$3,Millwall!$AP105:$AZ105,0)","v":{"$error":"#N/A"}},{"$f":"MATCH(R$3,Millwall!$AP105:$AZ105,0)","v":7},{"$f":"MATCH(S$3,Millwall!$AP105:$AZ105,0)","v":6},{"$f":"MATCH(T$3,Millwall!$AP105:$AZ105,0)","v":{"$error":"#N/A"}},{"$f":"MATCH(U$3,Millwall!$AP105:$AZ105,0)","v":{"$error":"#N/A"}},{"$f":"MATCH(V$3,Millwall!$AP105:$AZ105,0)","v":{"$error":"#N/A"}},{"$f":"MATCH(W$3,Millwall!$AP105:$AZ105,0)","v":2},{"$f":"MATCH(X$3,Millwall!$AP105:$AZ105,0)","v":9},{"$f":"MATCH(Y$3,Millwall!$AP105:$AZ105,0)","v":{"$error":"#N/A"}},{"$f":"MATCH(Z$3,Millwall!$AP105:$AZ105,0)","v":{"$error":"#N/A"}},{"$f":"MATCH(AA$3,Millwall!$AP105:$AZ105,0)","v":{"$error":"#N/A"}},{"$f":"MATCH(AB$3,Millwall!$AP105:$AZ105,0)","v":8},{"$f":"MATCH(AC$3,Millwall!$AP105:$AZ105,0)","v":3},{"$f":"MATCH(AD$3,Millwall!$AP105:$AZ105,0)","v":11},{"$f":"MATCH(AE$3,Millwall!$AP105:$AZ105,0)","v":{"$error":"#N/A"}},{"$f":"MATCH(AF$3,Millwall!$AP105:$AZ105,0)","v":{"$error":"#N/A"}},{"$f":"MATCH(AG$3,Millwall!$AP105:$AZ105,0)","v":{"$error":"#N/A"}},{"$f":"MATCH(AH$3,Millwall!$AP105:$AZ105,0)","v":{"$error":"#N/A"}},{"$f":"MATCH(AI$3,Millwall!$AP105:$AZ105,0)","v":{"$error":"#N/A"}},{"$f":"MATCH(AJ$3,Millwall!$AP105:$AZ105,0)","v":1},{"$f":"MATCH(AK$3,Millwall!$AP105:$AZ105,0)","v":{"$error":"#N/A"}},{"$f":"MATCH(AL$3,Millwall!$AP105:$AZ105,0)","v":{"$error":"#N/A"}},{"$f":"MATCH(AM$3,Millwall!$AP105:$AZ105,0)","v":{"$error":"#N/A"}},{"$f":"MATCH(AN$3,Millwall!$AP105:$AZ105,0)","v":{"$error":"#N/A"}},{"$f":"MATCH(AO$3,Millwall!$AP105:$AZ105,0)","v":{"$error":"#N/A"}},{"$f":"MATCH(AP$3,Millwall!$AP105:$AZ105,0)","v":{"$error":"#N/A"}},{"$f":"MATCH(AQ$3,Millwall!$AP105:$AZ105,0)","v":{"$error":"#N/A"}},{"$f":"MATCH(AR$3,Millwall!$AP105:$AZ105,0)","v":{"$error":"#N/A"}}]
[null,null,null,29,null,{"$f":"Millwall!AI106","v":"1939-02-25"},null,{"$f":"Millwall!AK106","v":"Burnley"},{"$f":"Millwall!AL106","v":"(A)"},{"$f":"Millwall!AO106","v":"L 0-2"},{"$f":"MATCH(K$3,Millwall!$AP106:$AZ106,0)","v":10},{"$f":"MATCH(L$3,Millwall!$AP106:$AZ106,0)","v":4},{"$f":"MATCH(M$3,Millwall!$AP106:$AZ106,0)","v":{"$error":"#N/A"}},{"$f":"MATCH(N$3,Millwall!$AP106:$AZ106,0)","v":5},{"$f":"MATCH(O$3,Millwall!$AP106:$AZ106,0)","v":{"$error":"#N/A"}},{"$f":"MATCH(P$3,Millwall!$AP106:$AZ106,0)","v":{"$error":"#N/A"}},{"$f":"MATCH(Q$3,Millwall!$AP106:$AZ106,0)","v":{"$error":"#N/A"}},{"$f":"MATCH(R$3,Millwall!$AP106:$AZ106,0)","v":7},{"$f":"MATCH(S$3,Millwall!$AP106:$AZ106,0)","v":6},{"$f":"MATCH(T$3,Millwall!$AP106:$AZ106,0)","v":{"$error":"#N/A"}},{"$f":"MATCH(U$3,Millwall!$AP106:$AZ106,0)","v":{"$error":"#N/A"}},{"$f":"MATCH(V$3,Millwall!$AP106:$AZ106,0)","v":{"$error":"#N/A"}},{"$f":"MATCH(W$3,Millwall!$AP106:$AZ106,0)","v":2},{"$f":"MATCH(X$3,Millwall!$AP106:$AZ106,0)","v":9},{"$f":"MATCH(Y$3,Millwall!$AP106:$AZ106,0)","v":{"$error":"#N/A"}},{"$f":"MATCH(Z$3,Millwall!$AP106:$AZ106,0)","v":{"$error":"#N/A"}},{"$f":"MATCH(AA$3,Millwall!$AP106:$AZ106,0)","v":{"$error":"#N/A"}},{"$f":"MATCH(AB$3,Millwall!$AP106:$AZ106,0)","v":8},{"$f":"MATCH(AC$3,Millwall!$AP106:$AZ106,0)","v":3},{"$f":"MATCH(AD$3,Millwall!$AP106:$AZ106,0)","v":11},{"$f":"MATCH(AE$3,Millwall!$AP106:$AZ106,0)","v":{"$error":"#N/A"}},{"$f":"MATCH(AF$3,Millwall!$AP106:$AZ106,0)","v":{"$error":"#N/A"}},{"$f":"MATCH(AG$3,Millwall!$AP106:$AZ106,0)","v":{"$error":"#N/A"}},{"$f":"MATCH(AH$3,Millwall!$AP106:$AZ106,0)","v":{"$error":"#N/A"}},{"$f":"MATCH(AI$3,Millwall!$AP106:$AZ106,0)","v":{"$error":"#N/A"}},{"$f":"MATCH(AJ$3,Millwall!$AP106:$AZ106,0)","v":1},{"$f":"MATCH(AK$3,Millwall!$AP106:$AZ106,0)","v":{"$error":"#N/A"}},{"$f":"MATCH(AL$3,Millwall!$AP106:$AZ106,0)","v":{"$error":"#N/A"}},{"$f":"MATCH(AM$3,Millwall!$AP106:$AZ106,0)","v":{"$error":"#N/A"}},{"$f":"MATCH(AN$3,Millwall!$AP106:$AZ106,0)","v":{"$error":"#N/A"}},{"$f":"MATCH(AO$3,Millwall!$AP106:$AZ106,0)","v":{"$error":"#N/A"}},{"$f":"MATCH(AP$3,Millwall!$AP106:$AZ106,0)","v":{"$error":"#N/A"}},{"$f":"MATCH(AQ$3,Millwall!$AP106:$AZ106,0)","v":{"$error":"#N/A"}},{"$f":"MATCH(AR$3,Millwall!$AP106:$AZ106,0)","v":{"$error":"#N/A"}}]
[null,null,null,30,null,{"$f":"Millwall!AI107","v":"1939-03-04"},null,{"$f":"Millwall!AK107","v":"Norwich"},{"$f":"Millwall!AL107","v":"(H)"},{"$f":"Millwall!AO107","v":"W 6-0"},{"$f":"MATCH(K$3,Millwall!$AP107:$AZ107,0)","v":10},{"$f":"MATCH(L$3,Millwall!$AP107:$AZ107,0)","v":4},{"$f":"MATCH(M$3,Millwall!$AP107:$AZ107,0)","v":{"$error":"#N/A"}},{"$f":"MATCH(N$3,Millwall!$AP107:$AZ107,0)","v":5},{"$f":"MATCH(O$3,Millwall!$AP107:$AZ107,0)","v":{"$error":"#N/A"}},{"$f":"MATCH(P$3,Millwall!$AP107:$AZ107,0)","v":{"$error":"#N/A"}},{"$f":"MATCH(Q$3,Millwall!$AP107:$AZ107,0)","v":{"$error":"#N/A"}},{"$f":"MATCH(R$3,Millwall!$AP107:$AZ107,0)","v":7},{"$f":"MATCH(S$3,Millwall!$AP107:$AZ107,0)","v":6},{"$f":"MATCH(T$3,Millwall!$AP107:$AZ107,0)","v":{"$error":"#N/A"}},{"$f":"MATCH(U$3,Millwall!$AP107:$AZ107,0)","v":{"$error":"#N/A"}},{"$f":"MATCH(V$3,Millwall!$AP107:$AZ107,0)","v":{"$error":"#N/A"}},{"$f":"MATCH(W$3,Millwall!$AP107:$AZ107,0)","v":2},{"$f":"MATCH(X$3,Millwall!$AP107:$AZ107,0)","v":9},{"$f":"MATCH(Y$3,Millwall!$AP107:$AZ107,0)","v":{"$error":"#N/A"}},{"$f":"MATCH(Z$3,Millwall!$AP107:$AZ107,0)","v":{"$error":"#N/A"}},{"$f":"MATCH(AA$3,Millwall!$AP107:$AZ107,0)","v":{"$error":"#N/A"}},{"$f":"MATCH(AB$3,Millwall!$AP107:$AZ107,0)","v":8},{"$f":"MATCH(AC$3,Millwall!$AP107:$AZ107,0)","v":3},{"$f":"MATCH(AD$3,Millwall!$AP107:$AZ107,0)","v":11},{"$f":"MATCH(AE$3,Millwall!$AP107:$AZ107,0)","v":{"$error":"#N/A"}},{"$f":"MATCH(AF$3,Millwall!$AP107:$AZ107,0)","v":{"$error":"#N/A"}},{"$f":"MATCH(AG$3,Millwall!$AP107:$AZ107,0)","v":{"$error":"#N/A"}},{"$f":"MATCH(AH$3,Millwall!$AP107:$AZ107,0)","v":{"$error":"#N/A"}},{"$f":"MATCH(AI$3,Millwall!$AP107:$AZ107,0)","v":{"$error":"#N/A"}},{"$f":"MATCH(AJ$3,Millwall!$AP107:$AZ107,0)","v":1},{"$f":"MATCH(AK$3,Millwall!$AP107:$AZ107,0)","v":{"$error":"#N/A"}},{"$f":"MATCH(AL$3,Millwall!$AP107:$AZ107,0)","v":{"$error":"#N/A"}},{"$f":"MATCH(AM$3,Millwall!$AP107:$AZ107,0)","v":{"$error":"#N/A"}},{"$f":"MATCH(AN$3,Millwall!$AP107:$AZ107,0)","v":{"$error":"#N/A"}},{"$f":"MATCH(AO$3,Millwall!$AP107:$AZ107,0)","v":{"$error":"#N/A"}},{"$f":"MATCH(AP$3,Millwall!$AP107:$AZ107,0)","v":{"$error":"#N/A"}},{"$f":"MATCH(AQ$3,Millwall!$AP107:$AZ107,0)","v":{"$error":"#N/A"}},{"$f":"MATCH(AR$3,Millwall!$AP107:$AZ107,0)","v":{"$error":"#N/A"}}]
[null,null,null,31,null,{"$f":"Millwall!AI108","v":"1939-03-11"},null,{"$f":"Millwall!AK108","v":"Southampton"},{"$f":"Millwall!AL108","v":"(A)"},{"$f":"Millwall!AO108","v":"D 1-1"},{"$f":"MATCH(K$3,Millwall!$AP108:$AZ108,0)","v":10},{"$f":"MATCH(L$3,Millwall!$AP108:$AZ108,0)","v":4},{"$f":"MATCH(M$3,Millwall!$AP108:$AZ108,0)","v":{"$error":"#N/A"}},{"$f":"MATCH(N$3,Millwall!$AP108:$AZ108,0)","v":5},{"$f":"MATCH(O$3,Millwall!$AP108:$AZ108,0)","v":{"$error":"#N/A"}},{"$f":"MATCH(P$3,Millwall!$AP108:$AZ108,0)","v":{"$error":"#N/A"}},{"$f":"MATCH(Q$3,Millwall!$AP108:$AZ108,0)","v":{"$error":"#N/A"}},{"$f":"MATCH(R$3,Millwall!$AP108:$AZ108,0)","v":7},{"$f":"MATCH(S$3,Millwall!$AP108:$AZ108,0)","v":6},{"$f":"MATCH(T$3,Millwall!$AP108:$AZ108,0)","v":{"$error":"#N/A"}},{"$f":"MATCH(U$3,Millwall!$AP108:$AZ108,0)","v":{"$error":"#N/A"}},{"$f":"MATCH(V$3,Millwall!$AP108:$AZ108,0)","v":{"$error":"#N/A"}},{"$f":"MATCH(W$3,Millwall!$AP108:$AZ108,0)","v":2},{"$f":"MATCH(X$3,Millwall!$AP108:$AZ108,0)","v":9},{"$f":"MATCH(Y$3,Millwall!$AP108:$AZ108,0)","v":{"$error":"#N/A"}},{"$f":"MATCH(Z$3,Millwall!$AP108:$AZ108,0)","v":{"$error":"#N/A"}},{"$f":"MATCH(AA$3,Millwall!$AP108:$AZ108,0)","v":{"$error":"#N/A"}},{"$f":"MATCH(AB$3,Millwall!$AP108:$AZ108,0)","v":8},{"$f":"MATCH(AC$3,Millwall!$AP108:$AZ108,0)","v":3},{"$f":"MATCH(AD$3,Millwall!$AP108:$AZ108,0)","v":11},{"$f":"MATCH(AE$3,Millwall!$AP108:$AZ108,0)","v":{"$error":"#N/A"}},{"$f":"MATCH(AF$3,Millwall!$AP108:$AZ108,0)","v":{"$error":"#N/A"}},{"$f":"MATCH(AG$3,Millwall!$AP108:$AZ108,0)","v":{"$error":"#N/A"}},{"$f":"MATCH(AH$3,Millwall!$AP108:$AZ108,0)","v":{"$error":"#N/A"}},{"$f":"MATCH(AI$3,Millwall!$AP108:$AZ108,0)","v":{"$error":"#N/A"}},{"$f":"MATCH(AJ$3,Millwall!$AP108:$AZ108,0)","v":1},{"$f":"MATCH(AK$3,Millwall!$AP108:$AZ108,0)","v":{"$error":"#N/A"}},{"$f":"MATCH(AL$3,Millwall!$AP108:$AZ108,0)","v":{"$error":"#N/A"}},{"$f":"MATCH(AM$3,Millwall!$AP108:$AZ108,0)","v":{"$error":"#N/A"}},{"$f":"MATCH(AN$3,Millwall!$AP108:$AZ108,0)","v":{"$error":"#N/A"}},{"$f":"MATCH(AO$3,Millwall!$AP108:$AZ108,0)","v":{"$error":"#N/A"}},{"$f":"MATCH(AP$3,Millwall!$AP108:$AZ108,0)","v":{"$error":"#N/A"}},{"$f":"MATCH(AQ$3,Millwall!$AP108:$AZ108,0)","v":{"$error":"#N/A"}},{"$f":"MATCH(AR$3,Millwall!$AP108:$AZ108,0)","v":{"$error":"#N/A"}}]
[null,null,null,32,null,{"$f":"Millwall!AI109","v":"1939-03-13"},null,{"$f":"Millwall!AK109","v":"Man City"},{"$f":"Millwall!AL109","v":"(H)"},{"$f":"Millwall!AO109","v":"W 3-1"},{"$f":"MATCH(K$3,Millwall!$AP109:$AZ109,0)","v":8},{"$f":"MATCH(L$3,Millwall!$AP109:$AZ109,0)","v":4},{"$f":"MATCH(M$3,Millwall!$AP109:$AZ109,0)","v":{"$error":"#N/A"}},{"$f":"MATCH(N$3,Millwall!$AP109:$AZ109,0)","v":5},{"$f":"MATCH(O$3,Millwall!$AP109:$AZ109,0)","v":{"$error":"#N/A"}},{"$f":"MATCH(P$3,Millwall!$AP109:$AZ109,0)","v":{"$error":"#N/A"}},{"$f":"MATCH(Q$3,Millwall!$AP109:$AZ109,0)","v":{"$error":"#N/A"}},{"$f":"MATCH(R$3,Millwall!$AP109:$AZ109,0)","v":{"$error":"#N/A"}},{"$f":"MATCH(S$3,Millwall!$AP109:$AZ109,0)","v":6},{"$f":"MATCH(T$3,Millwall!$AP109:$AZ109,0)","v":{"$error":"#N/A"}},{"$f":"MATCH(U$3,Millwall!$AP109:$AZ109,0)","v":{"$error":"#N/A"}},{"$f":"MATCH(V$3,Millwall!$AP109:$AZ109,0)","v":{"$error":"#N/A"}},{"$f":"MATCH(W$3,Millwall!$AP109:$AZ109,0)","v":2},{"$f":"MATCH(X$3,Millwall!$AP109:$AZ109,0)","v":9},{"$f":"MATCH(Y$3,Millwall!$AP109:$AZ109,0)","v":{"$error":"#N/A"}},{"$f":"MATCH(Z$3,Millwall!$AP109:$AZ109,0)","v":{"$error":"#N/A"}},{"$f":"MATCH(AA$3,Millwall!$AP109:$AZ109,0)","v":7},{"$f":"MATCH(AB$3,Millwall!$AP109:$AZ109,0)","v":{"$error":"#N/A"}},{"$f":"MATCH(AC$3,Millwall!$AP109:$AZ109,0)","v":3},{"$f":"MATCH(AD$3,Millwall!$AP109:$AZ109,0)","v":10},{"$f":"MATCH(AE$3,Millwall!$AP109:$AZ109,0)","v":{"$error":"#N/A"}},{"$f":"MATCH(AF$3,Millwall!$AP109:$AZ109,0)","v":11},{"$f":"MATCH(AG$3,Millwall!$AP109:$AZ109,0)","v":{"$error":"#N/A"}},{"$f":"MATCH(AH$3,Millwall!$AP109:$AZ109,0)","v":{"$error":"#N/A"}},{"$f":"MATCH(AI$3,Millwall!$AP109:$AZ109,0)","v":{"$error":"#N/A"}},{"$f":"MATCH(AJ$3,Millwall!$AP109:$AZ109,0)","v":1},{"$f":"MATCH(AK$3,Millwall!$AP109:$AZ109,0)","v":{"$error":"#N/A"}},{"$f":"MATCH(AL$3,Millwall!$AP109:$AZ109,0)","v":{"$error":"#N/A"}},{"$f":"MATCH(AM$3,Millwall!$AP109:$AZ109,0)","v":{"$error":"#N/A"}},{"$f":"MATCH(AN$3,Millwall!$AP109:$AZ109,0)","v":{"$error":"#N/A"}},{"$f":"MATCH(AO$3,Millwall!$AP109:$AZ109,0)","v":{"$error":"#N/A"}},{"$f":"MATCH(AP$3,Millwall!$AP109:$AZ109,0)","v":{"$error":"#N/A"}},{"$f":"MATCH(AQ$3,Millwall!$AP109:$AZ109,0)","v":{"$error":"#N/A"}},{"$f":"MATCH(AR$3,Millwall!$AP109:$AZ109,0)","v":{"$error":"#N/A"}}]
[null,null,null,33,null,{"$f":"Millwall!AI110","v":"1939-03-18"},null,{"$f":"Millwall!AK110","v":"Coventry"},{"$f":"Millwall!AL110","v":"(H)"},{"$f":"Millwall!AO110","v":"D 0-0"},{"$f":"MATCH(K$3,Millwall!$AP110:$AZ110,0)","v":{"$error":"#N/A"}},{"$f":"MATCH(L$3,Millwall!$AP110:$AZ110,0)","v":4},{"$f":"MATCH(M$3,Millwall!$AP110:$AZ110,0)","v":{"$error":"#N/A"}},{"$f":"MATCH(N$3,Millwall!$AP110:$AZ110,0)","v":5},{"$f":"MATCH(O$3,Millwall!$AP110:$AZ110,0)","v":{"$error":"#N/A"}},{"$f":"MATCH(P$3,Millwall!$AP110:$AZ110,0)","v":{"$error":"#N/A"}},{"$f":"MATCH(Q$3,Millwall!$AP110:$AZ110,0)","v":8},{"$f":"MATCH(R$3,Millwall!$AP110:$AZ110,0)","v":7},{"$f":"MATCH(S$3,Millwall!$AP110:$AZ110,0)","v":6},{"$f":"MATCH(T$3,Millwall!$AP110:$AZ110,0)","v":{"$error":"#N/A"}},{"$f":"MATCH(U$3,Millwall!$AP110:$AZ110,0)","v":{"$error":"#N/A"}},{"$f":"MATCH(V$3,Millwall!$AP110:$AZ110,0)","v":{"$error":"#N/A"}},{"$f":"MATCH(W$3,Millwall!$AP110:$AZ110,0)","v":2},{"$f":"MATCH(X$3,Millwall!$AP110:$AZ110,0)","v":9},{"$f":"MATCH(Y$3,Millwall!$AP110:$AZ110,0)","v":11},{"$f":"MATCH(Z$3,Millwall!$AP110:$AZ110,0)","v":{"$error":"#N/A"}},{"$f":"MATCH(AA$3,Millwall!$AP110:$AZ110,0)","v":{"$error":"#N/A"}},{"$f":"MATCH(AB$3,Millwall!$AP110:$AZ110,0)","v":{"$error":"#N/A"}},{"$f":"MATCH(AC$3,Millwall!$AP110:$AZ110,0)","v":3},{"$f":"MATCH(AD$3,Millwall!$AP110:$AZ110,0)","v":10},{"$f":"MATCH(AE$3,Millwall!$AP110:$AZ110,0)","v":{"$error":"#N/A"}},{"$f":"MATCH(AF$3,Millwall!$AP110:$AZ110,0)","v":{"$error":"#N/A"}},{"$f":"MATCH(AG$3,Millwall!$AP110:$AZ110,0)","v":{"$error":"#N/A"}},{"$f":"MATCH(AH$3,Millwall!$AP110:$AZ110,0)","v":{"$error":"#N/A"}},{"$f":"MATCH(AI$3,Millwall!$AP110:$AZ110,0)","v":{"$error":"#N/A"}},{"$f":"MATCH(AJ$3,Millwall!$AP110:$AZ110,0)","v":1},{"$f":"MATCH(AK$3,Millwall!$AP110:$AZ110,0)","v":{"$error":"#N/A"}},{"$f":"MATCH(AL$3,Millwall!$AP110:$AZ110,0)","v":{"$error":"#N/A"}},{"$f":"MATCH(AM$3,Millwall!$AP110:$AZ110,0)","v":{"$error":"#N/A"}},{"$f":"MATCH(AN$3,Millwall!$AP110:$AZ110,0)","v":{"$error":"#N/A"}},{"$f":"MATCH(AO$3,Millwall!$AP110:$AZ110,0)","v":{"$error":"#N/A"}},{"$f":"MATCH(AP$3,Millwall!$AP110:$AZ110,0)","v":{"$error":"#N/A"}},{"$f":"MATCH(AQ$3,Millwall!$AP110:$AZ110,0)","v":{"$error":"#N/A"}},{"$f":"MATCH(AR$3,Millwall!$AP110:$AZ110,0)","v":{"$error":"#N/A"}}]
[null,null,null,34,null,{"$f":"Millwall!AI111","v":"1939-03-25"},null,{"$f":"Millwall!AK111","v":"Nottm Forest"},{"$f":"Millwall!AL111","v":"(A)"},{"$f":"Millwall!AO111","v":"L 0-3"},{"$f":"MATCH(K$3,Millwall!$AP111:$AZ111,0)","v":{"$error":"#N/A"}},{"$f":"MATCH(L$3,Millwall!$AP111:$AZ111,0)","v":4},{"$f":"MATCH(M$3,Millwall!$AP111:$AZ111,0)","v":{"$error":"#N/A"}},{"$f":"MATCH(N$3,Millwall!$AP111:$AZ111,0)","v":5},{"$f":"MATCH(O$3,Millwall!$AP111:$AZ111,0)","v":{"$error":"#N/A"}},{"$f":"MATCH(P$3,Millwall!$AP111:$AZ111,0)","v":{"$error":"#N/A"}},{"$f":"MATCH(Q$3,Millwall!$AP111:$AZ111,0)","v":8},{"$f":"MATCH(R$3,Millwall!$AP111:$AZ111,0)","v":7},{"$f":"MATCH(S$3,Millwall!$AP111:$AZ111,0)","v":6},{"$f":"MATCH(T$3,Millwall!$AP111:$AZ111,0)","v":{"$error":"#N/A"}},{"$f":"MATCH(U$3,Millwall!$AP111:$AZ111,0)","v":{"$error":"#N/A"}},{"$f":"MATCH(V$3,Millwall!$AP111:$AZ111,0)","v":{"$error":"#N/A"}},{"$f":"MATCH(W$3,Millwall!$AP111:$AZ111,0)","v":2},{"$f":"MATCH(X$3,Millwall!$AP111:$AZ111,0)","v":{"$error":"#N/A"}},{"$f":"MATCH(Y$3,Millwall!$AP111:$AZ111,0)","v":11},{"$f":"MATCH(Z$3,Millwall!$AP111:$AZ111,0)","v":{"$error":"#N/A"}},{"$f":"MATCH(AA$3,Millwall!$AP111:$AZ111,0)","v":{"$error":"#N/A"}},{"$f":"MATCH(AB$3,Millwall!$AP111:$AZ111,0)","v":9},{"$f":"MATCH(AC$3,Millwall!$AP111:$AZ111,0)","v":3},{"$f":"MATCH(AD$3,Millwall!$AP111:$AZ111,0)","v":10},{"$f":"MATCH(AE$3,Millwall!$AP111:$AZ111,0)","v":{"$error":"#N/A"}},{"$f":"MATCH(AF$3,Millwall!$AP111:$AZ111,0)","v":{"$error":"#N/A"}},{"$f":"MATCH(AG$3,Millwall!$AP111:$AZ111,0)","v":{"$error":"#N/A"}},{"$f":"MATCH(AH$3,Millwall!$AP111:$AZ111,0)","v":{"$error":"#N/A"}},{"$f":"MATCH(AI$3,Millwall!$AP111:$AZ111,0)","v":{"$error":"#N/A"}},{"$f":"MATCH(AJ$3,Millwall!$AP111:$AZ111,0)","v":1},{"$f":"MATCH(AK$3,Millwall!$AP111:$AZ111,0)","v":{"$error":"#N/A"}},{"$f":"MATCH(AL$3,Millwall!$AP111:$AZ111,0)","v":{"$error":"#N/A"}},{"$f":"MATCH(AM$3,Millwall!$AP111:$AZ111,0)","v":{"$error":"#N/A"}},{"$f":"MATCH(AN$3,Millwall!$AP111:$AZ111,0)","v":{"$error":"#N/A"}},{"$f":"MATCH(AO$3,Millwall!$AP111:$AZ111,0)","v":{"$error":"#N/A"}},{"$f":"MATCH(AP$3,Millwall!$AP111:$AZ111,0)","v":{"$error":"#N/A"}},{"$f":"MATCH(AQ$3,Millwall!$AP111:$AZ111,0)","v":{"$error":"#N/A"}},{"$f":"MATCH(AR$3,Millwall!$AP111:$AZ111,0)","v":{"$error":"#N/A"}}]
[null,null,null,35,null,{"$f":"Millwall!AI112","v":"1939-03-27"},null,{"$f":"Millwall!AK112","v":"West Ham"},{"$f":"Millwall!AL112","v":"(H)"},{"$f":"Millwall!AO112","v":"L 0-2"},{"$f":"MATCH(K$3,Millwall!$AP112:$AZ112,0)","v":10},{"$f":"MATCH(L$3,Millwall!$AP112:$AZ112,0)","v":{"$error":"#N/A"}},{"$f":"MATCH(M$3,Millwall!$AP112:$AZ112,0)","v":{"$error":"#N/A"}},{"$f":"MATCH(N$3,Millwall!$AP112:$AZ112,0)","v":5},{"$f":"MATCH(O$3,Millwall!$AP112:$AZ112,0)","v":{"$error":"#N/A"}},{"$f":"MATCH(P$3,Millwall!$AP112:$AZ112,0)","v":{"$error":"#N/A"}},{"$f":"MATCH(Q$3,Millwall!$AP112:$AZ112,0)","v":{"$error":"#N/A"}},{"$f":"MATCH(R$3,Millwall!$AP112:$AZ112,0)","v":7},{"$f":"MATCH(S$3,Millwall!$AP112:$AZ112,0)","v":6},{"$f":"MATCH(T$3,Millwall!$AP112:$AZ112,0)","v":{"$error":"#N/A"}},{"$f":"MATCH(U$3,Millwall!$AP112:$AZ112,0)","v":{"$error":"#N/A"}},{"$f":"MATCH(V$3,Millwall!$AP112:$AZ112,0)","v":{"$error":"#N/A"}},{"$f":"MATCH(W$3,Millwall!$AP112:$AZ112,0)","v":2},{"$f":"MATCH(X$3,Millwall!$AP112:$AZ112,0)","v":9},{"$f":"MATCH(Y$3,Millwall!$AP112:$AZ112,0)","v":11},{"$f":"MATCH(Z$3,Millwall!$AP112:$AZ112,0)","v":{"$error":"#N/A"}},{"$f":"MATCH(AA$3,Millwall!$AP112:$AZ112,0)","v":{"$error":"#N/A"}},{"$f":"MATCH(AB$3,Millwall!$AP112:$AZ112,0)","v":8},{"$f":"MATCH(AC$3,Millwall!$AP112:$AZ112,0)","v":3},{"$f":"MATCH(AD$3,Millwall!$AP112:$AZ112,0)","v":{"$error":"#N/A"}},{"$f":"MATCH(AE$3,Millwall!$AP112:$AZ112,0)","v":4},{"$f":"MATCH(AF$3,Millwall!$AP112:$AZ112,0)","v":{"$error":"#N/A"}},{"$f":"MATCH(AG$3,Millwall!$AP112:$AZ112,0)","v":{"$error":"#N/A"}},{"$f":"MATCH(AH$3,Millwall!$AP112:$AZ112,0)","v":{"$error":"#N/A"}},{"$f":"MATCH(AI$3,Millwall!$AP112:$AZ112,0)","v":{"$error":"#N/A"}},{"$f":"MATCH(AJ$3,Millwall!$AP112:$AZ112,0)","v":1},{"$f":"MATCH(AK$3,Millwall!$AP112:$AZ112,0)","v":{"$error":"#N/A"}},{"$f":"MATCH(AL$3,Millwall!$AP112:$AZ112,0)","v":{"$error":"#N/A"}},{"$f":"MATCH(AM$3,Millwall!$AP112:$AZ112,0)","v":{"$error":"#N/A"}},{"$f":"MATCH(AN$3,Millwall!$AP112:$AZ112,0)","v":{"$error":"#N/A"}},{"$f":"MATCH(AO$3,Millwall!$AP112:$AZ112,0)","v":{"$error":"#N/A"}},{"$f":"MATCH(AP$3,Millwall!$AP112:$AZ112,0)","v":{"$error":"#N/A"}},{"$f":"MATCH(AQ$3,Millwall!$AP112:$AZ112,0)","v":{"$error":"#N/A"}},{"$f":"MATCH(AR$3,Millwall!$AP112:$AZ112,0)","v":{"$error":"#N/A"}}]
[null,null,null,36,null,{"$f":"Millwall!AI113","v":"1939-04-01"},null,{"$f":"Millwall!AK113","v":"Newcastle"},{"$f":"Millwall!AL113","v":"(H)"},{"$f":"Millwall!AO113","v":"D 1-1"},{"$f":"MATCH(K$3,Millwall!$AP113:$AZ113,0)","v":10},{"$f":"MATCH(L$3,Millwall!$AP113:$AZ113,0)","v":{"$error":"#N/A"}},{"$f":"MATCH(M$3,Millwall!$AP113:$AZ113,0)","v":{"$error":"#N/A"}},{"$f":"MATCH(N$3,Millwall!$AP113:$AZ113,0)","v":5},{"$f":"MATCH(O$3,Millwall!$AP113:$AZ113,0)","v":{"$error":"#N/A"}},{"$f":"MATCH(P$3,Millwall!$AP113:$AZ113,0)","v":{"$error":"#N/A"}},{"$f":"MATCH(Q$3,Millwall!$AP113:$AZ113,0)","v":{"$error":"#N/A"}},{"$f":"MATCH(R$3,Millwall!$AP113:$AZ113,0)","v":{"$error":"#N/A"}},{"$f":"MATCH(S$3,Millwall!$AP113:$AZ113,0)","v":6},{"$f":"MATCH(T$3,Millwall!$AP113:$AZ113,0)","v":{"$error":"#N/A"}},{"$f":"MATCH(U$3,Millwall!$AP113:$AZ113,0)","v":{"$error":"#N/A"}},{"$f":"MATCH(V$3,Millwall!$AP113:$AZ113,0)","v":{"$error":"#N/A"}},{"$f":"MATCH(W$3,Millwall!$AP113:$AZ113,0)","v":4},{"$f":"MATCH(X$3,Millwall!$AP113:$AZ113,0)","v":9},{"$f":"MATCH(Y$3,Millwall!$AP113:$AZ113,0)","v":{"$error":"#N/A"}},{"$f":"MATCH(Z$3,Millwall!$AP113:$AZ113,0)","v":{"$error":"#N/A"}},{"$f":"MATCH(AA$3,Millwall!$AP113:$AZ113,0)","v":7},{"$f":"MATCH(AB$3,Millwall!$AP113:$AZ113,0)","v":8},{"$f":"MATCH(AC$3,Millwall!$AP113:$AZ113,0)","v":2},{"$f":"MATCH(AD$3,Millwall!$AP113:$AZ113,0)","v":11},{"$f":"MATCH(AE$3,Millwall!$AP113:$AZ113,0)","v":{"$error":"#N/A"}},{"$f":"MATCH(AF$3,Millwall!$AP113:$AZ113,0)","v":{"$error":"#N/A"}},{"$f":"MATCH(AG$3,Millwall!$AP113:$AZ113,0)","v":{"$error":"#N/A"}},{"$f":"MATCH(AH$3,Millwall!$AP113:$AZ113,0)","v":{"$error":"#N/A"}},{"$f":"MATCH(AI$3,Millwall!$AP113:$AZ113,0)","v":3},{"$f":"MATCH(AJ$3,Millwall!$AP113:$AZ113,0)","v":1},{"$f":"MATCH(AK$3,Millwall!$AP113:$AZ113,0)","v":{"$error":"#N/A"}},{"$f":"MATCH(AL$3,Millwall!$AP113:$AZ113,0)","v":{"$error":"#N/A"}},{"$f":"MATCH(AM$3,Millwall!$AP113:$AZ113,0)","v":{"$error":"#N/A"}},{"$f":"MATCH(AN$3,Millwall!$AP113:$AZ113,0)","v":{"$error":"#N/A"}},{"$f":"MATCH(AO$3,Millwall!$AP113:$AZ113,0)","v":{"$error":"#N/A"}},{"$f":"MATCH(AP$3,Millwall!$AP113:$AZ113,0)","v":{"$error":"#N/A"}},{"$f":"MATCH(AQ$3,Millwall!$AP113:$AZ113,0)","v":{"$error":"#N/A"}},{"$f":"MATCH(AR$3,Millwall!$AP113:$AZ113,0)","v":{"$error":"#N/A"}}]
[null,null,null,37,null,{"$f":"Millwall!AI114","v":"1939-04-07"},null,{"$f":"Millwall!AK114","v":"Sheff Wed"},{"$f":"Millwall!AL114","v":"(H)"},{"$f":"Millwall!AO114","v":"W 2-0"},{"$f":"MATCH(K$3,Millwall!$AP114:$AZ114,0)","v":10},{"$f":"MATCH(L$3,Millwall!$AP114:$AZ114,0)","v":{"$error":"#N/A"}},{"$f":"MATCH(M$3,Millwall!$AP114:$AZ114,0)","v":{"$error":"#N/A"}},{"$f":"MATCH(N$3,Millwall!$AP114:$AZ114,0)","v":5},{"$f":"MATCH(O$3,Millwall!$AP114:$AZ114,0)","v":{"$error":"#N/A"}},{"$f":"MATCH(P$3,Millwall!$AP114:$AZ114,0)","v":{"$error":"#N/A"}},{"$f":"MATCH(Q$3,Millwall!$AP114:$AZ114,0)","v":{"$error":"#N/A"}},{"$f":"MATCH(R$3,Millwall!$AP114:$AZ114,0)","v":{"$error":"#N/A"}},{"$f":"MATCH(S$3,Millwall!$AP114:$AZ114,0)","v":6},{"$f":"MATCH(T$3,Millwall!$AP114:$AZ114,0)","v":{"$error":"#N/A"}},{"$f":"MATCH(U$3,Millwall!$AP114:$AZ114,0)","v":{"$error":"#N/A"}},{"$f":"MATCH(V$3,Millwall!$AP114:$AZ114,0)","v":{"$error":"#N/A"}},{"$f":"MATCH(W$3,Millwall!$AP114:$AZ114,0)","v":4},{"$f":"MATCH(X$3,Millwall!$AP114:$AZ114,0)","v":9},{"$f":"MATCH(Y$3,Millwall!$AP114:$AZ114,0)","v":{"$error":"#N/A"}},{"$f":"MATCH(Z$3,Millwall!$AP114:$AZ114,0)","v":{"$error":"#N/A"}},{"$f":"MATCH(AA$3,Millwall!$AP114:$AZ114,0)","v":7},{"$f":"MATCH(AB$3,Millwall!$AP114:$AZ114,0)","v":8},{"$f":"MATCH(AC$3,Millwall!$AP114:$AZ114,0)","v":2},{"$f":"MATCH(AD$3,Millwall!$AP114:$AZ114,0)","v":11},{"$f":"MATCH(AE$3,Millwall!$AP114:$AZ114,0)","v":{"$error":"#N/A"}},{"$f":"MATCH(AF$3,Millwall!$AP114:$AZ114,0)","v":{"$error":"#N/A"}},{"$f":"MATCH(AG$3,Millwall!$AP114:$AZ114,0)","v":{"$error":"#N/A"}},{"$f":"MATCH(AH$3,Millwall!$AP114:$AZ114,0)","v":{"$error":"#N/A"}},{"$f":"MATCH(AI$3,Millwall!$AP114:$AZ114,0)","v":3},{"$f":"MATCH(AJ$3,Millwall!$AP114:$AZ114,0)","v":1},{"$f":"MATCH(AK$3,Millwall!$AP114:$AZ114,0)","v":{"$error":"#N/A"}},{"$f":"MATCH(AL$3,Millwall!$AP114:$AZ114,0)","v":{"$error":"#N/A"}},{"$f":"MATCH(AM$3,Millwall!$AP114:$AZ114,0)","v":{"$error":"#N/A"}},{"$f":"MATCH(AN$3,Millwall!$AP114:$AZ114,0)","v":{"$error":"#N/A"}},{"$f":"MATCH(AO$3,Millwall!$AP114:$AZ114,0)","v":{"$error":"#N/A"}},{"$f":"MATCH(AP$3,Millwall!$AP114:$AZ114,0)","v":{"$error":"#N/A"}},{"$f":"MATCH(AQ$3,Millwall!$AP114:$AZ114,0)","v":{"$error":"#N/A"}},{"$f":"MATCH(AR$3,Millwall!$AP114:$AZ114,0)","v":{"$error":"#N/A"}}]
[null,null,null,38,null,{"$f":"Millwall!AI115","v":"1939-04-08"},null,{"$f":"Millwall!AK115","v":"West Brom"},{"$f":"Millwall!AL115","v":"(A)"},{"$f":"Millwall!AO115","v":"D 0-0"},{"$f":"MATCH(K$3,Millwall!$AP115:$AZ115,0)","v":10},{"$f":"MATCH(L$3,Millwall!$AP115:$AZ115,0)","v":{"$error":"#N/A"}},{"$f":"MATCH(M$3,Millwall!$AP115:$AZ115,0)","v":{"$error":"#N/A"}},{"$f":"MATCH(N$3,Millwall!$AP115:$AZ115,0)","v":5},{"$f":"MATCH(O$3,Millwall!$AP115:$AZ115,0)","v":{"$error":"#N/A"}},{"$f":"MATCH(P$3,Millwall!$AP115:$AZ115,0)","v":{"$error":"#N/A"}},{"$f":"MATCH(Q$3,Millwall!$AP115:$AZ115,0)","v":{"$error":"#N/A"}},{"$f":"MATCH(R$3,Millwall!$AP115:$AZ115,0)","v":{"$error":"#N/A"}},{"$f":"MATCH(S$3,Millwall!$AP115:$AZ115,0)","v":6},{"$f":"MATCH(T$3,Millwall!$AP115:$AZ115,0)","v":{"$error":"#N/A"}},{"$f":"MATCH(U$3,Millwall!$AP115:$AZ115,0)","v":{"$error":"#N/A"}},{"$f":"MATCH(V$3,Millwall!$AP115:$AZ115,0)","v":{"$error":"#N/A"}},{"$f":"MATCH(W$3,Millwall!$AP115:$AZ115,0)","v":4},{"$f":"MATCH(X$3,Millwall!$AP115:$AZ115,0)","v":9},{"$f":"MATCH(Y$3,Millwall!$AP115:$AZ115,0)","v":11},{"$f":"MATCH(Z$3,Millwall!$AP115:$AZ115,0)","v":{"$error":"#N/A"}},{"$f":"MATCH(AA$3,Millwall!$AP115:$AZ115,0)","v":7},{"$f":"MATCH(AB$3,Millwall!$AP115:$AZ115,0)","v":8},{"$f":"MATCH(AC$3,Millwall!$AP115:$AZ115,0)","v":2},{"$f":"MATCH(AD$3,Millwall!$AP115:$AZ115,0)","v":{"$error":"#N/A"}},{"$f":"MATCH(AE$3,Millwall!$AP115:$AZ115,0)","v":{"$error":"#N/A"}},{"$f":"MATCH(AF$3,Millwall!$AP115:$AZ115,0)","v":{"$error":"#N/A"}},{"$f":"MATCH(AG$3,Millwall!$AP115:$AZ115,0)","v":{"$error":"#N/A"}},{"$f":"MATCH(AH$3,Millwall!$AP115:$AZ115,0)","v":{"$error":"#N/A"}},{"$f":"MATCH(AI$3,Millwall!$AP115:$AZ115,0)","v":3},{"$f":"MATCH(AJ$3,Millwall!$AP115:$AZ115,0)","v":1},{"$f":"MATCH(AK$3,Millwall!$AP115:$AZ115,0)","v":{"$error":"#N/A"}},{"$f":"MATCH(AL$3,Millwall!$AP115:$AZ115,0)","v":{"$error":"#N/A"}},{"$f":"MATCH(AM$3,Millwall!$AP115:$AZ115,0)","v":{"$error":"#N/A"}},{"$f":"MATCH(AN$3,Millwall!$AP115:$AZ115,0)","v":{"$error":"#N/A"}},{"$f":"MATCH(AO$3,Millwall!$AP115:$AZ115,0)","v":{"$error":"#N/A"}},{"$f":"MATCH(AP$3,Millwall!$AP115:$AZ115,0)","v":{"$error":"#N/A"}},{"$f":"MATCH(AQ$3,Millwall!$AP115:$AZ115,0)","v":{"$error":"#N/A"}},{"$f":"MATCH(AR$3,Millwall!$AP115:$AZ115,0)","v":{"$error":"#N/A"}}]
[null,null,null,39,null,{"$f":"Millwall!AI116","v":"1939-04-10"},null,{"$f":"Millwall!AK116","v":"Sheff Wed"},{"$f":"Millwall!AL116","v":"(A)"},{"$f":"Millwall!AO116","v":"L 1-3"},{"$f":"MATCH(K$3,Millwall!$AP116:$AZ116,0)","v":10},{"$f":"MATCH(L$3,Millwall!$AP116:$AZ116,0)","v":{"$error":"#N/A"}},{"$f":"MATCH(M$3,Millwall!$AP116:$AZ116,0)","v":{"$error":"#N/A"}},{"$f":"MATCH(N$3,Millwall!$AP116:$AZ116,0)","v":5},{"$f":"MATCH(O$3,Millwall!$AP116:$AZ116,0)","v":{"$error":"#N/A"}},{"$f":"MATCH(P$3,Millwall!$AP116:$AZ116,0)","v":{"$error":"#N/A"}},{"$f":"MATCH(Q$3,Millwall!$AP116:$AZ116,0)","v":{"$error":"#N/A"}},{"$f":"MATCH(R$3,Millwall!$AP116:$AZ116,0)","v":{"$error":"#N/A"}},{"$f":"MATCH(S$3,Millwall!$AP116:$AZ116,0)","v":6},{"$f":"MATCH(T$3,Millwall!$AP116:$AZ116,0)","v":{"$error":"#N/A"}},{"$f":"MATCH(U$3,Millwall!$AP116:$AZ116,0)","v":{"$error":"#N/A"}},{"$f":"MATCH(V$3,Millwall!$AP116:$AZ116,0)","v":{"$error":"#N/A"}},{"$f":"MATCH(W$3,Millwall!$AP116:$AZ116,0)","v":4},{"$f":"MATCH(X$3,Millwall!$AP116:$AZ116,0)","v":9},{"$f":"MATCH(Y$3,Millwall!$AP116:$AZ116,0)","v":11},{"$f":"MATCH(Z$3,Millwall!$AP116:$AZ116,0)","v":{"$error":"#N/A"}},{"$f":"MATCH(AA$3,Millwall!$AP116:$AZ116,0)","v":7},{"$f":"MATCH(AB$3,Millwall!$AP116:$AZ116,0)","v":8},{"$f":"MATCH(AC$3,Millwall!$AP116:$AZ116,0)","v":2},{"$f":"MATCH(AD$3,Millwall!$AP116:$AZ116,0)","v":{"$error":"#N/A"}},{"$f":"MATCH(AE$3,Millwall!$AP116:$AZ116,0)","v":{"$error":"#N/A"}},{"$f":"MATCH(AF$3,Millwall!$AP116:$AZ116,0)","v":{"$error":"#N/A"}},{"$f":"MATCH(AG$3,Millwall!$AP116:$AZ116,0)","v":{"$error":"#N/A"}},{"$f":"MATCH(AH$3,Millwall!$AP116:$AZ116,0)","v":{"$error":"#N/A"}},{"$f":"MATCH(AI$3,Millwall!$AP116:$AZ116,0)","v":3},{"$f":"MATCH(AJ$3,Millwall!$AP116:$AZ116,0)","v":1},{"$f":"MATCH(AK$3,Millwall!$AP116:$AZ116,0)","v":{"$error":"#N/A"}},{"$f":"MATCH(AL$3,Millwall!$AP116:$AZ116,0)","v":{"$error":"#N/A"}},{"$f":"MATCH(AM$3,Millwall!$AP116:$AZ116,0)","v":{"$error":"#N/A"}},{"$f":"MATCH(AN$3,Millwall!$AP116:$AZ116,0)","v":{"$error":"#N/A"}},{"$f":"MATCH(AO$3,Millwall!$AP116:$AZ116,0)","v":{"$error":"#N/A"}},{"$f":"MATCH(AP$3,Millwall!$AP116:$AZ116,0)","v":{"$error":"#N/A"}},{"$f":"MATCH(AQ$3,Millwall!$AP116:$AZ116,0)","v":{"$error":"#N/A"}},{"$f":"MATCH(AR$3,Millwall!$AP116:$AZ116,0)","v":{"$error":"#N/A"}}]
[null,null,null,40,null,{"$f":"Millwall!AI117","v":"1939-04-15"},null,{"$f":"Millwall!AK117","v":"Tottenham"},{"$f":"Millwall!AL117","v":"(H)"},{"$f":"Millwall!AO117","v":"W 2-0"},{"$f":"MATCH(K$3,Millwall!$AP117:$AZ117,0)","v":10},{"$f":"MATCH(L$3,Millwall!$AP117:$AZ117,0)","v":{"$error":"#N/A"}},{"$f":"MATCH(M$3,Millwall!$AP117:$AZ117,0)","v":{"$error":"#N/A"}},{"$f":"MATCH(N$3,Millwall!$AP117:$AZ117,0)","v":5},{"$f":"MATCH(O$3,Millwall!$AP117:$AZ117,0)","v":{"$error":"#N/A"}},{"$f":"MATCH(P$3,Millwall!$AP117:$AZ117,0)","v":{"$error":"#N/A"}},{"$f":"MATCH(Q$3,Millwall!$AP117:$AZ117,0)","v":{"$error":"#N/A"}},{"$f":"MATCH(R$3,Millwall!$AP117:$AZ117,0)","v":{"$error":"#N/A"}},{"$f":"MATCH(S$3,Millwall!$AP117:$AZ117,0)","v":6},{"$f":"MATCH(T$3,Millwall!$AP117:$AZ117,0)","v":{"$error":"#N/A"}},{"$f":"MATCH(U$3,Millwall!$AP117:$AZ117,0)","v":{"$error":"#N/A"}},{"$f":"MATCH(V$3,Millwall!$AP117:$AZ117,0)","v":{"$error":"#N/A"}},{"$f":"MATCH(W$3,Millwall!$AP117:$AZ117,0)","v":4},{"$f":"MATCH(X$3,Millwall!$AP117:$AZ117,0)","v":{"$error":"#N/A"}},{"$f":"MATCH(Y$3,Millwall!$AP117:$AZ117,0)","v":11},{"$f":"MATCH(Z$3,Millwall!$AP117:$AZ117,0)","v":{"$error":"#N/A"}},{"$f":"MATCH(AA$3,Millwall!$AP117:$AZ117,0)","v":7},{"$f":"MATCH(AB$3,Millwall!$AP117:$AZ117,0)","v":8},{"$f":"MATCH(AC$3,Millwall!$AP117:$AZ117,0)","v":2},{"$f":"MATCH(AD$3,Millwall!$AP117:$AZ117,0)","v":{"$error":"#N/A"}},{"$f":"MATCH(AE$3,Millwall!$AP117:$AZ117,0)","v":{"$error":"#N/A"}},{"$f":"MATCH(AF$3,Millwall!$AP117:$AZ117,0)","v":{"$error":"#N/A"}},{"$f":"MATCH(AG$3,Millwall!$AP117:$AZ117,0)","v":{"$error":"#N/A"}},{"$f":"MATCH(AH$3,Millwall!$AP117:$AZ117,0)","v":9},{"$f":"MATCH(AI$3,Millwall!$AP117:$AZ117,0)","v":3},{"$f":"MATCH(AJ$3,Millwall!$AP117:$AZ117,0)","v":1},{"$f":"MATCH(AK$3,Millwall!$AP117:$AZ117,0)","v":{"$error":"#N/A"}},{"$f":"MATCH(AL$3,Millwall!$AP117:$AZ117,0)","v":{"$error":"#N/A"}},{"$f":"MATCH(AM$3,Millwall!$AP117:$AZ117,0)","v":{"$error":"#N/A"}},{"$f":"MATCH(AN$3,Millwall!$AP117:$AZ117,0)","v":{"$error":"#N/A"}},{"$f":"MATCH(AO$3,Millwall!$AP117:$AZ117,0)","v":{"$error":"#N/A"}},{"$f":"MATCH(AP$3,Millwall!$AP117:$AZ117,0)","v":{"$error":"#N/A"}},{"$f":"MATCH(AQ$3,Millwall!$AP117:$AZ117,0)","v":{"$error":"#N/A"}},{"$f":"MATCH(AR$3,Millwall!$AP117:$AZ117,0)","v":{"$error":"#N/A"}}]
[null,null,null,41,null,{"$f":"Millwall!AI118","v":"1939-04-22"},null,{"$f":"Millwall!AK118","v":"Luton"},{"$f":"Millwall!AL118","v":"(A)"},{"$f":"Millwall!AO118","v":"D 0-0"},{"$f":"MATCH(K$3,Millwall!$AP118:$AZ118,0)","v":10},{"$f":"MATCH(L$3,Millwall!$AP118:$AZ118,0)","v":{"$error":"#N/A"}},{"$f":"MATCH(M$3,Millwall!$AP118:$AZ118,0)","v":{"$error":"#N/A"}},{"$f":"MATCH(N$3,Millwall!$AP118:$AZ118,0)","v":5},{"$f":"MATCH(O$3,Millwall!$AP118:$AZ118,0)","v":4},{"$f":"MATCH(P$3,Millwall!$AP118:$AZ118,0)","v":{"$error":"#N/A"}},{"$f":"MATCH(Q$3,Millwall!$AP118:$AZ118,0)","v":{"$error":"#N/A"}},{"$f":"MATCH(R$3,Millwall!$AP118:$AZ118,0)","v":{"$error":"#N/A"}},{"$f":"MATCH(S$3,Millwall!$AP118:$AZ118,0)","v":6},{"$f":"MATCH(T$3,Millwall!$AP118:$AZ118,0)","v":{"$error":"#N/A"}},{"$f":"MATCH(U$3,Millwall!$AP118:$AZ118,0)","v":{"$error":"#N/A"}},{"$f":"MATCH(V$3,Millwall!$AP118:$AZ118,0)","v":{"$error":"#N/A"}},{"$f":"MATCH(W$3,Millwall!$AP118:$AZ118,0)","v":{"$error":"#N/A"}},{"$f":"MATCH(X$3,Millwall!$AP118:$AZ118,0)","v":{"$error":"#N/A"}},{"$f":"MATCH(Y$3,Millwall!$AP118:$AZ118,0)","v":11},{"$f":"MATCH(Z$3,Millwall!$AP118:$AZ118,0)","v":{"$error":"#N/A"}},{"$f":"MATCH(AA$3,Millwall!$AP118:$AZ118,0)","v":7},{"$f":"MATCH(AB$3,Millwall!$AP118:$AZ118,0)","v":8},{"$f":"MATCH(AC$3,Millwall!$AP118:$AZ118,0)","v":2},{"$f":"MATCH(AD$3,Millwall!$AP118:$AZ118,0)","v":{"$error":"#N/A"}},{"$f":"MATCH(AE$3,Millwall!$AP118:$AZ118,0)","v":{"$error":"#N/A"}},{"$f":"MATCH(AF$3,Millwall!$AP118:$AZ118,0)","v":{"$error":"#N/A"}},{"$f":"MATCH(AG$3,Millwall!$AP118:$AZ118,0)","v":{"$error":"#N/A"}},{"$f":"MATCH(AH$3,Millwall!$AP118:$AZ118,0)","v":9},{"$f":"MATCH(AI$3,Millwall!$AP118:$AZ118,0)","v":3},{"$f":"MATCH(AJ$3,Millwall!$AP118:$AZ118,0)","v":1},{"$f":"MATCH(AK$3,Millwall!$AP118:$AZ118,0)","v":{"$error":"#N/A"}},{"$f":"MATCH(AL$3,Millwall!$AP118:$AZ118,0)","v":{"$error":"#N/A"}},{"$f":"MATCH(AM$3,Millwall!$AP118:$AZ118,0)","v":{"$error":"#N/A"}},{"$f":"MATCH(AN$3,Millwall!$AP118:$AZ118,0)","v":{"$error":"#N/A"}},{"$f":"MATCH(AO$3,Millwall!$AP118:$AZ118,0)","v":{"$error":"#N/A"}},{"$f":"MATCH(AP$3,Millwall!$AP118:$AZ118,0)","v":{"$error":"#N/A"}},{"$f":"MATCH(AQ$3,Millwall!$AP118:$AZ118,0)","v":{"$error":"#N/A"}},{"$f":"MATCH(AR$3,Millwall!$AP118:$AZ118,0)","v":{"$error":"#N/A"}}]
[null,null,null,42,null,{"$f":"Millwall!AI119","v":"1939-04-29"},null,{"$f":"Millwall!AK119","v":"Tranmere"},{"$f":"Millwall!AL119","v":"(H)"},{"$f":"Millwall!AO119","v":"W 2-1"},{"$f":"MATCH(K$3,Millwall!$AP119:$AZ119,0)","v":10},{"$f":"MATCH(L$3,Millwall!$AP119:$AZ119,0)","v":{"$error":"#N/A"}},{"$f":"MATCH(M$3,Millwall!$AP119:$AZ119,0)","v":{"$error":"#N/A"}},{"$f":"MATCH(N$3,Millwall!$AP119:$AZ119,0)","v":5},{"$f":"MATCH(O$3,Millwall!$AP119:$AZ119,0)","v":{"$error":"#N/A"}},{"$f":"MATCH(P$3,Millwall!$AP119:$AZ119,0)","v":{"$error":"#N/A"}},{"$f":"MATCH(Q$3,Millwall!$AP119:$AZ119,0)","v":{"$error":"#N/A"}},{"$f":"MATCH(R$3,Millwall!$AP119:$AZ119,0)","v":{"$error":"#N/A"}},{"$f":"MATCH(S$3,Millwall!$AP119:$AZ119,0)","v":6},{"$f":"MATCH(T$3,Millwall!$AP119:$AZ119,0)","v":{"$error":"#N/A"}},{"$f":"MATCH(U$3,Millwall!$AP119:$AZ119,0)","v":{"$error":"#N/A"}},{"$f":"MATCH(V$3,Millwall!$AP119:$AZ119,0)","v":9},{"$f":"MATCH(W$3,Millwall!$AP119:$AZ119,0)","v":4},{"$f":"MATCH(X$3,Millwall!$AP119:$AZ119,0)","v":{"$error":"#N/A"}},{"$f":"MATCH(Y$3,Millwall!$AP119:$AZ119,0)","v":11},{"$f":"MATCH(Z$3,Millwall!$AP119:$AZ119,0)","v":{"$error":"#N/A"}},{"$f":"MATCH(AA$3,Millwall!$AP119:$AZ119,0)","v":7},{"$f":"MATCH(AB$3,Millwall!$AP119:$AZ119,0)","v":8},{"$f":"MATCH(AC$3,Millwall!$AP119:$AZ119,0)","v":2},{"$f":"MATCH(AD$3,Millwall!$AP119:$AZ119,0)","v":{"$error":"#N/A"}},{"$f":"MATCH(AE$3,Millwall!$AP119:$AZ119,0)","v":{"$error":"#N/A"}},{"$f":"MATCH(AF$3,Millwall!$AP119:$AZ119,0)","v":{"$error":"#N/A"}},{"$f":"MATCH(AG$3,Millwall!$AP119:$AZ119,0)","v":{"$error":"#N/A"}},{"$f":"MATCH(AH$3,Millwall!$AP119:$AZ119,0)","v":{"$error":"#N/A"}},{"$f":"MATCH(AI$3,Millwall!$AP119:$AZ119,0)","v":3},{"$f":"MATCH(AJ$3,Millwall!$AP119:$AZ119,0)","v":1},{"$f":"MATCH(AK$3,Millwall!$AP119:$AZ119,0)","v":{"$error":"#N/A"}},{"$f":"MATCH(AL$3,Millwall!$AP119:$AZ119,0)","v":{"$error":"#N/A"}},{"$f":"MATCH(AM$3,Millwall!$AP119:$AZ119,0)","v":{"$error":"#N/A"}},{"$f":"MATCH(AN$3,Millwall!$AP119:$AZ119,0)","v":{"$error":"#N/A"}},{"$f":"MATCH(AO$3,Millwall!$AP119:$AZ119,0)","v":{"$error":"#N/A"}},{"$f":"MATCH(AP$3,Millwall!$AP119:$AZ119,0)","v":{"$error":"#N/A"}},{"$f":"MATCH(AQ$3,Millwall!$AP119:$AZ119,0)","v":{"$error":"#N/A"}},{"$f":"MATCH(AR$3,Millwall!$AP119:$AZ119,0)","v":{"$error":"#N/A"}}]
[]
[null,null,null,null,null,null,null,null,null,"Total League Apperances",{"$f":"COUNT(K4:K45)","v":39},31,2,41,1,11,2,12,41,4,11,1,25,17,8,23,30,40,34,36,2,1,1,21,11,17,0,0,0,0,0,0,0,0]
[null,null,null,null,null,null,null,null,null,"Goals",{"$f":"Millwall!$BX$7","v":12},{"$f":"Millwall!$BX$8","v":1},{"$f":"Millwall!$BX$9","v":0},{"$f":"Millwall!$BX$10","v":0},{"$f":"Millwall!$BX$11","v":0},{"$f":"Millwall!$BX$12","v":0},{"$f":"Millwall!$BX$13","v":0},{"$f":"Millwall!$BX$14","v":6},{"$f":"Millwall!$BX$15","v":0},{"$f":"Millwall!$BX$16","v":2},{"$f":"Millwall!$BX$17","v":0},{"$f":"Millwall!$BX$18","v":1},{"$f":"Millwall!$BX$19","v":0},{"$f":"Millwall!$BX$20","v":5},{"$f":"Millwall!$BX$21","v":0},{"$f":"Millwall!$BX$22","v":0},{"$f":"Millwall!$BX$23","v":13},{"$f":"Millwall!$BX$24","v":11},{"$f":"Millwall!$BX$25","v":0},{"$f":"Millwall!$BX$26","v":3},{"$f":"Millwall!$BX$27","v":0},{"$f":"Millwall!$BX$28","v":1},{"$f":"Millwall!$BX$29","v":0},{"$f":"Millwall!$BX$30","v":8},{"$f":"Millwall!$BX$31","v":0},{"$f":"Millwall!$BX$32","v":0},{"$f":"Millwall!$BX$33","v":0},{"$f":"Millwall!$BX$34","v":0},{"$f":"Millwall!$BX$35","v":1},{"$f":"Millwall!$BX$36","v":0},{"$f":"Millwall!$BX$37","v":0},{"$f":"Millwall!$BX$38","v":0},{"$f":"Millwall!$BX$39","v":0},{"$f":"Millwall!$BX$40","v":0}]
[null,null,null,null,null,null,null,"FA Cup"]
[null,null,null,3,null,{"$f":"Millwall!AI136","v":"1939-01-11"},null,{"$f":"Millwall!AK136","v":"York City"},{"$f":"Millwall!AL136","v":"(A)"},{"$f":"Millwall!AO136","v":"W 5-0"},{"$f":"MATCH(K$3,Millwall!$AP136:$AZ136,0)","v":10},{"$f":"MATCH(L$3,Millwall!$AP136:$AZ136,0)","v":4},{"$f":"MATCH(M$3,Millwall!$AP136:$AZ136,0)","v":{"$error":"#N/A"}},{"$f":"MATCH(N$3,Millwall!$AP136:$AZ136,0)","v":5},{"$f":"MATCH(O$3,Millwall!$AP136:$AZ136,0)","v":{"$error":"#N/A"}},{"$f":"MATCH(P$3,Millwall!$AP136:$AZ136,0)","v":3},{"$f":"MATCH(Q$3,Millwall!$AP136:$AZ136,0)","v":{"$error":"#N/A"}},{"$f":"MATCH(R$3,Millwall!$AP136:$AZ136,0)","v":{"$error":"#N/A"}},{"$f":"MATCH(S$3,Millwall!$AP136:$AZ136,0)","v":6},{"$f":"MATCH(T$3,Millwall!$AP136:$AZ136,0)","v":{"$error":"#N/A"}},{"$f":"MATCH(U$3,Millwall!$AP136:$AZ136,0)","v":{"$error":"#N/A"}},{"$f":"MATCH(V$3,Millwall!$AP136:$AZ136,0)","v":{"$error":"#N/A"}},{"$f":"MATCH(W$3,Millwall!$AP136:$AZ136,0)","v":2},{"$f":"MATCH(X$3,Millwall!$AP136:$AZ136,0)","v":9},{"$f":"MATCH(Y$3,Millwall!$AP136:$AZ136,0)","v":{"$error":"#N/A"}},{"$f":"MATCH(Z$3,Millwall!$AP136:$AZ136,0)","v":1},{"$f":"MATCH(AA$3,Millwall!$AP136:$AZ136,0)","v":7},{"$f":"MATCH(AB$3,Millwall!$AP136:$AZ136,0)","v":8},{"$f":"MATCH(AC$3,Millwall!$AP136:$AZ136,0)","v":{"$error":"#N/A"}},{"$f":"MATCH(AD$3,Millwall!$AP136:$AZ136,0)","v":11},{"$f":"MATCH(AE$3,Millwall!$AP136:$AZ136,0)","v":{"$error":"#N/A"}},{"$f":"MATCH(AF$3,Millwall!$AP136:$AZ136,0)","v":{"$error":"#N/A"}},{"$f":"MATCH(AG$3,Millwall!$AP136:$AZ136,0)","v":{"$error":"#N/A"}},{"$f":"MATCH(AH$3,Millwall!$AP136:$AZ136,0)","v":{"$error":"#N/A"}},{"$f":"MATCH(AI$3,Millwall!$AP136:$AZ136,0)","v":{"$error":"#N/A"}},{"$f":"MATCH(AJ$3,Millwall!$AP136:$AZ136,0)","v":{"$error":"#N/A"}},{"$f":"MATCH(AK$3,Millwall!$AP136:$AZ136,0)","v":{"$error":"#N/A"}},{"$f":"MATCH(AL$3,Millwall!$AP136:$AZ136,0)","v":{"$error":"#N/A"}},{"$f":"MATCH(AM$3,Millwall!$AP136:$AZ136,0)","v":{"$error":"#N/A"}},{"$f":"MATCH(AN$3,Millwall!$AP136:$AZ136,0)","v":{"$error":"#N/A"}},{"$f":"MATCH(AO$3,Millwall!$AP136:$AZ136,0)","v":{"$error":"#N/A"}},{"$f":"MATCH(AP$3,Millwall!$AP136:$AZ136,0)","v":{"$error":"#N/A"}},{"$f":"MATCH(AQ$3,Millwall!$AP136:$AZ136,0)","v":{"$error":"#N/A"}},{"$f":"MATCH(AR$3,Millwall!$AP136:$AZ136,0)","v":{"$error":"#N/A"}}]
[null,null,null,"3R",null,{"$f":"Millwall!AI137","v":"1939-01-21"},null,{"$f":"Millwall!AK137","v":"Grimsby Town"},{"$f":"Millwall!AL137","v":"(H)"},{"$f":"Millwall!AO137","v":"D 2-2"},{"$f":"MATCH(K$3,Millwall!$AP137:$AZ137,0)","v":10},{"$f":"MATCH(L$3,Millwall!$AP137:$AZ137,0)","v":4},{"$f":"MATCH(M$3,Millwall!$AP137:$AZ137,0)","v":{"$error":"#N/A"}},{"$f":"MATCH(N$3,Millwall!$AP137:$AZ137,0)","v":5},{"$f":"MATCH(O$3,Millwall!$AP137:$AZ137,0)","v":{"$error":"#N/A"}},{"$f":"MATCH(P$3,Millwall!$AP137:$AZ137,0)","v":3},{"$f":"MATCH(Q$3,Millwall!$AP137:$AZ137,0)","v":{"$error":"#N/A"}},{"$f":"MATCH(R$3,Millwall!$AP137:$AZ137,0)","v":{"$error":"#N/A"}},{"$f":"MATCH(S$3,Millwall!$AP137:$AZ137,0)","v":6},{"$f":"MATCH(T$3,Millwall!$AP137:$AZ137,0)","v":{"$error":"#N/A"}},{"$f":"MATCH(U$3,Millwall!$AP137:$AZ137,0)","v":{"$error":"#N/A"}},{"$f":"MATCH(V$3,Millwall!$AP137:$AZ137,0)","v":{"$error":"#N/A"}},{"$f":"MATCH(W$3,Millwall!$AP137:$AZ137,0)","v":2},{"$f":"MATCH(X$3,Millwall!$AP137:$AZ137,0)","v":9},{"$f":"MATCH(Y$3,Millwall!$AP137:$AZ137,0)","v":{"$error":"#N/A"}},{"$f":"MATCH(Z$3,Millwall!$AP137:$AZ137,0)","v":1},{"$f":"MATCH(AA$3,Millwall!$AP137:$AZ137,0)","v":7},{"$f":"MATCH(AB$3,Millwall!$AP137:$AZ137,0)","v":8},{"$f":"MATCH(AC$3,Millwall!$AP137:$AZ137,0)","v":{"$error":"#N/A"}},{"$f":"MATCH(AD$3,Millwall!$AP137:$AZ137,0)","v":11},{"$f":"MATCH(AE$3,Millwall!$AP137:$AZ137,0)","v":{"$error":"#N/A"}},{"$f":"MATCH(AF$3,Millwall!$AP137:$AZ137,0)","v":{"$error":"#N/A"}},{"$f":"MATCH(AG$3,Millwall!$AP137:$AZ137,0)","v":{"$error":"#N/A"}},{"$f":"MATCH(AH$3,Millwall!$AP137:$AZ137,0)","v":{"$error":"#N/A"}},{"$f":"MATCH(AI$3,Millwall!$AP137:$AZ137,0)","v":{"$error":"#N/A"}},{"$f":"MATCH(AJ$3,Millwall!$AP137:$AZ137,0)","v":{"$error":"#N/A"}},{"$f":"MATCH(AK$3,Millwall!$AP137:$AZ137,0)","v":{"$error":"#N/A"}},{"$f":"MATCH(AL$3,Millwall!$AP137:$AZ137,0)","v":{"$error":"#N/A"}},{"$f":"MATCH(AM$3,Millwall!$AP137:$AZ137,0)","v":{"$error":"#N/A"}},{"$f":"MATCH(AN$3,Millwall!$AP137:$AZ137,0)","v":{"$error":"#N/A"}},{"$f":"MATCH(AO$3,Millwall!$AP137:$AZ137,0)","v":{"$error":"#N/A"}},{"$f":"MATCH(AP$3,Millwall!$AP137:$AZ137,0)","v":{"$error":"#N/A"}},{"$f":"MATCH(AQ$3,Millwall!$AP137:$AZ137,0)","v":{"$error":"#N/A"}},{"$f":"MATCH(AR$3,Millwall!$AP137:$AZ137,0)","v":{"$error":"#N/A"}}]
[null,null,null,4,null,{"$f":"Millwall!AI138","v":"1939-01-24"},null,{"$f":"Millwall!AK138","v":"Grimsby Town"},{"$f":"Millwall!AL138","v":"(A)"},{"$f":"Millwall!AO138","v":"L 2-3"},{"$f":"MATCH(K$3,Millwall!$AP138:$AZ138,0)","v":10},{"$f":"MATCH(L$3,Millwall!$AP138:$AZ138,0)","v":4},{"$f":"MATCH(M$3,Millwall!$AP138:$AZ138,0)","v":{"$error":"#N/A"}},{"$f":"MATCH(N$3,Millwall!$AP138:$AZ138,0)","v":5},{"$f":"MATCH(O$3,Millwall!$AP138:$AZ138,0)","v":{"$error":"#N/A"}},{"$f":"MATCH(P$3,Millwall!$AP138:$AZ138,0)","v":3},{"$f":"MATCH(Q$3,Millwall!$AP138:$AZ138,0)","v":{"$error":"#N/A"}},{"$f":"MATCH(R$3,Millwall!$AP138:$AZ138,0)","v":7},{"$f":"MATCH(S$3,Millwall!$AP138:$AZ138,0)","v":6},{"$f":"MATCH(T$3,Millwall!$AP138:$AZ138,0)","v":{"$error":"#N/A"}},{"$f":"MATCH(U$3,Millwall!$AP138:$AZ138,0)","v":{"$error":"#N/A"}},{"$f":"MATCH(V$3,Millwall!$AP138:$AZ138,0)","v":{"$error":"#N/A"}},{"$f":"MATCH(W$3,Millwall!$AP138:$AZ138,0)","v":2},{"$f":"MATCH(X$3,Millwall!$AP138:$AZ138,0)","v":9},{"$f":"MATCH(Y$3,Millwall!$AP138:$AZ138,0)","v":{"$error":"#N/A"}},{"$f":"MATCH(Z$3,Millwall!$AP138:$AZ138,0)","v":1},{"$f":"MATCH(AA$3,Millwall!$AP138:$AZ138,0)","v":{"$error":"#N/A"}},{"$f":"MATCH(AB$3,Millwall!$AP138:$AZ138,0)","v":8},{"$f":"MATCH(AC$3,Millwall!$AP138:$AZ138,0)","v":{"$error":"#N/A"}},{"$f":"MATCH(AD$3,Millwall!$AP138:$AZ138,0)","v":11},{"$f":"MATCH(AE$3,Millwall!$AP138:$AZ138,0)","v":{"$error":"#N/A"}},{"$f":"MATCH(AF$3,Millwall!$AP138:$AZ138,0)","v":{"$error":"#N/A"}},{"$f":"MATCH(AG$3,Millwall!$AP138:$AZ138,0)","v":{"$error":"#N/A"}},{"$f":"MATCH(AH$3,Millwall!$AP138:$AZ138,0)","v":{"$error":"#N/A"}},{"$f":"MATCH(AI$3,Millwall!$AP138:$AZ138,0)","v":{"$error":"#N/A"}},{"$f":"MATCH(AJ$3,Millwall!$AP138:$AZ138,0)","v":{"$error":"#N/A"}},{"$f":"MATCH(AK$3,Millwall!$AP138:$AZ138,0)","v":{"$error":"#N/A"}},{"$f":"MATCH(AL$3,Millwall!$AP138:$AZ138,0)","v":{"$error":"#N/A"}},{"$f":"MATCH(AM$3,Millwall!$AP138:$AZ138,0)","v":{"$error":"#N/A"}},{"$f":"MATCH(AN$3,Millwall!$AP138:$AZ138,0)","v":{"$error":"#N/A"}},{"$f":"MATCH(AO$3,Millwall!$AP138:$AZ138,0)","v":{"$error":"#N/A"}},{"$f":"MATCH(AP$3,Millwall!$AP138:$AZ138,0)","v":{"$error":"#N/A"}},{"$f":"MATCH(AQ$3,Millwall!$AP138:$AZ138,0)","v":{"$error":"#N/A"}},{"$f":"MATCH(AR$3,Millwall!$AP138:$AZ138,0)","v":{"$error":"#N/A"}}]
[null,null,null,4,null,{"$f":"Millwall!AI139","v":"00:00:00"},null,{"$f":"Millwall!AK139","v":"00:00:00"},{"$f":"Millwall!AL139","v":"00:00:00"},{"$f":"Millwall!AO139","v":0},{"$f":"MATCH(K$3,Millwall!$AP139:$AZ139,0)","v":{"$error":"#N/A"}},{"$f":"MATCH(L$3,Millwall!$AP139:$AZ139,0)","v":{"$error":"#N/A"}},{"$f":"MATCH(M$3,Millwall!$AP139:$AZ139,0)","v":{"$error":"#N/A"}},{"$f":"MATCH(N$3,Millwall!$AP139:$AZ139,0)","v":{"$error":"#N/A"}},{"$f":"MATCH(O$3,Millwall!$AP139:$AZ139,0)","v":{"$error":"#N/A"}},{"$f":"MATCH(P$3,Millwall!$AP139:$AZ139,0)","v":{"$error":"#N/A"}},{"$f":"MATCH(Q$3,Millwall!$AP139:$AZ139,0)","v":{"$error":"#N/A"}},{"$f":"MATCH(R$3,Millwall!$AP139:$AZ139,0)","v":{"$error":"#N/A"}},{"$f":"MATCH(S$3,Millwall!$AP139:$AZ139,0)","v":{"$error":"#N/A"}},{"$f":"MATCH(T$3,Millwall!$AP139:$AZ139,0)","v":{"$error":"#N/A"}},{"$f":"MATCH(U$3,Millwall!$AP139:$AZ139,0)","v":{"$error":"#N/A"}},{"$f":"MATCH(V$3,Millwall!$AP139:$AZ139,0)","v":{"$error":"#N/A"}},{"$f":"MATCH(W$3,Millwall!$AP139:$AZ139,0)","v":{"$error":"#N/A"}},{"$f":"MATCH(X$3,Millwall!$AP139:$AZ139,0)","v":{"$error":"#N/A"}},{"$f":"MATCH(Y$3,Millwall!$AP139:$AZ139,0)","v":{"$error":"#N/A"}},{"$f":"MATCH(Z$3,Millwall!$AP139:$AZ139,0)","v":{"$error":"#N/A"}},{"$f":"MATCH(AA$3,Millwall!$AP139:$AZ139,0)","v":{"$error":"#N/A"}},{"$f":"MATCH(AB$3,Millwall!$AP139:$AZ139,0)","v":{"$error":"#N/A"}},{"$f":"MATCH(AC$3,Millwall!$AP139:$AZ139,0)","v":{"$error":"#N/A"}},{"$f":"MATCH(AD$3,Millwall!$AP139:$AZ139,0)","v":{"$error":"#N/A"}},{"$f":"MATCH(AE$3,Millwall!$AP139:$AZ139,0)","v":{"$error":"#N/A"}},{"$f":"MATCH(AF$3,Millwall!$AP139:$AZ139,0)","v":{"$error":"#N/A"}},{"$f":"MATCH(AG$3,Millwall!$AP139:$AZ139,0)","v":{"$error":"#N/A"}},{"$f":"MATCH(AH$3,Millwall!$AP139:$AZ139,0)","v":{"$error":"#N/A"}},{"$f":"MATCH(AI$3,Millwall!$AP139:$AZ139,0)","v":{"$error":"#N/A"}},{"$f":"MATCH(AJ$3,Millwall!$AP139:$AZ139,0)","v":{"$error":"#N/A"}},{"$f":"MATCH(AK$3,Millwall!$AP139:$AZ139,0)","v":{"$error":"#N/A"}},{"$f":"MATCH(AL$3,Millwall!$AP139:$AZ139,0)","v":{"$error":"#N/A"}},{"$f":"MATCH(AM$3,Millwall!$AP139:$AZ139,0)","v":{"$error":"#N/A"}},{"$f":"MATCH(AN$3,Millwall!$AP139:$AZ139,0)","v":{"$error":"#N/A"}},{"$f":"MATCH(AO$3,Millwall!$AP139:$AZ139,0)","v":{"$error":"#N/A"}},{"$f":"MATCH(AP$3,Millwall!$AP139:$AZ139,0)","v":{"$error":"#N/A"}},{"$f":"MATCH(AQ$3,Millwall!$AP139:$AZ139,0)","v":{"$error":"#N/A"}},{"$f":"MATCH(AR$3,Millwall!$AP139:$AZ139,0)","v":{"$error":"#N/A"}}]
[null,null,null,5,null,{"$f":"Millwall!AI140","v":"00:00:00"},null,{"$f":"Millwall!AK140","v":"00:00:00"},{"$f":"Millwall!AL140","v":"00:00:00"},{"$f":"Millwall!AO140","v":0},{"$f":"MATCH(K$3,Millwall!$AP140:$AZ140,0)","v":{"$error":"#N/A"}},{"$f":"MATCH(L$3,Millwall!$AP140:$AZ140,0)","v":{"$error":"#N/A"}},{"$f":"MATCH(M$3,Millwall!$AP140:$AZ140,0)","v":{"$error":"#N/A"}},{"$f":"MATCH(N$3,Millwall!$AP140:$AZ140,0)","v":{"$error":"#N/A"}},{"$f":"MATCH(O$3,Millwall!$AP140:$AZ140,0)","v":{"$error":"#N/A"}},{"$f":"MATCH(P$3,Millwall!$AP140:$AZ140,0)","v":{"$error":"#N/A"}},{"$f":"MATCH(Q$3,Millwall!$AP140:$AZ140,0)","v":{"$error":"#N/A"}},{"$f":"MATCH(R$3,Millwall!$AP140:$AZ140,0)","v":{"$error":"#N/A"}},{"$f":"MATCH(S$3,Millwall!$AP140:$AZ140,0)","v":{"$error":"#N/A"}},{"$f":"MATCH(T$3,Millwall!$AP140:$AZ140,0)","v":{"$error":"#N/A"}},{"$f":"MATCH(U$3,Millwall!$AP140:$AZ140,0)","v":{"$error":"#N/A"}},{"$f":"MATCH(V$3,Millwall!$AP140:$AZ140,0)","v":{"$error":"#N/A"}},{"$f":"MATCH(W$3,Millwall!$AP140:$AZ140,0)","v":{"$error":"#N/A"}},{"$f":"MATCH(X$3,Millwall!$AP140:$AZ140,0)","v":{"$error":"#N/A"}},{"$f":"MATCH(Y$3,Millwall!$AP140:$AZ140,0)","v":{"$error":"#N/A"}},{"$f":"MATCH(Z$3,Millwall!$AP140:$AZ140,0)","v":{"$error":"#N/A"}},{"$f":"MATCH(AA$3,Millwall!$AP140:$AZ140,0)","v":{"$error":"#N/A"}},{"$f":"MATCH(AB$3,Millwall!$AP140:$AZ140,0)","v":{"$error":"#N/A"}},{"$f":"MATCH(AC$3,Millwall!$AP140:$AZ140,0)","v":{"$error":"#N/A"}},{"$f":"MATCH(AD$3,Millwall!$AP140:$AZ140,0)","v":{"$error":"#N/A"}},{"$f":"MATCH(AE$3,Millwall!$AP140:$AZ140,0)","v":{"$error":"#N/A"}},{"$f":"MATCH(AF$3,Millwall!$AP140:$AZ140,0)","v":{"$error":"#N/A"}},{"$f":"MATCH(AG$3,Millwall!$AP140:$AZ140,0)","v":{"$error":"#N/A"}},{"$f":"MATCH(AH$3,Millwall!$AP140:$AZ140,0)","v":{"$error":"#N/A"}},{"$f":"MATCH(AI$3,Millwall!$AP140:$AZ140,0)","v":{"$error":"#N/A"}},{"$f":"MATCH(AJ$3,Millwall!$AP140:$AZ140,0)","v":{"$error":"#N/A"}},{"$f":"MATCH(AK$3,Millwall!$AP140:$AZ140,0)","v":{"$error":"#N/A"}},{"$f":"MATCH(AL$3,Millwall!$AP140:$AZ140,0)","v":{"$error":"#N/A"}},{"$f":"MATCH(AM$3,Millwall!$AP140:$AZ140,0)","v":{"$error":"#N/A"}},{"$f":"MATCH(AN$3,Millwall!$AP140:$AZ140,0)","v":{"$error":"#N/A"}},{"$f":"MATCH(AO$3,Millwall!$AP140:$AZ140,0)","v":{"$error":"#N/A"}},{"$f":"MATCH(AP$3,Millwall!$AP140:$AZ140,0)","v":{"$error":"#N/A"}},{"$f":"MATCH(AQ$3,Millwall!$AP140:$AZ140,0)","v":{"$error":"#N/A"}},{"$f":"MATCH(AR$3,Millwall!$AP140:$AZ140,0)","v":{"$error":"#N/A"}}]
[null,null,null,6,null,{"$f":"Millwall!AI141","v":"00:00:00"},null,{"$f":"Millwall!AK141","v":"00:00:00"},{"$f":"Millwall!AL141","v":"00:00:00"},{"$f":"Millwall!AO141","v":0},{"$f":"MATCH(K$3,Millwall!$AP141:$AZ141,0)","v":{"$error":"#N/A"}},{"$f":"MATCH(L$3,Millwall!$AP141:$AZ141,0)","v":{"$error":"#N/A"}},{"$f":"MATCH(M$3,Millwall!$AP141:$AZ141,0)","v":{"$error":"#N/A"}},{"$f":"MATCH(N$3,Millwall!$AP141:$AZ141,0)","v":{"$error":"#N/A"}},{"$f":"MATCH(O$3,Millwall!$AP141:$AZ141,0)","v":{"$error":"#N/A"}},{"$f":"MATCH(P$3,Millwall!$AP141:$AZ141,0)","v":{"$error":"#N/A"}},{"$f":"MATCH(Q$3,Millwall!$AP141:$AZ141,0)","v":{"$error":"#N/A"}},{"$f":"MATCH(R$3,Millwall!$AP141:$AZ141,0)","v":{"$error":"#N/A"}},{"$f":"MATCH(S$3,Millwall!$AP141:$AZ141,0)","v":{"$error":"#N/A"}},{"$f":"MATCH(T$3,Millwall!$AP141:$AZ141,0)","v":{"$error":"#N/A"}},{"$f":"MATCH(U$3,Millwall!$AP141:$AZ141,0)","v":{"$error":"#N/A"}},{"$f":"MATCH(V$3,Millwall!$AP141:$AZ141,0)","v":{"$error":"#N/A"}},{"$f":"MATCH(W$3,Millwall!$AP141:$AZ141,0)","v":{"$error":"#N/A"}},{"$f":"MATCH(X$3,Millwall!$AP141:$AZ141,0)","v":{"$error":"#N/A"}},{"$f":"MATCH(Y$3,Millwall!$AP141:$AZ141,0)","v":{"$error":"#N/A"}},{"$f":"MATCH(Z$3,Millwall!$AP141:$AZ141,0)","v":{"$error":"#N/A"}},{"$f":"MATCH(AA$3,Millwall!$AP141:$AZ141,0)","v":{"$error":"#N/A"}},{"$f":"MATCH(AB$3,Millwall!$AP141:$AZ141,0)","v":{"$error":"#N/A"}},{"$f":"MATCH(AC$3,Millwall!$AP141:$AZ141,0)","v":{"$error":"#N/A"}},{"$f":"MATCH(AD$3,Millwall!$AP141:$AZ141,0)","v":{"$error":"#N/A"}},{"$f":"MATCH(AE$3,Millwall!$AP141:$AZ141,0)","v":{"$error":"#N/A"}},{"$f":"MATCH(AF$3,Millwall!$AP141:$AZ141,0)","v":{"$error":"#N/A"}},{"$f":"MATCH(AG$3,Millwall!$AP141:$AZ141,0)","v":{"$error":"#N/A"}},{"$f":"MATCH(AH$3,Millwall!$AP141:$AZ141,0)","v":{"$error":"#N/A"}},{"$f":"MATCH(AI$3,Millwall!$AP141:$AZ141,0)","v":{"$error":"#N/A"}},{"$f":"MATCH(AJ$3,Millwall!$AP141:$AZ141,0)","v":{"$error":"#N/A"}},{"$f":"MATCH(AK$3,Millwall!$AP141:$AZ141,0)","v":{"$error":"#N/A"}},{"$f":"MATCH(AL$3,Millwall!$AP141:$AZ141,0)","v":{"$error":"#N/A"}},{"$f":"MATCH(AM$3,Millwall!$AP141:$AZ141,0)","v":{"$error":"#N/A"}},{"$f":"MATCH(AN$3,Millwall!$AP141:$AZ141,0)","v":{"$error":"#N/A"}},{"$f":"MATCH(AO$3,Millwall!$AP141:$AZ141,0)","v":{"$error":"#N/A"}},{"$f":"MATCH(AP$3,Millwall!$AP141:$AZ141,0)","v":{"$error":"#N/A"}},{"$f":"MATCH(AQ$3,Millwall!$AP141:$AZ141,0)","v":{"$error":"#N/A"}},{"$f":"MATCH(AR$3,Millwall!$AP141:$AZ141,0)","v":{"$error":"#N/A"}}]
[null,null,null,"SF",null,{"$f":"Millwall!AI142","v":"00:00:00"},null,{"$f":"Millwall!AK142","v":"00:00:00"},{"$f":"Millwall!AL142","v":"00:00:00"},{"$f":"Millwall!AO142","v":0},{"$f":"MATCH(K$3,Millwall!$AP142:$AZ142,0)","v":{"$error":"#N/A"}},{"$f":"MATCH(L$3,Millwall!$AP142:$AZ142,0)","v":{"$error":"#N/A"}},{"$f":"MATCH(M$3,Millwall!$AP142:$AZ142,0)","v":{"$error":"#N/A"}},{"$f":"MATCH(N$3,Millwall!$AP142:$AZ142,0)","v":{"$error":"#N/A"}},{"$f":"MATCH(O$3,Millwall!$AP142:$AZ142,0)","v":{"$error":"#N/A"}},{"$f":"MATCH(P$3,Millwall!$AP142:$AZ142,0)","v":{"$error":"#N/A"}},{"$f":"MATCH(Q$3,Millwall!$AP142:$AZ142,0)","v":{"$error":"#N/A"}},{"$f":"MATCH(R$3,Millwall!$AP142:$AZ142,0)","v":{"$error":"#N/A"}},{"$f":"MATCH(S$3,Millwall!$AP142:$AZ142,0)","v":{"$error":"#N/A"}},{"$f":"MATCH(T$3,Millwall!$AP142:$AZ142,0)","v":{"$error":"#N/A"}},{"$f":"MATCH(U$3,Millwall!$AP142:$AZ142,0)","v":{"$error":"#N/A"}},{"$f":"MATCH(V$3,Millwall!$AP142:$AZ142,0)","v":{"$error":"#N/A"}},{"$f":"MATCH(W$3,Millwall!$AP142:$AZ142,0)","v":{"$error":"#N/A"}},{"$f":"MATCH(X$3,Millwall!$AP142:$AZ142,0)","v":{"$error":"#N/A"}},{"$f":"MATCH(Y$3,Millwall!$AP142:$AZ142,0)","v":{"$error":"#N/A"}},{"$f":"MATCH(Z$3,Millwall!$AP142:$AZ142,0)","v":{"$error":"#N/A"}},{"$f":"MATCH(AA$3,Millwall!$AP142:$AZ142,0)","v":{"$error":"#N/A"}},{"$f":"MATCH(AB$3,Millwall!$AP142:$AZ142,0)","v":{"$error":"#N/A"}},{"$f":"MATCH(AC$3,Millwall!$AP142:$AZ142,0)","v":{"$error":"#N/A"}},{"$f":"MATCH(AD$3,Millwall!$AP142:$AZ142,0)","v":{"$error":"#N/A"}},{"$f":"MATCH(AE$3,Millwall!$AP142:$AZ142,0)","v":{"$error":"#N/A"}},{"$f":"MATCH(AF$3,Millwall!$AP142:$AZ142,0)","v":{"$error":"#N/A"}},{"$f":"MATCH(AG$3,Millwall!$AP142:$AZ142,0)","v":{"$error":"#N/A"}},{"$f":"MATCH(AH$3,Millwall!$AP142:$AZ142,0)","v":{"$error":"#N/A"}},{"$f":"MATCH(AI$3,Millwall!$AP142:$AZ142,0)","v":{"$error":"#N/A"}},{"$f":"MATCH(AJ$3,Millwall!$AP142:$AZ142,0)","v":{"$error":"#N/A"}},{"$f":"MATCH(AK$3,Millwall!$AP142:$AZ142,0)","v":{"$error":"#N/A"}},{"$f":"MATCH(AL$3,Millwall!$AP142:$AZ142,0)","v":{"$error":"#N/A"}},{"$f":"MATCH(AM$3,Millwall!$AP142:$AZ142,0)","v":{"$error":"#N/A"}},{"$f":"MATCH(AN$3,Millwall!$AP142:$AZ142,0)","v":{"$error":"#N/A"}},{"$f":"MATCH(AO$3,Millwall!$AP142:$AZ142,0)","v":{"$error":"#N/A"}},{"$f":"MATCH(AP$3,Millwall!$AP142:$AZ142,0)","v":{"$error":"#N/A"}},{"$f":"MATCH(AQ$3,Millwall!$AP142:$AZ142,0)","v":{"$error":"#N/A"}},{"$f":"MATCH(AR$3,Millwall!$AP142:$AZ142,0)","v":{"$error":"#N/A"}}]
[]
[null,null,null,null,null,null,null,null,null,"Total FA Cup Apperances",{"$f":"COUNT(K50:K56)","v":3},3,0,3,0,3,0,1,3,0,0,0,3,3,0,3,2,3,0,3,0,0,0,0,0,0,0,0,0,0,0,0,0,0]
[null,null,null,null,null,null,null,null,null,"Goals",{"$f":"Millwall!$CB$7","v":0},{"$f":"Millwall!$CB$8","v":0},{"$f":"Millwall!$CB$9","v":0},{"$f":"Millwall!$CB$10","v":0},{"$f":"Millwall!$CB$11","v":0},{"$f":"Millwall!$CB$12","v":0},{"$f":"Millwall!$CB$13","v":0},{"$f":"Millwall!$CB$14","v":0},{"$f":"Millwall!$CB$15","v":0},{"$f":"Millwall!$CB$16","v":0},{"$f":"Millwall!$CB$17","v":0},{"$f":"Millwall!$CB$18","v":0},{"$f":"Millwall!$CB$19","v":0},{"$f":"Millwall!$CB$20","v":7},{"$f":"Millwall!$CB$21","v":0},{"$f":"Millwall!$CB$22","v":0},{"$f":"Millwall!$CB$23","v":1},{"$f":"Millwall!$CB$24","v":1},{"$f":"Millwall!$CB$25","v":0},{"$f":"Millwall!$CB$26","v":0},{"$f":"Millwall!$CB$27","v":0},{"$f":"Millwall!$CB$28","v":0},{"$f":"Millwall!$CB$29","v":0},{"$f":"Millwall!$CB$30","v":0},{"$f":"Millwall!$CB$31","v":0},{"$f":"Millwall!$CB$32","v":0},{"$f":"Millwall!$CB$33","v":0},{"$f":"Millwall!$CB$34","v":0},{"$f":"Millwall!$CB$35","v":0},{"$f":"Millwall!$CB$36","v":0},{"$f":"Millwall!$CB$37","v":0},{"$f":"Millwall!$CB$38","v":0},{"$f":"Millwall!$CB$39","v":0},{"$f":"Millwall!$CB$40","v":0}]
[]
[]
[null,null,null,null,null,null,null,"Checks",null,null,null,null,null,null,null,null,null,null,1]
[]
["Manual Input",null,null,null,null,null,null,"Opponents","Venue/Result",null,{"$f":"K3","v":"Barker"},{"$f":"L3","v":"Brolly"},"Burke","Chiverton","Daniels","Dudley","Fenton","Fisher","Forsyth","Hedley","Inns","Jinks","Lea","McLeod","Osman","Pearson","Rawlings","Richardson","E Smith","JR Smith","Sykes","Thorogood","Wallbanks","Walsh","Williams","Yuill",0,0,0,0,0,"Own Goal",0,0]
[null,null,null,1,null,{"$f":"F4","v":"1938-08-27"},null,{"$f":"H4","v":"Chesterfield"},{"$f":"I4","v":"(H)"},{"$f":"J4","v":"W 3-1"},10,4,null,null,null,null,null,null,6,null,3,null,null,null,null,1,7,8,2,11,null,null,5,9]
[null,null,null,2,null,{"$f":"F5","v":"1938-08-29"},null,{"$f":"H5","v":"Tranmere"},"(A)","L 0-2",10,4,null,5,null,null,null,null,6,null,3,null,null,null,null,1,7,8,2,11,null,null,null,9]
[null,null,null,3,null,"1938-09-03",null,"Swansea","(A)","D 1-1",4,null,null,5,null,null,null,null,6,11,3,null,null,null,null,1,7,8,2,10,null,null,null,9]
[null,null,null,4,null,"1938-09-05",null,"Bury","(H)","D 0-0",null,4,null,5,null,null,null,null,6,11,3,null,null,null,null,1,7,8,2,10,null,null,null,9]
[null,null,null,5,null,"1938-09-10",null,"Bradford PA","(H)","W 3-1",10,4,null,5,null,null,null,null,6,null,3,null,null,null,null,1,7,8,2,11,null,null,null,9]
[null,null,null,6,null,"1938-09-17",null,"Man City","(A)","W 6-1",10,4,null,5,null,null,null,null,6,null,3,null,null,null,null,1,7,8,2,11,null,null,null,9]
[null,null,null,7,null,"1938-09-24",null,"Plymouth","(H)","W 3-0",10,4,null,5,null,null,null,null,6,null,3,null,null,null,null,1,7,8,2,11,null,null,null,9]
[null,null,null,8,null,"1938-10-01",null,"Blackburn","(H)","W 4-1",10,null,null,5,null,null,null,null,6,null,3,null,4,null,null,1,7,8,2,11,null,null,null,9]
[null,null,null,9,null,"1938-10-08",null,"Fulham","(A)","L 1-2",10,null,null,5,null,3,null,null,6,null,null,null,4,null,null,1,7,8,2,11,null,null,null,9]
[null,null,null,10,null,"1938-10-15",null,"Sheff Utd","(A)","L 1-2",10,4,null,5,null,3,null,null,6,null,null,null,null,null,null,1,7,8,2,11,null,null,null,9]
[null,null,null,11,null,"1938-10-22",null,"Burnley","(H)","D 1-1",10,4,null,5,null,null,null,null,6,null,3,null,null,null,null,1,7,8,2,11,null,null,null,9]
[null,null,null,12,null,"1938-10-29",null,"Norwich","(A)","W 2-0",10,4,null,5,null,null,null,null,6,null,3,null,null,null,null,1,7,8,2,11,null,null,null,9]
[null,null,null,13,null,"1938-11-05",null,"Southampton","(H)","L 0-1",10,4,null,5,null,null,null,null,6,null,3,null,null,null,null,1,7,8,2,11,null,null,null,9]
[null,null,null,14,null,"1938-11-12",null,"Coventry","(A)","L 1-2",10,4,null,5,null,null,null,null,null,null,null,null,null,9,null,1,7,8,2,11,6,null,null,null,3]
[null,null,null,15,null,"1938-11-19",null,"Nottm Forest","(H)","W 5-0",10,4,null,5,null,null,null,7,6,null,null,null,null,null,null,1,null,8,2,11,null,null,null,9,3]
[null,null,null,16,null,"1938-11-26",null,"Newcastle","(A)","D 2-2",10,4,null,5,null,null,null,7,6,null,null,null,null,null,null,1,null,8,2,11,null,null,null,9,3]
[null,null,null,17,null,"1938-12-03",null,"West Brom","(H)","L 1-5",10,4,null,5,null,null,null,7,6,null,null,null,null,null,null,1,null,8,2,11,null,null,null,9,3]
[null,null,null,18,null,"1938-12-10",null,{"$f":"H21","v":"Tottenham"},"(A)","L 0-4",10,4,null,5,null,3,null,null,6,null,null,null,null,null,null,null,7,8,2,11,null,null,null,9,null,1]
[null,null,null,19,null,"1938-12-17",null,"Luton","(H)","W 2-1",9,4,null,5,null,3,null,7,6,11,null,null,2,null,null,1,null,8,null,10]
[null,null,null,20,null,"1938-12-24",null,"Chesterfield","(A)","L 0-3",9,4,null,5,null,3,null,7,6,11,null,null,2,null,null,1,null,8,null,10]
[null,null,null,21,null,"1938-12-27",null,"West Ham","(A)","D 0-0",10,4,null,5,null,3,null,null,6,null,null,null,2,null,null,1,7,8,null,11,null,null,null,9]
[null,null,null,22,null,"1938-12-31",null,"Swansea","(H)","D 1-1",10,4,null,5,null,3,null,null,6,null,null,null,2,null,null,1,7,8,null,11,null,null,null,9]
[null,null,null,23,null,"1939-01-02",null,"Bury","(A)","D 1-1",10,4,null,5,null,3,null,null,6,null,null,null,2,9,null,1,7,8,null,11]
[null,null,null,24,null,"1939-01-14",null,"Bradford PA","(A)","L 0-1",10,4,null,5,null,3,null,null,6,null,null,null,2,9,null,1,7,8,null,11]
[null,null,null,25,null,"1939-01-28",null,"Plymouth","(A)","D 2-2",10,4,1,5,null,3,null,null,6,null,null,null,2,9,null,null,7,8,null,11]
[null,null,null,26,null,"1939-02-04",null,"Blackburn","(A)","L 1-3",10,4,1,5,null,3,null,null,6,null,null,null,2,9,null,null,7,8,null,11]
[null,null,null,27,null,"1939-02-11",null,"Fulham","(H)","D 1-1",10,4,null,5,null,null,null,null,6,null,null,null,2,9,null,null,7,8,3,11,null,null,null,null,null,1]
[null,null,null,28,null,"1939-02-18",null,"Sheff Utd","(H)","W 4-0",10,4,null,5,null,null,null,7,6,null,null,null,2,9,null,null,null,8,3,11,null,null,null,null,null,1]
[null,null,null,29,null,"1939-02-25",null,"Burnley","(A)","L 0-2",10,4,null,5,null,null,null,7,6,null,null,null,2,9,null,null,null,8,3,11,null,null,null,null,null,1]
[null,null,null,30,null,"1939-03-04",null,"Norwich","(H)","W 6-0",10,4,null,5,null,null,null,7,6,null,null,null,2,9,null,null,null,8,3,11,null,null,null,null,null,1]
[null,null,null,31,null,"1939-03-11",null,"Southampton","(A)","D 1-1",10,4,null,5,null,null,null,7,6,null,null,null,2,9,null,null,null,8,3,11,null,null,null,null,null,1]
[null,null,null,32,null,"1939-03-13",null,"Man City","(H)","W 3-1",8,4,null,5,null,null,null,null,6,null,null,null,2,9,null,null,7,null,3,10,null,11,null,null,null,1]
[null,null,null,33,null,"1939-03-18",null,"Coventry","(H)","D 0-0",null,4,null,5,null,null,8,7,6,null,null,null,2,9,11,null,null,null,3,10,null,null,null,null,null,1]
[null,null,null,34,null,"1939-03-25",null,{"$f":"H37","v":"Nottm Forest"},"(A)","L 0-3",null,4,null,5,null,null,8,7,6,null,null,null,2,null,11,null,null,9,3,10,null,null,null,null,null,1]
[null,null,null,35,null,"1939-03-27",null,"West Ham","(H)","L 0-2",10,null,null,5,null,null,null,7,6,null,null,null,2,9,11,null,null,8,3,null,4,null,null,null,null,1]
[null,null,null,36,null,"1939-04-01",null,"Newcastle","(H)","D 1-1",10,null,null,5,null,null,null,null,6,null,null,null,4,9,null,null,7,8,2,11,null,null,null,null,3,1]
[null,null,null,37,null,"1939-04-07",null,"Sheff Wed","(H)","W 2-0",10,null,null,5,null,null,null,null,6,null,null,null,4,9,null,null,7,8,2,11,null,null,null,null,3,1]
[null,null,null,38,null,"1939-04-08",null,"West Brom","(A)","D 0-0",10,null,null,5,null,null,null,null,6,null,null,null,4,9,11,null,7,8,2,null,null,null,null,null,3,1]
[null,null,null,39,null,"1939-04-10",null,"Sheff Wed","(A)","L 1-3",10,null,null,5,null,null,null,null,6,null,null,null,4,9,11,null,7,8,2,null,null,null,null,null,3,1]
[null,null,null,40,null,"1939-04-15",null,"Tottenham","(H)","W 2-0",10,null,null,5,null,null,null,null,6,null,null,null,4,null,11,null,7,8,2,null,null,null,null,9,3,1]
[null,null,null,41,null,"1939-04-22",null,"Luton","(A)","D 0-0",10,null,null,5,4,null,null,null,6,null,null,null,null,null,11,null,7,8,2,null,null,null,null,9,3,1]
[null,null,null,42,null,"1939-04-29",null,"Tranmere","(H)","W 2-1",10,null,null,5,null,null,null,null,6,null,null,9,4,null,11,null,7,8,2,null,null,null,null,null,3,1]
[]
[null,null,null,null,null,null,null,null,null,"Total League Apperances",{"$f":"COUNT(K65:K106)","v":39},31,2,41,1,11,2,12,41,4,11,1,25,17,8,23,30,40,34,36,2,1,1,21,11,17,0,0,0,0,0,0,0,0]
[null,null,null,null,null,null,null,null,null,"Goals",12,1,0,0,0,0,0,6,0,2,0,1,0,5,0,0,13,11,0,3,0,1,0,8,0,0,0,0,1,0,0,0,0,0]
[]
[null,null,null,3,null,{"$f":"F50","v":"1939-01-11"},null,{"$f":"H50","v":"York City"},"(A)","W 5-0",10,4,null,5,null,3,null,null,6,null,null,null,2,9,null,1,7,8,null,11]
[null,null,null,"3R",null,{"$f":"F51","v":"1939-01-21"},null,"Grimsby Town","(H)","D 2-2",10,4,null,5,null,3,null,null,6,null,null,null,2,9,null,1,7,8,null,11]
[null,null,null,4,null,{"$f":"F52","v":"1939-01-24"},null,"Grimsby Town","(A)","L 2-3",10,4,null,5,null,3,null,7,6,null,null,null,2,9,null,1,null,8,null,11]
[null,null,null,4,null,{"$f":"F53","v":"00:00:00"},null,"00:00:00","00:00:00",0]
[null,null,null,5,null,"00:00:00",null,"00:00:00","00:00:00",0]
[null,null,null,6,null,"00:00:00",null,"00:00:00","00:00:00",0]
[null,null,null,7,null,"00:00:00",null,"00:00:00","00:00:00",0]
[]
[null,null,null,null,null,null,null,null,null,"Total FA Cup Apperances",{"$f":"COUNT(K111:K117)","v":3},3,0,3,0,3,0,1,3,0,0,0,3,3,0,3,2,3,0,3,0,0,0,0,0,0,0,0,0,0,0,0,0,0]
[null,null,null,null,null,null,null,null,null,"Goals",0,0,0,0,0,0,0,0,0,0,0,0,0,7,0,0,1,1,0,0,0,0,0,0,0,0,0,0,0,0,0,0,0,0]
[]
[]
[]
["Manual Input",null,null,null,null,null,null,"Opponents","Venue/Result",null,{"$f":"K3","v":"Barker"},{"$f":"L3","v":"Brolly"},"Burke","Chiverton","Daniels","Dudley","Fenton","Fisher","Forsyth","Hedley","Inns","Jinks","Lea","McLeod","Osman","Pearson","Rawlings","Richardson","E Smith","JR Smith","Sykes","Thorogood","Wallbanks","Walsh","Williams","Yuill",0,0,0,0,0,"Own Goal",0,0]
[null,null,null,1,null,{"$f":"F4","v":"1938-08-27"},null,{"$f":"H4","v":"Chesterfield"},{"$f":"I4","v":"(H)"},{"$f":"J4","v":"W 3-1"},10,4,null,null,null,null,null,null,6,null,3,null,null,null,null,1,7,8,2,11,null,null,5,9]
[null,null,null,2,null,{"$f":"F5","v":"1938-08-29"},null,{"$f":"H5","v":"Tranmere"},"(A)","L 0-2",10,4,null,5,null,null,null,null,6,null,3,null,null,null,null,1,7,8,2,11,null,null,null,9]
[null,null,null,3,null,"1938-09-03",null,"Swansea","(A)","D 1-1",4,null,null,5,null,null,null,null,6,11,3,null,null,null,null,1,7,8,2,10,null,null,null,9]
[null,null,null,4,null,"1938-09-05",null,"Bury","(H)","D 0-0",null,4,null,5,null,null,null,null,6,11,3,null,null,null,null,1,7,8,2,10,null,null,null,9]
[null,null,null,5,null,"1938-09-10",null,"Bradford PA","(H)","W 3-1",10,4,null,5,null,null,null,null,6,null,3,null,null,null,null,1,7,8,2,11,null,null,null,9]
[null,null,null,6,null,"1938-09-17",null,"Man City","(A)","W 6-1",10,4,null,5,null,null,null,null,6,null,3,null,null,null,null,1,7,8,2,11,null,null,null,9]
[null,null,null,7,null,"1938-09-24",null,"Plymouth","(H)","W 3-0",10,4,null,5,null,null,null,null,6,null,3,null,null,null,null,1,7,8,2,11,null,null,null,9]
[null,null,null,8,null,"1938-10-01",null,"Blackburn","(H)","W 4-1",10,null,null,5,null,null,null,null,6,null,3,null,4,null,null,1,7,8,2,11,null,null,null,9]
[null,null,null,9,null,"1938-10-08",null,"Fulham","(A)","L 1-2",10,null,null,5,null,3,null,null,6,null,null,null,4,null,null,1,7,8,2,11,null,null,null,9]
[null,null,null,10,null,"1938-10-15",null,"Sheff Utd","(A)","L 1-2",10,4,null,5,null,3,null,null,6,null,null,null,null,null,null,1,7,8,2,11,null,null,null,9]
[null,null,null,11,null,"1938-10-22",null,"Burnley","(H)","D 1-1",10,4,null,5,null,null,null,null,6,null,3,null,null,null,null,1,7,8,2,11,null,null,null,9]
[null,null,null,12,null,"1938-10-29",null,"Norwich","(A)","W 2-0",10,4,null,5,null,null,null,null,6,null,3,null,null,null,null,1,7,8,2,11,null,null,null,9]
[null,null,null,13,null,"1938-11-05",null,"Southampton","(H)","L 0-1",10,4,null,5,null,null,null,null,6,null,3,null,null,null,null,1,7,8,2,11,null,null,null,9]
[null,null,null,14,null,"1938-11-12",null,"Coventry","(A)","L 1-2",10,4,null,5,null,null,null,null,null,null,null,null,null,9,null,1,7,8,2,11,6,null,null,null,3]
[null,null,null,15,null,"1938-11-19",null,"Nottm Forest","(H)","W 5-0",10,4,null,5,null,null,null,7,6,null,null,null,null,null,null,1,null,8,2,11,null,null,null,9,3]
[null,null,null,16,null,"1938-11-26",null,"Newcastle","(A)","D 2-2",10,4,null,5,null,null,null,7,6,null,null,null,null,null,null,1,null,8,2,11,null,null,null,9,3]
[null,null,null,17,null,"1938-12-03",null,"West Brom","(H)","L 1-5",10,4,null,5,null,null,null,7,6,null,null,null,null,null,null,1,null,8,2,11,null,null,null,9,3]
[null,null,null,18,null,"1938-12-10",null,{"$f":"H21","v":"Tottenham"},"(A)","L 0-4",10,4,null,5,null,3,null,null,6,null,null,null,null,null,null,null,7,8,2,11,null,null,null,9,null,1]
[null,null,null,19,null,"1938-12-17",null,"Luton","(H)","W 2-1",9,4,null,5,null,3,null,7,6,11,null,null,2,null,null,1,null,8,null,10]
[null,null,null,20,null,"1938-12-24",null,"Chesterfield","(A)","L 0-3",9,4,null,5,null,3,null,7,6,11,null,null,2,null,null,1,null,8,null,10]
[null,null,null,21,null,"1938-12-27",null,"West Ham","(A)","D 0-0",10,4,null,5,null,3,null,null,6,null,null,null,2,null,null,1,7,8,null,11,null,null,null,9]
[null,null,null,22,null,"1938-12-31",null,"Swansea","(H)","D 1-1",10,4,null,5,null,3,null,null,6,null,null,null,2,null,null,1,7,8,null,11,null,null,null,9]
[null,null,null,23,null,"1939-01-02",null,"Bury","(A)","D 1-1",10,4,null,5,null,3,null,null,6,null,null,null,2,9,null,1,7,8,null,11]
[null,null,null,24,null,"1939-01-14",null,"Bradford PA","(A)","L 0-1",10,4,null,5,null,3,null,null,6,null,null,null,2,9,null,1,7,8,null,11]
[null,null,null,25,null,"1939-01-28",null,"Plymouth","(A)","D 2-2",10,4,1,5,null,3,null,null,6,null,null,null,2,9,null,null,7,8,null,11]
[null,null,null,26,null,"1939-02-04",null,"Blackburn","(A)","L 1-3",10,4,1,5,null,3,null,null,6,null,null,null,2,9,null,null,7,8,null,11]
[null,null,null,27,null,"1939-02-11",null,"Fulham","(H)","D 1-1",10,4,null,5,null,null,null,null,6,null,null,null,2,9,null,null,7,8,3,11,null,null,null,null,null,1]
[null,null,null,28,null,"1939-02-18",null,"Sheff Utd","(H)","W 4-0",10,4,null,5,null,null,null,7,6,null,null,null,2,9,null,null,null,8,3,11,null,null,null,null,null,1]
[null,null,null,29,null,"1939-02-25",null,"Burnley","(A)","L 0-2",10,4,null,5,null,null,null,7,6,null,null,null,2,9,null,null,null,8,3,11,null,null,null,null,null,1]
[null,null,null,30,null,"1939-03-04",null,"Norwich","(H)","W 6-0",10,4,null,5,null,null,null,7,6,null,null,null,2,9,null,null,null,8,3,11,null,null,null,null,null,1]
[null,null,null,31,null,"1939-03-11",null,"Southampton","(A)","D 1-1",10,4,null,5,null,null,null,7,6,null,null,null,2,9,null,null,null,8,3,11,null,null,null,null,null,1]
[null,null,null,32,null,"1939-03-13",null,"Man City","(H)","W 3-1",8,4,null,5,null,null,null,null,6,null,null,null,2,9,null,null,7,null,3,10,null,11,null,null,null,1]
[null,null,null,33,null,"1939-03-18",null,"Coventry","(H)","D 0-0",null,4,null,5,null,null,8,7,6,null,null,null,2,9,11,null,null,null,3,10,null,null,null,null,null,1]
[null,null,null,34,null,"1939-03-25",null,{"$f":"H37","v":"Nottm Forest"},"(A)","L 0-3",null,4,null,5,null,null,8,7,6,null,null,null,2,null,11,null,null,9,3,10,null,null,null,null,null,1]
[null,null,null,35,null,"1939-03-27",null,"West Ham","(H)","L 0-2",10,null,null,5,null,null,null,7,6,null,null,null,2,9,11,null,null,8,3,null,4,null,null,null,null,1]
[null,null,null,36,null,"1939-04-01",null,"Newcastle","(H)","D 1-1",10,null,null,5,null,null,null,null,6,null,null,null,4,9,null,null,7,8,2,11,null,null,null,null,3,1]
[null,null,null,37,null,"1939-04-07",null,"Sheff Wed","(H)","W 2-0",10,null,null,5,null,null,null,null,6,null,null,null,4,9,null,null,7,8,2,11,null,null,null,null,3,1]
[null,null,null,38,null,"1939-04-08",null,"West Brom","(A)","D 0-0",10,null,null,5,null,null,null,null,6,null,null,null,4,9,null,null,7,8,2,11,null,null,null,null,3,1]
[null,null,null,39,null,"1939-04-10",null,"Sheff Wed","(A)","L 1-3",10,null,null,5,null,null,null,null,6,null,null,null,4,9,11,null,7,8,2,null,null,null,null,null,3,1]
[null,null,null,40,null,"1939-04-15",null,"Tottenham","(H)","W 2-0",10,null,null,5,null,null,null,null,6,null,null,null,4,null,11,null,7,8,2,null,null,null,null,9,3,1]
[null,null,null,41,null,"1939-04-22",null,"Luton","(A)","D 0-0",10,null,null,5,4,null,null,null,6,null,null,null,null,null,11,null,7,8,2,null,null,null,null,9,3,1]
[null,null,null,42,null,"1939-04-29",null,"Tranmere","(H)","W 2-1",10,null,null,5,null,null,null,null,6,null,null,9,4,null,11,null,7,8,2,null,null,null,null,null,3,1]
[]
[null,null,null,null,null,null,null,null,null,"Total League Apperances",{"$f":"COUNT(K125:K166)","v":39},31,2,41,1,11,2,12,41,4,11,1,25,17,7,23,30,40,34,37,2,1,1,21,11,17,0,0,0,0,0,0,0,0]
[null,null,null,null,null,null,null,null,null,"Goals",12,1,0,0,0,0,0,6,0,2,0,1,0,5,0,0,13,11,0,3,0,1,0,8,0,0,0,0,1,0,0,0,0,0]
[]
[null,null,null,3,null,{"$f":"F50","v":"1939-01-11"},null,{"$f":"H50","v":"York City"},"(A)","W 5-0",10,4,null,5,null,3,null,null,6,null,null,null,2,9,null,1,7,8,null,11]
[null,null,null,"3R",null,{"$f":"F51","v":"1939-01-21"},null,"Grimsby Town","(H)","D 2-2",10,4,null,5,null,3,null,null,6,null,null,null,2,9,null,1,7,8,null,11]
[null,null,null,4,null,{"$f":"F52","v":"1939-01-24"},null,"Grimsby Town","(A)","L 2-3",10,4,null,5,null,3,null,7,6,null,null,null,2,9,null,1,null,8,null,11]
[null,null,null,4,null,"00:00:00",null,"00:00:00","00:00:00",0]
[null,null,null,5,null,"00:00:00",null,"00:00:00","00:00:00",0]
[null,null,null,6,null,"00:00:00",null,"00:00:00","00:00:00",0]
[null,null,null,"SF",null,"00:00:00",null,"00:00:00","00:00:00",0]
[]
[null,null,null,null,null,null,null,null,null,"Total FA Cup Apperances",{"$f":"COUNT(K171:K177)","v":3},3,0,3,0,3,0,1,3,0,0,0,3,3,0,3,2,3,0,3,0,0,0,0,0,0,0,0,0,0,0,0,0,0]
[null,null,null,null,null,null,null,null,null,"Goals",0,0,0,0,0,0,0,0,0,0,0,0,0,7,0,0,1,1,0,0,0,0,0,0,0,0,0,0,0,0,0,0,0,0]

{"sheet":"Sheet1","index":2,"n_rows":195,"n_cols":63,"rows_kept":195,"cut":false,"hidden":false,"merged":[[5,1,7,1],[5,52,7,52],[15,1,17,1],[15,52,17,52],[25,1,27,1],[25,52,27,52],[35,1,37,1],[35,52,37,52],[45,1,47,1],[45,52,47,52],[55,1,57,1],[55,52,57,52],[65,1,67,1],[65,52,67,52],[75,1,77,1],[75,52,77,52],[85,1,87,1],[85,52,87,52],[95,1,97,1],[95,52,97,52],[105,1,107,1],[105,52,107,52],[115,1,117,1],[115,52,117,52],[155,1,157,1],[155,52,157,52],[200,13,200,14],[201,13,201,14],[125,1,127,1],[125,52,127,52],[135,1,137,1],[135,52,137,52],[145,1,147,1],[145,52,147,52]]}
[]
[null,null,null,null,null,null,null,null,null,null,null,null,null,null,null,null,null,null,null,null,null,null,null,null,null,null,null,null,null,null,null,null,null,null,null,null,null,null,null,null,null,null,null,null,null,null,null,null,null,null,null,null,null,null,null,null,null,null,null,null,null,null,{"$f":"158-70","v":88}]
[]
[]
[]
[null,75,null,null,null,null,null,null,null,null,null,null,null,null,null,null,null,null,null,null,null,null,null,null,null,null,null,null,null,null,null,null,null,null,null,null,null,null,null,null,null,null,null,null,null,null,null,null,null,null,null,null,75]
[]
[]
[]
[]
[]
[]
[]
[]
[]
[null,70,null,null,null,null,null,null,null,null,null,null,null,null,null,null,null,null,null,null,null,null,null,null,null,null,null,null,null,null,null,null,null,null,null,null,null,null,null,null,null,null,null,null,null,null,null,null,null,null,null,null,70]
[]
[]
[]
[]
[]
[]
[]
[]
[]
[null,65,null,null,null,null,null,null,null,null,null,null,null,null,null,null,null,null,null,null,null,null,null,null,null,null,null,null,null,null,null,null,null,null,null,null,null,null,null,null,null,null,null,null,null,null,null,null,null,null,null,null,65]
[]
[]
[]
[]
[]
[]
[]
[]
[]
[null,60,null,null,null,null,null,null,null,null,null,null,null,null,null,null,null,null,null,null,null,null,null,null,null,null,null,null,null,null,null,null,null,null,null,null,null,null,null,null,null,null,null,null,null,null,null,null,null,null,null,null,60]
[]
[]
[]
[]
[]
[]
[]
[]
[]
[null,55,null,null,null,null,null,null,null,null,null,null,null,null,null,null,null,null,null,null,null,null,null,null,null,null,null,null,null,null,null,null,null,null,null,null,null,null,null,null,null,null,null,null,null,null,null,null,null,null,null,null,55]
[]
[]
[]
[]
[]
[]
[]
[]
[]
[null,50,null,null,null,null,null,null,null,null,null,null,null,null,null,null,null,null,null,null,null,null,null,null,null,null,null,null,null,null,null,null,null,null,null,null,null,null,null,null,null,null,null,null,null,null,null,null,null,null,null,null,50]
[]
[]
[]
[]
[]
[]
[]
[]
[]
[null,45,null,null,null,null,null,null,null,null,null,null,null,null,null,null,null,null,null,null,null,null,null,null,null,null,null,null,null,null,null,null,null,null,null,null,null,null,null,null,null,null,null,null,null,null,null,null,null,null,null,null,45]
[]
[]
[]
[]
[]
[]
[]
[]
[]
[null,40,null,null,null,null,null,null,null,null,null,null,null,null,null,null,null,null,null,null,null,null,null,null,null,null,null,null,null,null,null,null,null,null,null,null,null,null,null,null,null,null,null,null,null,null,null,null,null,null,null,null,40]
[]
[]
[]
[]
[]
[]
[]
[]
[]
[null,35,null,null,null,null,null,null,null,null,null,null,null,null,null,null,null,null,null,null,null,null,null,null,null,null,null,null,null,null,null,null,null,null,null,null,null,null,null,null,null,null,null,null,null,null,null,null,null,null,null,null,35]
[]
[]
[]
[]
[]
[]
[]
[]
[]
[null,30,null,null,null,null,null,null,null,null,null,null,null,null,null,null,null,null,null,null,null,null,null,null,null,null,null,null,null,null,null,null,null,null,null,null,null,null,null,null,null,null,null,null,null,null,null,null,null,null,null,null,30]
[]
[]
[]
[]
[]
[]
[]
[]
[]
[null,25,null,null,null,null,null,null,null,null,null,null,null,null,null,null,null,null,null,null,null,null,null,null,null,null,null,null,null,null,null,null,null,null,null,null,null,null,null,null,null,null,null,null,null,null,null,null,null,null,null,null,25]
[]
[]
[]
[]
[]
[]
[]
[]
[]
[null,20,null,null,null,null,null,null,null,null,null,null,null,null,null,null,null,null,null,null,null,null,null,null,null,null,null,null,null,null,null,null,null,null,null,null,null,null,null,null,null,null,null,null,null,null,null,null,null,null,null,null,20]
[]
[]
[]
[]
[]
[]
[]
[]
[]
[null,15,null,null,null,null,null,null,null,null,null,null,null,null,null,null,null,null,null,null,null,null,null,null,null,null,null,null,null,null,null,null,null,null,null,null,null,null,null,null,null,null,null,null,null,null,null,null,null,null,null,null,15]
[]
[]
[]
[]
[]
[]
[]
[]
[]
[null,10,null,null,null,null,null,null,null,null,null,null,null,null,null,null,null,null,null,null,null,null,null,null,null,null,null,null,null,null,null,null,null,null,null,null,null,null,null,null,null,null,null,null,null,null,null,null,null,null,null,null,10]
[]
[]
[]
[]
[]
[]
[]
[]
[]
[null,5,null,null,null,null,null,null,null,null,null,null,null,null,null,null,null,null,null,null,null,null,null,null,null,null,null,null,null,null,null,null,null,null,null,null,null,null,null,null,null,null,null,null,null,null,null,null,null,null,null,null,5]
[]
[]
[]
[]
[]
[]
[]
[]
[]
[null,0,null,null,null,null,null,null,null,null,null,null,null,null,null,null,null,null,null,null,null,null,null,null,null,null,null,null,null,null,null,null,null,null,null,null,null,null,null,null,null,null,null,null,null,null,null,null,null,null,null,null,0]
[]
[]
[]
[null,null,null,"Chesterfield (H) W 3-1","Tranmere (A) L 0-2","Swansea (A) D 1-1","Bury (H) D 0-0","Bradford PA (H) W 3-1","Man City (A) W 6-1","Plymouth (H) W 3-0","Blackburn (H) W 4-1","Fulham (A) L 1-2","Sheff Utd (A) L 1-2","Burnley (H) D 1-1","Norwich (A) W 2-0","Southampton (H) L 0-1","Coventry (A) L 1-2","Nottm Forest (H) W 5-0","Newcastle (A) D 2-2","West Brom (H) L 1-5","Tottenham (A) L 0-4","Luton (H) W 2-1","Chesterfield (A) L 0-3","West Ham (A) D 0-0","Swansea (H) D 1-1","Bury (A) D 1-1","Bradford PA (A) L 0-1","Plymouth (A) D 2-2","Blackburn (A) L 1-3","Fulham (H) D 1-1","Sheff Utd (H) W 4-0","Burnley (A) L 0-2","Norwich (H) W 6-0","Southampton (A) D 1-1","Man City (H) W 3-1","Coventry (H) D 0-0","Nottm Forest (A) L 0-3","West Ham (H) L 0-2","Newcastle (H) D 1-1","Sheff Wed (H) W 2-0","West Brom (A) D 0-0","Sheff Wed (A) L 1-3","Tottenham (H) W 2-0","Luton (A) D 0-0","Tranmere (H) W 2-1","Final Table"]
[]
[]
[]
[]
[]
[]
[null,null,null,{"$f":"D187-D174","v":0},0,1,0,0,1,2,1,1,1,1,0,1,0,0,0,1,0,0,1,0,0,1,2,1,3,2,2,2,2,0,0,2,1,1,0,0,0,0,1,1,1,1,0,0,0,0]
[null,null,null,4,5,6,7,8,9,10,11,12,13,14,15,16,17,18,19,20,21,22,23,24,25,26,27,28,29,30,31,32,33,34,35,36,37,38,39,40,41,42,43,44,45,46,47,48,49,50]
[null,null,null,{"$f":"D176-D189","v":0},0,0,0,1,0,1,0,0,0,1,0,0,1,0,0,1,2,2,0,2,1,1,1,1,2,2,2,1,1,2,2,1,0,0,0,2,1,2,1,0,2,0,0,0,0,0]
[]
[]
[null,"Top Y",null,{"$f":"Sheet2!$I$6","v":2},{"$f":"Sheet2!$I$7","v":4},{"$f":"Sheet2!$I$8","v":6},{"$f":"Sheet2!$I$9","v":7},{"$f":"Sheet2!$I$10","v":9},{"$f":"Sheet2!$I$11","v":10},{"$f":"Sheet2!$I$12","v":13},{"$f":"Sheet2!$I$13","v":14},{"$f":"Sheet2!$I$14","v":16},{"$f":"Sheet2!$I$15","v":16},{"$f":"Sheet2!$I$16","v":17},{"$f":"Sheet2!$I$17","v":18},{"$f":"Sheet2!$I$18","v":19},{"$f":"Sheet2!$I$19","v":20},{"$f":"Sheet2!$I$20","v":21},{"$f":"Sheet2!$I$21","v":22},{"$f":"Sheet2!$I$22","v":24},{"$f":"Sheet2!$I$23","v":25},{"$f":"Sheet2!$I$24","v":26},{"$f":"Sheet2!$I$25","v":27},{"$f":"Sheet2!$I$26","v":31},{"$f":"Sheet2!$I$27","v":33},{"$f":"Sheet2!$I$28","v":33},{"$f":"Sheet2!$I$29","v":33},{"$f":"Sheet2!$I$30","v":35},{"$f":"Sheet2!$I$31","v":37},{"$f":"Sheet2!$I$32","v":37},{"$f":"Sheet2!$I$33","v":39},{"$f":"Sheet2!$I$34","v":39},{"$f":"Sheet2!$I$35","v":39},{"$f":"Sheet2!$I$36","v":41},{"$f":"Sheet2!$I$37","v":41},{"$f":"Sheet2!$I$38","v":45},{"$f":"Sheet2!$I$39","v":46},{"$f":"Sheet2!$I$40","v":46},{"$f":"Sheet2!$I$41","v":48},{"$f":"Sheet2!$I$42","v":50},{"$f":"Sheet2!$I$43","v":50},{"$f":"Sheet2!$I$44","v":52},{"$f":"Sheet2!$I$45","v":54},{"$f":"Sheet2!$I$46","v":54},{"$f":"Sheet2!$I$47","v":55},{"$f":"Sheet2!$I$48","v":55},{"$f":"Sheet2!$I$49","v":0},{"$f":"Sheet2!$I$50","v":0},{"$f":"Sheet2!$I$51","v":0},{"$f":"Sheet2!$I$52","v":0}]
[]
[null,"3rd a",null,{"$f":"Sheet2!$K$6","v":2},{"$f":"Sheet2!$K$7","v":4},{"$f":"Sheet2!$K$8","v":5},{"$f":"Sheet2!$K$9","v":6},{"$f":"Sheet2!$K$10","v":8},{"$f":"Sheet2!$K$11","v":9},{"$f":"Sheet2!$K$12","v":10},{"$f":"Sheet2!$K$13","v":12},{"$f":"Sheet2!$K$14","v":12},{"$f":"Sheet2!$K$15","v":13},{"$f":"Sheet2!$K$16","v":14},{"$f":"Sheet2!$K$17","v":16},{"$f":"Sheet2!$K$18","v":17},{"$f":"Sheet2!$K$19","v":19},{"$f":"Sheet2!$K$20","v":20},{"$f":"Sheet2!$K$21","v":21},{"$f":"Sheet2!$K$22","v":22},{"$f":"Sheet2!$K$23","v":24},{"$f":"Sheet2!$K$24","v":26},{"$f":"Sheet2!$K$25","v":26},{"$f":"Sheet2!$K$26","v":29},{"$f":"Sheet2!$K$27","v":30},{"$f":"Sheet2!$K$28","v":30},{"$f":"Sheet2!$K$29","v":30},{"$f":"Sheet2!$K$30","v":32},{"$f":"Sheet2!$K$31","v":34},{"$f":"Sheet2!$K$32","v":35},{"$f":"Sheet2!$K$33","v":35},{"$f":"Sheet2!$K$34","v":37},{"$f":"Sheet2!$K$35","v":37},{"$f":"Sheet2!$K$36","v":39},{"$f":"Sheet2!$K$37","v":39},{"$f":"Sheet2!$K$38","v":39},{"$f":"Sheet2!$K$39","v":41},{"$f":"Sheet2!$K$40","v":41},{"$f":"Sheet2!$K$41","v":43},{"$f":"Sheet2!$K$42","v":44},{"$f":"Sheet2!$K$43","v":45},{"$f":"Sheet2!$K$44","v":46},{"$f":"Sheet2!$K$45","v":47},{"$f":"Sheet2!$K$46","v":49},{"$f":"Sheet2!$K$47","v":52},{"$f":"Sheet2!$K$48","v":53},{"$f":"Sheet2!$K$49","v":0},{"$f":"Sheet2!$K$50","v":0},{"$f":"Sheet2!$K$51","v":0},{"$f":"Sheet2!$K$52","v":0}]
[]
[null,"22nd b",null,{"$f":"Sheet2!$M$6","v":0},{"$f":"Sheet2!$M$7","v":0},{"$f":"Sheet2!$M$8","v":0},{"$f":"Sheet2!$M$9","v":0},{"$f":"Sheet2!$M$10","v":2},{"$f":"Sheet2!$M$11","v":3},{"$f":"Sheet2!$M$12","v":4},{"$f":"Sheet2!$M$13","v":5},{"$f":"Sheet2!$M$14","v":5},{"$f":"Sheet2!$M$15","v":6},{"$f":"Sheet2!$M$16","v":8},{"$f":"Sheet2!$M$17","v":8},{"$f":"Sheet2!$M$18","v":8},{"$f":"Sheet2!$M$19","v":10},{"$f":"Sheet2!$M$20","v":10},{"$f":"Sheet2!$M$21","v":10},{"$f":"Sheet2!$M$22","v":11},{"$f":"Sheet2!$M$23","v":13},{"$f":"Sheet2!$M$24","v":13},{"$f":"Sheet2!$M$25","v":13},{"$f":"Sheet2!$M$26","v":15},{"$f":"Sheet2!$M$27","v":16},{"$f":"Sheet2!$M$28","v":16},{"$f":"Sheet2!$M$29","v":16},{"$f":"Sheet2!$M$30","v":16},{"$f":"Sheet2!$M$31","v":17},{"$f":"Sheet2!$M$32","v":17},{"$f":"Sheet2!$M$33","v":19},{"$f":"Sheet2!$M$34","v":20},{"$f":"Sheet2!$M$35","v":20},{"$f":"Sheet2!$M$36","v":21},{"$f":"Sheet2!$M$37","v":21},{"$f":"Sheet2!$M$38","v":22},{"$f":"Sheet2!$M$39","v":23},{"$f":"Sheet2!$M$40","v":23},{"$f":"Sheet2!$M$41","v":23},{"$f":"Sheet2!$M$42","v":25},{"$f":"Sheet2!$M$43","v":26},{"$f":"Sheet2!$M$44","v":28},{"$f":"Sheet2!$M$45","v":29},{"$f":"Sheet2!$M$46","v":29},{"$f":"Sheet2!$M$47","v":31},{"$f":"Sheet2!$M$48","v":31},{"$f":"Sheet2!$M$49","v":0},{"$f":"Sheet2!$M$50","v":0},{"$f":"Sheet2!$M$51","v":0},{"$f":"Sheet2!$M$52","v":0}]
[]
[null,"24th c",null,{"$f":"Sheet2!$O$6","v":0},{"$f":"Sheet2!$O$7","v":0},{"$f":"Sheet2!$O$8","v":0},{"$f":"Sheet2!$O$9","v":0},{"$f":"Sheet2!$O$10","v":0},{"$f":"Sheet2!$O$11","v":2},{"$f":"Sheet2!$O$12","v":3},{"$f":"Sheet2!$O$13","v":4},{"$f":"Sheet2!$O$14","v":5},{"$f":"Sheet2!$O$15","v":5},{"$f":"Sheet2!$O$16","v":6},{"$f":"Sheet2!$O$17","v":7},{"$f":"Sheet2!$O$18","v":7},{"$f":"Sheet2!$O$19","v":7},{"$f":"Sheet2!$O$20","v":7},{"$f":"Sheet2!$O$21","v":7},{"$f":"Sheet2!$O$22","v":7},{"$f":"Sheet2!$O$23","v":7},{"$f":"Sheet2!$O$24","v":7},{"$f":"Sheet2!$O$25","v":8},{"$f":"Sheet2!$O$26","v":8},{"$f":"Sheet2!$O$27","v":8},{"$f":"Sheet2!$O$28","v":10},{"$f":"Sheet2!$O$29","v":10},{"$f":"Sheet2!$O$30","v":11},{"$f":"Sheet2!$O$31","v":12},{"$f":"Sheet2!$O$32","v":12},{"$f":"Sheet2!$O$33","v":12},{"$f":"Sheet2!$O$34","v":12},{"$f":"Sheet2!$O$35","v":13},{"$f":"Sheet2!$O$36","v":13},{"$f":"Sheet2!$O$37","v":13},{"$f":"Sheet2!$O$38","v":15},{"$f":"Sheet2!$O$39","v":15},{"$f":"Sheet2!$O$40","v":15},{"$f":"Sheet2!$O$41","v":15},{"$f":"Sheet2!$O$42","v":17},{"$f":"Sheet2!$O$43","v":17},{"$f":"Sheet2!$O$44","v":17},{"$f":"Sheet2!$O$45","v":17},{"$f":"Sheet2!$O$46","v":17},{"$f":"Sheet2!$O$47","v":17},{"$f":"Sheet2!$O$48","v":17},{"$f":"Sheet2!$O$49","v":0},{"$f":"Sheet2!$O$50","v":0},{"$f":"Sheet2!$O$51","v":0},{"$f":"Sheet2!$O$52","v":0}]
[]
[null,"d"]
[]
[null,"Millwall e",null,{"$f":"Sheet2!$G$6","v":2},{"$f":"Sheet2!$G$7","v":2},{"$f":"Sheet2!$G$8","v":3},{"$f":"Sheet2!$G$9","v":4},{"$f":"Sheet2!$G$10","v":6},{"$f":"Sheet2!$G$11","v":8},{"$f":"Sheet2!$G$12","v":10},{"$f":"Sheet2!$G$13","v":12},{"$f":"Sheet2!$G$14","v":12},{"$f":"Sheet2!$G$15","v":12},{"$f":"Sheet2!$G$16","v":13},{"$f":"Sheet2!$G$17","v":15},{"$f":"Sheet2!$G$18","v":15},{"$f":"Sheet2!$G$19","v":15},{"$f":"Sheet2!$G$20","v":17},{"$f":"Sheet2!$G$21","v":18},{"$f":"Sheet2!$G$22","v":18},{"$f":"Sheet2!$G$23","v":18},{"$f":"Sheet2!$G$24","v":20},{"$f":"Sheet2!$G$25","v":20},{"$f":"Sheet2!$G$26","v":21},{"$f":"Sheet2!$G$27","v":22},{"$f":"Sheet2!$G$28","v":23},{"$f":"Sheet2!$G$29","v":23},{"$f":"Sheet2!$G$30","v":24},{"$f":"Sheet2!$G$31","v":24},{"$f":"Sheet2!$G$32","v":25},{"$f":"Sheet2!$G$33","v":27},{"$f":"Sheet2!$G$34","v":27},{"$f":"Sheet2!$G$35","v":29},{"$f":"Sheet2!$G$36","v":30},{"$f":"Sheet2!$G$37","v":32},{"$f":"Sheet2!$G$38","v":33},{"$f":"Sheet2!$G$39","v":33},{"$f":"Sheet2!$G$40","v":33},{"$f":"Sheet2!$G$41","v":34},{"$f":"Sheet2!$G$42","v":36},{"$f":"Sheet2!$G$43","v":37},{"$f":"Sheet2!$G$44","v":37},{"$f":"Sheet2!$G$45","v":39},{"$f":"Sheet2!$G$46","v":40},{"$f":"Sheet2!$G$47","v":42},{"$f":"Sheet2!$G$48","v":42},{"$f":"Sheet2!$G$49","v":0},{"$f":"Sheet2!$G$50","v":0},{"$f":"Sheet2!$G$51","v":0},{"$f":"Sheet2!$G$52","v":0}]
[]
[]
[]
[]
[null,"2nd f",null,{"$f":"(Sheet2!$T$6)","v":2},{"$f":"(Sheet2!$T$7)","v":4},{"$f":"(Sheet2!$T$8)","v":6},{"$f":"(Sheet2!$T$9)","v":6},{"$f":"(Sheet2!$T$10)","v":8},{"$f":"(Sheet2!$T$11)","v":10},{"$f":"(Sheet2!$T$12)","v":12},{"$f":"(Sheet2!$T$13)","v":13},{"$f":"(Sheet2!$T$14)","v":13},{"$f":"(Sheet2!$T$15)","v":14},{"$f":"(Sheet2!$T$16)","v":15},{"$f":"(Sheet2!$T$17)","v":16},{"$f":"(Sheet2!$T$18)","v":18},{"$f":"(Sheet2!$T$19)","v":19},{"$f":"(Sheet2!$T$20)","v":20},{"$f":"(Sheet2!$T$21)","v":21},{"$f":"(Sheet2!$T$22)","v":23},{"$f":"(Sheet2!$T$23)","v":24},{"$f":"(Sheet2!$T$24)","v":26},{"$f":"(Sheet2!$T$25)","v":27},{"$f":"(Sheet2!$T$26)","v":29},{"$f":"(Sheet2!$T$27)","v":30},{"$f":"(Sheet2!$T$28)","v":31},{"$f":"(Sheet2!$T$29)","v":32},{"$f":"(Sheet2!$T$30)","v":33},{"$f":"(Sheet2!$T$31)","v":37},{"$f":"(Sheet2!$T$32)","v":37},{"$f":"(Sheet2!$T$33)","v":37},{"$f":"(Sheet2!$T$34)","v":39},{"$f":"(Sheet2!$T$35)","v":39},{"$f":"(Sheet2!$T$36)","v":39},{"$f":"(Sheet2!$T$37)","v":39},{"$f":"(Sheet2!$T$38)","v":41},{"$f":"(Sheet2!$T$39)","v":42},{"$f":"(Sheet2!$T$40)","v":42},{"$f":"(Sheet2!$T$41)","v":43},{"$f":"(Sheet2!$T$42)","v":44},{"$f":"(Sheet2!$T$43)","v":45},{"$f":"(Sheet2!$T$44)","v":46},{"$f":"(Sheet2!$T$45)","v":48},{"$f":"(Sheet2!$T$46)","v":50},{"$f":"(Sheet2!$T$47)","v":53},{"$f":"(Sheet2!$T$48)","v":54},{"$f":"(Sheet2!$T$49)","v":0},{"$f":"(Sheet2!$T$50)","v":0},{"$f":"(Sheet2!$T$51)","v":0},{"$f":"(Sheet2!$T$52)","v":0}]
[]
[null,"23rd g",null,{"$f":"(Sheet2!$V$6)","v":0},{"$f":"(Sheet2!$V$7)","v":0},{"$f":"(Sheet2!$V$8)","v":0},{"$f":"(Sheet2!$V$9)","v":0},{"$f":"(Sheet2!$V$10)","v":1},{"$f":"(Sheet2!$V$11)","v":3},{"$f":"(Sheet2!$V$12)","v":3},{"$f":"(Sheet2!$V$13)","v":5},{"$f":"(Sheet2!$V$14)","v":5},{"$f":"(Sheet2!$V$15)","v":6},{"$f":"(Sheet2!$V$16)","v":7},{"$f":"(Sheet2!$V$17)","v":8},{"$f":"(Sheet2!$V$18)","v":8},{"$f":"(Sheet2!$V$19)","v":9},{"$f":"(Sheet2!$V$20)","v":10},{"$f":"(Sheet2!$V$21)","v":10},{"$f":"(Sheet2!$V$22)","v":10},{"$f":"(Sheet2!$V$23)","v":11},{"$f":"(Sheet2!$V$24)","v":11},{"$f":"(Sheet2!$V$25)","v":13},{"$f":"(Sheet2!$V$26)","v":13},{"$f":"(Sheet2!$V$27)","v":15},{"$f":"(Sheet2!$V$28)","v":15},{"$f":"(Sheet2!$V$29)","v":15},{"$f":"(Sheet2!$V$30)","v":15},{"$f":"(Sheet2!$V$31)","v":15},{"$f":"(Sheet2!$V$32)","v":15},{"$f":"(Sheet2!$V$33)","v":17},{"$f":"(Sheet2!$V$34)","v":19},{"$f":"(Sheet2!$V$35)","v":19},{"$f":"(Sheet2!$V$36)","v":19},{"$f":"(Sheet2!$V$37)","v":19},{"$f":"(Sheet2!$V$38)","v":21},{"$f":"(Sheet2!$V$39)","v":23},{"$f":"(Sheet2!$V$40)","v":23},{"$f":"(Sheet2!$V$41)","v":23},{"$f":"(Sheet2!$V$42)","v":23},{"$f":"(Sheet2!$V$43)","v":25},{"$f":"(Sheet2!$V$44)","v":26},{"$f":"(Sheet2!$V$45)","v":28},{"$f":"(Sheet2!$V$46)","v":29},{"$f":"(Sheet2!$V$47)","v":29},{"$f":"(Sheet2!$V$48)","v":31},{"$f":"(Sheet2!$V$49)","v":0},{"$f":"(Sheet2!$V$50)","v":0},{"$f":"(Sheet2!$V$51)","v":0},{"$f":"(Sheet2!$V$52)","v":0}]
[]
[]
[]
[]
[null,null,null,5,6,7,8,9,10,11,12,13,14,15,16,17,18,19,20,21,22,23,24,25,26,27,28,29,30,31,32,33,34,35,36,37,38,39,40,41,42,43,44,45,46,47,48,45,46,46]
[null,null,null,{"$f":"D176-D189","v":0},0,0,0,1,0,1,0,0,0,1,0,0,1,0,0,1,2,2,0,2,1,1,1,1,2,2,2,1,1,2,2,1,0,0,0,2,1,2,1,0,2,0,0,0,0,0]

{"sheet":"Sheet2","index":3,"n_rows":48,"n_cols":26,"rows_kept":48,"cut":false,"hidden":false,"merged":[]}
[null,null,"Millwall 1938/39 results and fixtures ",null,null,null,{"$f":"[5]Summary!$AP$64","v":42},{"$f":"[5]Summary!$Q$22","v":13},{"$f":"[5]Summary!$AP$10","v":55},1,{"$f":"[5]Summary!$AP$12","v":53},2,{"$f":"[5]Summary!$AP$29","v":31},20,{"$f":"[5]Summary!$AP$31","v":17},22,null,null,{"$f":"[5]Summary!$T$5","v":69},{"$f":"[5]Summary!$AP$11","v":54},2,{"$f":"[5]Summary!$AP$30","v":31},21,null,null,{"$f":"[5]Summary!$U$7","v":"Tranmere (H) W 2-1"}]
[]
[]
[null,null,null,null,null,null,"x"]
[null,"Game","Competition",null,"Pts","Pos","Millwall","Pos","top","Pos","3rd","Pos","20th","Pos","Bottom","Pos","Bottom","Pos","Day","2nd","Pos","21st","Pos",null,null,"Vesus"]
[null,1,"Division 2","Chesterfield (H) W 3-1",null,null,2,6,2,1,2,2,0,20,0,22,null,null,1,2,2,0,21,null,null,"Chesterfield (H) W 3-1"]
[null,2,"Division 2","Tranmere (A) L 0-2",null,null,2,11,4,1,4,2,0,20,0,22,null,null,2,4,2,0,21,null,null,"Tranmere (A) L 0-2"]
[null,3,"Division 2","Swansea (A) D 1-1",null,null,3,12,6,1,5,2,0,20,0,22,null,null,6,6,2,0,21,null,null,"Swansea (A) D 1-1"]
[null,4,"Division 2","Bury (H) D 0-0",null,null,4,11,7,1,6,2,0,20,0,22,null,null,7,6,2,0,21,null,null,"Bury (H) D 0-0"]
[null,5,"Division 2","Bradford PA (H) W 3-1",null,null,6,8,9,1,8,2,2,20,0,22,null,null,10,8,2,1,21,null,null,"Bradford PA (H) W 3-1"]
[null,6,"Division 2","Man City (A) W 6-1",null,null,8,5,10,1,9,2,3,20,2,22,null,null,13,10,2,3,21,null,null,"Man City (A) W 6-1"]
[null,7,"Division 2","Plymouth (H) W 3-0",null,null,10,3,13,1,10,2,4,20,3,22,null,null,15,12,2,3,21,null,null,"Plymouth (H) W 3-0"]
[null,8,"Division 2","Blackburn (H) W 4-1",null,null,12,3,14,1,12,2,5,20,4,22,null,null,16,13,2,5,21,null,null,"Blackburn (H) W 4-1"]
[null,9,"Division 2","Fulham (A) L 1-2",null,null,12,3,16,1,12,2,5,20,5,22,null,null,17,13,2,5,21,null,null,"Fulham (A) L 1-2"]
[null,10,"Division 2","Sheff Utd (A) L 1-2",null,null,12,7,16,1,13,2,6,20,5,22,null,null,18,14,2,6,21,null,null,"Sheff Utd (A) L 1-2"]
[null,11,"Division 2","Burnley (H) D 1-1",null,null,13,5,17,1,14,2,8,20,6,22,null,null,19,15,2,7,21,null,null,"Burnley (H) D 1-1"]
[null,12,"Division 2","Norwich (A) W 2-0",null,null,15,5,18,1,16,2,8,20,7,22,null,null,20,16,2,8,21,null,null,"Norwich (A) W 2-0"]
[null,13,"Division 2","Southampton (H) L 0-1",null,null,15,6,19,1,17,2,8,20,7,22,null,null,21,18,2,8,21,null,null,"Southampton (H) L 0-1"]
[null,14,"Division 2","Coventry (A) L 1-2",null,null,15,8,20,1,19,2,10,20,7,22,null,null,22,19,2,9,21,null,null,"Coventry (A) L 1-2"]
[null,15,"Division 2","Nottm Forest (H) W 5-0",null,null,17,6,21,1,20,2,10,20,7,22,null,null,23,20,2,10,21,null,null,"Nottm Forest (H) W 5-0"]
[null,16,"Division 2","Newcastle (A) D 2-2",null,null,18,6,22,1,21,2,10,20,7,22,null,null,24,21,2,10,21,null,null,"Newcastle (A) D 2-2"]
[null,17,"Division 2","West Brom (H) L 1-5",null,null,18,9,24,1,22,2,11,20,7,22,null,null,25,23,2,10,21,null,null,"West Brom (H) L 1-5"]
[null,18,"Division 2","Tottenham (A) L 0-4",null,null,18,12,25,1,24,2,13,20,7,22,null,null,26,24,2,11,21,null,null,"Tottenham (A) L 0-4"]
[null,19,"Division 2","Luton (H) W 2-1",null,null,20,10,26,1,26,2,13,20,7,22,null,null,27,26,2,11,21,null,null,"Luton (H) W 2-1"]
[null,20,"Division 2","Chesterfield (A) L 0-3",null,null,20,13,27,1,26,2,13,20,8,22,null,null,28,27,2,13,21,null,null,"Chesterfield (A) L 0-3"]
[null,21,"Division 2","West Ham (A) D 0-0",null,null,21,15,31,1,29,2,15,20,8,22,null,null,30,29,2,13,21,null,null,"West Ham (A) D 0-0"]
[null,22,"Division 2","Swansea (H) D 1-1",null,null,22,14,33,1,30,2,16,20,8,22,null,null,31,30,2,15,21,null,null,"Swansea (H) D 1-1"]
[null,23,"Division 2","Bury (A) D 1-1",null,null,23,14,33,1,30,2,16,20,10,22,null,null,32,31,2,15,21,null,null,"Bury (A) D 1-1"]
[null,24,"Division 2","Bradford PA (A) L 0-1",null,null,23,15,33,1,30,2,16,20,10,22,null,null,33,32,2,15,21,null,null,"Bradford PA (A) L 0-1"]
[null,25,"Division 2","Plymouth (A) D 2-2",null,null,24,14,35,1,32,2,16,20,11,22,null,null,36,33,2,15,21,null,null,"Plymouth (A) D 2-2"]
[null,26,"Division 2","Blackburn (A) L 1-3",null,null,24,15,37,1,34,2,17,20,12,22,null,null,39,37,2,15,21,null,null,"Blackburn (A) L 1-3"]
[null,27,"Division 2","Fulham (H) D 1-1",null,null,25,15,37,1,35,2,17,20,12,22,null,null,41,37,2,15,21,null,null,"Fulham (H) D 1-1"]
[null,28,"Division 2","Sheff Utd (H) W 4-0",null,null,27,15,39,1,35,2,19,20,12,22,null,null,44,37,2,17,21,null,null,"Sheff Utd (H) W 4-0"]
[null,29,"Division 2","Burnley (A) L 0-2",null,null,27,16,39,1,37,2,20,20,12,22,null,null,45,39,2,19,21,null,null,"Burnley (A) L 0-2"]
[null,30,"Division 2","Norwich (H) W 6-0",null,null,29,14,39,1,37,2,20,20,13,22,null,null,47,39,2,19,21,null,null,"Norwich (H) W 6-0"]
[null,31,"Division 2","Southampton (A) D 1-1",null,null,30,14,41,1,39,2,21,20,13,22,null,null,48,39,2,19,21,null,null,"Southampton (A) D 1-1"]
[null,32,"Division 2","Man City (H) W 3-1",null,null,32,12,41,1,39,2,21,20,13,22,null,null,49,39,2,19,21,null,null,"Man City (H) W 3-1"]
[null,33,"Division 2","Coventry (H) D 0-0",null,null,33,13,45,1,39,2,22,20,15,22,null,null,51,41,2,21,21,null,null,"Coventry (H) D 0-0"]
[null,34,"Division 2","Nottm Forest (A) L 0-3",null,null,33,13,46,1,41,2,23,20,15,22,null,null,53,42,2,23,21,null,null,"Nottm Forest (A) L 0-3"]
[null,35,"Division 2","West Ham (H) L 0-2",null,null,33,14,46,1,41,2,23,20,15,22,null,null,54,42,2,23,21,null,null,"West Ham (H) L 0-2"]
[null,36,"Division 2","Newcastle (H) D 1-1",null,null,34,14,48,1,43,2,23,20,15,22,null,null,55,43,2,23,21,null,null,"Newcastle (H) D 1-1"]
[null,37,"Division 2","Sheff Wed (H) W 2-0",null,null,36,13,50,1,44,2,25,20,17,22,null,null,56,44,2,23,21,null,null,"Sheff Wed (H) W 2-0"]
[null,38,"Division 2","West Brom (A) D 0-0",null,null,37,13,50,1,45,2,26,20,17,22,null,null,57,45,2,25,21,null,null,"West Brom (A) D 0-0"]
[null,39,"Division 2","Sheff Wed (A) L 1-3",null,null,37,13,52,1,46,2,28,20,17,22,null,null,58,46,2,26,21,null,null,"Sheff Wed (A) L 1-3"]
[null,40,"Division 2","Tottenham (H) W 2-0",null,null,39,13,54,1,47,2,29,20,17,22,null,null,60,48,2,28,21,null,null,"Tottenham (H) W 2-0"]
[null,41,"Division 2","Luton (A) D 0-0",null,null,40,13,54,1,49,2,29,20,17,22,null,null,63,50,2,29,21,null,null,"Luton (A) D 0-0"]
[null,42,"Division 2","Tranmere (H) W 2-1",null,null,42,13,55,1,52,2,31,20,17,22,null,null,66,53,2,29,21,null,null,"Tranmere (H) W 2-1"]
[null,null,null,null,null,null,42,13,55,1,53,2,31,20,17,22,null,null,69,54,2,31,21,null,null,"Tranmere (H) W 2-1"]

{"sheet":"Sheet3","index":4,"n_rows":154,"n_cols":57,"rows_kept":154,"cut":false,"hidden":false,"merged":[[8,1,10,1],[17,1,19,1],[18,52,20,52],[23,52,25,52],[27,1,29,1],[28,52,30,52],[33,52,35,52],[37,1,39,1],[38,52,40,52],[43,52,45,52],[47,1,49,1],[48,52,50,52],[53,52,55,52],[57,1,59,1],[58,52,60,52],[63,52,65,52],[67,1,69,1],[68,52,70,52],[73,52,75,52],[77,1,79,1],[78,52,80,52],[83,52,85,52],[87,1,89,1],[88,52,90,52],[93,52,95,52],[97,1,99,1],[98,52,100,52],[103,52,105,52],[107,1,109,1],[108,52,110,52],[133,52,135,52],[137,1,139,1],[113,52,115,52],[117,1,119,1],[118,52,120,52],[123,52,125,52],[127,1,129,1],[128,52,130,52]]}
[]
[null,null,null,null,null,null,null,null,null,null,null,null,null,null,null,null,null,null,null,null,null,null,null,null,null,null,null,null,null,null,null,null,null,null,null,null,null,null,null,null,null,null,null,null,null,null,null,null,null,null,null,null,null,null,null,4,46]
[]
[]
[]
[null,null,"Points",null,null,null,null,null,null,null,null,null,null,null,null,null,null,null,null,null,null,null,null,null,null,null,null,null,null,null,null,null,null,null,null,null,null,null,null,null,null,null,null,null,null,null,null,null,null,null,null,"Position"]
[]
[]
[null,65]
[]
[]
[]
[]
[]
[]
[]
[]
[null,60]
[null,null,null,null,null,null,null,null,null,null,null,null,null,null,null,null,null,null,null,null,null,null,null,null,null,null,null,null,null,null,null,null,null,null,null,null,null,null,null,null,null,null,null,null,null,null,null,null,null,null,null,null,1]
[]
[]
[]
[]
[null,null,null,null,null,null,null,null,null,null,null,null,null,null,null,null,null,null,null,null,null,null,null,null,null,null,null,null,null,null,null,null,null,null,null,null,null,null,null,null,null,null,null,null,null,null,null,null,null,null,null,null,2]
[]
[]
[]
[null,55]
[null,null,null,null,null,null,null,null,null,null,null,null,null,null,null,null,null,null,null,null,null,null,null,null,null,null,null,null,null,null,null,null,null,null,null,null,null,null,null,null,null,null,null,null,null,null,null,null,null,null,null,null,3]
[]
[]
[]
[]
[null,null,null,null,null,null,null,null,null,null,null,null,null,null,null,null,null,null,null,null,null,null,null,null,null,null,null,null,null,null,null,null,null,null,null,null,null,null,null,null,null,null,null,null,null,null,null,null,null,null,null,null,4]
[]
[]
[]
[null,50]
[null,null,null,null,null,null,null,null,null,null,null,null,null,null,null,null,null,null,null,null,null,null,null,null,null,null,null,null,null,null,null,null,null,null,null,null,null,null,null,null,null,null,null,null,null,null,null,null,null,null,null,null,5]
[]
[]
[]
[]
[null,null,null,null,null,null,null,null,null,null,null,null,null,null,null,null,null,null,null,null,null,null,null,null,null,null,null,null,null,null,null,null,null,null,null,null,null,null,null,null,null,null,null,null,null,null,null,null,null,null,null,null,6]
[]
[]
[]
[null,45]
[null,null,null,null,null,null,null,null,null,null,null,null,null,null,null,null,null,null,null,null,null,null,null,null,null,null,null,null,null,null,null,null,null,null,null,null,null,null,null,null,null,null,null,null,null,null,null,null,null,null,null,null,7]
[]
[]
[]
[]
[null,null,null,null,null,null,null,null,null,null,null,null,null,null,null,null,null,null,null,null,null,null,null,null,null,null,null,null,null,null,null,null,null,null,null,null,null,null,null,null,null,null,null,null,null,null,null,null,null,null,null,null,8]
[]
[]
[]
[null,40]
[null,null,null,null,null,null,null,null,null,null,null,null,null,null,null,null,null,null,null,null,null,null,null,null,null,null,null,null,null,null,null,null,null,null,null,null,null,null,null,null,null,null,null,null,null,null,null,null,null,null,null,null,9]
[]
[]
[]
[]
[null,null,null,null,null,null,null,null,null,null,null,null,null,null,null,null,null,null,null,null,null,null,null,null,null,null,null,null,null,null,null,null,null,null,null,null,null,null,null,null,null,null,null,null,null,null,null,null,null,null,null,null,10]
[]
[]
[]
[null,35]
[null,null,null,null,null,null,null,null,null,null,null,null,null,null,null,null,null,null,null,null,null,null,null,null,null,null,null,null,null,null,null,null,null,null,null,null,null,null,null,null,null,null,null,null,null,null,null,null,null,null,null,null,11]
[]
[]
[]
[]
[null,null,null,null,null,null,null,null,null,null,null,null,null,null,null,null,null,null,null,null,null,null,null,null,null,null,null,null,null,null,null,null,null,null,null,null,null,null,null,null,null,null,null,null,null,null,null,null,null,null,null,null,12]
[]
[]
[]
[null,30]
[null,null,null,null,null,null,null,null,null,null,null,null,null,null,null,null,null,null,null,null,null,null,null,null,null,null,null,null,null,null,null,null,null,null,null,null,null,null,null,null,null,null,null,null,null,null,null,null,null,null,null,null,13]
[]
[]
[]
[]
[null,null,null,null,null,null,null,null,null,null,null,null,null,null,null,null,null,null,null,null,null,null,null,null,null,null,null,null,null,null,null,null,null,null,null,null,null,null,null,null,null,null,null,null,null,null,null,null,null,null,null,null,14]
[]
[]
[]
[null,25]
[null,null,null,null,null,null,null,null,null,null,null,null,null,null,null,null,null,null,null,null,null,null,null,null,null,null,null,null,null,null,null,null,null,null,null,null,null,null,null,null,null,null,null,null,null,null,null,null,null,null,null,null,15]
[]
[]
[]
[]
[null,null,null,null,null,null,null,null,null,null,null,null,null,null,null,null,null,null,null,null,null,null,null,null,null,null,null,null,null,null,null,null,null,null,null,null,null,null,null,null,null,null,null,null,null,null,null,null,null,null,null,null,16]
[]
[]
[]
[null,20]
[null,null,null,null,null,null,null,null,null,null,null,null,null,null,null,null,null,null,null,null,null,null,null,null,null,null,null,null,null,null,null,null,null,null,null,null,null,null,null,null,null,null,null,null,null,null,null,null,null,null,null,null,17]
[]
[]
[]
[]
[null,null,null,null,null,null,null,null,null,null,null,null,null,null,null,null,null,null,null,null,null,null,null,null,null,null,null,null,null,null,null,null,null,null,null,null,null,null,null,null,null,null,null,null,null,null,null,null,null,null,null,null,18]
[]
[]
[]
[null,15]
[null,null,null,null,null,null,null,null,null,null,null,null,null,null,null,null,null,null,null,null,null,null,null,null,null,null,null,null,null,null,null,null,null,null,null,null,null,null,null,null,null,null,null,null,null,null,null,null,null,null,null,null,19]
[]
[]
[]
[]
[null,null,null,null,null,null,null,null,null,null,null,null,null,null,null,null,null,null,null,null,null,null,null,null,null,null,null,null,null,null,null,null,null,null,null,null,null,null,null,null,null,null,null,null,null,null,null,null,null,null,null,null,20]
[]
[]
[]
[null,10]
[null,null,null,null,null,null,null,null,null,null,null,null,null,null,null,null,null,null,null,null,null,null,null,null,null,null,null,null,null,null,null,null,null,null,null,null,null,null,null,null,null,null,null,null,null,null,null,null,null,null,null,null,21]
[]
[]
[]
[]
[null,null,null,null,null,null,null,null,null,null,null,null,null,null,null,null,null,null,null,null,null,null,null,null,null,null,null,null,null,null,null,null,null,null,null,null,null,null,null,null,null,null,null,null,null,null,null,null,null,null,null,null,22]
[]
[]
[]
[null,5]
[]
[]
[]
[]
[]
[]
[]
[]
[]
[null,0]
[]
[]
[]
[null,null,null,"Chesterfield (H) W 3-1","Tranmere (A) L 0-2","Swansea (A) D 1-1","Bury (H) D 0-0","Bradford PA (H) W 3-1","Man City (A) W 6-1","Plymouth (H) W 3-0","Blackburn (H) W 4-1","Fulham (A) L 1-2","Sheff Utd (A) L 1-2","Burnley (H) D 1-1","Norwich (A) W 2-0","Southampton (H) L 0-1","Coventry (A) L 1-2","Nottm Forest (H) W 5-0","Newcastle (A) D 2-2","West Brom (H) L 1-5","Tottenham (A) L 0-4","Luton (H) W 2-1","Chesterfield (A) L 0-3","West Ham (A) D 0-0","Swansea (H) D 1-1","Bury (A) D 1-1","Bradford PA (A) L 0-1","Plymouth (A) D 2-2","Blackburn (A) L 1-3","Fulham (H) D 1-1","Sheff Utd (H) W 4-0","Burnley (A) L 0-2","Norwich (H) W 6-0","Southampton (A) D 1-1","Man City (H) W 3-1","Coventry (H) D 0-0","Nottm Forest (A) L 0-3","West Ham (H) L 0-2","Newcastle (H) D 1-1","Sheff Wed (H) W 2-0","West Brom (A) D 0-0","Sheff Wed (A) L 1-3","Tottenham (H) W 2-0","Luton (A) D 0-0","Tranmere (H) W 2-1","Final Table"]
[]
[]
[]
[]
[]
[null,"Millwall",null,{"$f":"Sheet2!$G$6","v":2},{"$f":"Sheet2!$G$7","v":2},{"$f":"Sheet2!$G$8","v":3},{"$f":"Sheet2!$G$9","v":4},{"$f":"Sheet2!$G$10","v":6},{"$f":"Sheet2!$G$11","v":8},{"$f":"Sheet2!$G$12","v":10},{"$f":"Sheet2!$G$13","v":12},{"$f":"Sheet2!$G$14","v":12},{"$f":"Sheet2!$G$15","v":12},{"$f":"Sheet2!$G$16","v":13},{"$f":"Sheet2!$G$17","v":15},{"$f":"Sheet2!$G$18","v":15},{"$f":"Sheet2!$G$19","v":15},{"$f":"Sheet2!$G$20","v":17},{"$f":"Sheet2!$G$21","v":18},{"$f":"Sheet2!$G$22","v":18},{"$f":"Sheet2!$G$23","v":18},{"$f":"Sheet2!$G$24","v":20},{"$f":"Sheet2!$G$25","v":20},{"$f":"Sheet2!$G$26","v":21},{"$f":"Sheet2!$G$27","v":22},{"$f":"Sheet2!$G$28","v":23},{"$f":"Sheet2!$G$29","v":23},{"$f":"Sheet2!$G$30","v":24},{"$f":"Sheet2!$G$31","v":24},{"$f":"Sheet2!$G$32","v":25},{"$f":"Sheet2!$G$33","v":27},{"$f":"Sheet2!$G$34","v":27},{"$f":"Sheet2!$G$35","v":29},{"$f":"Sheet2!$G$36","v":30},{"$f":"Sheet2!$G$37","v":32},{"$f":"Sheet2!$G$38","v":33},{"$f":"Sheet2!$G$39","v":33},{"$f":"Sheet2!$G$40","v":33},{"$f":"Sheet2!$G$41","v":34},{"$f":"Sheet2!$G$42","v":36},{"$f":"Sheet2!$G$43","v":37},{"$f":"Sheet2!$G$44","v":37},{"$f":"Sheet2!$G$45","v":39},{"$f":"Sheet2!$G$46","v":40},{"$f":"Sheet2!$G$47","v":42},{"$f":"Sheet2!$G$48","v":42},{"$f":"Sheet2!$G$49","v":0},{"$f":"Sheet2!$G$50","v":0},{"$f":"Sheet2!$G$51","v":0},{"$f":"Sheet2!$G$52","v":0}]
[]
[null,"Position",null,{"$f":"126-(D154*5)","v":96},71,66,71,86,101,111,111,111,91,101,101,96,86,96,96,81,66,76,61,51,56,56,51,56,51,51,51,46,56,56,66,61,61,56,56,61,61,61,61,61,61,61,126,126,126,126]
[]
[]
[]
[null,null,null,{"$f":"Sheet2!$H$6","v":6},{"$f":"Sheet2!$H$7","v":11},{"$f":"Sheet2!$H$8","v":12},{"$f":"Sheet2!$H$9","v":11},{"$f":"Sheet2!$H$10","v":8},{"$f":"Sheet2!$H$11","v":5},{"$f":"Sheet2!$H$12","v":3},{"$f":"Sheet2!$H$13","v":3},{"$f":"Sheet2!$H$14","v":3},{"$f":"Sheet2!$H$15","v":7},{"$f":"Sheet2!$H$16","v":5},{"$f":"Sheet2!$H$17","v":5},{"$f":"Sheet2!$H$18","v":6},{"$f":"Sheet2!$H$19","v":8},{"$f":"Sheet2!$H$20","v":6},{"$f":"Sheet2!$H$21","v":6},{"$f":"Sheet2!$H$22","v":9},{"$f":"Sheet2!$H$23","v":12},{"$f":"Sheet2!$H$24","v":10},{"$f":"Sheet2!$H$25","v":13},{"$f":"Sheet2!$H$26","v":15},{"$f":"Sheet2!$H$27","v":14},{"$f":"Sheet2!$H$28","v":14},{"$f":"Sheet2!$H$29","v":15},{"$f":"Sheet2!$H$30","v":14},{"$f":"Sheet2!$H$31","v":15},{"$f":"Sheet2!$H$32","v":15},{"$f":"Sheet2!$H$33","v":15},{"$f":"Sheet2!$H$34","v":16},{"$f":"Sheet2!$H$35","v":14},{"$f":"Sheet2!$H$36","v":14},{"$f":"Sheet2!$H$37","v":12},{"$f":"Sheet2!$H$38","v":13},{"$f":"Sheet2!$H$39","v":13},{"$f":"Sheet2!$H$40","v":14},{"$f":"Sheet2!$H$41","v":14},{"$f":"Sheet2!$H$42","v":13},{"$f":"Sheet2!$H$43","v":13},{"$f":"Sheet2!$H$44","v":13},{"$f":"Sheet2!$H$45","v":13},{"$f":"Sheet2!$H$46","v":13},{"$f":"Sheet2!$H$47","v":13},{"$f":"Sheet2!$H$48","v":13},{"$f":"Sheet2!$H$49","v":0},{"$f":"Sheet2!$H$50","v":0},{"$f":"Sheet2!$H$51","v":0},{"$f":"Sheet2!$H$52","v":0}]